Workbook

Sheet Chazarah Schedule
J2: CHAZARAH CALENDAR
AZ5: a) Please click on "Enable Editing" or "Enable Content" or "Enable Macros" on top (if shown)
AZ6: b) Press the Red Print icon below to create printable PDF
J7: MESECHTA INPUTS | AZ7: c) Checkboxes for progress can be shown or hidden by selecting below
K8: Berachos | L8: Shabbos | M8: Eruvin | N8: Pesachim | O8: Shekalim | P8: Yoma | Q8: Succah | R8: Beitzah | S8: Rosh Hashanah | T8: Taanis | U8: Megillah | V8: Moed Katan | W8: Chagigah | X8: Yevamos | Y8: Kesubos | Z8: Nedarim | AA8: Nazir | AB8: Sotah | AC8: Gittin | AD8: Kiddushin | AE8: Bava Kamma | AF8: Bava Metzia | AG8: Bava Basra | AH8: Sanhedrin | AI8: Makkos | AJ8: Shavuos | AK8: Avodah Zara | AL8: Horayos | AM8: Zevachim | AN8: Menachos | AO8: Chullin | AP8: Bechoros | AQ8: Arachin | AR8: Temurah | AS8: Kereisos | AT8: Meilah, Etc | AU8: Niddah | AV8: Total | AW8: % of Shas | BB8: CLICK THE RED ICON TO PRINT TO PDF
B9: 1) For each masechta, select the review frequency ---> | J9: Frequency | K9: Monthly | L9: Monthly | M9: Monthly | N9: Monthly | O9: Monthly | P9: Monthly | Q9: Monthly | R9: Monthly | S9: Monthly | T9: Monthly | U9: Monthly | V9: Monthly | W9: Monthly | X9: Monthly | Y9: Monthly | Z9: Monthly | AA9: Monthly | AB9: Monthly | AC9: Monthly | AD9: Monthly | AE9: Monthly | AF9: Bi-weekly | AG9: Bi-weekly | AH9: Weekly | AI9: Weekly | AJ9: Weekly | AK9: Weekly | AL9: Weekly | AM9: Weekly | AN9: Weekly | AO9: None | AP9: None | AQ9: None | AR9: None | AS9: None | AT9: None | AU9: None
B10: 2) Optional: Enter which Daf to start with ---> | J10: Start | K10: 2 | L10: 2 | M10: 2 | N10: 2 | O10: 2 | P10: 2 | Q10: 2 | R10: 2 | S10: 2 | T10: 2 | U10: 2 | V10: 2 | W10: 2 | X10: 2 | Y10: 2 | Z10: 2 | AA10: 2 | AB10: 2 | AC10: 2 | AD10: 2 | AE10: 2 | AF10: 2 | AG10: 2 | AH10: 2 | AI10: 2 | AJ10: 2 | AK10: 2 | AL10: 2 | AM10: 2 | AN10: 2 | AO10: 2 | AP10: 2 | AQ10: 2 | AR10: 2 | AS10: 2 | AT10: 2 | AU10: 2
B11: 3) Optional: Enter which Daf to end with ---> | J11: End | K11: 64 | L11: 157 | M11: 105 | N11: 121 | O11: 22 | P11: 88 | Q11: 56 | R11: 40 | S11: 35 | T11: 31 | U11: 32 | V11: 29 | W11: 27 | X11: 122 | Y11: 112 | Z11: 91 | AA11: 66 | AB11: 49 | AC11: 90 | AD11: 82 | AE11: 119 | AF11: 119 | AG11: 176 | AH11: 113 | AI11: 24 | AJ11: 49 | AK11: 76 | AL11: 14 | AM11: 120 | AN11: 110 | AO11: 142 | AP11: 61 | AQ11: 34 | AR11: 34 | AS11: 28 | AT11: 37 | AU11: 73
B12: 4) Press the Red Print icon on the right for printable PDF | J12: Total | K12: =IF(K$9="None",0,K11-K10+1) -> 63 | L12: =IF(L$9="None",0,L11-L10+1) -> 156 | M12: 104 | N12: =IF(N$9="None",0,N11-N10+1) -> 120 | O12: 21 | P12: 87 | Q12: 55 | R12: =IF(R$9="None",0,R11-R10+1) -> 39 | S12: 34 | T12: 30 | U12: 31 | V12: 28 | W12: 26 | X12: 121 | Y12: =IF(Y$9="None",0,Y11-Y10+1) -> 111 | Z12: 90 | AA12: =IF(AA$9="None",0,AA11-AA10+1) -> 65 | AB12: 48 | AC12: =IF(AC$9="None",0,AC11-AC10+1) -> 89 | AD12: 81 | AE12: =IF(AE$9="None",0,AE11-AE10+1) -> 118 | AF12: 118 | AG12: =IF(AG$9="None",0,AG11-AG10+1) -> 175 | AH12: 112 | AI12: =IF(AI$9="None",0,AI11-AI10+1) -> 23 | AJ12: 48 | AK12: 75 | AL12: =IF(AL$9="None",0,AL11-AL10+1) -> 13 | AM12: 119 | AN12: 109 | AO12: 0 | AP12: 0 | AQ12: =IF(AQ$9="None",0,AQ11-AQ10+1) -> 0 | AR12: 0 | AS12: 0 | AT12: =IF(AT$9="None",0,AT11-AT10+1) -> 0 | AU12: 0 | AV12: =SUM(K12:AU12) -> 2309 | AW12: =AV12/2711 -> 0.8517152342
J13: Daily Daf to Complete Weekly | K13: =K12/7 -> 9 | L13: 22.28571429 | M13: 14.85714286 | N13: 17.14285714 | O13: 3 | P13: 12.42857143 | Q13: 7.857142857 | R13: 5.571428571 | S13: 4.857142857 | T13: 4.285714286 | U13: 4.428571429 | V13: =V12/7 -> 4 | W13: 3.714285714 | X13: 17.28571429 | Y13: 15.85714286 | Z13: 12.85714286 | AA13: 9.285714286 | AB13: =AB12/7 -> 6.857142857 | AC13: =AC12/7 -> 12.71428571 | AD13: 11.57142857 | AE13: 16.85714286 | AF13: 16.85714286 | AG13: 25 | AH13: 16 | AI13: =AI12/7 -> 3.285714286 | AJ13: 6.857142857 | AK13: 10.71428571 | AL13: =AL12/7 -> 1.857142857 | AM13: 17 | AN13: 15.57142857 | AO13: 0 | AP13: 0 | AQ13: =AQ12/7 -> 0 | AR13: 0 | AS13: 0 | AT13: =AT12/7 -> 0 | AU13: 0 | AV13: =SUM(K13:AU13) -> 329.8571429 | AW13: =AV13/2711 -> 0.1216736049
J14: Daily Daf to Complete Bi-weekly | K14: =K$12/14 -> 4.5 | L14: 11.14285714 | M14: 7.428571429 | N14: 8.571428571 | O14: 1.5 | P14: 6.214285714 | Q14: 3.928571429 | R14: 2.785714286 | S14: 2.428571429 | T14: 2.142857143 | U14: 2.214285714 | V14: 2 | W14: 1.857142857 | X14: 8.642857143 | Y14: 7.928571429 | Z14: 6.428571429 | AA14: =AA$12/14 -> 4.642857143 | AB14: 3.428571429 | AC14: 6.357142857 | AD14: 5.785714286 | AE14: 8.428571429 | AF14: 8.428571429 | AG14: 12.5 | AH14: 8 | AI14: 1.642857143 | AJ14: 3.428571429 | AK14: 5.357142857 | AL14: 0.9285714286 | AM14: 8.5 | AN14: 7.785714286 | AO14: 0 | AP14: 0 | AQ14: 0 | AR14: 0 | AS14: 0 | AT14: 0 | AU14: 0 | AV14: =SUM(K14:AU14) -> 164.9285714 | AW14: =AV14/2711 -> 0.06083680245
J15: Daily Daf to Complete Monthly | K15: =K$12/28 -> 2.25 | L15: 5.571428571 | M15: 3.714285714 | N15: 4.285714286 | O15: 0.75 | P15: 3.107142857 | Q15: 1.964285714 | R15: 1.392857143 | S15: 1.214285714 | T15: 1.071428571 | U15: 1.107142857 | V15: 1 | W15: 0.9285714286 | X15: 4.321428571 | Y15: 3.964285714 | Z15: 3.214285714 | AA15: =AA$12/28 -> 2.321428571 | AB15: 1.714285714 | AC15: 3.178571429 | AD15: 2.892857143 | AE15: 4.214285714 | AF15: 4.214285714 | AG15: 6.25 | AH15: 4 | AI15: 0.8214285714 | AJ15: 1.714285714 | AK15: 2.678571429 | AL15: 0.4642857143 | AM15: 4.25 | AN15: 3.892857143 | AO15: 0 | AP15: 0 | AQ15: 0 | AR15: 0 | AS15: 0 | AT15: 0 | AU15: 0 | AV15: =SUM(K15:AU15) -> 82.46428571 | AW15: =AV15/2711 -> 0.03041840122
G19: SEE BELOW TABLE FOR YOUR CUSTOMIZED CHAZARAH CALENDAR
L21: Please note that when you click the red print icon above, it will automatically adjust to print your calendar into a weekly, bi-weekly or monthly calendar based on your Chazarah frequency selections above
H24: =K8 -> Berachos | J24: =L8 -> Shabbos | L24: =M8 -> Eruvin | N24: =N8 -> Pesachim | P24: =O8 -> Shekalim | R24: =P8 -> Yoma | T24: =Q8 -> Succah | V24: =R8 -> Beitzah | X24: =S8 -> Rosh Hashanah | Z24: =T8 -> Taanis | AB24: =U8 -> Megillah | AD24: =V8 -> Moed Katan | AF24: =W8 -> Chagigah | AH24: =X8 -> Yevamos | AJ24: =Y8 -> Kesubos | AL24: =Z8 -> Nedarim | AN24: =AA8 -> Nazir | AP24: =AB8 -> Sotah | AR24: =AC8 -> Gittin | AT24: =AD8 -> Kiddushin | AV24: =AE8 -> Bava Kamma | AX24: =AF8 -> Bava Metzia | AZ24: =AG8 -> Bava Basra | BB24: =AH8 -> Sanhedrin | BD24: =AI8 -> Makkos | BF24: =AJ8 -> Shavuos | BH24: =AK8 -> Avodah Zara | BJ24: =AL8 -> Horayos | BL24: =AM8 -> Zevachim | BN24: =AN8 -> Menachos | BP24: =AO8 -> Chullin | BR24: =AP8 -> Bechoros | BT24: =AQ8 -> Arachin | BV24: =AR8 -> Temurah | BX24: =AS8 -> Kereisos | BZ24: =AT8 -> Meilah, Etc | CB24: =AU8 -> Niddah | CD24: TOTAL DAILY
H25: =K9 -> Monthly | J25: =L9 -> Monthly | L25: =M9 -> Monthly | N25: =N9 -> Monthly | P25: =O9 -> Monthly | R25: =P9 -> Monthly | T25: =Q9 -> Monthly | V25: =R9 -> Monthly | X25: =S9 -> Monthly | Z25: =T9 -> Monthly | AB25: =U9 -> Monthly | AD25: =V9 -> Monthly | AF25: =W9 -> Monthly | AH25: =X9 -> Monthly | AJ25: =Y9 -> Monthly | AL25: =Z9 -> Monthly | AN25: =AA9 -> Monthly | AP25: =AB9 -> Monthly | AR25: =AC9 -> Monthly | AT25: =AD9 -> Monthly | AV25: =AE9 -> Monthly | AX25: =AF9 -> Bi-weekly | AZ25: =AG9 -> Bi-weekly | BB25: =AH9 -> Weekly | BD25: =AI9 -> Weekly | BF25: =AJ9 -> Weekly | BH25: =AK9 -> Weekly | BJ25: =AL9 -> Weekly | BL25: =AM9 -> Weekly | BN25: =AN9 -> Weekly | BP25: =AO9 -> None | BR25: =AP9 -> None | BT25: =AQ9 -> None | BV25: =AR9 -> None | BX25: =AS9 -> None | BZ25: =AT9 -> None | CB25: =AU9 -> None
H26: START | I26: END | J26: START | K26: END | L26: START | M26: END | N26: START | O26: END | P26: START | Q26: END | R26: START | S26: END | T26: START | U26: END | V26: START | W26: END | X26: START | Y26: END | Z26: START | AA26: END | AB26: START | AC26: END | AD26: START | AE26: END | AF26: START | AG26: END | AH26: START | AI26: END | AJ26: START | AK26: END | AL26: START | AM26: END | AN26: START | AO26: END | AP26: START | AQ26: START | AR26: START | AS26: START | AT26: START | AU26: END | AV26: START | AW26: END | AX26: START | AY26: END | AZ26: START | BA26: END | BB26: START | BC26: END | BD26: START | BE26: END | BF26: START | BG26: END | BH26: START | BI26: END | BJ26: START | BK26: END | BL26: START | BM26: END | BN26: START | BO26: END | BP26: START | BQ26: END | BR26: START | BS26: END | BT26: START | BU26: END | BV26: START | BW26: END | BX26: START | BY26: END | BZ26: START | CA26: END | CB26: START | CC26: END
G28: WEEK ONE | AH28: WEEK ONE
F29: WEEK 1 | G29: SUN | H29: =IF(K$9="none",0,IF(AND($F29="week 1",$G29="Sun"),OFFSET($J$10,,MATCH(H$24,$K$8:$AV$8,0)),IF(AND(OR($F29="week 2",$F29="week 3",$F29="week 4"),K$9="weekly",$G29="Sun"),OFFSET($J$10,,MATCH(H$24,$K$8:$AV$8,0)),IF(AND($F29="week 3",K$9="bi-weekly",$G29="Sun"),OFFSET($J$10,,MATCH(H$24,$K$8:$AV$8,0)),I27+1)))) -> 2 | I29: =IF(K$9="weekly",OFFSET($J$13,,MATCH(H$24,$K$8:$AV$8,0))+H29-1,IF(K$9="bi-weekly",OFFSET($J$14,,MATCH(H$24,$K$8:$AV$8,0))+H29-1,IF(K$9="Monthly",OFFSET($J$15,,MATCH(H$24,$K$8:$AV$8,0))+H29-1,0))) -> 3.25 | J29: =IF(L$9="none",0,IF(AND($F29="week 1",$G29="Sun"),OFFSET($J$10,,MATCH(J$24,$K$8:$AV$8,0)),IF(AND(OR($F29="week 2",$F29="week 3",$F29="week 4"),L$9="weekly",$G29="Sun"),OFFSET($J$10,,MATCH(J$24,$K$8:$AV$8,0)),IF(AND($F29="week 3",L$9="bi-weekly",$G29="Sun"),OFFSET($J$10,,MATCH(J$24,$K$8:$AV$8,0)),K27+1)))) -> 2 | K29: =IF(L$9="weekly",OFFSET($J$13,,MATCH(J$24,$K$8:$AV$8,0))+J29-1,IF(L$9="bi-weekly",OFFSET($J$14,,MATCH(J$24,$K$8:$AV$8,0))+J29-1,IF(L$9="Monthly",OFFSET($J$15,,MATCH(J$24,$K$8:$AV$8,0))+J29-1,0))) -> 6.571428571 | L29: =IF(M$9="none",0,IF(AND($F29="week 1",$G29="Sun"),OFFSET($J$10,,MATCH(L$24,$K$8:$AV$8,0)),IF(AND(OR($F29="week 2",$F29="week 3",$F29="week 4"),M$9="weekly",$G29="Sun"),OFFSET($J$10,,MATCH(L$24,$K$8:$AV$8,0)),IF(AND($F29="week 3",M$9="bi-weekly",$G29="Sun"),OFFSET($J$10,,MATCH(L$24,$K$8:$AV$8,0)),M27+1)))) -> 2 | M29: =IF(M$9="weekly",OFFSET($J$13,,MATCH(L$24,$K$8:$AV$8,0))+L29-1,IF(M$9="bi-weekly",OFFSET($J$14,,MATCH(L$24,$K$8:$AV$8,0))+L29-1,IF(M$9="Monthly",OFFSET($J$15,,MATCH(L$24,$K$8:$AV$8,0))+L29-1,0))) -> 4.714285714 | N29: =IF(N$9="none",0,IF(AND($F29="week 1",$G29="Sun"),OFFSET($J$10,,MATCH(N$24,$K$8:$AV$8,0)),IF(AND(OR($F29="week 2",$F29="week 3",$F29="week 4"),N$9="weekly",$G29="Sun"),OFFSET($J$10,,MATCH(N$24,$K$8:$AV$8,0)),IF(AND($F29="week 3",N$9="bi-weekly",$G29="Sun"),OFFSET($J$10,,MATCH(N$24,$K$8:$AV$8,0)),O27+1)))) -> 2 | O29: =IF(N$9="weekly",OFFSET($J$13,,MATCH(N$24,$K$8:$AV$8,0))+N29-1,IF(N$9="bi-weekly",OFFSET($J$14,,MATCH(N$24,$K$8:$AV$8,0))+N29-1,IF(N$9="Monthly",OFFSET($J$15,,MATCH(N$24,$K$8:$AV$8,0))+N29-1,0))) -> 5.285714286 | P29: =IF(O$9="none",0,IF(AND($F29="week 1",$G29="Sun"),OFFSET($J$10,,MATCH(P$24,$K$8:$AV$8,0)),IF(AND(OR($F29="week 2",$F29="week 3",$F29="week 4"),O$9="weekly",$G29="Sun"),OFFSET($J$10,,MATCH(P$24,$K$8:$AV$8,0)),IF(AND($F29="week 3",O$9="bi-weekly",$G29="Sun"),OFFSET($J$10,,MATCH(P$24,$K$8:$AV$8,0)),Q27+1)))) -> 2 | Q29: =IF(O$9="weekly",OFFSET($J$13,,MATCH(P$24,$K$8:$AV$8,0))+P29-1,IF(O$9="bi-weekly",OFFSET($J$14,,MATCH(P$24,$K$8:$AV$8,0))+P29-1,IF(O$9="Monthly",OFFSET($J$15,,MATCH(P$24,$K$8:$AV$8,0))+P29-1,0))) -> 1.75 | R29: =IF(P$9="none",0,IF(AND($F29="week 1",$G29="Sun"),OFFSET($J$10,,MATCH(R$24,$K$8:$AV$8,0)),IF(AND(OR($F29="week 2",$F29="week 3",$F29="week 4"),P$9="weekly",$G29="Sun"),OFFSET($J$10,,MATCH(R$24,$K$8:$AV$8,0)),IF(AND($F29="week 3",P$9="bi-weekly",$G29="Sun"),OFFSET($J$10,,MATCH(R$24,$K$8:$AV$8,0)),S27+1)))) -> 2 | S29: =IF(P$9="weekly",OFFSET($J$13,,MATCH(R$24,$K$8:$AV$8,0))+R29-1,IF(P$9="bi-weekly",OFFSET($J$14,,MATCH(R$24,$K$8:$AV$8,0))+R29-1,IF(P$9="Monthly",OFFSET($J$15,,MATCH(R$24,$K$8:$AV$8,0))+R29-1,0))) -> 4.107142857 | T29: =IF(Q$9="none",0,IF(AND($F29="week 1",$G29="Sun"),OFFSET($J$10,,MATCH(T$24,$K$8:$AV$8,0)),IF(AND(OR($F29="week 2",$F29="week 3",$F29="week 4"),Q$9="weekly",$G29="Sun"),OFFSET($J$10,,MATCH(T$24,$K$8:$AV$8,0)),IF(AND($F29="week 3",Q$9="bi-weekly",$G29="Sun"),OFFSET($J$10,,MATCH(T$24,$K$8:$AV$8,0)),U27+1)))) -> 2 | U29: =IF(Q$9="weekly",OFFSET($J$13,,MATCH(T$24,$K$8:$AV$8,0))+T29-1,IF(Q$9="bi-weekly",OFFSET($J$14,,MATCH(T$24,$K$8:$AV$8,0))+T29-1,IF(Q$9="Monthly",OFFSET($J$15,,MATCH(T$24,$K$8:$AV$8,0))+T29-1,0))) -> 2.964285714 | V29: =IF(R$9="none",0,IF(AND($F29="week 1",$G29="Sun"),OFFSET($J$10,,MATCH(V$24,$K$8:$AV$8,0)),IF(AND(OR($F29="week 2",$F29="week 3",$F29="week 4"),R$9="weekly",$G29="Sun"),OFFSET($J$10,,MATCH(V$24,$K$8:$AV$8,0)),IF(AND($F29="week 3",R$9="bi-weekly",$G29="Sun"),OFFSET($J$10,,MATCH(V$24,$K$8:$AV$8,0)),W27+1)))) -> 2 | W29: =IF(R$9="weekly",OFFSET($J$13,,MATCH(V$24,$K$8:$AV$8,0))+V29-1,IF(R$9="bi-weekly",OFFSET($J$14,,MATCH(V$24,$K$8:$AV$8,0))+V29-1,IF(R$9="Monthly",OFFSET($J$15,,MATCH(V$24,$K$8:$AV$8,0))+V29-1,0))) -> 2.392857143 | X29: =IF(S$9="none",0,IF(AND($F29="week 1",$G29="Sun"),OFFSET($J$10,,MATCH(X$24,$K$8:$AV$8,0)),IF(AND(OR($F29="week 2",$F29="week 3",$F29="week 4"),S$9="weekly",$G29="Sun"),OFFSET($J$10,,MATCH(X$24,$K$8:$AV$8,0)),IF(AND($F29="week 3",S$9="bi-weekly",$G29="Sun"),OFFSET($J$10,,MATCH(X$24,$K$8:$AV$8,0)),Y27+1)))) -> 2 | Y29: =IF(S$9="weekly",OFFSET($J$13,,MATCH(X$24,$K$8:$AV$8,0))+X29-1,IF(S$9="bi-weekly",OFFSET($J$14,,MATCH(X$24,$K$8:$AV$8,0))+X29-1,IF(S$9="Monthly",OFFSET($J$15,,MATCH(X$24,$K$8:$AV$8,0))+X29-1,0))) -> 2.214285714 | Z29: =IF(T$9="none",0,IF(AND($F29="week 1",$G29="Sun"),OFFSET($J$10,,MATCH(Z$24,$K$8:$AV$8,0)),IF(AND(OR($F29="week 2",$F29="week 3",$F29="week 4"),T$9="weekly",$G29="Sun"),OFFSET($J$10,,MATCH(Z$24,$K$8:$AV$8,0)),IF(AND($F29="week 3",T$9="bi-weekly",$G29="Sun"),OFFSET($J$10,,MATCH(Z$24,$K$8:$AV$8,0)),AA27+1)))) -> 2 | AA29: =IF(T$9="weekly",OFFSET($J$13,,MATCH(Z$24,$K$8:$AV$8,0))+Z29-1,IF(T$9="bi-weekly",OFFSET($J$14,,MATCH(Z$24,$K$8:$AV$8,0))+Z29-1,IF(T$9="Monthly",OFFSET($J$15,,MATCH(Z$24,$K$8:$AV$8,0))+Z29-1,0))) -> 2.071428571 | AB29: =IF(U$9="none",0,IF(AND($F29="week 1",$G29="Sun"),OFFSET($J$10,,MATCH(AB$24,$K$8:$AV$8,0)),IF(AND(OR($F29="week 2",$F29="week 3",$F29="week 4"),U$9="weekly",$G29="Sun"),OFFSET($J$10,,MATCH(AB$24,$K$8:$AV$8,0)),IF(AND($F29="week 3",U$9="bi-weekly",$G29="Sun"),OFFSET($J$10,,MATCH(AB$24,$K$8:$AV$8,0)),AC27+1)))) -> 2 | AC29: =IF(U$9="weekly",OFFSET($J$13,,MATCH(AB$24,$K$8:$AV$8,0))+AB29-1,IF(U$9="bi-weekly",OFFSET($J$14,,MATCH(AB$24,$K$8:$AV$8,0))+AB29-1,IF(U$9="Monthly",OFFSET($J$15,,MATCH(AB$24,$K$8:$AV$8,0))+AB29-1,0))) -> 2.107142857 | AD29: =IF(V$9="none",0,IF(AND($F29="week 1",$G29="Sun"),OFFSET($J$10,,MATCH(AD$24,$K$8:$AV$8,0)),IF(AND(OR($F29="week 2",$F29="week 3",$F29="week 4"),V$9="weekly",$G29="Sun"),OFFSET($J$10,,MATCH(AD$24,$K$8:$AV$8,0)),IF(AND($F29="week 3",V$9="bi-weekly",$G29="Sun"),OFFSET($J$10,,MATCH(AD$24,$K$8:$AV$8,0)),AE27+1)))) -> 2 | AE29: =IF(V$9="weekly",OFFSET($J$13,,MATCH(AD$24,$K$8:$AV$8,0))+AD29-1,IF(V$9="bi-weekly",OFFSET($J$14,,MATCH(AD$24,$K$8:$AV$8,0))+AD29-1,IF(V$9="Monthly",OFFSET($J$15,,MATCH(AD$24,$K$8:$AV$8,0))+AD29-1,0))) -> 2 | AF29: =IF(W$9="none",0,IF(AND($F29="week 1",$G29="Sun"),OFFSET($J$10,,MATCH(AF$24,$K$8:$AV$8,0)),IF(AND(OR($F29="week 2",$F29="week 3",$F29="week 4"),W$9="weekly",$G29="Sun"),OFFSET($J$10,,MATCH(AF$24,$K$8:$AV$8,0)),IF(AND($F29="week 3",W$9="bi-weekly",$G29="Sun"),OFFSET($J$10,,MATCH(AF$24,$K$8:$AV$8,0)),AG27+1)))) -> 2 | AG29: =IF(W$9="weekly",OFFSET($J$13,,MATCH(AF$24,$K$8:$AV$8,0))+AF29-1,IF(W$9="bi-weekly",OFFSET($J$14,,MATCH(AF$24,$K$8:$AV$8,0))+AF29-1,IF(W$9="Monthly",OFFSET($J$15,,MATCH(AF$24,$K$8:$AV$8,0))+AF29-1,0))) -> 1.928571429 | AH29: =IF(X$9="none",0,IF(AND($F29="week 1",$G29="Sun"),OFFSET($J$10,,MATCH(AH$24,$K$8:$AV$8,0)),IF(AND(OR($F29="week 2",$F29="week 3",$F29="week 4"),X$9="weekly",$G29="Sun"),OFFSET($J$10,,MATCH(AH$24,$K$8:$AV$8,0)),IF(AND($F29="week 3",X$9="bi-weekly",$G29="Sun"),OFFSET($J$10,,MATCH(AH$24,$K$8:$AV$8,0)),AI27+1)))) -> 2 | AI29: =IF(X$9="weekly",OFFSET($J$13,,MATCH(AH$24,$K$8:$AV$8,0))+AH29-1,IF(X$9="bi-weekly",OFFSET($J$14,,MATCH(AH$24,$K$8:$AV$8,0))+AH29-1,IF(X$9="Monthly",OFFSET($J$15,,MATCH(AH$24,$K$8:$AV$8,0))+AH29-1,0))) -> 5.321428571 | AJ29: =IF(Y$9="none",0,IF(AND($F29="week 1",$G29="Sun"),OFFSET($J$10,,MATCH(AJ$24,$K$8:$AV$8,0)),IF(AND(OR($F29="week 2",$F29="week 3",$F29="week 4"),Y$9="weekly",$G29="Sun"),OFFSET($J$10,,MATCH(AJ$24,$K$8:$AV$8,0)),IF(AND($F29="week 3",Y$9="bi-weekly",$G29="Sun"),OFFSET($J$10,,MATCH(AJ$24,$K$8:$AV$8,0)),AK27+1)))) -> 2 | AK29: =IF(Y$9="weekly",OFFSET($J$13,,MATCH(AJ$24,$K$8:$AV$8,0))+AJ29-1,IF(Y$9="bi-weekly",OFFSET($J$14,,MATCH(AJ$24,$K$8:$AV$8,0))+AJ29-1,IF(Y$9="Monthly",OFFSET($J$15,,MATCH(AJ$24,$K$8:$AV$8,0))+AJ29-1,0))) -> 4.964285714 | AL29: =IF(Z$9="none",0,IF(AND($F29="week 1",$G29="Sun"),OFFSET($J$10,,MATCH(AL$24,$K$8:$AV$8,0)),IF(AND(OR($F29="week 2",$F29="week 3",$F29="week 4"),Z$9="weekly",$G29="Sun"),OFFSET($J$10,,MATCH(AL$24,$K$8:$AV$8,0)),IF(AND($F29="week 3",Z$9="bi-weekly",$G29="Sun"),OFFSET($J$10,,MATCH(AL$24,$K$8:$AV$8,0)),AM27+1)))) -> 2 | AM29: =IF(Z$9="weekly",OFFSET($J$13,,MATCH(AL$24,$K$8:$AV$8,0))+AL29-1,IF(Z$9="bi-weekly",OFFSET($J$14,,MATCH(AL$24,$K$8:$AV$8,0))+AL29-1,IF(Z$9="Monthly",OFFSET($J$15,,MATCH(AL$24,$K$8:$AV$8,0))+AL29-1,0))) -> 4.214285714 | AN29: =IF(AA$9="none",0,IF(AND($F29="week 1",$G29="Sun"),OFFSET($J$10,,MATCH(AN$24,$K$8:$AV$8,0)),IF(AND(OR($F29="week 2",$F29="week 3",$F29="week 4"),AA$9="weekly",$G29="Sun"),OFFSET($J$10,,MATCH(AN$24,$K$8:$AV$8,0)),IF(AND($F29="week 3",AA$9="bi-weekly",$G29="Sun"),OFFSET($J$10,,MATCH(AN$24,$K$8:$AV$8,0)),AO27+1)))) -> 2 | AO29: =IF(AA$9="weekly",OFFSET($J$13,,MATCH(AN$24,$K$8:$AV$8,0))+AN29-1,IF(AA$9="bi-weekly",OFFSET($J$14,,MATCH(AN$24,$K$8:$AV$8,0))+AN29-1,IF(AA$9="Monthly",OFFSET($J$15,,MATCH(AN$24,$K$8:$AV$8,0))+AN29-1,0))) -> 3.321428571 | AP29: =IF(AB$9="none",0,IF(AND($F29="week 1",$G29="Sun"),OFFSET($J$10,,MATCH(AP$24,$K$8:$AV$8,0)),IF(AND(OR($F29="week 2",$F29="week 3",$F29="week 4"),AB$9="weekly",$G29="Sun"),OFFSET($J$10,,MATCH(AP$24,$K$8:$AV$8,0)),IF(AND($F29="week 3",AB$9="bi-weekly",$G29="Sun"),OFFSET($J$10,,MATCH(AP$24,$K$8:$AV$8,0)),AQ27+1)))) -> 2 | AQ29: =IF(AB$9="weekly",OFFSET($J$13,,MATCH(AP$24,$K$8:$AV$8,0))+AP29-1,IF(AB$9="bi-weekly",OFFSET($J$14,,MATCH(AP$24,$K$8:$AV$8,0))+AP29-1,IF(AB$9="Monthly",OFFSET($J$15,,MATCH(AP$24,$K$8:$AV$8,0))+AP29-1,0))) -> 2.714285714 | AR29: =IF(AC$9="none",0,IF(AND($F29="week 1",$G29="Sun"),OFFSET($J$10,,MATCH(AR$24,$K$8:$AV$8,0)),IF(AND(OR($F29="week 2",$F29="week 3",$F29="week 4"),AC$9="weekly",$G29="Sun"),OFFSET($J$10,,MATCH(AR$24,$K$8:$AV$8,0)),IF(AND($F29="week 3",AC$9="bi-weekly",$G29="Sun"),OFFSET($J$10,,MATCH(AR$24,$K$8:$AV$8,0)),AS27+1)))) -> 2 | AS29: =IF(AC$9="weekly",OFFSET($J$13,,MATCH(AR$24,$K$8:$AV$8,0))+AR29-1,IF(AC$9="bi-weekly",OFFSET($J$14,,MATCH(AR$24,$K$8:$AV$8,0))+AR29-1,IF(AC$9="Monthly",OFFSET($J$15,,MATCH(AR$24,$K$8:$AV$8,0))+AR29-1,0))) -> 4.178571429 | AT29: =IF(AD$9="none",0,IF(AND($F29="week 1",$G29="Sun"),OFFSET($J$10,,MATCH(AT$24,$K$8:$AV$8,0)),IF(AND(OR($F29="week 2",$F29="week 3",$F29="week 4"),AD$9="weekly",$G29="Sun"),OFFSET($J$10,,MATCH(AT$24,$K$8:$AV$8,0)),IF(AND($F29="week 3",AD$9="bi-weekly",$G29="Sun"),OFFSET($J$10,,MATCH(AT$24,$K$8:$AV$8,0)),AU27+1)))) -> 2 | AU29: =IF(AD$9="weekly",OFFSET($J$13,,MATCH(AT$24,$K$8:$AV$8,0))+AT29-1,IF(AD$9="bi-weekly",OFFSET($J$14,,MATCH(AT$24,$K$8:$AV$8,0))+AT29-1,IF(AD$9="Monthly",OFFSET($J$15,,MATCH(AT$24,$K$8:$AV$8,0))+AT29-1,0))) -> 3.892857143 | AV29: =IF(AE$9="none",0,IF(AND($F29="week 1",$G29="Sun"),OFFSET($J$10,,MATCH(AV$24,$K$8:$AV$8,0)),IF(AND(OR($F29="week 2",$F29="week 3",$F29="week 4"),AE$9="weekly",$G29="Sun"),OFFSET($J$10,,MATCH(AV$24,$K$8:$AV$8,0)),IF(AND($F29="week 3",AE$9="bi-weekly",$G29="Sun"),OFFSET($J$10,,MATCH(AV$24,$K$8:$AV$8,0)),AW27+1)))) -> 2 | AW29: =IF(AE$9="weekly",OFFSET($J$13,,MATCH(AV$24,$K$8:$AV$8,0))+AV29-1,IF(AE$9="bi-weekly",OFFSET($J$14,,MATCH(AV$24,$K$8:$AV$8,0))+AV29-1,IF(AE$9="Monthly",OFFSET($J$15,,MATCH(AV$24,$K$8:$AV$8,0))+AV29-1,0))) -> 5.214285714 | AX29: =IF(AF$9="none",0,IF(AND($F29="week 1",$G29="Sun"),OFFSET($J$10,,MATCH(AX$24,$K$8:$AV$8,0)),IF(AND(OR($F29="week 2",$F29="week 3",$F29="week 4"),AF$9="weekly",$G29="Sun"),OFFSET($J$10,,MATCH(AX$24,$K$8:$AV$8,0)),IF(AND($F29="week 3",AF$9="bi-weekly",$G29="Sun"),OFFSET($J$10,,MATCH(AX$24,$K$8:$AV$8,0)),AY27+1)))) -> 2 | AY29: =IF(AF$9="weekly",OFFSET($J$13,,MATCH(AX$24,$K$8:$AV$8,0))+AX29-1,IF(AF$9="bi-weekly",OFFSET($J$14,,MATCH(AX$24,$K$8:$AV$8,0))+AX29-1,IF(AF$9="Monthly",OFFSET($J$15,,MATCH(AX$24,$K$8:$AV$8,0))+AX29-1,0))) -> 9.428571429 | AZ29: =IF(AG$9="none",0,IF(AND($F29="week 1",$G29="Sun"),OFFSET($J$10,,MATCH(AZ$24,$K$8:$AV$8,0)),IF(AND(OR($F29="week 2",$F29="week 3",$F29="week 4"),AG$9="weekly",$G29="Sun"),OFFSET($J$10,,MATCH(AZ$24,$K$8:$AV$8,0)),IF(AND($F29="week 3",AG$9="bi-weekly",$G29="Sun"),OFFSET($J$10,,MATCH(AZ$24,$K$8:$AV$8,0)),BA27+1)))) -> 2 | BA29: =IF(AG$9="weekly",OFFSET($J$13,,MATCH(AZ$24,$K$8:$AV$8,0))+AZ29-1,IF(AG$9="bi-weekly",OFFSET($J$14,,MATCH(AZ$24,$K$8:$AV$8,0))+AZ29-1,IF(AG$9="Monthly",OFFSET($J$15,,MATCH(AZ$24,$K$8:$AV$8,0))+AZ29-1,0))) -> 13.5 | BB29: =IF(AH$9="none",0,IF(AND($F29="week 1",$G29="Sun"),OFFSET($J$10,,MATCH(BB$24,$K$8:$AV$8,0)),IF(AND(OR($F29="week 2",$F29="week 3",$F29="week 4"),AH$9="weekly",$G29="Sun"),OFFSET($J$10,,MATCH(BB$24,$K$8:$AV$8,0)),IF(AND($F29="week 3",AH$9="bi-weekly",$G29="Sun"),OFFSET($J$10,,MATCH(BB$24,$K$8:$AV$8,0)),BC27+1)))) -> 2 | BC29: =IF(AH$9="weekly",OFFSET($J$13,,MATCH(BB$24,$K$8:$AV$8,0))+BB29-1,IF(AH$9="bi-weekly",OFFSET($J$14,,MATCH(BB$24,$K$8:$AV$8,0))+BB29-1,IF(AH$9="Monthly",OFFSET($J$15,,MATCH(BB$24,$K$8:$AV$8,0))+BB29-1,0))) -> 17 | BD29: =IF(AI$9="none",0,IF(AND($F29="week 1",$G29="Sun"),OFFSET($J$10,,MATCH(BD$24,$K$8:$AV$8,0)),IF(AND(OR($F29="week 2",$F29="week 3",$F29="week 4"),AI$9="weekly",$G29="Sun"),OFFSET($J$10,,MATCH(BD$24,$K$8:$AV$8,0)),IF(AND($F29="week 3",AI$9="bi-weekly",$G29="Sun"),OFFSET($J$10,,MATCH(BD$24,$K$8:$AV$8,0)),BE27+1)))) -> 2 | BE29: =IF(AI$9="weekly",OFFSET($J$13,,MATCH(BD$24,$K$8:$AV$8,0))+BD29-1,IF(AI$9="bi-weekly",OFFSET($J$14,,MATCH(BD$24,$K$8:$AV$8,0))+BD29-1,IF(AI$9="Monthly",OFFSET($J$15,,MATCH(BD$24,$K$8:$AV$8,0))+BD29-1,0))) -> 4.285714286 | BF29: =IF(AJ$9="none",0,IF(AND($F29="week 1",$G29="Sun"),OFFSET($J$10,,MATCH(BF$24,$K$8:$AV$8,0)),IF(AND(OR($F29="week 2",$F29="week 3",$F29="week 4"),AJ$9="weekly",$G29="Sun"),OFFSET($J$10,,MATCH(BF$24,$K$8:$AV$8,0)),IF(AND($F29="week 3",AJ$9="bi-weekly",$G29="Sun"),OFFSET($J$10,,MATCH(BF$24,$K$8:$AV$8,0)),BG27+1)))) -> 2 | BG29: =IF(AJ$9="weekly",OFFSET($J$13,,MATCH(BF$24,$K$8:$AV$8,0))+BF29-1,IF(AJ$9="bi-weekly",OFFSET($J$14,,MATCH(BF$24,$K$8:$AV$8,0))+BF29-1,IF(AJ$9="Monthly",OFFSET($J$15,,MATCH(BF$24,$K$8:$AV$8,0))+BF29-1,0))) -> 7.857142857 | BH29: =IF(AK$9="none",0,IF(AND($F29="week 1",$G29="Sun"),OFFSET($J$10,,MATCH(BH$24,$K$8:$AV$8,0)),IF(AND(OR($F29="week 2",$F29="week 3",$F29="week 4"),AK$9="weekly",$G29="Sun"),OFFSET($J$10,,MATCH(BH$24,$K$8:$AV$8,0)),IF(AND($F29="week 3",AK$9="bi-weekly",$G29="Sun"),OFFSET($J$10,,MATCH(BH$24,$K$8:$AV$8,0)),BI27+1)))) -> 2 | BI29: =IF(AK$9="weekly",OFFSET($J$13,,MATCH(BH$24,$K$8:$AV$8,0))+BH29-1,IF(AK$9="bi-weekly",OFFSET($J$14,,MATCH(BH$24,$K$8:$AV$8,0))+BH29-1,IF(AK$9="Monthly",OFFSET($J$15,,MATCH(BH$24,$K$8:$AV$8,0))+BH29-1,0))) -> 11.71428571 | BJ29: =IF(AL$9="none",0,IF(AND($F29="week 1",$G29="Sun"),OFFSET($J$10,,MATCH(BJ$24,$K$8:$AV$8,0)),IF(AND(OR($F29="week 2",$F29="week 3",$F29="week 4"),AL$9="weekly",$G29="Sun"),OFFSET($J$10,,MATCH(BJ$24,$K$8:$AV$8,0)),IF(AND($F29="week 3",AL$9="bi-weekly",$G29="Sun"),OFFSET($J$10,,MATCH(BJ$24,$K$8:$AV$8,0)),BK27+1)))) -> 2 | BK29: =IF(AL$9="weekly",OFFSET($J$13,,MATCH(BJ$24,$K$8:$AV$8,0))+BJ29-1,IF(AL$9="bi-weekly",OFFSET($J$14,,MATCH(BJ$24,$K$8:$AV$8,0))+BJ29-1,IF(AL$9="Monthly",OFFSET($J$15,,MATCH(BJ$24,$K$8:$AV$8,0))+BJ29-1,0))) -> 2.857142857 | BL29: =IF(AM$9="none",0,IF(AND($F29="week 1",$G29="Sun"),OFFSET($J$10,,MATCH(BL$24,$K$8:$AV$8,0)),IF(AND(OR($F29="week 2",$F29="week 3",$F29="week 4"),AM$9="weekly",$G29="Sun"),OFFSET($J$10,,MATCH(BL$24,$K$8:$AV$8,0)),IF(AND($F29="week 3",AM$9="bi-weekly",$G29="Sun"),OFFSET($J$10,,MATCH(BL$24,$K$8:$AV$8,0)),BM27+1)))) -> 2 | BM29: =IF(AM$9="weekly",OFFSET($J$13,,MATCH(BL$24,$K$8:$AV$8,0))+BL29-1,IF(AM$9="bi-weekly",OFFSET($J$14,,MATCH(BL$24,$K$8:$AV$8,0))+BL29-1,IF(AM$9="Monthly",OFFSET($J$15,,MATCH(BL$24,$K$8:$AV$8,0))+BL29-1,0))) -> 18 | BN29: =IF(AN$9="none",0,IF(AND($F29="week 1",$G29="Sun"),OFFSET($J$10,,MATCH(BN$24,$K$8:$AV$8,0)),IF(AND(OR($F29="week 2",$F29="week 3",$F29="week 4"),AN$9="weekly",$G29="Sun"),OFFSET($J$10,,MATCH(BN$24,$K$8:$AV$8,0)),IF(AND($F29="week 3",AN$9="bi-weekly",$G29="Sun"),OFFSET($J$10,,MATCH(BN$24,$K$8:$AV$8,0)),BO27+1)))) -> 2 | BO29: =IF(AN$9="weekly",OFFSET($J$13,,MATCH(BN$24,$K$8:$AV$8,0))+BN29-1,IF(AN$9="bi-weekly",OFFSET($J$14,,MATCH(BN$24,$K$8:$AV$8,0))+BN29-1,IF(AN$9="Monthly",OFFSET($J$15,,MATCH(BN$24,$K$8:$AV$8,0))+BN29-1,0))) -> 16.57142857 | BP29: =IF(AO$9="none",0,IF(AND($F29="week 1",$G29="Sun"),OFFSET($J$10,,MATCH(BP$24,$K$8:$AV$8,0)),IF(AND(OR($F29="week 2",$F29="week 3",$F29="week 4"),AO$9="weekly",$G29="Sun"),OFFSET($J$10,,MATCH(BP$24,$K$8:$AV$8,0)),IF(AND($F29="week 3",AO$9="bi-weekly",$G29="Sun"),OFFSET($J$10,,MATCH(BP$24,$K$8:$AV$8,0)),BQ27+1)))) -> 0 | BQ29: =IF(AO$9="weekly",OFFSET($J$13,,MATCH(BP$24,$K$8:$AV$8,0))+BP29-1,IF(AO$9="bi-weekly",OFFSET($J$14,,MATCH(BP$24,$K$8:$AV$8,0))+BP29-1,IF(AO$9="Monthly",OFFSET($J$15,,MATCH(BP$24,$K$8:$AV$8,0))+BP29-1,0))) -> 0 | BR29: =IF(AP$9="none",0,IF(AND($F29="week 1",$G29="Sun"),OFFSET($J$10,,MATCH(BR$24,$K$8:$AV$8,0)),IF(AND(OR($F29="week 2",$F29="week 3",$F29="week 4"),AP$9="weekly",$G29="Sun"),OFFSET($J$10,,MATCH(BR$24,$K$8:$AV$8,0)),IF(AND($F29="week 3",AP$9="bi-weekly",$G29="Sun"),OFFSET($J$10,,MATCH(BR$24,$K$8:$AV$8,0)),BS27+1)))) -> 0 | BS29: =IF(AP$9="weekly",OFFSET($J$13,,MATCH(BR$24,$K$8:$AV$8,0))+BR29-1,IF(AP$9="bi-weekly",OFFSET($J$14,,MATCH(BR$24,$K$8:$AV$8,0))+BR29-1,IF(AP$9="Monthly",OFFSET($J$15,,MATCH(BR$24,$K$8:$AV$8,0))+BR29-1,0))) -> 0 | BT29: =IF(AQ$9="none",0,IF(AND($F29="week 1",$G29="Sun"),OFFSET($J$10,,MATCH(BT$24,$K$8:$AV$8,0)),IF(AND(OR($F29="week 2",$F29="week 3",$F29="week 4"),AQ$9="weekly",$G29="Sun"),OFFSET($J$10,,MATCH(BT$24,$K$8:$AV$8,0)),IF(AND($F29="week 3",AQ$9="bi-weekly",$G29="Sun"),OFFSET($J$10,,MATCH(BT$24,$K$8:$AV$8,0)),BU27+1)))) -> 0 | BU29: =IF(AQ$9="weekly",OFFSET($J$13,,MATCH(BT$24,$K$8:$AV$8,0))+BT29-1,IF(AQ$9="bi-weekly",OFFSET($J$14,,MATCH(BT$24,$K$8:$AV$8,0))+BT29-1,IF(AQ$9="Monthly",OFFSET($J$15,,MATCH(BT$24,$K$8:$AV$8,0))+BT29-1,0))) -> 0 | BV29: =IF(AR$9="none",0,IF(AND($F29="week 1",$G29="Sun"),OFFSET($J$10,,MATCH(BV$24,$K$8:$AV$8,0)),IF(AND(OR($F29="week 2",$F29="week 3",$F29="week 4"),AR$9="weekly",$G29="Sun"),OFFSET($J$10,,MATCH(BV$24,$K$8:$AV$8,0)),IF(AND($F29="week 3",AR$9="bi-weekly",$G29="Sun"),OFFSET($J$10,,MATCH(BV$24,$K$8:$AV$8,0)),BW27+1)))) -> 0 | BW29: =IF(AR$9="weekly",OFFSET($J$13,,MATCH(BV$24,$K$8:$AV$8,0))+BV29-1,IF(AR$9="bi-weekly",OFFSET($J$14,,MATCH(BV$24,$K$8:$AV$8,0))+BV29-1,IF(AR$9="Monthly",OFFSET($J$15,,MATCH(BV$24,$K$8:$AV$8,0))+BV29-1,0))) -> 0 | BX29: =IF(AS$9="none",0,IF(AND($F29="week 1",$G29="Sun"),OFFSET($J$10,,MATCH(BX$24,$K$8:$AV$8,0)),IF(AND(OR($F29="week 2",$F29="week 3",$F29="week 4"),AS$9="weekly",$G29="Sun"),OFFSET($J$10,,MATCH(BX$24,$K$8:$AV$8,0)),IF(AND($F29="week 3",AS$9="bi-weekly",$G29="Sun"),OFFSET($J$10,,MATCH(BX$24,$K$8:$AV$8,0)),BY27+1)))) -> 0 | BY29: =IF(AS$9="weekly",OFFSET($J$13,,MATCH(BX$24,$K$8:$AV$8,0))+BX29-1,IF(AS$9="bi-weekly",OFFSET($J$14,,MATCH(BX$24,$K$8:$AV$8,0))+BX29-1,IF(AS$9="Monthly",OFFSET($J$15,,MATCH(BX$24,$K$8:$AV$8,0))+BX29-1,0))) -> 0 | BZ29: =IF(AT$9="none",0,IF(AND($F29="week 1",$G29="Sun"),OFFSET($J$10,,MATCH(BZ$24,$K$8:$AV$8,0)),IF(AND(OR($F29="week 2",$F29="week 3",$F29="week 4"),AT$9="weekly",$G29="Sun"),OFFSET($J$10,,MATCH(BZ$24,$K$8:$AV$8,0)),IF(AND($F29="week 3",AT$9="bi-weekly",$G29="Sun"),OFFSET($J$10,,MATCH(BZ$24,$K$8:$AV$8,0)),CA27+1)))) -> 0 | CA29: =IF(AT$9="weekly",OFFSET($J$13,,MATCH(BZ$24,$K$8:$AV$8,0))+BZ29-1,IF(AT$9="bi-weekly",OFFSET($J$14,,MATCH(BZ$24,$K$8:$AV$8,0))+BZ29-1,IF(AT$9="Monthly",OFFSET($J$15,,MATCH(BZ$24,$K$8:$AV$8,0))+BZ29-1,0))) -> 0 | CB29: =IF(AU$9="none",0,IF(AND($F29="week 1",$G29="Sun"),OFFSET($J$10,,MATCH(CB$24,$K$8:$AV$8,0)),IF(AND(OR($F29="week 2",$F29="week 3",$F29="week 4"),AU$9="weekly",$G29="Sun"),OFFSET($J$10,,MATCH(CB$24,$K$8:$AV$8,0)),IF(AND($F29="week 3",AU$9="bi-weekly",$G29="Sun"),OFFSET($J$10,,MATCH(CB$24,$K$8:$AV$8,0)),CC27+1)))) -> 0 | CC29: =IF(AU$9="weekly",OFFSET($J$13,,MATCH(CB$24,$K$8:$AV$8,0))+CB29-1,IF(AU$9="bi-weekly",OFFSET($J$14,,MATCH(CB$24,$K$8:$AV$8,0))+CB29-1,IF(AU$9="Monthly",OFFSET($J$15,,MATCH(CB$24,$K$8:$AV$8,0))+CB29-1,0))) -> 0 | CD29: =(ROUND(I29,0)-ROUND(H29,0))+(ROUND(K29,0)-ROUND(J29,0))+(ROUND(M29,0)-ROUND(L29,0))+(ROUND(O29,0)-ROUND(N29,0))+(ROUND(Q29,0)-ROUND(P29,0))+(ROUND(S29,0)-ROUND(R29,0))+(ROUND(U29,0)-ROUND(T29,0)+(ROUND(W29,0)-ROUND(V29,0))+(ROUND(Y29,0)-ROUND(X29,0))+(ROUND(AA29,0)-ROUND(Z29,0))+(ROUND(AC29,0)-ROUND(AB29,0))+(ROUND(AE29,0)-ROUND(AD29,0))+(ROUND(AG29,0)-ROUND(AF29,0))+(ROUND(AI29,0)-ROUND(AH29,0))+(ROUND(AK29,0)-ROUND(AJ29,0))+(ROUND(AM29,0)-ROUND(AL29,0))+(ROUND(AO29,0)-ROUND(AN29,0))+(ROUND(AQ29,0)-ROUND(AP29,0))+(ROUND(AS29,0)-ROUND(AR29,0))+(ROUND(AU29,0)-ROUND(AT29,0))+(ROUND(AW29,0)-ROUND(AV29,0))+(ROUND(AY29,0)-ROUND(AX29,0))+(ROUND(BA29,0)-ROUND(AZ29,0))+(ROUND(BC29,0)-ROUND(BB29,0))+(ROUND(BE29,0)-ROUND(BD29,0))+(ROUND(BG29,0)-ROUND(BF29,0))+(ROUND(BI29,0)-ROUND(BH29,0))+(ROUND(BK29,0)-ROUND(BJ29,0))+(ROUND(BM29,0)-ROUND(BL29,0))+(ROUND(BO29,0)-ROUND(BN29,0))+(ROUND(BQ29,0)-ROUND(BP29,0))+(ROUND(BS29,0)-ROUND(BR29,0))+(ROUND(BU29,0)-ROUND(BT29,0))+(ROUND(BW29,0)-ROUND(BV29,0))+(ROUND(BY29,0)-ROUND(BX29,0))+(ROUND(CA29,0)-ROUND(BZ29,0))+(ROUND(CC29,0)-ROUND(CB29,0))+(COUNTIF($H29:$CC29,">"&0)/2)) -> 146
F30: WEEK 1 | G30: MON | H30: =IF(K$9="none",0,IF(AND($F30="week 1",$G30="Sun"),OFFSET($J$10,,MATCH(H$24,$K$8:$AV$8,0)),IF(AND(OR($F30="week 2",$F30="week 3",$F30="week 4"),K$9="weekly",$G30="Sun"),OFFSET($J$10,,MATCH(H$24,$K$8:$AV$8,0)),IF(AND($F30="week 3",K$9="bi-weekly",$G30="Sun"),OFFSET($J$10,,MATCH(H$24,$K$8:$AV$8,0)),I29+1)))) -> 4.25 | I30: 5.5 | J30: =IF(L$9="none",0,IF(AND($F30="week 1",$G30="Sun"),OFFSET($J$10,,MATCH(J$24,$K$8:$AV$8,0)),IF(AND(OR($F30="week 2",$F30="week 3",$F30="week 4"),L$9="weekly",$G30="Sun"),OFFSET($J$10,,MATCH(J$24,$K$8:$AV$8,0)),IF(AND($F30="week 3",L$9="bi-weekly",$G30="Sun"),OFFSET($J$10,,MATCH(J$24,$K$8:$AV$8,0)),K29+1)))) -> 7.571428571 | K30: 12.14285714 | L30: =IF(M$9="none",0,IF(AND($F30="week 1",$G30="Sun"),OFFSET($J$10,,MATCH(L$24,$K$8:$AV$8,0)),IF(AND(OR($F30="week 2",$F30="week 3",$F30="week 4"),M$9="weekly",$G30="Sun"),OFFSET($J$10,,MATCH(L$24,$K$8:$AV$8,0)),IF(AND($F30="week 3",M$9="bi-weekly",$G30="Sun"),OFFSET($J$10,,MATCH(L$24,$K$8:$AV$8,0)),M29+1)))) -> 5.714285714 | M30: 8.428571429 | N30: =IF(N$9="none",0,IF(AND($F30="week 1",$G30="Sun"),OFFSET($J$10,,MATCH(N$24,$K$8:$AV$8,0)),IF(AND(OR($F30="week 2",$F30="week 3",$F30="week 4"),N$9="weekly",$G30="Sun"),OFFSET($J$10,,MATCH(N$24,$K$8:$AV$8,0)),IF(AND($F30="week 3",N$9="bi-weekly",$G30="Sun"),OFFSET($J$10,,MATCH(N$24,$K$8:$AV$8,0)),O29+1)))) -> 6.285714286 | O30: 9.571428571 | P30: =IF(O$9="none",0,IF(AND($F30="week 1",$G30="Sun"),OFFSET($J$10,,MATCH(P$24,$K$8:$AV$8,0)),IF(AND(OR($F30="week 2",$F30="week 3",$F30="week 4"),O$9="weekly",$G30="Sun"),OFFSET($J$10,,MATCH(P$24,$K$8:$AV$8,0)),IF(AND($F30="week 3",O$9="bi-weekly",$G30="Sun"),OFFSET($J$10,,MATCH(P$24,$K$8:$AV$8,0)),Q29+1)))) -> 2.75 | Q30: 2.5 | R30: =IF(P$9="none",0,IF(AND($F30="week 1",$G30="Sun"),OFFSET($J$10,,MATCH(R$24,$K$8:$AV$8,0)),IF(AND(OR($F30="week 2",$F30="week 3",$F30="week 4"),P$9="weekly",$G30="Sun"),OFFSET($J$10,,MATCH(R$24,$K$8:$AV$8,0)),IF(AND($F30="week 3",P$9="bi-weekly",$G30="Sun"),OFFSET($J$10,,MATCH(R$24,$K$8:$AV$8,0)),S29+1)))) -> 5.107142857 | S30: 7.214285714 | T30: =IF(Q$9="none",0,IF(AND($F30="week 1",$G30="Sun"),OFFSET($J$10,,MATCH(T$24,$K$8:$AV$8,0)),IF(AND(OR($F30="week 2",$F30="week 3",$F30="week 4"),Q$9="weekly",$G30="Sun"),OFFSET($J$10,,MATCH(T$24,$K$8:$AV$8,0)),IF(AND($F30="week 3",Q$9="bi-weekly",$G30="Sun"),OFFSET($J$10,,MATCH(T$24,$K$8:$AV$8,0)),U29+1)))) -> 3.964285714 | U30: 4.928571429 | V30: =IF(R$9="none",0,IF(AND($F30="week 1",$G30="Sun"),OFFSET($J$10,,MATCH(V$24,$K$8:$AV$8,0)),IF(AND(OR($F30="week 2",$F30="week 3",$F30="week 4"),R$9="weekly",$G30="Sun"),OFFSET($J$10,,MATCH(V$24,$K$8:$AV$8,0)),IF(AND($F30="week 3",R$9="bi-weekly",$G30="Sun"),OFFSET($J$10,,MATCH(V$24,$K$8:$AV$8,0)),W29+1)))) -> 3.392857143 | W30: 3.785714286 | X30: =IF(S$9="none",0,IF(AND($F30="week 1",$G30="Sun"),OFFSET($J$10,,MATCH(X$24,$K$8:$AV$8,0)),IF(AND(OR($F30="week 2",$F30="week 3",$F30="week 4"),S$9="weekly",$G30="Sun"),OFFSET($J$10,,MATCH(X$24,$K$8:$AV$8,0)),IF(AND($F30="week 3",S$9="bi-weekly",$G30="Sun"),OFFSET($J$10,,MATCH(X$24,$K$8:$AV$8,0)),Y29+1)))) -> 3.214285714 | Y30: 3.428571429 | Z30: =IF(T$9="none",0,IF(AND($F30="week 1",$G30="Sun"),OFFSET($J$10,,MATCH(Z$24,$K$8:$AV$8,0)),IF(AND(OR($F30="week 2",$F30="week 3",$F30="week 4"),T$9="weekly",$G30="Sun"),OFFSET($J$10,,MATCH(Z$24,$K$8:$AV$8,0)),IF(AND($F30="week 3",T$9="bi-weekly",$G30="Sun"),OFFSET($J$10,,MATCH(Z$24,$K$8:$AV$8,0)),AA29+1)))) -> 3.071428571 | AA30: 3.142857143 | AB30: =IF(U$9="none",0,IF(AND($F30="week 1",$G30="Sun"),OFFSET($J$10,,MATCH(AB$24,$K$8:$AV$8,0)),IF(AND(OR($F30="week 2",$F30="week 3",$F30="week 4"),U$9="weekly",$G30="Sun"),OFFSET($J$10,,MATCH(AB$24,$K$8:$AV$8,0)),IF(AND($F30="week 3",U$9="bi-weekly",$G30="Sun"),OFFSET($J$10,,MATCH(AB$24,$K$8:$AV$8,0)),AC29+1)))) -> 3.107142857 | AC30: 3.214285714 | AD30: =IF(V$9="none",0,IF(AND($F30="week 1",$G30="Sun"),OFFSET($J$10,,MATCH(AD$24,$K$8:$AV$8,0)),IF(AND(OR($F30="week 2",$F30="week 3",$F30="week 4"),V$9="weekly",$G30="Sun"),OFFSET($J$10,,MATCH(AD$24,$K$8:$AV$8,0)),IF(AND($F30="week 3",V$9="bi-weekly",$G30="Sun"),OFFSET($J$10,,MATCH(AD$24,$K$8:$AV$8,0)),AE29+1)))) -> 3 | AE30: 3 | AF30: =IF(W$9="none",0,IF(AND($F30="week 1",$G30="Sun"),OFFSET($J$10,,MATCH(AF$24,$K$8:$AV$8,0)),IF(AND(OR($F30="week 2",$F30="week 3",$F30="week 4"),W$9="weekly",$G30="Sun"),OFFSET($J$10,,MATCH(AF$24,$K$8:$AV$8,0)),IF(AND($F30="week 3",W$9="bi-weekly",$G30="Sun"),OFFSET($J$10,,MATCH(AF$24,$K$8:$AV$8,0)),AG29+1)))) -> 2.928571429 | AG30: 2.857142857 | AH30: =IF(X$9="none",0,IF(AND($F30="week 1",$G30="Sun"),OFFSET($J$10,,MATCH(AH$24,$K$8:$AV$8,0)),IF(AND(OR($F30="week 2",$F30="week 3",$F30="week 4"),X$9="weekly",$G30="Sun"),OFFSET($J$10,,MATCH(AH$24,$K$8:$AV$8,0)),IF(AND($F30="week 3",X$9="bi-weekly",$G30="Sun"),OFFSET($J$10,,MATCH(AH$24,$K$8:$AV$8,0)),AI29+1)))) -> 6.321428571 | AI30: 9.642857143 | AJ30: =IF(Y$9="none",0,IF(AND($F30="week 1",$G30="Sun"),OFFSET($J$10,,MATCH(AJ$24,$K$8:$AV$8,0)),IF(AND(OR($F30="week 2",$F30="week 3",$F30="week 4"),Y$9="weekly",$G30="Sun"),OFFSET($J$10,,MATCH(AJ$24,$K$8:$AV$8,0)),IF(AND($F30="week 3",Y$9="bi-weekly",$G30="Sun"),OFFSET($J$10,,MATCH(AJ$24,$K$8:$AV$8,0)),AK29+1)))) -> 5.964285714 | AK30: 8.928571429 | AL30: =IF(Z$9="none",0,IF(AND($F30="week 1",$G30="Sun"),OFFSET($J$10,,MATCH(AL$24,$K$8:$AV$8,0)),IF(AND(OR($F30="week 2",$F30="week 3",$F30="week 4"),Z$9="weekly",$G30="Sun"),OFFSET($J$10,,MATCH(AL$24,$K$8:$AV$8,0)),IF(AND($F30="week 3",Z$9="bi-weekly",$G30="Sun"),OFFSET($J$10,,MATCH(AL$24,$K$8:$AV$8,0)),AM29+1)))) -> 5.214285714 | AM30: 7.428571429 | AN30: =IF(AA$9="none",0,IF(AND($F30="week 1",$G30="Sun"),OFFSET($J$10,,MATCH(AN$24,$K$8:$AV$8,0)),IF(AND(OR($F30="week 2",$F30="week 3",$F30="week 4"),AA$9="weekly",$G30="Sun"),OFFSET($J$10,,MATCH(AN$24,$K$8:$AV$8,0)),IF(AND($F30="week 3",AA$9="bi-weekly",$G30="Sun"),OFFSET($J$10,,MATCH(AN$24,$K$8:$AV$8,0)),AO29+1)))) -> 4.321428571 | AO30: 5.642857143 | AP30: =IF(AB$9="none",0,IF(AND($F30="week 1",$G30="Sun"),OFFSET($J$10,,MATCH(AP$24,$K$8:$AV$8,0)),IF(AND(OR($F30="week 2",$F30="week 3",$F30="week 4"),AB$9="weekly",$G30="Sun"),OFFSET($J$10,,MATCH(AP$24,$K$8:$AV$8,0)),IF(AND($F30="week 3",AB$9="bi-weekly",$G30="Sun"),OFFSET($J$10,,MATCH(AP$24,$K$8:$AV$8,0)),AQ29+1)))) -> 3.714285714 | AQ30: =IF(AB$9="weekly",OFFSET($J$13,,MATCH(AP$24,$K$8:$AV$8,0))+AP30-1,IF(AB$9="bi-weekly",OFFSET($J$14,,MATCH(AP$24,$K$8:$AV$8,0))+AP30-1,IF(AB$9="Monthly",OFFSET($J$15,,MATCH(AP$24,$K$8:$AV$8,0))+AP30-1,0))) -> 4.428571429 | AR30: =IF(AC$9="none",0,IF(AND($F30="week 1",$G30="Sun"),OFFSET($J$10,,MATCH(AR$24,$K$8:$AV$8,0)),IF(AND(OR($F30="week 2",$F30="week 3",$F30="week 4"),AC$9="weekly",$G30="Sun"),OFFSET($J$10,,MATCH(AR$24,$K$8:$AV$8,0)),IF(AND($F30="week 3",AC$9="bi-weekly",$G30="Sun"),OFFSET($J$10,,MATCH(AR$24,$K$8:$AV$8,0)),AS29+1)))) -> 5.178571429 | AS30: 7.357142857 | AT30: =IF(AD$9="none",0,IF(AND($F30="week 1",$G30="Sun"),OFFSET($J$10,,MATCH(AT$24,$K$8:$AV$8,0)),IF(AND(OR($F30="week 2",$F30="week 3",$F30="week 4"),AD$9="weekly",$G30="Sun"),OFFSET($J$10,,MATCH(AT$24,$K$8:$AV$8,0)),IF(AND($F30="week 3",AD$9="bi-weekly",$G30="Sun"),OFFSET($J$10,,MATCH(AT$24,$K$8:$AV$8,0)),AU29+1)))) -> 4.892857143 | AU30: 6.785714286 | AV30: =IF(AE$9="none",0,IF(AND($F30="week 1",$G30="Sun"),OFFSET($J$10,,MATCH(AV$24,$K$8:$AV$8,0)),IF(AND(OR($F30="week 2",$F30="week 3",$F30="week 4"),AE$9="weekly",$G30="Sun"),OFFSET($J$10,,MATCH(AV$24,$K$8:$AV$8,0)),IF(AND($F30="week 3",AE$9="bi-weekly",$G30="Sun"),OFFSET($J$10,,MATCH(AV$24,$K$8:$AV$8,0)),AW29+1)))) -> 6.214285714 | AW30: 9.428571429 | AX30: =IF(AF$9="none",0,IF(AND($F30="week 1",$G30="Sun"),OFFSET($J$10,,MATCH(AX$24,$K$8:$AV$8,0)),IF(AND(OR($F30="week 2",$F30="week 3",$F30="week 4"),AF$9="weekly",$G30="Sun"),OFFSET($J$10,,MATCH(AX$24,$K$8:$AV$8,0)),IF(AND($F30="week 3",AF$9="bi-weekly",$G30="Sun"),OFFSET($J$10,,MATCH(AX$24,$K$8:$AV$8,0)),AY29+1)))) -> 10.42857143 | AY30: 17.85714286 | AZ30: =IF(AG$9="none",0,IF(AND($F30="week 1",$G30="Sun"),OFFSET($J$10,,MATCH(AZ$24,$K$8:$AV$8,0)),IF(AND(OR($F30="week 2",$F30="week 3",$F30="week 4"),AG$9="weekly",$G30="Sun"),OFFSET($J$10,,MATCH(AZ$24,$K$8:$AV$8,0)),IF(AND($F30="week 3",AG$9="bi-weekly",$G30="Sun"),OFFSET($J$10,,MATCH(AZ$24,$K$8:$AV$8,0)),BA29+1)))) -> 14.5 | BA30: 26 | BB30: =IF(AH$9="none",0,IF(AND($F30="week 1",$G30="Sun"),OFFSET($J$10,,MATCH(BB$24,$K$8:$AV$8,0)),IF(AND(OR($F30="week 2",$F30="week 3",$F30="week 4"),AH$9="weekly",$G30="Sun"),OFFSET($J$10,,MATCH(BB$24,$K$8:$AV$8,0)),IF(AND($F30="week 3",AH$9="bi-weekly",$G30="Sun"),OFFSET($J$10,,MATCH(BB$24,$K$8:$AV$8,0)),BC29+1)))) -> 18 | BC30: 33 | BD30: =IF(AI$9="none",0,IF(AND($F30="week 1",$G30="Sun"),OFFSET($J$10,,MATCH(BD$24,$K$8:$AV$8,0)),IF(AND(OR($F30="week 2",$F30="week 3",$F30="week 4"),AI$9="weekly",$G30="Sun"),OFFSET($J$10,,MATCH(BD$24,$K$8:$AV$8,0)),IF(AND($F30="week 3",AI$9="bi-weekly",$G30="Sun"),OFFSET($J$10,,MATCH(BD$24,$K$8:$AV$8,0)),BE29+1)))) -> 5.285714286 | BE30: 7.571428571 | BF30: =IF(AJ$9="none",0,IF(AND($F30="week 1",$G30="Sun"),OFFSET($J$10,,MATCH(BF$24,$K$8:$AV$8,0)),IF(AND(OR($F30="week 2",$F30="week 3",$F30="week 4"),AJ$9="weekly",$G30="Sun"),OFFSET($J$10,,MATCH(BF$24,$K$8:$AV$8,0)),IF(AND($F30="week 3",AJ$9="bi-weekly",$G30="Sun"),OFFSET($J$10,,MATCH(BF$24,$K$8:$AV$8,0)),BG29+1)))) -> 8.857142857 | BG30: 14.71428571 | BH30: =IF(AK$9="none",0,IF(AND($F30="week 1",$G30="Sun"),OFFSET($J$10,,MATCH(BH$24,$K$8:$AV$8,0)),IF(AND(OR($F30="week 2",$F30="week 3",$F30="week 4"),AK$9="weekly",$G30="Sun"),OFFSET($J$10,,MATCH(BH$24,$K$8:$AV$8,0)),IF(AND($F30="week 3",AK$9="bi-weekly",$G30="Sun"),OFFSET($J$10,,MATCH(BH$24,$K$8:$AV$8,0)),BI29+1)))) -> 12.71428571 | BI30: 22.42857143 | BJ30: =IF(AL$9="none",0,IF(AND($F30="week 1",$G30="Sun"),OFFSET($J$10,,MATCH(BJ$24,$K$8:$AV$8,0)),IF(AND(OR($F30="week 2",$F30="week 3",$F30="week 4"),AL$9="weekly",$G30="Sun"),OFFSET($J$10,,MATCH(BJ$24,$K$8:$AV$8,0)),IF(AND($F30="week 3",AL$9="bi-weekly",$G30="Sun"),OFFSET($J$10,,MATCH(BJ$24,$K$8:$AV$8,0)),BK29+1)))) -> 3.857142857 | BK30: =IF(AL$9="weekly",OFFSET($J$13,,MATCH(BJ$24,$K$8:$AV$8,0))+BJ30-1,IF(AL$9="bi-weekly",OFFSET($J$14,,MATCH(BJ$24,$K$8:$AV$8,0))+BJ30-1,IF(AL$9="Monthly",OFFSET($J$15,,MATCH(BJ$24,$K$8:$AV$8,0))+BJ30-1,0))) -> 4.714285714 | BL30: =IF(AM$9="none",0,IF(AND($F30="week 1",$G30="Sun"),OFFSET($J$10,,MATCH(BL$24,$K$8:$AV$8,0)),IF(AND(OR($F30="week 2",$F30="week 3",$F30="week 4"),AM$9="weekly",$G30="Sun"),OFFSET($J$10,,MATCH(BL$24,$K$8:$AV$8,0)),IF(AND($F30="week 3",AM$9="bi-weekly",$G30="Sun"),OFFSET($J$10,,MATCH(BL$24,$K$8:$AV$8,0)),BM29+1)))) -> 19 | BM30: =IF(AM$9="weekly",OFFSET($J$13,,MATCH(BL$24,$K$8:$AV$8,0))+BL30-1,IF(AM$9="bi-weekly",OFFSET($J$14,,MATCH(BL$24,$K$8:$AV$8,0))+BL30-1,IF(AM$9="Monthly",OFFSET($J$15,,MATCH(BL$24,$K$8:$AV$8,0))+BL30-1,0))) -> 35 | BN30: =IF(AN$9="none",0,IF(AND($F30="week 1",$G30="Sun"),OFFSET($J$10,,MATCH(BN$24,$K$8:$AV$8,0)),IF(AND(OR($F30="week 2",$F30="week 3",$F30="week 4"),AN$9="weekly",$G30="Sun"),OFFSET($J$10,,MATCH(BN$24,$K$8:$AV$8,0)),IF(AND($F30="week 3",AN$9="bi-weekly",$G30="Sun"),OFFSET($J$10,,MATCH(BN$24,$K$8:$AV$8,0)),BO29+1)))) -> 17.57142857 | BO30: =IF(AN$9="weekly",OFFSET($J$13,,MATCH(BN$24,$K$8:$AV$8,0))+BN30-1,IF(AN$9="bi-weekly",OFFSET($J$14,,MATCH(BN$24,$K$8:$AV$8,0))+BN30-1,IF(AN$9="Monthly",OFFSET($J$15,,MATCH(BN$24,$K$8:$AV$8,0))+BN30-1,0))) -> 32.14285714 | BP30: =IF(AO$9="none",0,IF(AND($F30="week 1",$G30="Sun"),OFFSET($J$10,,MATCH(BP$24,$K$8:$AV$8,0)),IF(AND(OR($F30="week 2",$F30="week 3",$F30="week 4"),AO$9="weekly",$G30="Sun"),OFFSET($J$10,,MATCH(BP$24,$K$8:$AV$8,0)),IF(AND($F30="week 3",AO$9="bi-weekly",$G30="Sun"),OFFSET($J$10,,MATCH(BP$24,$K$8:$AV$8,0)),BQ29+1)))) -> 0 | BQ30: =IF(AO$9="weekly",OFFSET($J$13,,MATCH(BP$24,$K$8:$AV$8,0))+BP30-1,IF(AO$9="bi-weekly",OFFSET($J$14,,MATCH(BP$24,$K$8:$AV$8,0))+BP30-1,IF(AO$9="Monthly",OFFSET($J$15,,MATCH(BP$24,$K$8:$AV$8,0))+BP30-1,0))) -> 0 | BR30: =IF(AP$9="none",0,IF(AND($F30="week 1",$G30="Sun"),OFFSET($J$10,,MATCH(BR$24,$K$8:$AV$8,0)),IF(AND(OR($F30="week 2",$F30="week 3",$F30="week 4"),AP$9="weekly",$G30="Sun"),OFFSET($J$10,,MATCH(BR$24,$K$8:$AV$8,0)),IF(AND($F30="week 3",AP$9="bi-weekly",$G30="Sun"),OFFSET($J$10,,MATCH(BR$24,$K$8:$AV$8,0)),BS29+1)))) -> 0 | BS30: 0 | BT30: =IF(AQ$9="none",0,IF(AND($F30="week 1",$G30="Sun"),OFFSET($J$10,,MATCH(BT$24,$K$8:$AV$8,0)),IF(AND(OR($F30="week 2",$F30="week 3",$F30="week 4"),AQ$9="weekly",$G30="Sun"),OFFSET($J$10,,MATCH(BT$24,$K$8:$AV$8,0)),IF(AND($F30="week 3",AQ$9="bi-weekly",$G30="Sun"),OFFSET($J$10,,MATCH(BT$24,$K$8:$AV$8,0)),BU29+1)))) -> 0 | BU30: =IF(AQ$9="weekly",OFFSET($J$13,,MATCH(BT$24,$K$8:$AV$8,0))+BT30-1,IF(AQ$9="bi-weekly",OFFSET($J$14,,MATCH(BT$24,$K$8:$AV$8,0))+BT30-1,IF(AQ$9="Monthly",OFFSET($J$15,,MATCH(BT$24,$K$8:$AV$8,0))+BT30-1,0))) -> 0 | BV30: =IF(AR$9="none",0,IF(AND($F30="week 1",$G30="Sun"),OFFSET($J$10,,MATCH(BV$24,$K$8:$AV$8,0)),IF(AND(OR($F30="week 2",$F30="week 3",$F30="week 4"),AR$9="weekly",$G30="Sun"),OFFSET($J$10,,MATCH(BV$24,$K$8:$AV$8,0)),IF(AND($F30="week 3",AR$9="bi-weekly",$G30="Sun"),OFFSET($J$10,,MATCH(BV$24,$K$8:$AV$8,0)),BW29+1)))) -> 0 | BW30: =IF(AR$9="weekly",OFFSET($J$13,,MATCH(BV$24,$K$8:$AV$8,0))+BV30-1,IF(AR$9="bi-weekly",OFFSET($J$14,,MATCH(BV$24,$K$8:$AV$8,0))+BV30-1,IF(AR$9="Monthly",OFFSET($J$15,,MATCH(BV$24,$K$8:$AV$8,0))+BV30-1,0))) -> 0 | BX30: =IF(AS$9="none",0,IF(AND($F30="week 1",$G30="Sun"),OFFSET($J$10,,MATCH(BX$24,$K$8:$AV$8,0)),IF(AND(OR($F30="week 2",$F30="week 3",$F30="week 4"),AS$9="weekly",$G30="Sun"),OFFSET($J$10,,MATCH(BX$24,$K$8:$AV$8,0)),IF(AND($F30="week 3",AS$9="bi-weekly",$G30="Sun"),OFFSET($J$10,,MATCH(BX$24,$K$8:$AV$8,0)),BY29+1)))) -> 0 | BY30: =IF(AS$9="weekly",OFFSET($J$13,,MATCH(BX$24,$K$8:$AV$8,0))+BX30-1,IF(AS$9="bi-weekly",OFFSET($J$14,,MATCH(BX$24,$K$8:$AV$8,0))+BX30-1,IF(AS$9="Monthly",OFFSET($J$15,,MATCH(BX$24,$K$8:$AV$8,0))+BX30-1,0))) -> 0 | BZ30: =IF(AT$9="none",0,IF(AND($F30="week 1",$G30="Sun"),OFFSET($J$10,,MATCH(BZ$24,$K$8:$AV$8,0)),IF(AND(OR($F30="week 2",$F30="week 3",$F30="week 4"),AT$9="weekly",$G30="Sun"),OFFSET($J$10,,MATCH(BZ$24,$K$8:$AV$8,0)),IF(AND($F30="week 3",AT$9="bi-weekly",$G30="Sun"),OFFSET($J$10,,MATCH(BZ$24,$K$8:$AV$8,0)),CA29+1)))) -> 0 | CA30: =IF(AT$9="weekly",OFFSET($J$13,,MATCH(BZ$24,$K$8:$AV$8,0))+BZ30-1,IF(AT$9="bi-weekly",OFFSET($J$14,,MATCH(BZ$24,$K$8:$AV$8,0))+BZ30-1,IF(AT$9="Monthly",OFFSET($J$15,,MATCH(BZ$24,$K$8:$AV$8,0))+BZ30-1,0))) -> 0 | CB30: =IF(AU$9="none",0,IF(AND($F30="week 1",$G30="Sun"),OFFSET($J$10,,MATCH(CB$24,$K$8:$AV$8,0)),IF(AND(OR($F30="week 2",$F30="week 3",$F30="week 4"),AU$9="weekly",$G30="Sun"),OFFSET($J$10,,MATCH(CB$24,$K$8:$AV$8,0)),IF(AND($F30="week 3",AU$9="bi-weekly",$G30="Sun"),OFFSET($J$10,,MATCH(CB$24,$K$8:$AV$8,0)),CC29+1)))) -> 0 | CC30: =IF(AU$9="weekly",OFFSET($J$13,,MATCH(CB$24,$K$8:$AV$8,0))+CB30-1,IF(AU$9="bi-weekly",OFFSET($J$14,,MATCH(CB$24,$K$8:$AV$8,0))+CB30-1,IF(AU$9="Monthly",OFFSET($J$15,,MATCH(CB$24,$K$8:$AV$8,0))+CB30-1,0))) -> 0 | CD30: =(ROUND(I30,0)-ROUND(H30,0))+(ROUND(K30,0)-ROUND(J30,0))+(ROUND(M30,0)-ROUND(L30,0))+(ROUND(O30,0)-ROUND(N30,0))+(ROUND(Q30,0)-ROUND(P30,0))+(ROUND(S30,0)-ROUND(R30,0))+(ROUND(U30,0)-ROUND(T30,0)+(ROUND(W30,0)-ROUND(V30,0))+(ROUND(Y30,0)-ROUND(X30,0))+(ROUND(AA30,0)-ROUND(Z30,0))+(ROUND(AC30,0)-ROUND(AB30,0))+(ROUND(AE30,0)-ROUND(AD30,0))+(ROUND(AG30,0)-ROUND(AF30,0))+(ROUND(AI30,0)-ROUND(AH30,0))+(ROUND(AK30,0)-ROUND(AJ30,0))+(ROUND(AM30,0)-ROUND(AL30,0))+(ROUND(AO30,0)-ROUND(AN30,0))+(ROUND(AQ30,0)-ROUND(AP30,0))+(ROUND(AS30,0)-ROUND(AR30,0))+(ROUND(AU30,0)-ROUND(AT30,0))+(ROUND(AW30,0)-ROUND(AV30,0))+(ROUND(AY30,0)-ROUND(AX30,0))+(ROUND(BA30,0)-ROUND(AZ30,0))+(ROUND(BC30,0)-ROUND(BB30,0))+(ROUND(BE30,0)-ROUND(BD30,0))+(ROUND(BG30,0)-ROUND(BF30,0))+(ROUND(BI30,0)-ROUND(BH30,0))+(ROUND(BK30,0)-ROUND(BJ30,0))+(ROUND(BM30,0)-ROUND(BL30,0))+(ROUND(BO30,0)-ROUND(BN30,0))+(ROUND(BQ30,0)-ROUND(BP30,0))+(ROUND(BS30,0)-ROUND(BR30,0))+(ROUND(BU30,0)-ROUND(BT30,0))+(ROUND(BW30,0)-ROUND(BV30,0))+(ROUND(BY30,0)-ROUND(BX30,0))+(ROUND(CA30,0)-ROUND(BZ30,0))+(ROUND(CC30,0)-ROUND(CB30,0))+(COUNTIF($H30:$CC30,">"&0)/2)) -> 147
F31: WEEK 1 | G31: TUE | H31: 6.5 | I31: 7.75 | J31: 13.14285714 | K31: 17.71428571 | L31: 9.428571429 | M31: 12.14285714 | N31: 10.57142857 | O31: 13.85714286 | P31: 3.5 | Q31: 3.25 | R31: 8.214285714 | S31: 10.32142857 | T31: 5.928571429 | U31: 6.892857143 | V31: 4.785714286 | W31: 5.178571429 | X31: 4.428571429 | Y31: 4.642857143 | Z31: 4.142857143 | AA31: 4.214285714 | AB31: 4.214285714 | AC31: 4.321428571 | AD31: 4 | AE31: 4 | AF31: 3.857142857 | AG31: 3.785714286 | AH31: 10.64285714 | AI31: 13.96428571 | AJ31: 9.928571429 | AK31: 12.89285714 | AL31: 8.428571429 | AM31: 10.64285714 | AN31: 6.642857143 | AO31: 7.964285714 | AP31: =IF(AB$9="none",0,IF(AND($F31="week 1",$G31="Sun"),OFFSET($J$10,,MATCH(AP$24,$K$8:$AV$8,0)),IF(AND(OR($F31="week 2",$F31="week 3",$F31="week 4"),AB$9="weekly",$G31="Sun"),OFFSET($J$10,,MATCH(AP$24,$K$8:$AV$8,0)),IF(AND($F31="week 3",AB$9="bi-weekly",$G31="Sun"),OFFSET($J$10,,MATCH(AP$24,$K$8:$AV$8,0)),AQ30+1)))) -> 5.428571429 | AQ31: =IF(AB$9="weekly",OFFSET($J$13,,MATCH(AP$24,$K$8:$AV$8,0))+AP31-1,IF(AB$9="bi-weekly",OFFSET($J$14,,MATCH(AP$24,$K$8:$AV$8,0))+AP31-1,IF(AB$9="Monthly",OFFSET($J$15,,MATCH(AP$24,$K$8:$AV$8,0))+AP31-1,0))) -> 6.142857143 | AR31: 8.357142857 | AS31: 10.53571429 | AT31: 7.785714286 | AU31: 9.678571429 | AV31: 10.42857143 | AW31: 13.64285714 | AX31: 18.85714286 | AY31: 26.28571429 | AZ31: 27 | BA31: 38.5 | BB31: 34 | BC31: 49 | BD31: 8.571428571 | BE31: 10.85714286 | BF31: 15.71428571 | BG31: 21.57142857 | BH31: 23.42857143 | BI31: 33.14285714 | BJ31: =IF(AL$9="none",0,IF(AND($F31="week 1",$G31="Sun"),OFFSET($J$10,,MATCH(BJ$24,$K$8:$AV$8,0)),IF(AND(OR($F31="week 2",$F31="week 3",$F31="week 4"),AL$9="weekly",$G31="Sun"),OFFSET($J$10,,MATCH(BJ$24,$K$8:$AV$8,0)),IF(AND($F31="week 3",AL$9="bi-weekly",$G31="Sun"),OFFSET($J$10,,MATCH(BJ$24,$K$8:$AV$8,0)),BK30+1)))) -> 5.714285714 | BK31: =IF(AL$9="weekly",OFFSET($J$13,,MATCH(BJ$24,$K$8:$AV$8,0))+BJ31-1,IF(AL$9="bi-weekly",OFFSET($J$14,,MATCH(BJ$24,$K$8:$AV$8,0))+BJ31-1,IF(AL$9="Monthly",OFFSET($J$15,,MATCH(BJ$24,$K$8:$AV$8,0))+BJ31-1,0))) -> 6.571428571 | BL31: =IF(AM$9="none",0,IF(AND($F31="week 1",$G31="Sun"),OFFSET($J$10,,MATCH(BL$24,$K$8:$AV$8,0)),IF(AND(OR($F31="week 2",$F31="week 3",$F31="week 4"),AM$9="weekly",$G31="Sun"),OFFSET($J$10,,MATCH(BL$24,$K$8:$AV$8,0)),IF(AND($F31="week 3",AM$9="bi-weekly",$G31="Sun"),OFFSET($J$10,,MATCH(BL$24,$K$8:$AV$8,0)),BM30+1)))) -> 36 | BM31: =IF(AM$9="weekly",OFFSET($J$13,,MATCH(BL$24,$K$8:$AV$8,0))+BL31-1,IF(AM$9="bi-weekly",OFFSET($J$14,,MATCH(BL$24,$K$8:$AV$8,0))+BL31-1,IF(AM$9="Monthly",OFFSET($J$15,,MATCH(BL$24,$K$8:$AV$8,0))+BL31-1,0))) -> 52 | BN31: =IF(AN$9="none",0,IF(AND($F31="week 1",$G31="Sun"),OFFSET($J$10,,MATCH(BN$24,$K$8:$AV$8,0)),IF(AND(OR($F31="week 2",$F31="week 3",$F31="week 4"),AN$9="weekly",$G31="Sun"),OFFSET($J$10,,MATCH(BN$24,$K$8:$AV$8,0)),IF(AND($F31="week 3",AN$9="bi-weekly",$G31="Sun"),OFFSET($J$10,,MATCH(BN$24,$K$8:$AV$8,0)),BO30+1)))) -> 33.14285714 | BO31: =IF(AN$9="weekly",OFFSET($J$13,,MATCH(BN$24,$K$8:$AV$8,0))+BN31-1,IF(AN$9="bi-weekly",OFFSET($J$14,,MATCH(BN$24,$K$8:$AV$8,0))+BN31-1,IF(AN$9="Monthly",OFFSET($J$15,,MATCH(BN$24,$K$8:$AV$8,0))+BN31-1,0))) -> 47.71428571 | BP31: =IF(AO$9="none",0,IF(AND($F31="week 1",$G31="Sun"),OFFSET($J$10,,MATCH(BP$24,$K$8:$AV$8,0)),IF(AND(OR($F31="week 2",$F31="week 3",$F31="week 4"),AO$9="weekly",$G31="Sun"),OFFSET($J$10,,MATCH(BP$24,$K$8:$AV$8,0)),IF(AND($F31="week 3",AO$9="bi-weekly",$G31="Sun"),OFFSET($J$10,,MATCH(BP$24,$K$8:$AV$8,0)),BQ30+1)))) -> 0 | BQ31: =IF(AO$9="weekly",OFFSET($J$13,,MATCH(BP$24,$K$8:$AV$8,0))+BP31-1,IF(AO$9="bi-weekly",OFFSET($J$14,,MATCH(BP$24,$K$8:$AV$8,0))+BP31-1,IF(AO$9="Monthly",OFFSET($J$15,,MATCH(BP$24,$K$8:$AV$8,0))+BP31-1,0))) -> 0 | BR31: 0 | BS31: 0 | BT31: =IF(AQ$9="none",0,IF(AND($F31="week 1",$G31="Sun"),OFFSET($J$10,,MATCH(BT$24,$K$8:$AV$8,0)),IF(AND(OR($F31="week 2",$F31="week 3",$F31="week 4"),AQ$9="weekly",$G31="Sun"),OFFSET($J$10,,MATCH(BT$24,$K$8:$AV$8,0)),IF(AND($F31="week 3",AQ$9="bi-weekly",$G31="Sun"),OFFSET($J$10,,MATCH(BT$24,$K$8:$AV$8,0)),BU30+1)))) -> 0 | BU31: =IF(AQ$9="weekly",OFFSET($J$13,,MATCH(BT$24,$K$8:$AV$8,0))+BT31-1,IF(AQ$9="bi-weekly",OFFSET($J$14,,MATCH(BT$24,$K$8:$AV$8,0))+BT31-1,IF(AQ$9="Monthly",OFFSET($J$15,,MATCH(BT$24,$K$8:$AV$8,0))+BT31-1,0))) -> 0 | BV31: =IF(AR$9="none",0,IF(AND($F31="week 1",$G31="Sun"),OFFSET($J$10,,MATCH(BV$24,$K$8:$AV$8,0)),IF(AND(OR($F31="week 2",$F31="week 3",$F31="week 4"),AR$9="weekly",$G31="Sun"),OFFSET($J$10,,MATCH(BV$24,$K$8:$AV$8,0)),IF(AND($F31="week 3",AR$9="bi-weekly",$G31="Sun"),OFFSET($J$10,,MATCH(BV$24,$K$8:$AV$8,0)),BW30+1)))) -> 0 | BW31: =IF(AR$9="weekly",OFFSET($J$13,,MATCH(BV$24,$K$8:$AV$8,0))+BV31-1,IF(AR$9="bi-weekly",OFFSET($J$14,,MATCH(BV$24,$K$8:$AV$8,0))+BV31-1,IF(AR$9="Monthly",OFFSET($J$15,,MATCH(BV$24,$K$8:$AV$8,0))+BV31-1,0))) -> 0 | BX31: =IF(AS$9="none",0,IF(AND($F31="week 1",$G31="Sun"),OFFSET($J$10,,MATCH(BX$24,$K$8:$AV$8,0)),IF(AND(OR($F31="week 2",$F31="week 3",$F31="week 4"),AS$9="weekly",$G31="Sun"),OFFSET($J$10,,MATCH(BX$24,$K$8:$AV$8,0)),IF(AND($F31="week 3",AS$9="bi-weekly",$G31="Sun"),OFFSET($J$10,,MATCH(BX$24,$K$8:$AV$8,0)),BY30+1)))) -> 0 | BY31: =IF(AS$9="weekly",OFFSET($J$13,,MATCH(BX$24,$K$8:$AV$8,0))+BX31-1,IF(AS$9="bi-weekly",OFFSET($J$14,,MATCH(BX$24,$K$8:$AV$8,0))+BX31-1,IF(AS$9="Monthly",OFFSET($J$15,,MATCH(BX$24,$K$8:$AV$8,0))+BX31-1,0))) -> 0 | BZ31: =IF(AT$9="none",0,IF(AND($F31="week 1",$G31="Sun"),OFFSET($J$10,,MATCH(BZ$24,$K$8:$AV$8,0)),IF(AND(OR($F31="week 2",$F31="week 3",$F31="week 4"),AT$9="weekly",$G31="Sun"),OFFSET($J$10,,MATCH(BZ$24,$K$8:$AV$8,0)),IF(AND($F31="week 3",AT$9="bi-weekly",$G31="Sun"),OFFSET($J$10,,MATCH(BZ$24,$K$8:$AV$8,0)),CA30+1)))) -> 0 | CA31: =IF(AT$9="weekly",OFFSET($J$13,,MATCH(BZ$24,$K$8:$AV$8,0))+BZ31-1,IF(AT$9="bi-weekly",OFFSET($J$14,,MATCH(BZ$24,$K$8:$AV$8,0))+BZ31-1,IF(AT$9="Monthly",OFFSET($J$15,,MATCH(BZ$24,$K$8:$AV$8,0))+BZ31-1,0))) -> 0 | CB31: =IF(AU$9="none",0,IF(AND($F31="week 1",$G31="Sun"),OFFSET($J$10,,MATCH(CB$24,$K$8:$AV$8,0)),IF(AND(OR($F31="week 2",$F31="week 3",$F31="week 4"),AU$9="weekly",$G31="Sun"),OFFSET($J$10,,MATCH(CB$24,$K$8:$AV$8,0)),IF(AND($F31="week 3",AU$9="bi-weekly",$G31="Sun"),OFFSET($J$10,,MATCH(CB$24,$K$8:$AV$8,0)),CC30+1)))) -> 0 | CC31: =IF(AU$9="weekly",OFFSET($J$13,,MATCH(CB$24,$K$8:$AV$8,0))+CB31-1,IF(AU$9="bi-weekly",OFFSET($J$14,,MATCH(CB$24,$K$8:$AV$8,0))+CB31-1,IF(AU$9="Monthly",OFFSET($J$15,,MATCH(CB$24,$K$8:$AV$8,0))+CB31-1,0))) -> 0 | CD31: =(ROUND(I31,0)-ROUND(H31,0))+(ROUND(K31,0)-ROUND(J31,0))+(ROUND(M31,0)-ROUND(L31,0))+(ROUND(O31,0)-ROUND(N31,0))+(ROUND(Q31,0)-ROUND(P31,0))+(ROUND(S31,0)-ROUND(R31,0))+(ROUND(U31,0)-ROUND(T31,0)+(ROUND(W31,0)-ROUND(V31,0))+(ROUND(Y31,0)-ROUND(X31,0))+(ROUND(AA31,0)-ROUND(Z31,0))+(ROUND(AC31,0)-ROUND(AB31,0))+(ROUND(AE31,0)-ROUND(AD31,0))+(ROUND(AG31,0)-ROUND(AF31,0))+(ROUND(AI31,0)-ROUND(AH31,0))+(ROUND(AK31,0)-ROUND(AJ31,0))+(ROUND(AM31,0)-ROUND(AL31,0))+(ROUND(AO31,0)-ROUND(AN31,0))+(ROUND(AQ31,0)-ROUND(AP31,0))+(ROUND(AS31,0)-ROUND(AR31,0))+(ROUND(AU31,0)-ROUND(AT31,0))+(ROUND(AW31,0)-ROUND(AV31,0))+(ROUND(AY31,0)-ROUND(AX31,0))+(ROUND(BA31,0)-ROUND(AZ31,0))+(ROUND(BC31,0)-ROUND(BB31,0))+(ROUND(BE31,0)-ROUND(BD31,0))+(ROUND(BG31,0)-ROUND(BF31,0))+(ROUND(BI31,0)-ROUND(BH31,0))+(ROUND(BK31,0)-ROUND(BJ31,0))+(ROUND(BM31,0)-ROUND(BL31,0))+(ROUND(BO31,0)-ROUND(BN31,0))+(ROUND(BQ31,0)-ROUND(BP31,0))+(ROUND(BS31,0)-ROUND(BR31,0))+(ROUND(BU31,0)-ROUND(BT31,0))+(ROUND(BW31,0)-ROUND(BV31,0))+(ROUND(BY31,0)-ROUND(BX31,0))+(ROUND(CA31,0)-ROUND(BZ31,0))+(ROUND(CC31,0)-ROUND(CB31,0))+(COUNTIF($H31:$CC31,">"&0)/2)) -> 149
F32: WEEK 1 | G32: WED | H32: 8.75 | I32: 10 | J32: 18.71428571 | K32: 23.28571429 | L32: 13.14285714 | M32: 15.85714286 | N32: 14.85714286 | O32: 18.14285714 | P32: 4.25 | Q32: 4 | R32: 11.32142857 | S32: 13.42857143 | T32: 7.892857143 | U32: 8.857142857 | V32: 6.178571429 | W32: 6.571428571 | X32: 5.642857143 | Y32: 5.857142857 | Z32: 5.214285714 | AA32: 5.285714286 | AB32: 5.321428571 | AC32: 5.428571429 | AD32: 5 | AE32: 5 | AF32: 4.785714286 | AG32: 4.714285714 | AH32: 14.96428571 | AI32: 18.28571429 | AJ32: 13.89285714 | AK32: 16.85714286 | AL32: 11.64285714 | AM32: 13.85714286 | AN32: 8.964285714 | AO32: 10.28571429 | AP32: 7.142857143 | AQ32: 7.857142857 | AR32: 11.53571429 | AS32: 13.71428571 | AT32: 10.67857143 | AU32: 12.57142857 | AV32: 14.64285714 | AW32: 17.85714286 | AX32: 27.28571429 | AY32: 34.71428571 | AZ32: 39.5 | BA32: 51 | BB32: 50 | BC32: 65 | BD32: 11.85714286 | BE32: 14.14285714 | BF32: 22.57142857 | BG32: 28.42857143 | BH32: 34.14285714 | BI32: 43.85714286 | BJ32: 7.571428571 | BK32: 8.428571429 | BL32: 53 | BM32: 69 | BN32: 48.71428571 | BO32: 63.28571429 | BP32: 0 | BQ32: 0 | BR32: 0 | BS32: 0 | BT32: 0 | BU32: 0 | BV32: 0 | BW32: 0 | BX32: 0 | BY32: 0 | BZ32: 0 | CA32: 0 | CB32: 0 | CC32: 0 | CD32: =(ROUND(I32,0)-ROUND(H32,0))+(ROUND(K32,0)-ROUND(J32,0))+(ROUND(M32,0)-ROUND(L32,0))+(ROUND(O32,0)-ROUND(N32,0))+(ROUND(Q32,0)-ROUND(P32,0))+(ROUND(S32,0)-ROUND(R32,0))+(ROUND(U32,0)-ROUND(T32,0)+(ROUND(W32,0)-ROUND(V32,0))+(ROUND(Y32,0)-ROUND(X32,0))+(ROUND(AA32,0)-ROUND(Z32,0))+(ROUND(AC32,0)-ROUND(AB32,0))+(ROUND(AE32,0)-ROUND(AD32,0))+(ROUND(AG32,0)-ROUND(AF32,0))+(ROUND(AI32,0)-ROUND(AH32,0))+(ROUND(AK32,0)-ROUND(AJ32,0))+(ROUND(AM32,0)-ROUND(AL32,0))+(ROUND(AO32,0)-ROUND(AN32,0))+(ROUND(AQ32,0)-ROUND(AP32,0))+(ROUND(AS32,0)-ROUND(AR32,0))+(ROUND(AU32,0)-ROUND(AT32,0))+(ROUND(AW32,0)-ROUND(AV32,0))+(ROUND(AY32,0)-ROUND(AX32,0))+(ROUND(BA32,0)-ROUND(AZ32,0))+(ROUND(BC32,0)-ROUND(BB32,0))+(ROUND(BE32,0)-ROUND(BD32,0))+(ROUND(BG32,0)-ROUND(BF32,0))+(ROUND(BI32,0)-ROUND(BH32,0))+(ROUND(BK32,0)-ROUND(BJ32,0))+(ROUND(BM32,0)-ROUND(BL32,0))+(ROUND(BO32,0)-ROUND(BN32,0))+(ROUND(BQ32,0)-ROUND(BP32,0))+(ROUND(BS32,0)-ROUND(BR32,0))+(ROUND(BU32,0)-ROUND(BT32,0))+(ROUND(BW32,0)-ROUND(BV32,0))+(ROUND(BY32,0)-ROUND(BX32,0))+(ROUND(CA32,0)-ROUND(BZ32,0))+(ROUND(CC32,0)-ROUND(CB32,0))+(COUNTIF($H32:$CC32,">"&0)/2)) -> 143
F33: WEEK 1 | G33: THU | H33: 11 | I33: 12.25 | J33: 24.28571429 | K33: 28.85714286 | L33: 16.85714286 | M33: 19.57142857 | N33: 19.14285714 | O33: 22.42857143 | P33: 5 | Q33: 4.75 | R33: 14.42857143 | S33: 16.53571429 | T33: 9.857142857 | U33: 10.82142857 | V33: 7.571428571 | W33: 7.964285714 | X33: 6.857142857 | Y33: 7.071428571 | Z33: 6.285714286 | AA33: 6.357142857 | AB33: 6.428571429 | AC33: 6.535714286 | AD33: 6 | AE33: 6 | AF33: 5.714285714 | AG33: 5.642857143 | AH33: 19.28571429 | AI33: 22.60714286 | AJ33: 17.85714286 | AK33: 20.82142857 | AL33: 14.85714286 | AM33: 17.07142857 | AN33: 11.28571429 | AO33: 12.60714286 | AP33: 8.857142857 | AQ33: 9.571428571 | AR33: 14.71428571 | AS33: 16.89285714 | AT33: 13.57142857 | AU33: 15.46428571 | AV33: 18.85714286 | AW33: 22.07142857 | AX33: 35.71428571 | AY33: 43.14285714 | AZ33: 52 | BA33: 63.5 | BB33: 66 | BC33: 81 | BD33: 15.14285714 | BE33: 17.42857143 | BF33: 29.42857143 | BG33: 35.28571429 | BH33: 44.85714286 | BI33: 54.57142857 | BJ33: 9.428571429 | BK33: 10.28571429 | BL33: 70 | BM33: 86 | BN33: 64.28571429 | BO33: 78.85714286 | BP33: 0 | BQ33: 0 | BR33: 0 | BS33: 0 | BT33: 0 | BU33: 0 | BV33: 0 | BW33: 0 | BX33: 0 | BY33: 0 | BZ33: 0 | CA33: 0 | CB33: 0 | CC33: 0 | CD33: 149
F34: WEEK 1 | G34: FRI | H34: 13.25 | I34: 14.5 | J34: 29.85714286 | K34: 34.42857143 | L34: 20.57142857 | M34: 23.28571429 | N34: 23.42857143 | O34: 26.71428571 | P34: 5.75 | Q34: 5.5 | R34: 17.53571429 | S34: 19.64285714 | T34: 11.82142857 | U34: 12.78571429 | V34: 8.964285714 | W34: 9.357142857 | X34: 8.071428571 | Y34: 8.285714286 | Z34: 7.357142857 | AA34: 7.428571429 | AB34: 7.535714286 | AC34: 7.642857143 | AD34: 7 | AE34: 7 | AF34: 6.642857143 | AG34: 6.571428571 | AH34: 23.60714286 | AI34: 26.92857143 | AJ34: 21.82142857 | AK34: 24.78571429 | AL34: 18.07142857 | AM34: 20.28571429 | AN34: 13.60714286 | AO34: 14.92857143 | AP34: 10.57142857 | AQ34: 11.28571429 | AR34: 17.89285714 | AS34: 20.07142857 | AT34: 16.46428571 | AU34: 18.35714286 | AV34: 23.07142857 | AW34: 26.28571429 | AX34: 44.14285714 | AY34: 51.57142857 | AZ34: 64.5 | BA34: 76 | BB34: 82 | BC34: 97 | BD34: 18.42857143 | BE34: 20.71428571 | BF34: 36.28571429 | BG34: 42.14285714 | BH34: 55.57142857 | BI34: 65.28571429 | BJ34: 11.28571429 | BK34: 12.14285714 | BL34: 87 | BM34: 103 | BN34: 79.85714286 | BO34: 94.42857143 | BP34: 0 | BQ34: 0 | BR34: 0 | BS34: 0 | BT34: 0 | BU34: 0 | BV34: 0 | BW34: 0 | BX34: 0 | BY34: 0 | BZ34: 0 | CA34: 0 | CB34: 0 | CC34: 0 | CD34: 144
F35: WEEK 1 | G35: שבת | H35: 15.5 | I35: 16.75 | J35: 35.42857143 | K35: 40 | L35: 24.28571429 | M35: 27 | N35: 27.71428571 | O35: 31 | P35: 6.5 | Q35: 6.25 | R35: 20.64285714 | S35: 22.75 | T35: 13.78571429 | U35: 14.75 | V35: 10.35714286 | W35: 10.75 | X35: 9.285714286 | Y35: 9.5 | Z35: 8.428571429 | AA35: 8.5 | AB35: 8.642857143 | AC35: 8.75 | AD35: 8 | AE35: 8 | AF35: 7.571428571 | AG35: 7.5 | AH35: 27.92857143 | AI35: 31.25 | AJ35: 25.78571429 | AK35: 28.75 | AL35: 21.28571429 | AM35: 23.5 | AN35: 15.92857143 | AO35: 17.25 | AP35: 12.28571429 | AQ35: 13 | AR35: 21.07142857 | AS35: 23.25 | AT35: 19.35714286 | AU35: 21.25 | AV35: 27.28571429 | AW35: 30.5 | AX35: 52.57142857 | AY35: 60 | AZ35: 77 | BA35: 88.5 | BB35: 98 | BC35: 113 | BD35: 21.71428571 | BE35: 24 | BF35: 43.14285714 | BG35: 49 | BH35: 66.28571429 | BI35: 76 | BJ35: 13.14285714 | BK35: 14 | BL35: 104 | BM35: 120 | BN35: 95.42857143 | BO35: 110 | BP35: 0 | BQ35: 0 | BR35: 0 | BS35: 0 | BT35: 0 | BU35: 0 | BV35: 0 | BW35: 0 | BX35: 0 | BY35: 0 | BZ35: 0 | CA35: 0 | CB35: 0 | CC35: 0 | CD35: 150
G36: WEEK TWO | AH36: WEEK TWO
F37: WEEK 2 | G37: SUN | H37: =IF(K$9="none",0,IF(AND($F37="week 1",$G37="Sun"),OFFSET($J$10,,MATCH(H$24,$K$8:$AV$8,0)),IF(AND(OR($F37="week 2",$F37="week 3",$F37="week 4"),K$9="weekly",$G37="Sun"),OFFSET($J$10,,MATCH(H$24,$K$8:$AV$8,0)),IF(AND($F37="week 3",K$9="bi-weekly",$G37="Sun"),OFFSET($J$10,,MATCH(H$24,$K$8:$AV$8,0)),I35+1)))) -> 17.75 | I37: =IF(K$9="weekly",OFFSET($J$13,,MATCH(H$24,$K$8:$AV$8,0))+H37-1,IF(K$9="bi-weekly",OFFSET($J$14,,MATCH(H$24,$K$8:$AV$8,0))+H37-1,IF(K$9="Monthly",OFFSET($J$15,,MATCH(H$24,$K$8:$AV$8,0))+H37-1,0))) -> 19 | J37: =IF(L$9="none",0,IF(AND($F37="week 1",$G37="Sun"),OFFSET($J$10,,MATCH(J$24,$K$8:$AV$8,0)),IF(AND(OR($F37="week 2",$F37="week 3",$F37="week 4"),L$9="weekly",$G37="Sun"),OFFSET($J$10,,MATCH(J$24,$K$8:$AV$8,0)),IF(AND($F37="week 3",L$9="bi-weekly",$G37="Sun"),OFFSET($J$10,,MATCH(J$24,$K$8:$AV$8,0)),K35+1)))) -> 41 | K37: =IF(L$9="weekly",OFFSET($J$13,,MATCH(J$24,$K$8:$AV$8,0))+J37-1,IF(L$9="bi-weekly",OFFSET($J$14,,MATCH(J$24,$K$8:$AV$8,0))+J37-1,IF(L$9="Monthly",OFFSET($J$15,,MATCH(J$24,$K$8:$AV$8,0))+J37-1,0))) -> 45.57142857 | L37: =IF(M$9="none",0,IF(AND($F37="week 1",$G37="Sun"),OFFSET($J$10,,MATCH(L$24,$K$8:$AV$8,0)),IF(AND(OR($F37="week 2",$F37="week 3",$F37="week 4"),M$9="weekly",$G37="Sun"),OFFSET($J$10,,MATCH(L$24,$K$8:$AV$8,0)),IF(AND($F37="week 3",M$9="bi-weekly",$G37="Sun"),OFFSET($J$10,,MATCH(L$24,$K$8:$AV$8,0)),M35+1)))) -> 28 | M37: =IF(M$9="weekly",OFFSET($J$13,,MATCH(L$24,$K$8:$AV$8,0))+L37-1,IF(M$9="bi-weekly",OFFSET($J$14,,MATCH(L$24,$K$8:$AV$8,0))+L37-1,IF(M$9="Monthly",OFFSET($J$15,,MATCH(L$24,$K$8:$AV$8,0))+L37-1,0))) -> 30.71428571 | N37: =IF(N$9="none",0,IF(AND($F37="week 1",$G37="Sun"),OFFSET($J$10,,MATCH(N$24,$K$8:$AV$8,0)),IF(AND(OR($F37="week 2",$F37="week 3",$F37="week 4"),N$9="weekly",$G37="Sun"),OFFSET($J$10,,MATCH(N$24,$K$8:$AV$8,0)),IF(AND($F37="week 3",N$9="bi-weekly",$G37="Sun"),OFFSET($J$10,,MATCH(N$24,$K$8:$AV$8,0)),O35+1)))) -> 32 | O37: =IF(N$9="weekly",OFFSET($J$13,,MATCH(N$24,$K$8:$AV$8,0))+N37-1,IF(N$9="bi-weekly",OFFSET($J$14,,MATCH(N$24,$K$8:$AV$8,0))+N37-1,IF(N$9="Monthly",OFFSET($J$15,,MATCH(N$24,$K$8:$AV$8,0))+N37-1,0))) -> 35.28571429 | P37: =IF(O$9="none",0,IF(AND($F37="week 1",$G37="Sun"),OFFSET($J$10,,MATCH(P$24,$K$8:$AV$8,0)),IF(AND(OR($F37="week 2",$F37="week 3",$F37="week 4"),O$9="weekly",$G37="Sun"),OFFSET($J$10,,MATCH(P$24,$K$8:$AV$8,0)),IF(AND($F37="week 3",O$9="bi-weekly",$G37="Sun"),OFFSET($J$10,,MATCH(P$24,$K$8:$AV$8,0)),Q35+1)))) -> 7.25 | Q37: =IF(O$9="weekly",OFFSET($J$13,,MATCH(P$24,$K$8:$AV$8,0))+P37-1,IF(O$9="bi-weekly",OFFSET($J$14,,MATCH(P$24,$K$8:$AV$8,0))+P37-1,IF(O$9="Monthly",OFFSET($J$15,,MATCH(P$24,$K$8:$AV$8,0))+P37-1,0))) -> 7 | R37: =IF(P$9="none",0,IF(AND($F37="week 1",$G37="Sun"),OFFSET($J$10,,MATCH(R$24,$K$8:$AV$8,0)),IF(AND(OR($F37="week 2",$F37="week 3",$F37="week 4"),P$9="weekly",$G37="Sun"),OFFSET($J$10,,MATCH(R$24,$K$8:$AV$8,0)),IF(AND($F37="week 3",P$9="bi-weekly",$G37="Sun"),OFFSET($J$10,,MATCH(R$24,$K$8:$AV$8,0)),S35+1)))) -> 23.75 | S37: =IF(P$9="weekly",OFFSET($J$13,,MATCH(R$24,$K$8:$AV$8,0))+R37-1,IF(P$9="bi-weekly",OFFSET($J$14,,MATCH(R$24,$K$8:$AV$8,0))+R37-1,IF(P$9="Monthly",OFFSET($J$15,,MATCH(R$24,$K$8:$AV$8,0))+R37-1,0))) -> 25.85714286 | T37: =IF(Q$9="none",0,IF(AND($F37="week 1",$G37="Sun"),OFFSET($J$10,,MATCH(T$24,$K$8:$AV$8,0)),IF(AND(OR($F37="week 2",$F37="week 3",$F37="week 4"),Q$9="weekly",$G37="Sun"),OFFSET($J$10,,MATCH(T$24,$K$8:$AV$8,0)),IF(AND($F37="week 3",Q$9="bi-weekly",$G37="Sun"),OFFSET($J$10,,MATCH(T$24,$K$8:$AV$8,0)),U35+1)))) -> 15.75 | U37: =IF(Q$9="weekly",OFFSET($J$13,,MATCH(T$24,$K$8:$AV$8,0))+T37-1,IF(Q$9="bi-weekly",OFFSET($J$14,,MATCH(T$24,$K$8:$AV$8,0))+T37-1,IF(Q$9="Monthly",OFFSET($J$15,,MATCH(T$24,$K$8:$AV$8,0))+T37-1,0))) -> 16.71428571 | V37: =IF(R$9="none",0,IF(AND($F37="week 1",$G37="Sun"),OFFSET($J$10,,MATCH(V$24,$K$8:$AV$8,0)),IF(AND(OR($F37="week 2",$F37="week 3",$F37="week 4"),R$9="weekly",$G37="Sun"),OFFSET($J$10,,MATCH(V$24,$K$8:$AV$8,0)),IF(AND($F37="week 3",R$9="bi-weekly",$G37="Sun"),OFFSET($J$10,,MATCH(V$24,$K$8:$AV$8,0)),W35+1)))) -> 11.75 | W37: =IF(R$9="weekly",OFFSET($J$13,,MATCH(V$24,$K$8:$AV$8,0))+V37-1,IF(R$9="bi-weekly",OFFSET($J$14,,MATCH(V$24,$K$8:$AV$8,0))+V37-1,IF(R$9="Monthly",OFFSET($J$15,,MATCH(V$24,$K$8:$AV$8,0))+V37-1,0))) -> 12.14285714 | X37: =IF(S$9="none",0,IF(AND($F37="week 1",$G37="Sun"),OFFSET($J$10,,MATCH(X$24,$K$8:$AV$8,0)),IF(AND(OR($F37="week 2",$F37="week 3",$F37="week 4"),S$9="weekly",$G37="Sun"),OFFSET($J$10,,MATCH(X$24,$K$8:$AV$8,0)),IF(AND($F37="week 3",S$9="bi-weekly",$G37="Sun"),OFFSET($J$10,,MATCH(X$24,$K$8:$AV$8,0)),Y35+1)))) -> 10.5 | Y37: =IF(S$9="weekly",OFFSET($J$13,,MATCH(X$24,$K$8:$AV$8,0))+X37-1,IF(S$9="bi-weekly",OFFSET($J$14,,MATCH(X$24,$K$8:$AV$8,0))+X37-1,IF(S$9="Monthly",OFFSET($J$15,,MATCH(X$24,$K$8:$AV$8,0))+X37-1,0))) -> 10.71428571 | Z37: =IF(T$9="none",0,IF(AND($F37="week 1",$G37="Sun"),OFFSET($J$10,,MATCH(Z$24,$K$8:$AV$8,0)),IF(AND(OR($F37="week 2",$F37="week 3",$F37="week 4"),T$9="weekly",$G37="Sun"),OFFSET($J$10,,MATCH(Z$24,$K$8:$AV$8,0)),IF(AND($F37="week 3",T$9="bi-weekly",$G37="Sun"),OFFSET($J$10,,MATCH(Z$24,$K$8:$AV$8,0)),AA35+1)))) -> 9.5 | AA37: =IF(T$9="weekly",OFFSET($J$13,,MATCH(Z$24,$K$8:$AV$8,0))+Z37-1,IF(T$9="bi-weekly",OFFSET($J$14,,MATCH(Z$24,$K$8:$AV$8,0))+Z37-1,IF(T$9="Monthly",OFFSET($J$15,,MATCH(Z$24,$K$8:$AV$8,0))+Z37-1,0))) -> 9.571428571 | AB37: =IF(U$9="none",0,IF(AND($F37="week 1",$G37="Sun"),OFFSET($J$10,,MATCH(AB$24,$K$8:$AV$8,0)),IF(AND(OR($F37="week 2",$F37="week 3",$F37="week 4"),U$9="weekly",$G37="Sun"),OFFSET($J$10,,MATCH(AB$24,$K$8:$AV$8,0)),IF(AND($F37="week 3",U$9="bi-weekly",$G37="Sun"),OFFSET($J$10,,MATCH(AB$24,$K$8:$AV$8,0)),AC35+1)))) -> 9.75 | AC37: =IF(U$9="weekly",OFFSET($J$13,,MATCH(AB$24,$K$8:$AV$8,0))+AB37-1,IF(U$9="bi-weekly",OFFSET($J$14,,MATCH(AB$24,$K$8:$AV$8,0))+AB37-1,IF(U$9="Monthly",OFFSET($J$15,,MATCH(AB$24,$K$8:$AV$8,0))+AB37-1,0))) -> 9.857142857 | AD37: =IF(V$9="none",0,IF(AND($F37="week 1",$G37="Sun"),OFFSET($J$10,,MATCH(AD$24,$K$8:$AV$8,0)),IF(AND(OR($F37="week 2",$F37="week 3",$F37="week 4"),V$9="weekly",$G37="Sun"),OFFSET($J$10,,MATCH(AD$24,$K$8:$AV$8,0)),IF(AND($F37="week 3",V$9="bi-weekly",$G37="Sun"),OFFSET($J$10,,MATCH(AD$24,$K$8:$AV$8,0)),AE35+1)))) -> 9 | AE37: =IF(V$9="weekly",OFFSET($J$13,,MATCH(AD$24,$K$8:$AV$8,0))+AD37-1,IF(V$9="bi-weekly",OFFSET($J$14,,MATCH(AD$24,$K$8:$AV$8,0))+AD37-1,IF(V$9="Monthly",OFFSET($J$15,,MATCH(AD$24,$K$8:$AV$8,0))+AD37-1,0))) -> 9 | AF37: =IF(W$9="none",0,IF(AND($F37="week 1",$G37="Sun"),OFFSET($J$10,,MATCH(AF$24,$K$8:$AV$8,0)),IF(AND(OR($F37="week 2",$F37="week 3",$F37="week 4"),W$9="weekly",$G37="Sun"),OFFSET($J$10,,MATCH(AF$24,$K$8:$AV$8,0)),IF(AND($F37="week 3",W$9="bi-weekly",$G37="Sun"),OFFSET($J$10,,MATCH(AF$24,$K$8:$AV$8,0)),AG35+1)))) -> 8.5 | AG37: =IF(W$9="weekly",OFFSET($J$13,,MATCH(AF$24,$K$8:$AV$8,0))+AF37-1,IF(W$9="bi-weekly",OFFSET($J$14,,MATCH(AF$24,$K$8:$AV$8,0))+AF37-1,IF(W$9="Monthly",OFFSET($J$15,,MATCH(AF$24,$K$8:$AV$8,0))+AF37-1,0))) -> 8.428571429 | AH37: =IF(X$9="none",0,IF(AND($F37="week 1",$G37="Sun"),OFFSET($J$10,,MATCH(AH$24,$K$8:$AV$8,0)),IF(AND(OR($F37="week 2",$F37="week 3",$F37="week 4"),X$9="weekly",$G37="Sun"),OFFSET($J$10,,MATCH(AH$24,$K$8:$AV$8,0)),IF(AND($F37="week 3",X$9="bi-weekly",$G37="Sun"),OFFSET($J$10,,MATCH(AH$24,$K$8:$AV$8,0)),AI35+1)))) -> 32.25 | AI37: =IF(X$9="weekly",OFFSET($J$13,,MATCH(AH$24,$K$8:$AV$8,0))+AH37-1,IF(X$9="bi-weekly",OFFSET($J$14,,MATCH(AH$24,$K$8:$AV$8,0))+AH37-1,IF(X$9="Monthly",OFFSET($J$15,,MATCH(AH$24,$K$8:$AV$8,0))+AH37-1,0))) -> 35.57142857 | AJ37: =IF(Y$9="none",0,IF(AND($F37="week 1",$G37="Sun"),OFFSET($J$10,,MATCH(AJ$24,$K$8:$AV$8,0)),IF(AND(OR($F37="week 2",$F37="week 3",$F37="week 4"),Y$9="weekly",$G37="Sun"),OFFSET($J$10,,MATCH(AJ$24,$K$8:$AV$8,0)),IF(AND($F37="week 3",Y$9="bi-weekly",$G37="Sun"),OFFSET($J$10,,MATCH(AJ$24,$K$8:$AV$8,0)),AK35+1)))) -> 29.75 | AK37: =IF(Y$9="weekly",OFFSET($J$13,,MATCH(AJ$24,$K$8:$AV$8,0))+AJ37-1,IF(Y$9="bi-weekly",OFFSET($J$14,,MATCH(AJ$24,$K$8:$AV$8,0))+AJ37-1,IF(Y$9="Monthly",OFFSET($J$15,,MATCH(AJ$24,$K$8:$AV$8,0))+AJ37-1,0))) -> 32.71428571 | AL37: =IF(Z$9="none",0,IF(AND($F37="week 1",$G37="Sun"),OFFSET($J$10,,MATCH(AL$24,$K$8:$AV$8,0)),IF(AND(OR($F37="week 2",$F37="week 3",$F37="week 4"),Z$9="weekly",$G37="Sun"),OFFSET($J$10,,MATCH(AL$24,$K$8:$AV$8,0)),IF(AND($F37="week 3",Z$9="bi-weekly",$G37="Sun"),OFFSET($J$10,,MATCH(AL$24,$K$8:$AV$8,0)),AM35+1)))) -> 24.5 | AM37: =IF(Z$9="weekly",OFFSET($J$13,,MATCH(AL$24,$K$8:$AV$8,0))+AL37-1,IF(Z$9="bi-weekly",OFFSET($J$14,,MATCH(AL$24,$K$8:$AV$8,0))+AL37-1,IF(Z$9="Monthly",OFFSET($J$15,,MATCH(AL$24,$K$8:$AV$8,0))+AL37-1,0))) -> 26.71428571 | AN37: =IF(AA$9="none",0,IF(AND($F37="week 1",$G37="Sun"),OFFSET($J$10,,MATCH(AN$24,$K$8:$AV$8,0)),IF(AND(OR($F37="week 2",$F37="week 3",$F37="week 4"),AA$9="weekly",$G37="Sun"),OFFSET($J$10,,MATCH(AN$24,$K$8:$AV$8,0)),IF(AND($F37="week 3",AA$9="bi-weekly",$G37="Sun"),OFFSET($J$10,,MATCH(AN$24,$K$8:$AV$8,0)),AO35+1)))) -> 18.25 | AO37: =IF(AA$9="weekly",OFFSET($J$13,,MATCH(AN$24,$K$8:$AV$8,0))+AN37-1,IF(AA$9="bi-weekly",OFFSET($J$14,,MATCH(AN$24,$K$8:$AV$8,0))+AN37-1,IF(AA$9="Monthly",OFFSET($J$15,,MATCH(AN$24,$K$8:$AV$8,0))+AN37-1,0))) -> 19.57142857 | AP37: =IF(AB$9="none",0,IF(AND($F37="week 1",$G37="Sun"),OFFSET($J$10,,MATCH(AP$24,$K$8:$AV$8,0)),IF(AND(OR($F37="week 2",$F37="week 3",$F37="week 4"),AB$9="weekly",$G37="Sun"),OFFSET($J$10,,MATCH(AP$24,$K$8:$AV$8,0)),IF(AND($F37="week 3",AB$9="bi-weekly",$G37="Sun"),OFFSET($J$10,,MATCH(AP$24,$K$8:$AV$8,0)),AQ35+1)))) -> 14 | AQ37: =IF(AB$9="weekly",OFFSET($J$13,,MATCH(AP$24,$K$8:$AV$8,0))+AP37-1,IF(AB$9="bi-weekly",OFFSET($J$14,,MATCH(AP$24,$K$8:$AV$8,0))+AP37-1,IF(AB$9="Monthly",OFFSET($J$15,,MATCH(AP$24,$K$8:$AV$8,0))+AP37-1,0))) -> 14.71428571 | AR37: =IF(AC$9="none",0,IF(AND($F37="week 1",$G37="Sun"),OFFSET($J$10,,MATCH(AR$24,$K$8:$AV$8,0)),IF(AND(OR($F37="week 2",$F37="week 3",$F37="week 4"),AC$9="weekly",$G37="Sun"),OFFSET($J$10,,MATCH(AR$24,$K$8:$AV$8,0)),IF(AND($F37="week 3",AC$9="bi-weekly",$G37="Sun"),OFFSET($J$10,,MATCH(AR$24,$K$8:$AV$8,0)),AS35+1)))) -> 24.25 | AS37: =IF(AC$9="weekly",OFFSET($J$13,,MATCH(AR$24,$K$8:$AV$8,0))+AR37-1,IF(AC$9="bi-weekly",OFFSET($J$14,,MATCH(AR$24,$K$8:$AV$8,0))+AR37-1,IF(AC$9="Monthly",OFFSET($J$15,,MATCH(AR$24,$K$8:$AV$8,0))+AR37-1,0))) -> 26.42857143 | AT37: =IF(AD$9="none",0,IF(AND($F37="week 1",$G37="Sun"),OFFSET($J$10,,MATCH(AT$24,$K$8:$AV$8,0)),IF(AND(OR($F37="week 2",$F37="week 3",$F37="week 4"),AD$9="weekly",$G37="Sun"),OFFSET($J$10,,MATCH(AT$24,$K$8:$AV$8,0)),IF(AND($F37="week 3",AD$9="bi-weekly",$G37="Sun"),OFFSET($J$10,,MATCH(AT$24,$K$8:$AV$8,0)),AU35+1)))) -> 22.25 | AU37: =IF(AD$9="weekly",OFFSET($J$13,,MATCH(AT$24,$K$8:$AV$8,0))+AT37-1,IF(AD$9="bi-weekly",OFFSET($J$14,,MATCH(AT$24,$K$8:$AV$8,0))+AT37-1,IF(AD$9="Monthly",OFFSET($J$15,,MATCH(AT$24,$K$8:$AV$8,0))+AT37-1,0))) -> 24.14285714 | AV37: =IF(AE$9="none",0,IF(AND($F37="week 1",$G37="Sun"),OFFSET($J$10,,MATCH(AV$24,$K$8:$AV$8,0)),IF(AND(OR($F37="week 2",$F37="week 3",$F37="week 4"),AE$9="weekly",$G37="Sun"),OFFSET($J$10,,MATCH(AV$24,$K$8:$AV$8,0)),IF(AND($F37="week 3",AE$9="bi-weekly",$G37="Sun"),OFFSET($J$10,,MATCH(AV$24,$K$8:$AV$8,0)),AW35+1)))) -> 31.5 | AW37: =IF(AE$9="weekly",OFFSET($J$13,,MATCH(AV$24,$K$8:$AV$8,0))+AV37-1,IF(AE$9="bi-weekly",OFFSET($J$14,,MATCH(AV$24,$K$8:$AV$8,0))+AV37-1,IF(AE$9="Monthly",OFFSET($J$15,,MATCH(AV$24,$K$8:$AV$8,0))+AV37-1,0))) -> 34.71428571 | AX37: =IF(AF$9="none",0,IF(AND($F37="week 1",$G37="Sun"),OFFSET($J$10,,MATCH(AX$24,$K$8:$AV$8,0)),IF(AND(OR($F37="week 2",$F37="week 3",$F37="week 4"),AF$9="weekly",$G37="Sun"),OFFSET($J$10,,MATCH(AX$24,$K$8:$AV$8,0)),IF(AND($F37="week 3",AF$9="bi-weekly",$G37="Sun"),OFFSET($J$10,,MATCH(AX$24,$K$8:$AV$8,0)),AY35+1)))) -> 61 | AY37: =IF(AF$9="weekly",OFFSET($J$13,,MATCH(AX$24,$K$8:$AV$8,0))+AX37-1,IF(AF$9="bi-weekly",OFFSET($J$14,,MATCH(AX$24,$K$8:$AV$8,0))+AX37-1,IF(AF$9="Monthly",OFFSET($J$15,,MATCH(AX$24,$K$8:$AV$8,0))+AX37-1,0))) -> 68.42857143 | AZ37: =IF(AG$9="none",0,IF(AND($F37="week 1",$G37="Sun"),OFFSET($J$10,,MATCH(AZ$24,$K$8:$AV$8,0)),IF(AND(OR($F37="week 2",$F37="week 3",$F37="week 4"),AG$9="weekly",$G37="Sun"),OFFSET($J$10,,MATCH(AZ$24,$K$8:$AV$8,0)),IF(AND($F37="week 3",AG$9="bi-weekly",$G37="Sun"),OFFSET($J$10,,MATCH(AZ$24,$K$8:$AV$8,0)),BA35+1)))) -> 89.5 | BA37: =IF(AG$9="weekly",OFFSET($J$13,,MATCH(AZ$24,$K$8:$AV$8,0))+AZ37-1,IF(AG$9="bi-weekly",OFFSET($J$14,,MATCH(AZ$24,$K$8:$AV$8,0))+AZ37-1,IF(AG$9="Monthly",OFFSET($J$15,,MATCH(AZ$24,$K$8:$AV$8,0))+AZ37-1,0))) -> 101 | BB37: =IF(AH$9="none",0,IF(AND($F37="week 1",$G37="Sun"),OFFSET($J$10,,MATCH(BB$24,$K$8:$AV$8,0)),IF(AND(OR($F37="week 2",$F37="week 3",$F37="week 4"),AH$9="weekly",$G37="Sun"),OFFSET($J$10,,MATCH(BB$24,$K$8:$AV$8,0)),IF(AND($F37="week 3",AH$9="bi-weekly",$G37="Sun"),OFFSET($J$10,,MATCH(BB$24,$K$8:$AV$8,0)),BC35+1)))) -> 2 | BC37: =IF(AH$9="weekly",OFFSET($J$13,,MATCH(BB$24,$K$8:$AV$8,0))+BB37-1,IF(AH$9="bi-weekly",OFFSET($J$14,,MATCH(BB$24,$K$8:$AV$8,0))+BB37-1,IF(AH$9="Monthly",OFFSET($J$15,,MATCH(BB$24,$K$8:$AV$8,0))+BB37-1,0))) -> 17 | BD37: =IF(AI$9="none",0,IF(AND($F37="week 1",$G37="Sun"),OFFSET($J$10,,MATCH(BD$24,$K$8:$AV$8,0)),IF(AND(OR($F37="week 2",$F37="week 3",$F37="week 4"),AI$9="weekly",$G37="Sun"),OFFSET($J$10,,MATCH(BD$24,$K$8:$AV$8,0)),IF(AND($F37="week 3",AI$9="bi-weekly",$G37="Sun"),OFFSET($J$10,,MATCH(BD$24,$K$8:$AV$8,0)),BE35+1)))) -> 2 | BE37: =IF(AI$9="weekly",OFFSET($J$13,,MATCH(BD$24,$K$8:$AV$8,0))+BD37-1,IF(AI$9="bi-weekly",OFFSET($J$14,,MATCH(BD$24,$K$8:$AV$8,0))+BD37-1,IF(AI$9="Monthly",OFFSET($J$15,,MATCH(BD$24,$K$8:$AV$8,0))+BD37-1,0))) -> 4.285714286 | BF37: =IF(AJ$9="none",0,IF(AND($F37="week 1",$G37="Sun"),OFFSET($J$10,,MATCH(BF$24,$K$8:$AV$8,0)),IF(AND(OR($F37="week 2",$F37="week 3",$F37="week 4"),AJ$9="weekly",$G37="Sun"),OFFSET($J$10,,MATCH(BF$24,$K$8:$AV$8,0)),IF(AND($F37="week 3",AJ$9="bi-weekly",$G37="Sun"),OFFSET($J$10,,MATCH(BF$24,$K$8:$AV$8,0)),BG35+1)))) -> 2 | BG37: =IF(AJ$9="weekly",OFFSET($J$13,,MATCH(BF$24,$K$8:$AV$8,0))+BF37-1,IF(AJ$9="bi-weekly",OFFSET($J$14,,MATCH(BF$24,$K$8:$AV$8,0))+BF37-1,IF(AJ$9="Monthly",OFFSET($J$15,,MATCH(BF$24,$K$8:$AV$8,0))+BF37-1,0))) -> 7.857142857 | BH37: =IF(AK$9="none",0,IF(AND($F37="week 1",$G37="Sun"),OFFSET($J$10,,MATCH(BH$24,$K$8:$AV$8,0)),IF(AND(OR($F37="week 2",$F37="week 3",$F37="week 4"),AK$9="weekly",$G37="Sun"),OFFSET($J$10,,MATCH(BH$24,$K$8:$AV$8,0)),IF(AND($F37="week 3",AK$9="bi-weekly",$G37="Sun"),OFFSET($J$10,,MATCH(BH$24,$K$8:$AV$8,0)),BI35+1)))) -> 2 | BI37: =IF(AK$9="weekly",OFFSET($J$13,,MATCH(BH$24,$K$8:$AV$8,0))+BH37-1,IF(AK$9="bi-weekly",OFFSET($J$14,,MATCH(BH$24,$K$8:$AV$8,0))+BH37-1,IF(AK$9="Monthly",OFFSET($J$15,,MATCH(BH$24,$K$8:$AV$8,0))+BH37-1,0))) -> 11.71428571 | BJ37: =IF(AL$9="none",0,IF(AND($F37="week 1",$G37="Sun"),OFFSET($J$10,,MATCH(BJ$24,$K$8:$AV$8,0)),IF(AND(OR($F37="week 2",$F37="week 3",$F37="week 4"),AL$9="weekly",$G37="Sun"),OFFSET($J$10,,MATCH(BJ$24,$K$8:$AV$8,0)),IF(AND($F37="week 3",AL$9="bi-weekly",$G37="Sun"),OFFSET($J$10,,MATCH(BJ$24,$K$8:$AV$8,0)),BK35+1)))) -> 2 | BK37: =IF(AL$9="weekly",OFFSET($J$13,,MATCH(BJ$24,$K$8:$AV$8,0))+BJ37-1,IF(AL$9="bi-weekly",OFFSET($J$14,,MATCH(BJ$24,$K$8:$AV$8,0))+BJ37-1,IF(AL$9="Monthly",OFFSET($J$15,,MATCH(BJ$24,$K$8:$AV$8,0))+BJ37-1,0))) -> 2.857142857 | BL37: =IF(AM$9="none",0,IF(AND($F37="week 1",$G37="Sun"),OFFSET($J$10,,MATCH(BL$24,$K$8:$AV$8,0)),IF(AND(OR($F37="week 2",$F37="week 3",$F37="week 4"),AM$9="weekly",$G37="Sun"),OFFSET($J$10,,MATCH(BL$24,$K$8:$AV$8,0)),IF(AND($F37="week 3",AM$9="bi-weekly",$G37="Sun"),OFFSET($J$10,,MATCH(BL$24,$K$8:$AV$8,0)),BM35+1)))) -> 2 | BM37: =IF(AM$9="weekly",OFFSET($J$13,,MATCH(BL$24,$K$8:$AV$8,0))+BL37-1,IF(AM$9="bi-weekly",OFFSET($J$14,,MATCH(BL$24,$K$8:$AV$8,0))+BL37-1,IF(AM$9="Monthly",OFFSET($J$15,,MATCH(BL$24,$K$8:$AV$8,0))+BL37-1,0))) -> 18 | BN37: =IF(AN$9="none",0,IF(AND($F37="week 1",$G37="Sun"),OFFSET($J$10,,MATCH(BN$24,$K$8:$AV$8,0)),IF(AND(OR($F37="week 2",$F37="week 3",$F37="week 4"),AN$9="weekly",$G37="Sun"),OFFSET($J$10,,MATCH(BN$24,$K$8:$AV$8,0)),IF(AND($F37="week 3",AN$9="bi-weekly",$G37="Sun"),OFFSET($J$10,,MATCH(BN$24,$K$8:$AV$8,0)),BO35+1)))) -> 2 | BO37: =IF(AN$9="weekly",OFFSET($J$13,,MATCH(BN$24,$K$8:$AV$8,0))+BN37-1,IF(AN$9="bi-weekly",OFFSET($J$14,,MATCH(BN$24,$K$8:$AV$8,0))+BN37-1,IF(AN$9="Monthly",OFFSET($J$15,,MATCH(BN$24,$K$8:$AV$8,0))+BN37-1,0))) -> 16.57142857 | BP37: =IF(AO$9="none",0,IF(AND($F37="week 1",$G37="Sun"),OFFSET($J$10,,MATCH(BP$24,$K$8:$AV$8,0)),IF(AND(OR($F37="week 2",$F37="week 3",$F37="week 4"),AO$9="weekly",$G37="Sun"),OFFSET($J$10,,MATCH(BP$24,$K$8:$AV$8,0)),IF(AND($F37="week 3",AO$9="bi-weekly",$G37="Sun"),OFFSET($J$10,,MATCH(BP$24,$K$8:$AV$8,0)),BQ35+1)))) -> 0 | BQ37: =IF(AO$9="weekly",OFFSET($J$13,,MATCH(BP$24,$K$8:$AV$8,0))+BP37-1,IF(AO$9="bi-weekly",OFFSET($J$14,,MATCH(BP$24,$K$8:$AV$8,0))+BP37-1,IF(AO$9="Monthly",OFFSET($J$15,,MATCH(BP$24,$K$8:$AV$8,0))+BP37-1,0))) -> 0 | BR37: =IF(AP$9="none",0,IF(AND($F37="week 1",$G37="Sun"),OFFSET($J$10,,MATCH(BR$24,$K$8:$AV$8,0)),IF(AND(OR($F37="week 2",$F37="week 3",$F37="week 4"),AP$9="weekly",$G37="Sun"),OFFSET($J$10,,MATCH(BR$24,$K$8:$AV$8,0)),IF(AND($F37="week 3",AP$9="bi-weekly",$G37="Sun"),OFFSET($J$10,,MATCH(BR$24,$K$8:$AV$8,0)),BS35+1)))) -> 0 | BS37: =IF(AP$9="weekly",OFFSET($J$13,,MATCH(BR$24,$K$8:$AV$8,0))+BR37-1,IF(AP$9="bi-weekly",OFFSET($J$14,,MATCH(BR$24,$K$8:$AV$8,0))+BR37-1,IF(AP$9="Monthly",OFFSET($J$15,,MATCH(BR$24,$K$8:$AV$8,0))+BR37-1,0))) -> 0 | BT37: =IF(AQ$9="none",0,IF(AND($F37="week 1",$G37="Sun"),OFFSET($J$10,,MATCH(BT$24,$K$8:$AV$8,0)),IF(AND(OR($F37="week 2",$F37="week 3",$F37="week 4"),AQ$9="weekly",$G37="Sun"),OFFSET($J$10,,MATCH(BT$24,$K$8:$AV$8,0)),IF(AND($F37="week 3",AQ$9="bi-weekly",$G37="Sun"),OFFSET($J$10,,MATCH(BT$24,$K$8:$AV$8,0)),BU35+1)))) -> 0 | BU37: =IF(AQ$9="weekly",OFFSET($J$13,,MATCH(BT$24,$K$8:$AV$8,0))+BT37-1,IF(AQ$9="bi-weekly",OFFSET($J$14,,MATCH(BT$24,$K$8:$AV$8,0))+BT37-1,IF(AQ$9="Monthly",OFFSET($J$15,,MATCH(BT$24,$K$8:$AV$8,0))+BT37-1,0))) -> 0 | BV37: =IF(AR$9="none",0,IF(AND($F37="week 1",$G37="Sun"),OFFSET($J$10,,MATCH(BV$24,$K$8:$AV$8,0)),IF(AND(OR($F37="week 2",$F37="week 3",$F37="week 4"),AR$9="weekly",$G37="Sun"),OFFSET($J$10,,MATCH(BV$24,$K$8:$AV$8,0)),IF(AND($F37="week 3",AR$9="bi-weekly",$G37="Sun"),OFFSET($J$10,,MATCH(BV$24,$K$8:$AV$8,0)),BW35+1)))) -> 0 | BW37: =IF(AR$9="weekly",OFFSET($J$13,,MATCH(BV$24,$K$8:$AV$8,0))+BV37-1,IF(AR$9="bi-weekly",OFFSET($J$14,,MATCH(BV$24,$K$8:$AV$8,0))+BV37-1,IF(AR$9="Monthly",OFFSET($J$15,,MATCH(BV$24,$K$8:$AV$8,0))+BV37-1,0))) -> 0 | BX37: =IF(AS$9="none",0,IF(AND($F37="week 1",$G37="Sun"),OFFSET($J$10,,MATCH(BX$24,$K$8:$AV$8,0)),IF(AND(OR($F37="week 2",$F37="week 3",$F37="week 4"),AS$9="weekly",$G37="Sun"),OFFSET($J$10,,MATCH(BX$24,$K$8:$AV$8,0)),IF(AND($F37="week 3",AS$9="bi-weekly",$G37="Sun"),OFFSET($J$10,,MATCH(BX$24,$K$8:$AV$8,0)),BY35+1)))) -> 0 | BY37: =IF(AS$9="weekly",OFFSET($J$13,,MATCH(BX$24,$K$8:$AV$8,0))+BX37-1,IF(AS$9="bi-weekly",OFFSET($J$14,,MATCH(BX$24,$K$8:$AV$8,0))+BX37-1,IF(AS$9="Monthly",OFFSET($J$15,,MATCH(BX$24,$K$8:$AV$8,0))+BX37-1,0))) -> 0 | BZ37: =IF(AT$9="none",0,IF(AND($F37="week 1",$G37="Sun"),OFFSET($J$10,,MATCH(BZ$24,$K$8:$AV$8,0)),IF(AND(OR($F37="week 2",$F37="week 3",$F37="week 4"),AT$9="weekly",$G37="Sun"),OFFSET($J$10,,MATCH(BZ$24,$K$8:$AV$8,0)),IF(AND($F37="week 3",AT$9="bi-weekly",$G37="Sun"),OFFSET($J$10,,MATCH(BZ$24,$K$8:$AV$8,0)),CA35+1)))) -> 0 | CA37: =IF(AT$9="weekly",OFFSET($J$13,,MATCH(BZ$24,$K$8:$AV$8,0))+BZ37-1,IF(AT$9="bi-weekly",OFFSET($J$14,,MATCH(BZ$24,$K$8:$AV$8,0))+BZ37-1,IF(AT$9="Monthly",OFFSET($J$15,,MATCH(BZ$24,$K$8:$AV$8,0))+BZ37-1,0))) -> 0 | CB37: =IF(AU$9="none",0,IF(AND($F37="week 1",$G37="Sun"),OFFSET($J$10,,MATCH(CB$24,$K$8:$AV$8,0)),IF(AND(OR($F37="week 2",$F37="week 3",$F37="week 4"),AU$9="weekly",$G37="Sun"),OFFSET($J$10,,MATCH(CB$24,$K$8:$AV$8,0)),IF(AND($F37="week 3",AU$9="bi-weekly",$G37="Sun"),OFFSET($J$10,,MATCH(CB$24,$K$8:$AV$8,0)),CC35+1)))) -> 0 | CC37: =IF(AU$9="weekly",OFFSET($J$13,,MATCH(CB$24,$K$8:$AV$8,0))+CB37-1,IF(AU$9="bi-weekly",OFFSET($J$14,,MATCH(CB$24,$K$8:$AV$8,0))+CB37-1,IF(AU$9="Monthly",OFFSET($J$15,,MATCH(CB$24,$K$8:$AV$8,0))+CB37-1,0))) -> 0 | CD37: =(ROUND(I37,0)-ROUND(H37,0))+(ROUND(K37,0)-ROUND(J37,0))+(ROUND(M37,0)-ROUND(L37,0))+(ROUND(O37,0)-ROUND(N37,0))+(ROUND(Q37,0)-ROUND(P37,0))+(ROUND(S37,0)-ROUND(R37,0))+(ROUND(U37,0)-ROUND(T37,0)+(ROUND(W37,0)-ROUND(V37,0))+(ROUND(Y37,0)-ROUND(X37,0))+(ROUND(AA37,0)-ROUND(Z37,0))+(ROUND(AC37,0)-ROUND(AB37,0))+(ROUND(AE37,0)-ROUND(AD37,0))+(ROUND(AG37,0)-ROUND(AF37,0))+(ROUND(AI37,0)-ROUND(AH37,0))+(ROUND(AK37,0)-ROUND(AJ37,0))+(ROUND(AM37,0)-ROUND(AL37,0))+(ROUND(AO37,0)-ROUND(AN37,0))+(ROUND(AQ37,0)-ROUND(AP37,0))+(ROUND(AS37,0)-ROUND(AR37,0))+(ROUND(AU37,0)-ROUND(AT37,0))+(ROUND(AW37,0)-ROUND(AV37,0))+(ROUND(AY37,0)-ROUND(AX37,0))+(ROUND(BA37,0)-ROUND(AZ37,0))+(ROUND(BC37,0)-ROUND(BB37,0))+(ROUND(BE37,0)-ROUND(BD37,0))+(ROUND(BG37,0)-ROUND(BF37,0))+(ROUND(BI37,0)-ROUND(BH37,0))+(ROUND(BK37,0)-ROUND(BJ37,0))+(ROUND(BM37,0)-ROUND(BL37,0))+(ROUND(BO37,0)-ROUND(BN37,0))+(ROUND(BQ37,0)-ROUND(BP37,0))+(ROUND(BS37,0)-ROUND(BR37,0))+(ROUND(BU37,0)-ROUND(BT37,0))+(ROUND(BW37,0)-ROUND(BV37,0))+(ROUND(BY37,0)-ROUND(BX37,0))+(ROUND(CA37,0)-ROUND(BZ37,0))+(ROUND(CC37,0)-ROUND(CB37,0))+(COUNTIF($H37:$CC37,">"&0)/2)) -> 146
F38: WEEK 2 | G38: MON | H38: =IF(K$9="none",0,IF(AND($F38="week 1",$G38="Sun"),OFFSET($J$10,,MATCH(H$24,$K$8:$AV$8,0)),IF(AND(OR($F38="week 2",$F38="week 3",$F38="week 4"),K$9="weekly",$G38="Sun"),OFFSET($J$10,,MATCH(H$24,$K$8:$AV$8,0)),IF(AND($F38="week 3",K$9="bi-weekly",$G38="Sun"),OFFSET($J$10,,MATCH(H$24,$K$8:$AV$8,0)),I37+1)))) -> 20 | I38: 21.25 | J38: =IF(L$9="none",0,IF(AND($F38="week 1",$G38="Sun"),OFFSET($J$10,,MATCH(J$24,$K$8:$AV$8,0)),IF(AND(OR($F38="week 2",$F38="week 3",$F38="week 4"),L$9="weekly",$G38="Sun"),OFFSET($J$10,,MATCH(J$24,$K$8:$AV$8,0)),IF(AND($F38="week 3",L$9="bi-weekly",$G38="Sun"),OFFSET($J$10,,MATCH(J$24,$K$8:$AV$8,0)),K37+1)))) -> 46.57142857 | K38: 51.14285714 | L38: =IF(M$9="none",0,IF(AND($F38="week 1",$G38="Sun"),OFFSET($J$10,,MATCH(L$24,$K$8:$AV$8,0)),IF(AND(OR($F38="week 2",$F38="week 3",$F38="week 4"),M$9="weekly",$G38="Sun"),OFFSET($J$10,,MATCH(L$24,$K$8:$AV$8,0)),IF(AND($F38="week 3",M$9="bi-weekly",$G38="Sun"),OFFSET($J$10,,MATCH(L$24,$K$8:$AV$8,0)),M37+1)))) -> 31.71428571 | M38: 34.42857143 | N38: =IF(N$9="none",0,IF(AND($F38="week 1",$G38="Sun"),OFFSET($J$10,,MATCH(N$24,$K$8:$AV$8,0)),IF(AND(OR($F38="week 2",$F38="week 3",$F38="week 4"),N$9="weekly",$G38="Sun"),OFFSET($J$10,,MATCH(N$24,$K$8:$AV$8,0)),IF(AND($F38="week 3",N$9="bi-weekly",$G38="Sun"),OFFSET($J$10,,MATCH(N$24,$K$8:$AV$8,0)),O37+1)))) -> 36.28571429 | O38: 39.57142857 | P38: =IF(O$9="none",0,IF(AND($F38="week 1",$G38="Sun"),OFFSET($J$10,,MATCH(P$24,$K$8:$AV$8,0)),IF(AND(OR($F38="week 2",$F38="week 3",$F38="week 4"),O$9="weekly",$G38="Sun"),OFFSET($J$10,,MATCH(P$24,$K$8:$AV$8,0)),IF(AND($F38="week 3",O$9="bi-weekly",$G38="Sun"),OFFSET($J$10,,MATCH(P$24,$K$8:$AV$8,0)),Q37+1)))) -> 8 | Q38: 7.75 | R38: =IF(P$9="none",0,IF(AND($F38="week 1",$G38="Sun"),OFFSET($J$10,,MATCH(R$24,$K$8:$AV$8,0)),IF(AND(OR($F38="week 2",$F38="week 3",$F38="week 4"),P$9="weekly",$G38="Sun"),OFFSET($J$10,,MATCH(R$24,$K$8:$AV$8,0)),IF(AND($F38="week 3",P$9="bi-weekly",$G38="Sun"),OFFSET($J$10,,MATCH(R$24,$K$8:$AV$8,0)),S37+1)))) -> 26.85714286 | S38: 28.96428571 | T38: =IF(Q$9="none",0,IF(AND($F38="week 1",$G38="Sun"),OFFSET($J$10,,MATCH(T$24,$K$8:$AV$8,0)),IF(AND(OR($F38="week 2",$F38="week 3",$F38="week 4"),Q$9="weekly",$G38="Sun"),OFFSET($J$10,,MATCH(T$24,$K$8:$AV$8,0)),IF(AND($F38="week 3",Q$9="bi-weekly",$G38="Sun"),OFFSET($J$10,,MATCH(T$24,$K$8:$AV$8,0)),U37+1)))) -> 17.71428571 | U38: 18.67857143 | V38: =IF(R$9="none",0,IF(AND($F38="week 1",$G38="Sun"),OFFSET($J$10,,MATCH(V$24,$K$8:$AV$8,0)),IF(AND(OR($F38="week 2",$F38="week 3",$F38="week 4"),R$9="weekly",$G38="Sun"),OFFSET($J$10,,MATCH(V$24,$K$8:$AV$8,0)),IF(AND($F38="week 3",R$9="bi-weekly",$G38="Sun"),OFFSET($J$10,,MATCH(V$24,$K$8:$AV$8,0)),W37+1)))) -> 13.14285714 | W38: 13.53571429 | X38: =IF(S$9="none",0,IF(AND($F38="week 1",$G38="Sun"),OFFSET($J$10,,MATCH(X$24,$K$8:$AV$8,0)),IF(AND(OR($F38="week 2",$F38="week 3",$F38="week 4"),S$9="weekly",$G38="Sun"),OFFSET($J$10,,MATCH(X$24,$K$8:$AV$8,0)),IF(AND($F38="week 3",S$9="bi-weekly",$G38="Sun"),OFFSET($J$10,,MATCH(X$24,$K$8:$AV$8,0)),Y37+1)))) -> 11.71428571 | Y38: 11.92857143 | Z38: =IF(T$9="none",0,IF(AND($F38="week 1",$G38="Sun"),OFFSET($J$10,,MATCH(Z$24,$K$8:$AV$8,0)),IF(AND(OR($F38="week 2",$F38="week 3",$F38="week 4"),T$9="weekly",$G38="Sun"),OFFSET($J$10,,MATCH(Z$24,$K$8:$AV$8,0)),IF(AND($F38="week 3",T$9="bi-weekly",$G38="Sun"),OFFSET($J$10,,MATCH(Z$24,$K$8:$AV$8,0)),AA37+1)))) -> 10.57142857 | AA38: 10.64285714 | AB38: =IF(U$9="none",0,IF(AND($F38="week 1",$G38="Sun"),OFFSET($J$10,,MATCH(AB$24,$K$8:$AV$8,0)),IF(AND(OR($F38="week 2",$F38="week 3",$F38="week 4"),U$9="weekly",$G38="Sun"),OFFSET($J$10,,MATCH(AB$24,$K$8:$AV$8,0)),IF(AND($F38="week 3",U$9="bi-weekly",$G38="Sun"),OFFSET($J$10,,MATCH(AB$24,$K$8:$AV$8,0)),AC37+1)))) -> 10.85714286 | AC38: 10.96428571 | AD38: =IF(V$9="none",0,IF(AND($F38="week 1",$G38="Sun"),OFFSET($J$10,,MATCH(AD$24,$K$8:$AV$8,0)),IF(AND(OR($F38="week 2",$F38="week 3",$F38="week 4"),V$9="weekly",$G38="Sun"),OFFSET($J$10,,MATCH(AD$24,$K$8:$AV$8,0)),IF(AND($F38="week 3",V$9="bi-weekly",$G38="Sun"),OFFSET($J$10,,MATCH(AD$24,$K$8:$AV$8,0)),AE37+1)))) -> 10 | AE38: 10 | AF38: =IF(W$9="none",0,IF(AND($F38="week 1",$G38="Sun"),OFFSET($J$10,,MATCH(AF$24,$K$8:$AV$8,0)),IF(AND(OR($F38="week 2",$F38="week 3",$F38="week 4"),W$9="weekly",$G38="Sun"),OFFSET($J$10,,MATCH(AF$24,$K$8:$AV$8,0)),IF(AND($F38="week 3",W$9="bi-weekly",$G38="Sun"),OFFSET($J$10,,MATCH(AF$24,$K$8:$AV$8,0)),AG37+1)))) -> 9.428571429 | AG38: 9.357142857 | AH38: =IF(X$9="none",0,IF(AND($F38="week 1",$G38="Sun"),OFFSET($J$10,,MATCH(AH$24,$K$8:$AV$8,0)),IF(AND(OR($F38="week 2",$F38="week 3",$F38="week 4"),X$9="weekly",$G38="Sun"),OFFSET($J$10,,MATCH(AH$24,$K$8:$AV$8,0)),IF(AND($F38="week 3",X$9="bi-weekly",$G38="Sun"),OFFSET($J$10,,MATCH(AH$24,$K$8:$AV$8,0)),AI37+1)))) -> 36.57142857 | AI38: 39.89285714 | AJ38: =IF(Y$9="none",0,IF(AND($F38="week 1",$G38="Sun"),OFFSET($J$10,,MATCH(AJ$24,$K$8:$AV$8,0)),IF(AND(OR($F38="week 2",$F38="week 3",$F38="week 4"),Y$9="weekly",$G38="Sun"),OFFSET($J$10,,MATCH(AJ$24,$K$8:$AV$8,0)),IF(AND($F38="week 3",Y$9="bi-weekly",$G38="Sun"),OFFSET($J$10,,MATCH(AJ$24,$K$8:$AV$8,0)),AK37+1)))) -> 33.71428571 | AK38: 36.67857143 | AL38: =IF(Z$9="none",0,IF(AND($F38="week 1",$G38="Sun"),OFFSET($J$10,,MATCH(AL$24,$K$8:$AV$8,0)),IF(AND(OR($F38="week 2",$F38="week 3",$F38="week 4"),Z$9="weekly",$G38="Sun"),OFFSET($J$10,,MATCH(AL$24,$K$8:$AV$8,0)),IF(AND($F38="week 3",Z$9="bi-weekly",$G38="Sun"),OFFSET($J$10,,MATCH(AL$24,$K$8:$AV$8,0)),AM37+1)))) -> 27.71428571 | AM38: 29.92857143 | AN38: =IF(AA$9="none",0,IF(AND($F38="week 1",$G38="Sun"),OFFSET($J$10,,MATCH(AN$24,$K$8:$AV$8,0)),IF(AND(OR($F38="week 2",$F38="week 3",$F38="week 4"),AA$9="weekly",$G38="Sun"),OFFSET($J$10,,MATCH(AN$24,$K$8:$AV$8,0)),IF(AND($F38="week 3",AA$9="bi-weekly",$G38="Sun"),OFFSET($J$10,,MATCH(AN$24,$K$8:$AV$8,0)),AO37+1)))) -> 20.57142857 | AO38: 21.89285714 | AP38: =IF(AB$9="none",0,IF(AND($F38="week 1",$G38="Sun"),OFFSET($J$10,,MATCH(AP$24,$K$8:$AV$8,0)),IF(AND(OR($F38="week 2",$F38="week 3",$F38="week 4"),AB$9="weekly",$G38="Sun"),OFFSET($J$10,,MATCH(AP$24,$K$8:$AV$8,0)),IF(AND($F38="week 3",AB$9="bi-weekly",$G38="Sun"),OFFSET($J$10,,MATCH(AP$24,$K$8:$AV$8,0)),AQ37+1)))) -> 15.71428571 | AQ38: =IF(AB$9="weekly",OFFSET($J$13,,MATCH(AP$24,$K$8:$AV$8,0))+AP38-1,IF(AB$9="bi-weekly",OFFSET($J$14,,MATCH(AP$24,$K$8:$AV$8,0))+AP38-1,IF(AB$9="Monthly",OFFSET($J$15,,MATCH(AP$24,$K$8:$AV$8,0))+AP38-1,0))) -> 16.42857143 | AR38: =IF(AC$9="none",0,IF(AND($F38="week 1",$G38="Sun"),OFFSET($J$10,,MATCH(AR$24,$K$8:$AV$8,0)),IF(AND(OR($F38="week 2",$F38="week 3",$F38="week 4"),AC$9="weekly",$G38="Sun"),OFFSET($J$10,,MATCH(AR$24,$K$8:$AV$8,0)),IF(AND($F38="week 3",AC$9="bi-weekly",$G38="Sun"),OFFSET($J$10,,MATCH(AR$24,$K$8:$AV$8,0)),AS37+1)))) -> 27.42857143 | AS38: 29.60714286 | AT38: =IF(AD$9="none",0,IF(AND($F38="week 1",$G38="Sun"),OFFSET($J$10,,MATCH(AT$24,$K$8:$AV$8,0)),IF(AND(OR($F38="week 2",$F38="week 3",$F38="week 4"),AD$9="weekly",$G38="Sun"),OFFSET($J$10,,MATCH(AT$24,$K$8:$AV$8,0)),IF(AND($F38="week 3",AD$9="bi-weekly",$G38="Sun"),OFFSET($J$10,,MATCH(AT$24,$K$8:$AV$8,0)),AU37+1)))) -> 25.14285714 | AU38: 27.03571429 | AV38: =IF(AE$9="none",0,IF(AND($F38="week 1",$G38="Sun"),OFFSET($J$10,,MATCH(AV$24,$K$8:$AV$8,0)),IF(AND(OR($F38="week 2",$F38="week 3",$F38="week 4"),AE$9="weekly",$G38="Sun"),OFFSET($J$10,,MATCH(AV$24,$K$8:$AV$8,0)),IF(AND($F38="week 3",AE$9="bi-weekly",$G38="Sun"),OFFSET($J$10,,MATCH(AV$24,$K$8:$AV$8,0)),AW37+1)))) -> 35.71428571 | AW38: 38.92857143 | AX38: =IF(AF$9="none",0,IF(AND($F38="week 1",$G38="Sun"),OFFSET($J$10,,MATCH(AX$24,$K$8:$AV$8,0)),IF(AND(OR($F38="week 2",$F38="week 3",$F38="week 4"),AF$9="weekly",$G38="Sun"),OFFSET($J$10,,MATCH(AX$24,$K$8:$AV$8,0)),IF(AND($F38="week 3",AF$9="bi-weekly",$G38="Sun"),OFFSET($J$10,,MATCH(AX$24,$K$8:$AV$8,0)),AY37+1)))) -> 69.42857143 | AY38: 76.85714286 | AZ38: =IF(AG$9="none",0,IF(AND($F38="week 1",$G38="Sun"),OFFSET($J$10,,MATCH(AZ$24,$K$8:$AV$8,0)),IF(AND(OR($F38="week 2",$F38="week 3",$F38="week 4"),AG$9="weekly",$G38="Sun"),OFFSET($J$10,,MATCH(AZ$24,$K$8:$AV$8,0)),IF(AND($F38="week 3",AG$9="bi-weekly",$G38="Sun"),OFFSET($J$10,,MATCH(AZ$24,$K$8:$AV$8,0)),BA37+1)))) -> 102 | BA38: 113.5 | BB38: =IF(AH$9="none",0,IF(AND($F38="week 1",$G38="Sun"),OFFSET($J$10,,MATCH(BB$24,$K$8:$AV$8,0)),IF(AND(OR($F38="week 2",$F38="week 3",$F38="week 4"),AH$9="weekly",$G38="Sun"),OFFSET($J$10,,MATCH(BB$24,$K$8:$AV$8,0)),IF(AND($F38="week 3",AH$9="bi-weekly",$G38="Sun"),OFFSET($J$10,,MATCH(BB$24,$K$8:$AV$8,0)),BC37+1)))) -> 18 | BC38: 33 | BD38: =IF(AI$9="none",0,IF(AND($F38="week 1",$G38="Sun"),OFFSET($J$10,,MATCH(BD$24,$K$8:$AV$8,0)),IF(AND(OR($F38="week 2",$F38="week 3",$F38="week 4"),AI$9="weekly",$G38="Sun"),OFFSET($J$10,,MATCH(BD$24,$K$8:$AV$8,0)),IF(AND($F38="week 3",AI$9="bi-weekly",$G38="Sun"),OFFSET($J$10,,MATCH(BD$24,$K$8:$AV$8,0)),BE37+1)))) -> 5.285714286 | BE38: 7.571428571 | BF38: =IF(AJ$9="none",0,IF(AND($F38="week 1",$G38="Sun"),OFFSET($J$10,,MATCH(BF$24,$K$8:$AV$8,0)),IF(AND(OR($F38="week 2",$F38="week 3",$F38="week 4"),AJ$9="weekly",$G38="Sun"),OFFSET($J$10,,MATCH(BF$24,$K$8:$AV$8,0)),IF(AND($F38="week 3",AJ$9="bi-weekly",$G38="Sun"),OFFSET($J$10,,MATCH(BF$24,$K$8:$AV$8,0)),BG37+1)))) -> 8.857142857 | BG38: 14.71428571 | BH38: =IF(AK$9="none",0,IF(AND($F38="week 1",$G38="Sun"),OFFSET($J$10,,MATCH(BH$24,$K$8:$AV$8,0)),IF(AND(OR($F38="week 2",$F38="week 3",$F38="week 4"),AK$9="weekly",$G38="Sun"),OFFSET($J$10,,MATCH(BH$24,$K$8:$AV$8,0)),IF(AND($F38="week 3",AK$9="bi-weekly",$G38="Sun"),OFFSET($J$10,,MATCH(BH$24,$K$8:$AV$8,0)),BI37+1)))) -> 12.71428571 | BI38: 22.42857143 | BJ38: =IF(AL$9="none",0,IF(AND($F38="week 1",$G38="Sun"),OFFSET($J$10,,MATCH(BJ$24,$K$8:$AV$8,0)),IF(AND(OR($F38="week 2",$F38="week 3",$F38="week 4"),AL$9="weekly",$G38="Sun"),OFFSET($J$10,,MATCH(BJ$24,$K$8:$AV$8,0)),IF(AND($F38="week 3",AL$9="bi-weekly",$G38="Sun"),OFFSET($J$10,,MATCH(BJ$24,$K$8:$AV$8,0)),BK37+1)))) -> 3.857142857 | BK38: =IF(AL$9="weekly",OFFSET($J$13,,MATCH(BJ$24,$K$8:$AV$8,0))+BJ38-1,IF(AL$9="bi-weekly",OFFSET($J$14,,MATCH(BJ$24,$K$8:$AV$8,0))+BJ38-1,IF(AL$9="Monthly",OFFSET($J$15,,MATCH(BJ$24,$K$8:$AV$8,0))+BJ38-1,0))) -> 4.714285714 | BL38: =IF(AM$9="none",0,IF(AND($F38="week 1",$G38="Sun"),OFFSET($J$10,,MATCH(BL$24,$K$8:$AV$8,0)),IF(AND(OR($F38="week 2",$F38="week 3",$F38="week 4"),AM$9="weekly",$G38="Sun"),OFFSET($J$10,,MATCH(BL$24,$K$8:$AV$8,0)),IF(AND($F38="week 3",AM$9="bi-weekly",$G38="Sun"),OFFSET($J$10,,MATCH(BL$24,$K$8:$AV$8,0)),BM37+1)))) -> 19 | BM38: =IF(AM$9="weekly",OFFSET($J$13,,MATCH(BL$24,$K$8:$AV$8,0))+BL38-1,IF(AM$9="bi-weekly",OFFSET($J$14,,MATCH(BL$24,$K$8:$AV$8,0))+BL38-1,IF(AM$9="Monthly",OFFSET($J$15,,MATCH(BL$24,$K$8:$AV$8,0))+BL38-1,0))) -> 35 | BN38: =IF(AN$9="none",0,IF(AND($F38="week 1",$G38="Sun"),OFFSET($J$10,,MATCH(BN$24,$K$8:$AV$8,0)),IF(AND(OR($F38="week 2",$F38="week 3",$F38="week 4"),AN$9="weekly",$G38="Sun"),OFFSET($J$10,,MATCH(BN$24,$K$8:$AV$8,0)),IF(AND($F38="week 3",AN$9="bi-weekly",$G38="Sun"),OFFSET($J$10,,MATCH(BN$24,$K$8:$AV$8,0)),BO37+1)))) -> 17.57142857 | BO38: =IF(AN$9="weekly",OFFSET($J$13,,MATCH(BN$24,$K$8:$AV$8,0))+BN38-1,IF(AN$9="bi-weekly",OFFSET($J$14,,MATCH(BN$24,$K$8:$AV$8,0))+BN38-1,IF(AN$9="Monthly",OFFSET($J$15,,MATCH(BN$24,$K$8:$AV$8,0))+BN38-1,0))) -> 32.14285714 | BP38: =IF(AO$9="none",0,IF(AND($F38="week 1",$G38="Sun"),OFFSET($J$10,,MATCH(BP$24,$K$8:$AV$8,0)),IF(AND(OR($F38="week 2",$F38="week 3",$F38="week 4"),AO$9="weekly",$G38="Sun"),OFFSET($J$10,,MATCH(BP$24,$K$8:$AV$8,0)),IF(AND($F38="week 3",AO$9="bi-weekly",$G38="Sun"),OFFSET($J$10,,MATCH(BP$24,$K$8:$AV$8,0)),BQ37+1)))) -> 0 | BQ38: =IF(AO$9="weekly",OFFSET($J$13,,MATCH(BP$24,$K$8:$AV$8,0))+BP38-1,IF(AO$9="bi-weekly",OFFSET($J$14,,MATCH(BP$24,$K$8:$AV$8,0))+BP38-1,IF(AO$9="Monthly",OFFSET($J$15,,MATCH(BP$24,$K$8:$AV$8,0))+BP38-1,0))) -> 0 | BR38: =IF(AP$9="none",0,IF(AND($F38="week 1",$G38="Sun"),OFFSET($J$10,,MATCH(BR$24,$K$8:$AV$8,0)),IF(AND(OR($F38="week 2",$F38="week 3",$F38="week 4"),AP$9="weekly",$G38="Sun"),OFFSET($J$10,,MATCH(BR$24,$K$8:$AV$8,0)),IF(AND($F38="week 3",AP$9="bi-weekly",$G38="Sun"),OFFSET($J$10,,MATCH(BR$24,$K$8:$AV$8,0)),BS37+1)))) -> 0 | BS38: 0 | BT38: =IF(AQ$9="none",0,IF(AND($F38="week 1",$G38="Sun"),OFFSET($J$10,,MATCH(BT$24,$K$8:$AV$8,0)),IF(AND(OR($F38="week 2",$F38="week 3",$F38="week 4"),AQ$9="weekly",$G38="Sun"),OFFSET($J$10,,MATCH(BT$24,$K$8:$AV$8,0)),IF(AND($F38="week 3",AQ$9="bi-weekly",$G38="Sun"),OFFSET($J$10,,MATCH(BT$24,$K$8:$AV$8,0)),BU37+1)))) -> 0 | BU38: =IF(AQ$9="weekly",OFFSET($J$13,,MATCH(BT$24,$K$8:$AV$8,0))+BT38-1,IF(AQ$9="bi-weekly",OFFSET($J$14,,MATCH(BT$24,$K$8:$AV$8,0))+BT38-1,IF(AQ$9="Monthly",OFFSET($J$15,,MATCH(BT$24,$K$8:$AV$8,0))+BT38-1,0))) -> 0 | BV38: =IF(AR$9="none",0,IF(AND($F38="week 1",$G38="Sun"),OFFSET($J$10,,MATCH(BV$24,$K$8:$AV$8,0)),IF(AND(OR($F38="week 2",$F38="week 3",$F38="week 4"),AR$9="weekly",$G38="Sun"),OFFSET($J$10,,MATCH(BV$24,$K$8:$AV$8,0)),IF(AND($F38="week 3",AR$9="bi-weekly",$G38="Sun"),OFFSET($J$10,,MATCH(BV$24,$K$8:$AV$8,0)),BW37+1)))) -> 0 | BW38: =IF(AR$9="weekly",OFFSET($J$13,,MATCH(BV$24,$K$8:$AV$8,0))+BV38-1,IF(AR$9="bi-weekly",OFFSET($J$14,,MATCH(BV$24,$K$8:$AV$8,0))+BV38-1,IF(AR$9="Monthly",OFFSET($J$15,,MATCH(BV$24,$K$8:$AV$8,0))+BV38-1,0))) -> 0 | BX38: =IF(AS$9="none",0,IF(AND($F38="week 1",$G38="Sun"),OFFSET($J$10,,MATCH(BX$24,$K$8:$AV$8,0)),IF(AND(OR($F38="week 2",$F38="week 3",$F38="week 4"),AS$9="weekly",$G38="Sun"),OFFSET($J$10,,MATCH(BX$24,$K$8:$AV$8,0)),IF(AND($F38="week 3",AS$9="bi-weekly",$G38="Sun"),OFFSET($J$10,,MATCH(BX$24,$K$8:$AV$8,0)),BY37+1)))) -> 0 | BY38: =IF(AS$9="weekly",OFFSET($J$13,,MATCH(BX$24,$K$8:$AV$8,0))+BX38-1,IF(AS$9="bi-weekly",OFFSET($J$14,,MATCH(BX$24,$K$8:$AV$8,0))+BX38-1,IF(AS$9="Monthly",OFFSET($J$15,,MATCH(BX$24,$K$8:$AV$8,0))+BX38-1,0))) -> 0 | BZ38: =IF(AT$9="none",0,IF(AND($F38="week 1",$G38="Sun"),OFFSET($J$10,,MATCH(BZ$24,$K$8:$AV$8,0)),IF(AND(OR($F38="week 2",$F38="week 3",$F38="week 4"),AT$9="weekly",$G38="Sun"),OFFSET($J$10,,MATCH(BZ$24,$K$8:$AV$8,0)),IF(AND($F38="week 3",AT$9="bi-weekly",$G38="Sun"),OFFSET($J$10,,MATCH(BZ$24,$K$8:$AV$8,0)),CA37+1)))) -> 0 | CA38: =IF(AT$9="weekly",OFFSET($J$13,,MATCH(BZ$24,$K$8:$AV$8,0))+BZ38-1,IF(AT$9="bi-weekly",OFFSET($J$14,,MATCH(BZ$24,$K$8:$AV$8,0))+BZ38-1,IF(AT$9="Monthly",OFFSET($J$15,,MATCH(BZ$24,$K$8:$AV$8,0))+BZ38-1,0))) -> 0 | CB38: =IF(AU$9="none",0,IF(AND($F38="week 1",$G38="Sun"),OFFSET($J$10,,MATCH(CB$24,$K$8:$AV$8,0)),IF(AND(OR($F38="week 2",$F38="week 3",$F38="week 4"),AU$9="weekly",$G38="Sun"),OFFSET($J$10,,MATCH(CB$24,$K$8:$AV$8,0)),IF(AND($F38="week 3",AU$9="bi-weekly",$G38="Sun"),OFFSET($J$10,,MATCH(CB$24,$K$8:$AV$8,0)),CC37+1)))) -> 0 | CC38: =IF(AU$9="weekly",OFFSET($J$13,,MATCH(CB$24,$K$8:$AV$8,0))+CB38-1,IF(AU$9="bi-weekly",OFFSET($J$14,,MATCH(CB$24,$K$8:$AV$8,0))+CB38-1,IF(AU$9="Monthly",OFFSET($J$15,,MATCH(CB$24,$K$8:$AV$8,0))+CB38-1,0))) -> 0 | CD38: =(ROUND(I38,0)-ROUND(H38,0))+(ROUND(K38,0)-ROUND(J38,0))+(ROUND(M38,0)-ROUND(L38,0))+(ROUND(O38,0)-ROUND(N38,0))+(ROUND(Q38,0)-ROUND(P38,0))+(ROUND(S38,0)-ROUND(R38,0))+(ROUND(U38,0)-ROUND(T38,0)+(ROUND(W38,0)-ROUND(V38,0))+(ROUND(Y38,0)-ROUND(X38,0))+(ROUND(AA38,0)-ROUND(Z38,0))+(ROUND(AC38,0)-ROUND(AB38,0))+(ROUND(AE38,0)-ROUND(AD38,0))+(ROUND(AG38,0)-ROUND(AF38,0))+(ROUND(AI38,0)-ROUND(AH38,0))+(ROUND(AK38,0)-ROUND(AJ38,0))+(ROUND(AM38,0)-ROUND(AL38,0))+(ROUND(AO38,0)-ROUND(AN38,0))+(ROUND(AQ38,0)-ROUND(AP38,0))+(ROUND(AS38,0)-ROUND(AR38,0))+(ROUND(AU38,0)-ROUND(AT38,0))+(ROUND(AW38,0)-ROUND(AV38,0))+(ROUND(AY38,0)-ROUND(AX38,0))+(ROUND(BA38,0)-ROUND(AZ38,0))+(ROUND(BC38,0)-ROUND(BB38,0))+(ROUND(BE38,0)-ROUND(BD38,0))+(ROUND(BG38,0)-ROUND(BF38,0))+(ROUND(BI38,0)-ROUND(BH38,0))+(ROUND(BK38,0)-ROUND(BJ38,0))+(ROUND(BM38,0)-ROUND(BL38,0))+(ROUND(BO38,0)-ROUND(BN38,0))+(ROUND(BQ38,0)-ROUND(BP38,0))+(ROUND(BS38,0)-ROUND(BR38,0))+(ROUND(BU38,0)-ROUND(BT38,0))+(ROUND(BW38,0)-ROUND(BV38,0))+(ROUND(BY38,0)-ROUND(BX38,0))+(ROUND(CA38,0)-ROUND(BZ38,0))+(ROUND(CC38,0)-ROUND(CB38,0))+(COUNTIF($H38:$CC38,">"&0)/2)) -> 146
F39: WEEK 2 | G39: TUE | H39: 22.25 | I39: 23.5 | J39: 52.14285714 | K39: 56.71428571 | L39: 35.42857143 | M39: 38.14285714 | N39: 40.57142857 | O39: 43.85714286 | P39: 8.75 | Q39: 8.5 | R39: 29.96428571 | S39: 32.07142857 | T39: 19.67857143 | U39: 20.64285714 | V39: 14.53571429 | W39: 14.92857143 | X39: 12.92857143 | Y39: 13.14285714 | Z39: 11.64285714 | AA39: 11.71428571 | AB39: 11.96428571 | AC39: 12.07142857 | AD39: 11 | AE39: 11 | AF39: 10.35714286 | AG39: 10.28571429 | AH39: 40.89285714 | AI39: 44.21428571 | AJ39: 37.67857143 | AK39: 40.64285714 | AL39: 30.92857143 | AM39: 33.14285714 | AN39: 22.89285714 | AO39: 24.21428571 | AP39: =IF(AB$9="none",0,IF(AND($F39="week 1",$G39="Sun"),OFFSET($J$10,,MATCH(AP$24,$K$8:$AV$8,0)),IF(AND(OR($F39="week 2",$F39="week 3",$F39="week 4"),AB$9="weekly",$G39="Sun"),OFFSET($J$10,,MATCH(AP$24,$K$8:$AV$8,0)),IF(AND($F39="week 3",AB$9="bi-weekly",$G39="Sun"),OFFSET($J$10,,MATCH(AP$24,$K$8:$AV$8,0)),AQ38+1)))) -> 17.42857143 | AQ39: =IF(AB$9="weekly",OFFSET($J$13,,MATCH(AP$24,$K$8:$AV$8,0))+AP39-1,IF(AB$9="bi-weekly",OFFSET($J$14,,MATCH(AP$24,$K$8:$AV$8,0))+AP39-1,IF(AB$9="Monthly",OFFSET($J$15,,MATCH(AP$24,$K$8:$AV$8,0))+AP39-1,0))) -> 18.14285714 | AR39: 30.60714286 | AS39: 32.78571429 | AT39: 28.03571429 | AU39: 29.92857143 | AV39: 39.92857143 | AW39: 43.14285714 | AX39: 77.85714286 | AY39: 85.28571429 | AZ39: 114.5 | BA39: 126 | BB39: 34 | BC39: 49 | BD39: 8.571428571 | BE39: 10.85714286 | BF39: 15.71428571 | BG39: 21.57142857 | BH39: 23.42857143 | BI39: 33.14285714 | BJ39: =IF(AL$9="none",0,IF(AND($F39="week 1",$G39="Sun"),OFFSET($J$10,,MATCH(BJ$24,$K$8:$AV$8,0)),IF(AND(OR($F39="week 2",$F39="week 3",$F39="week 4"),AL$9="weekly",$G39="Sun"),OFFSET($J$10,,MATCH(BJ$24,$K$8:$AV$8,0)),IF(AND($F39="week 3",AL$9="bi-weekly",$G39="Sun"),OFFSET($J$10,,MATCH(BJ$24,$K$8:$AV$8,0)),BK38+1)))) -> 5.714285714 | BK39: =IF(AL$9="weekly",OFFSET($J$13,,MATCH(BJ$24,$K$8:$AV$8,0))+BJ39-1,IF(AL$9="bi-weekly",OFFSET($J$14,,MATCH(BJ$24,$K$8:$AV$8,0))+BJ39-1,IF(AL$9="Monthly",OFFSET($J$15,,MATCH(BJ$24,$K$8:$AV$8,0))+BJ39-1,0))) -> 6.571428571 | BL39: =IF(AM$9="none",0,IF(AND($F39="week 1",$G39="Sun"),OFFSET($J$10,,MATCH(BL$24,$K$8:$AV$8,0)),IF(AND(OR($F39="week 2",$F39="week 3",$F39="week 4"),AM$9="weekly",$G39="Sun"),OFFSET($J$10,,MATCH(BL$24,$K$8:$AV$8,0)),IF(AND($F39="week 3",AM$9="bi-weekly",$G39="Sun"),OFFSET($J$10,,MATCH(BL$24,$K$8:$AV$8,0)),BM38+1)))) -> 36 | BM39: =IF(AM$9="weekly",OFFSET($J$13,,MATCH(BL$24,$K$8:$AV$8,0))+BL39-1,IF(AM$9="bi-weekly",OFFSET($J$14,,MATCH(BL$24,$K$8:$AV$8,0))+BL39-1,IF(AM$9="Monthly",OFFSET($J$15,,MATCH(BL$24,$K$8:$AV$8,0))+BL39-1,0))) -> 52 | BN39: =IF(AN$9="none",0,IF(AND($F39="week 1",$G39="Sun"),OFFSET($J$10,,MATCH(BN$24,$K$8:$AV$8,0)),IF(AND(OR($F39="week 2",$F39="week 3",$F39="week 4"),AN$9="weekly",$G39="Sun"),OFFSET($J$10,,MATCH(BN$24,$K$8:$AV$8,0)),IF(AND($F39="week 3",AN$9="bi-weekly",$G39="Sun"),OFFSET($J$10,,MATCH(BN$24,$K$8:$AV$8,0)),BO38+1)))) -> 33.14285714 | BO39: =IF(AN$9="weekly",OFFSET($J$13,,MATCH(BN$24,$K$8:$AV$8,0))+BN39-1,IF(AN$9="bi-weekly",OFFSET($J$14,,MATCH(BN$24,$K$8:$AV$8,0))+BN39-1,IF(AN$9="Monthly",OFFSET($J$15,,MATCH(BN$24,$K$8:$AV$8,0))+BN39-1,0))) -> 47.71428571 | BP39: =IF(AO$9="none",0,IF(AND($F39="week 1",$G39="Sun"),OFFSET($J$10,,MATCH(BP$24,$K$8:$AV$8,0)),IF(AND(OR($F39="week 2",$F39="week 3",$F39="week 4"),AO$9="weekly",$G39="Sun"),OFFSET($J$10,,MATCH(BP$24,$K$8:$AV$8,0)),IF(AND($F39="week 3",AO$9="bi-weekly",$G39="Sun"),OFFSET($J$10,,MATCH(BP$24,$K$8:$AV$8,0)),BQ38+1)))) -> 0 | BQ39: =IF(AO$9="weekly",OFFSET($J$13,,MATCH(BP$24,$K$8:$AV$8,0))+BP39-1,IF(AO$9="bi-weekly",OFFSET($J$14,,MATCH(BP$24,$K$8:$AV$8,0))+BP39-1,IF(AO$9="Monthly",OFFSET($J$15,,MATCH(BP$24,$K$8:$AV$8,0))+BP39-1,0))) -> 0 | BR39: 0 | BS39: 0 | BT39: =IF(AQ$9="none",0,IF(AND($F39="week 1",$G39="Sun"),OFFSET($J$10,,MATCH(BT$24,$K$8:$AV$8,0)),IF(AND(OR($F39="week 2",$F39="week 3",$F39="week 4"),AQ$9="weekly",$G39="Sun"),OFFSET($J$10,,MATCH(BT$24,$K$8:$AV$8,0)),IF(AND($F39="week 3",AQ$9="bi-weekly",$G39="Sun"),OFFSET($J$10,,MATCH(BT$24,$K$8:$AV$8,0)),BU38+1)))) -> 0 | BU39: =IF(AQ$9="weekly",OFFSET($J$13,,MATCH(BT$24,$K$8:$AV$8,0))+BT39-1,IF(AQ$9="bi-weekly",OFFSET($J$14,,MATCH(BT$24,$K$8:$AV$8,0))+BT39-1,IF(AQ$9="Monthly",OFFSET($J$15,,MATCH(BT$24,$K$8:$AV$8,0))+BT39-1,0))) -> 0 | BV39: =IF(AR$9="none",0,IF(AND($F39="week 1",$G39="Sun"),OFFSET($J$10,,MATCH(BV$24,$K$8:$AV$8,0)),IF(AND(OR($F39="week 2",$F39="week 3",$F39="week 4"),AR$9="weekly",$G39="Sun"),OFFSET($J$10,,MATCH(BV$24,$K$8:$AV$8,0)),IF(AND($F39="week 3",AR$9="bi-weekly",$G39="Sun"),OFFSET($J$10,,MATCH(BV$24,$K$8:$AV$8,0)),BW38+1)))) -> 0 | BW39: =IF(AR$9="weekly",OFFSET($J$13,,MATCH(BV$24,$K$8:$AV$8,0))+BV39-1,IF(AR$9="bi-weekly",OFFSET($J$14,,MATCH(BV$24,$K$8:$AV$8,0))+BV39-1,IF(AR$9="Monthly",OFFSET($J$15,,MATCH(BV$24,$K$8:$AV$8,0))+BV39-1,0))) -> 0 | BX39: =IF(AS$9="none",0,IF(AND($F39="week 1",$G39="Sun"),OFFSET($J$10,,MATCH(BX$24,$K$8:$AV$8,0)),IF(AND(OR($F39="week 2",$F39="week 3",$F39="week 4"),AS$9="weekly",$G39="Sun"),OFFSET($J$10,,MATCH(BX$24,$K$8:$AV$8,0)),IF(AND($F39="week 3",AS$9="bi-weekly",$G39="Sun"),OFFSET($J$10,,MATCH(BX$24,$K$8:$AV$8,0)),BY38+1)))) -> 0 | BY39: =IF(AS$9="weekly",OFFSET($J$13,,MATCH(BX$24,$K$8:$AV$8,0))+BX39-1,IF(AS$9="bi-weekly",OFFSET($J$14,,MATCH(BX$24,$K$8:$AV$8,0))+BX39-1,IF(AS$9="Monthly",OFFSET($J$15,,MATCH(BX$24,$K$8:$AV$8,0))+BX39-1,0))) -> 0 | BZ39: =IF(AT$9="none",0,IF(AND($F39="week 1",$G39="Sun"),OFFSET($J$10,,MATCH(BZ$24,$K$8:$AV$8,0)),IF(AND(OR($F39="week 2",$F39="week 3",$F39="week 4"),AT$9="weekly",$G39="Sun"),OFFSET($J$10,,MATCH(BZ$24,$K$8:$AV$8,0)),IF(AND($F39="week 3",AT$9="bi-weekly",$G39="Sun"),OFFSET($J$10,,MATCH(BZ$24,$K$8:$AV$8,0)),CA38+1)))) -> 0 | CA39: =IF(AT$9="weekly",OFFSET($J$13,,MATCH(BZ$24,$K$8:$AV$8,0))+BZ39-1,IF(AT$9="bi-weekly",OFFSET($J$14,,MATCH(BZ$24,$K$8:$AV$8,0))+BZ39-1,IF(AT$9="Monthly",OFFSET($J$15,,MATCH(BZ$24,$K$8:$AV$8,0))+BZ39-1,0))) -> 0 | CB39: =IF(AU$9="none",0,IF(AND($F39="week 1",$G39="Sun"),OFFSET($J$10,,MATCH(CB$24,$K$8:$AV$8,0)),IF(AND(OR($F39="week 2",$F39="week 3",$F39="week 4"),AU$9="weekly",$G39="Sun"),OFFSET($J$10,,MATCH(CB$24,$K$8:$AV$8,0)),IF(AND($F39="week 3",AU$9="bi-weekly",$G39="Sun"),OFFSET($J$10,,MATCH(CB$24,$K$8:$AV$8,0)),CC38+1)))) -> 0 | CC39: =IF(AU$9="weekly",OFFSET($J$13,,MATCH(CB$24,$K$8:$AV$8,0))+CB39-1,IF(AU$9="bi-weekly",OFFSET($J$14,,MATCH(CB$24,$K$8:$AV$8,0))+CB39-1,IF(AU$9="Monthly",OFFSET($J$15,,MATCH(CB$24,$K$8:$AV$8,0))+CB39-1,0))) -> 0 | CD39: =(ROUND(I39,0)-ROUND(H39,0))+(ROUND(K39,0)-ROUND(J39,0))+(ROUND(M39,0)-ROUND(L39,0))+(ROUND(O39,0)-ROUND(N39,0))+(ROUND(Q39,0)-ROUND(P39,0))+(ROUND(S39,0)-ROUND(R39,0))+(ROUND(U39,0)-ROUND(T39,0)+(ROUND(W39,0)-ROUND(V39,0))+(ROUND(Y39,0)-ROUND(X39,0))+(ROUND(AA39,0)-ROUND(Z39,0))+(ROUND(AC39,0)-ROUND(AB39,0))+(ROUND(AE39,0)-ROUND(AD39,0))+(ROUND(AG39,0)-ROUND(AF39,0))+(ROUND(AI39,0)-ROUND(AH39,0))+(ROUND(AK39,0)-ROUND(AJ39,0))+(ROUND(AM39,0)-ROUND(AL39,0))+(ROUND(AO39,0)-ROUND(AN39,0))+(ROUND(AQ39,0)-ROUND(AP39,0))+(ROUND(AS39,0)-ROUND(AR39,0))+(ROUND(AU39,0)-ROUND(AT39,0))+(ROUND(AW39,0)-ROUND(AV39,0))+(ROUND(AY39,0)-ROUND(AX39,0))+(ROUND(BA39,0)-ROUND(AZ39,0))+(ROUND(BC39,0)-ROUND(BB39,0))+(ROUND(BE39,0)-ROUND(BD39,0))+(ROUND(BG39,0)-ROUND(BF39,0))+(ROUND(BI39,0)-ROUND(BH39,0))+(ROUND(BK39,0)-ROUND(BJ39,0))+(ROUND(BM39,0)-ROUND(BL39,0))+(ROUND(BO39,0)-ROUND(BN39,0))+(ROUND(BQ39,0)-ROUND(BP39,0))+(ROUND(BS39,0)-ROUND(BR39,0))+(ROUND(BU39,0)-ROUND(BT39,0))+(ROUND(BW39,0)-ROUND(BV39,0))+(ROUND(BY39,0)-ROUND(BX39,0))+(ROUND(CA39,0)-ROUND(BZ39,0))+(ROUND(CC39,0)-ROUND(CB39,0))+(COUNTIF($H39:$CC39,">"&0)/2)) -> 146
F40: WEEK 2 | G40: WED | H40: 24.5 | I40: 25.75 | J40: 57.71428571 | K40: 62.28571429 | L40: 39.14285714 | M40: 41.85714286 | N40: 44.85714286 | O40: 48.14285714 | P40: 9.5 | Q40: 9.25 | R40: 33.07142857 | S40: 35.17857143 | T40: 21.64285714 | U40: 22.60714286 | V40: 15.92857143 | W40: 16.32142857 | X40: 14.14285714 | Y40: 14.35714286 | Z40: 12.71428571 | AA40: 12.78571429 | AB40: 13.07142857 | AC40: 13.17857143 | AD40: 12 | AE40: 12 | AF40: 11.28571429 | AG40: 11.21428571 | AH40: 45.21428571 | AI40: 48.53571429 | AJ40: 41.64285714 | AK40: 44.60714286 | AL40: 34.14285714 | AM40: 36.35714286 | AN40: 25.21428571 | AO40: 26.53571429 | AP40: 19.14285714 | AQ40: 19.85714286 | AR40: 33.78571429 | AS40: 35.96428571 | AT40: 30.92857143 | AU40: 32.82142857 | AV40: 44.14285714 | AW40: 47.35714286 | AX40: 86.28571429 | AY40: 93.71428571 | AZ40: 127 | BA40: 138.5 | BB40: 50 | BC40: 65 | BD40: 11.85714286 | BE40: 14.14285714 | BF40: 22.57142857 | BG40: 28.42857143 | BH40: 34.14285714 | BI40: 43.85714286 | BJ40: 7.571428571 | BK40: 8.428571429 | BL40: 53 | BM40: 69 | BN40: 48.71428571 | BO40: 63.28571429 | BP40: 0 | BQ40: 0 | BR40: 0 | BS40: 0 | BT40: 0 | BU40: 0 | BV40: 0 | BW40: 0 | BX40: 0 | BY40: 0 | BZ40: 0 | CA40: 0 | CB40: 0 | CC40: 0 | CD40: =(ROUND(I40,0)-ROUND(H40,0))+(ROUND(K40,0)-ROUND(J40,0))+(ROUND(M40,0)-ROUND(L40,0))+(ROUND(O40,0)-ROUND(N40,0))+(ROUND(Q40,0)-ROUND(P40,0))+(ROUND(S40,0)-ROUND(R40,0))+(ROUND(U40,0)-ROUND(T40,0)+(ROUND(W40,0)-ROUND(V40,0))+(ROUND(Y40,0)-ROUND(X40,0))+(ROUND(AA40,0)-ROUND(Z40,0))+(ROUND(AC40,0)-ROUND(AB40,0))+(ROUND(AE40,0)-ROUND(AD40,0))+(ROUND(AG40,0)-ROUND(AF40,0))+(ROUND(AI40,0)-ROUND(AH40,0))+(ROUND(AK40,0)-ROUND(AJ40,0))+(ROUND(AM40,0)-ROUND(AL40,0))+(ROUND(AO40,0)-ROUND(AN40,0))+(ROUND(AQ40,0)-ROUND(AP40,0))+(ROUND(AS40,0)-ROUND(AR40,0))+(ROUND(AU40,0)-ROUND(AT40,0))+(ROUND(AW40,0)-ROUND(AV40,0))+(ROUND(AY40,0)-ROUND(AX40,0))+(ROUND(BA40,0)-ROUND(AZ40,0))+(ROUND(BC40,0)-ROUND(BB40,0))+(ROUND(BE40,0)-ROUND(BD40,0))+(ROUND(BG40,0)-ROUND(BF40,0))+(ROUND(BI40,0)-ROUND(BH40,0))+(ROUND(BK40,0)-ROUND(BJ40,0))+(ROUND(BM40,0)-ROUND(BL40,0))+(ROUND(BO40,0)-ROUND(BN40,0))+(ROUND(BQ40,0)-ROUND(BP40,0))+(ROUND(BS40,0)-ROUND(BR40,0))+(ROUND(BU40,0)-ROUND(BT40,0))+(ROUND(BW40,0)-ROUND(BV40,0))+(ROUND(BY40,0)-ROUND(BX40,0))+(ROUND(CA40,0)-ROUND(BZ40,0))+(ROUND(CC40,0)-ROUND(CB40,0))+(COUNTIF($H40:$CC40,">"&0)/2)) -> 144
F41: WEEK 2 | G41: THU | H41: 26.75 | I41: 28 | J41: 63.28571429 | K41: 67.85714286 | L41: 42.85714286 | M41: 45.57142857 | N41: 49.14285714 | O41: 52.42857143 | P41: 10.25 | Q41: 10 | R41: 36.17857143 | S41: 38.28571429 | T41: 23.60714286 | U41: 24.57142857 | V41: 17.32142857 | W41: 17.71428571 | X41: 15.35714286 | Y41: 15.57142857 | Z41: 13.78571429 | AA41: 13.85714286 | AB41: 14.17857143 | AC41: 14.28571429 | AD41: 13 | AE41: 13 | AF41: 12.21428571 | AG41: 12.14285714 | AH41: 49.53571429 | AI41: 52.85714286 | AJ41: 45.60714286 | AK41: 48.57142857 | AL41: 37.35714286 | AM41: 39.57142857 | AN41: 27.53571429 | AO41: 28.85714286 | AP41: 20.85714286 | AQ41: 21.57142857 | AR41: 36.96428571 | AS41: 39.14285714 | AT41: 33.82142857 | AU41: 35.71428571 | AV41: 48.35714286 | AW41: 51.57142857 | AX41: 94.71428571 | AY41: 102.1428571 | AZ41: 139.5 | BA41: 151 | BB41: 66 | BC41: 81 | BD41: 15.14285714 | BE41: 17.42857143 | BF41: 29.42857143 | BG41: 35.28571429 | BH41: 44.85714286 | BI41: 54.57142857 | BJ41: 9.428571429 | BK41: 10.28571429 | BL41: 70 | BM41: 86 | BN41: 64.28571429 | BO41: 78.85714286 | BP41: 0 | BQ41: 0 | BR41: 0 | BS41: 0 | BT41: 0 | BU41: 0 | BV41: 0 | BW41: 0 | BX41: 0 | BY41: 0 | BZ41: 0 | CA41: 0 | CB41: 0 | CC41: 0 | CD41: 149
F42: WEEK 2 | G42: FRI | H42: 29 | I42: 30.25 | J42: 68.85714286 | K42: 73.42857143 | L42: 46.57142857 | M42: 49.28571429 | N42: 53.42857143 | O42: 56.71428571 | P42: 11 | Q42: 10.75 | R42: 39.28571429 | S42: 41.39285714 | T42: 25.57142857 | U42: 26.53571429 | V42: 18.71428571 | W42: 19.10714286 | X42: 16.57142857 | Y42: 16.78571429 | Z42: 14.85714286 | AA42: 14.92857143 | AB42: 15.28571429 | AC42: 15.39285714 | AD42: 14 | AE42: 14 | AF42: 13.14285714 | AG42: 13.07142857 | AH42: 53.85714286 | AI42: 57.17857143 | AJ42: 49.57142857 | AK42: 52.53571429 | AL42: 40.57142857 | AM42: 42.78571429 | AN42: 29.85714286 | AO42: 31.17857143 | AP42: 22.57142857 | AQ42: 23.28571429 | AR42: 40.14285714 | AS42: 42.32142857 | AT42: 36.71428571 | AU42: 38.60714286 | AV42: 52.57142857 | AW42: 55.78571429 | AX42: 103.1428571 | AY42: 110.5714286 | AZ42: 152 | BA42: 163.5 | BB42: 82 | BC42: 97 | BD42: 18.42857143 | BE42: 20.71428571 | BF42: 36.28571429 | BG42: 42.14285714 | BH42: 55.57142857 | BI42: 65.28571429 | BJ42: 11.28571429 | BK42: 12.14285714 | BL42: 87 | BM42: 103 | BN42: 79.85714286 | BO42: 94.42857143 | BP42: 0 | BQ42: 0 | BR42: 0 | BS42: 0 | BT42: 0 | BU42: 0 | BV42: 0 | BW42: 0 | BX42: 0 | BY42: 0 | BZ42: 0 | CA42: 0 | CB42: 0 | CC42: 0 | CD42: 144
F43: WEEK 2 | G43: שבת | H43: 31.25 | I43: 32.5 | J43: 74.42857143 | K43: 79 | L43: 50.28571429 | M43: 53 | N43: 57.71428571 | O43: 61 | P43: 11.75 | Q43: 11.5 | R43: 42.39285714 | S43: 44.5 | T43: 27.53571429 | U43: 28.5 | V43: 20.10714286 | W43: 20.5 | X43: 17.78571429 | Y43: 18 | Z43: 15.92857143 | AA43: 16 | AB43: 16.39285714 | AC43: 16.5 | AD43: 15 | AE43: 15 | AF43: 14.07142857 | AG43: 14 | AH43: 58.17857143 | AI43: 61.5 | AJ43: 53.53571429 | AK43: 56.5 | AL43: 43.78571429 | AM43: 46 | AN43: 32.17857143 | AO43: 33.5 | AP43: 24.28571429 | AQ43: 25 | AR43: 43.32142857 | AS43: 45.5 | AT43: 39.60714286 | AU43: 41.5 | AV43: 56.78571429 | AW43: 60 | AX43: 111.5714286 | AY43: 119 | AZ43: 164.5 | BA43: 176 | BB43: 98 | BC43: 113 | BD43: 21.71428571 | BE43: 24 | BF43: 43.14285714 | BG43: 49 | BH43: 66.28571429 | BI43: 76 | BJ43: 13.14285714 | BK43: 14 | BL43: 104 | BM43: 120 | BN43: 95.42857143 | BO43: 110 | BP43: 0 | BQ43: 0 | BR43: 0 | BS43: 0 | BT43: 0 | BU43: 0 | BV43: 0 | BW43: 0 | BX43: 0 | BY43: 0 | BZ43: 0 | CA43: 0 | CB43: 0 | CC43: 0 | CD43: 152
G44: WEEK THREE | AH44: WEEK THREE
F45: WEEK 3 | G45: SUN | H45: =IF(K$9="none",0,IF(AND($F45="week 1",$G45="Sun"),OFFSET($J$10,,MATCH(H$24,$K$8:$AV$8,0)),IF(AND(OR($F45="week 2",$F45="week 3",$F45="week 4"),K$9="weekly",$G45="Sun"),OFFSET($J$10,,MATCH(H$24,$K$8:$AV$8,0)),IF(AND($F45="week 3",K$9="bi-weekly",$G45="Sun"),OFFSET($J$10,,MATCH(H$24,$K$8:$AV$8,0)),I43+1)))) -> 33.5 | I45: =IF(K$9="weekly",OFFSET($J$13,,MATCH(H$24,$K$8:$AV$8,0))+H45-1,IF(K$9="bi-weekly",OFFSET($J$14,,MATCH(H$24,$K$8:$AV$8,0))+H45-1,IF(K$9="Monthly",OFFSET($J$15,,MATCH(H$24,$K$8:$AV$8,0))+H45-1,0))) -> 34.75 | J45: =IF(L$9="none",0,IF(AND($F45="week 1",$G45="Sun"),OFFSET($J$10,,MATCH(J$24,$K$8:$AV$8,0)),IF(AND(OR($F45="week 2",$F45="week 3",$F45="week 4"),L$9="weekly",$G45="Sun"),OFFSET($J$10,,MATCH(J$24,$K$8:$AV$8,0)),IF(AND($F45="week 3",L$9="bi-weekly",$G45="Sun"),OFFSET($J$10,,MATCH(J$24,$K$8:$AV$8,0)),K43+1)))) -> 80 | K45: =IF(L$9="weekly",OFFSET($J$13,,MATCH(J$24,$K$8:$AV$8,0))+J45-1,IF(L$9="bi-weekly",OFFSET($J$14,,MATCH(J$24,$K$8:$AV$8,0))+J45-1,IF(L$9="Monthly",OFFSET($J$15,,MATCH(J$24,$K$8:$AV$8,0))+J45-1,0))) -> 84.57142857 | L45: =IF(M$9="none",0,IF(AND($F45="week 1",$G45="Sun"),OFFSET($J$10,,MATCH(L$24,$K$8:$AV$8,0)),IF(AND(OR($F45="week 2",$F45="week 3",$F45="week 4"),M$9="weekly",$G45="Sun"),OFFSET($J$10,,MATCH(L$24,$K$8:$AV$8,0)),IF(AND($F45="week 3",M$9="bi-weekly",$G45="Sun"),OFFSET($J$10,,MATCH(L$24,$K$8:$AV$8,0)),M43+1)))) -> 54 | M45: =IF(M$9="weekly",OFFSET($J$13,,MATCH(L$24,$K$8:$AV$8,0))+L45-1,IF(M$9="bi-weekly",OFFSET($J$14,,MATCH(L$24,$K$8:$AV$8,0))+L45-1,IF(M$9="Monthly",OFFSET($J$15,,MATCH(L$24,$K$8:$AV$8,0))+L45-1,0))) -> 56.71428571 | N45: =IF(N$9="none",0,IF(AND($F45="week 1",$G45="Sun"),OFFSET($J$10,,MATCH(N$24,$K$8:$AV$8,0)),IF(AND(OR($F45="week 2",$F45="week 3",$F45="week 4"),N$9="weekly",$G45="Sun"),OFFSET($J$10,,MATCH(N$24,$K$8:$AV$8,0)),IF(AND($F45="week 3",N$9="bi-weekly",$G45="Sun"),OFFSET($J$10,,MATCH(N$24,$K$8:$AV$8,0)),O43+1)))) -> 62 | O45: =IF(N$9="weekly",OFFSET($J$13,,MATCH(N$24,$K$8:$AV$8,0))+N45-1,IF(N$9="bi-weekly",OFFSET($J$14,,MATCH(N$24,$K$8:$AV$8,0))+N45-1,IF(N$9="Monthly",OFFSET($J$15,,MATCH(N$24,$K$8:$AV$8,0))+N45-1,0))) -> 65.28571429 | P45: =IF(O$9="none",0,IF(AND($F45="week 1",$G45="Sun"),OFFSET($J$10,,MATCH(P$24,$K$8:$AV$8,0)),IF(AND(OR($F45="week 2",$F45="week 3",$F45="week 4"),O$9="weekly",$G45="Sun"),OFFSET($J$10,,MATCH(P$24,$K$8:$AV$8,0)),IF(AND($F45="week 3",O$9="bi-weekly",$G45="Sun"),OFFSET($J$10,,MATCH(P$24,$K$8:$AV$8,0)),Q43+1)))) -> 12.5 | Q45: =IF(O$9="weekly",OFFSET($J$13,,MATCH(P$24,$K$8:$AV$8,0))+P45-1,IF(O$9="bi-weekly",OFFSET($J$14,,MATCH(P$24,$K$8:$AV$8,0))+P45-1,IF(O$9="Monthly",OFFSET($J$15,,MATCH(P$24,$K$8:$AV$8,0))+P45-1,0))) -> 12.25 | R45: =IF(P$9="none",0,IF(AND($F45="week 1",$G45="Sun"),OFFSET($J$10,,MATCH(R$24,$K$8:$AV$8,0)),IF(AND(OR($F45="week 2",$F45="week 3",$F45="week 4"),P$9="weekly",$G45="Sun"),OFFSET($J$10,,MATCH(R$24,$K$8:$AV$8,0)),IF(AND($F45="week 3",P$9="bi-weekly",$G45="Sun"),OFFSET($J$10,,MATCH(R$24,$K$8:$AV$8,0)),S43+1)))) -> 45.5 | S45: =IF(P$9="weekly",OFFSET($J$13,,MATCH(R$24,$K$8:$AV$8,0))+R45-1,IF(P$9="bi-weekly",OFFSET($J$14,,MATCH(R$24,$K$8:$AV$8,0))+R45-1,IF(P$9="Monthly",OFFSET($J$15,,MATCH(R$24,$K$8:$AV$8,0))+R45-1,0))) -> 47.60714286 | T45: =IF(Q$9="none",0,IF(AND($F45="week 1",$G45="Sun"),OFFSET($J$10,,MATCH(T$24,$K$8:$AV$8,0)),IF(AND(OR($F45="week 2",$F45="week 3",$F45="week 4"),Q$9="weekly",$G45="Sun"),OFFSET($J$10,,MATCH(T$24,$K$8:$AV$8,0)),IF(AND($F45="week 3",Q$9="bi-weekly",$G45="Sun"),OFFSET($J$10,,MATCH(T$24,$K$8:$AV$8,0)),U43+1)))) -> 29.5 | U45: =IF(Q$9="weekly",OFFSET($J$13,,MATCH(T$24,$K$8:$AV$8,0))+T45-1,IF(Q$9="bi-weekly",OFFSET($J$14,,MATCH(T$24,$K$8:$AV$8,0))+T45-1,IF(Q$9="Monthly",OFFSET($J$15,,MATCH(T$24,$K$8:$AV$8,0))+T45-1,0))) -> 30.46428571 | V45: =IF(R$9="none",0,IF(AND($F45="week 1",$G45="Sun"),OFFSET($J$10,,MATCH(V$24,$K$8:$AV$8,0)),IF(AND(OR($F45="week 2",$F45="week 3",$F45="week 4"),R$9="weekly",$G45="Sun"),OFFSET($J$10,,MATCH(V$24,$K$8:$AV$8,0)),IF(AND($F45="week 3",R$9="bi-weekly",$G45="Sun"),OFFSET($J$10,,MATCH(V$24,$K$8:$AV$8,0)),W43+1)))) -> 21.5 | W45: =IF(R$9="weekly",OFFSET($J$13,,MATCH(V$24,$K$8:$AV$8,0))+V45-1,IF(R$9="bi-weekly",OFFSET($J$14,,MATCH(V$24,$K$8:$AV$8,0))+V45-1,IF(R$9="Monthly",OFFSET($J$15,,MATCH(V$24,$K$8:$AV$8,0))+V45-1,0))) -> 21.89285714 | X45: =IF(S$9="none",0,IF(AND($F45="week 1",$G45="Sun"),OFFSET($J$10,,MATCH(X$24,$K$8:$AV$8,0)),IF(AND(OR($F45="week 2",$F45="week 3",$F45="week 4"),S$9="weekly",$G45="Sun"),OFFSET($J$10,,MATCH(X$24,$K$8:$AV$8,0)),IF(AND($F45="week 3",S$9="bi-weekly",$G45="Sun"),OFFSET($J$10,,MATCH(X$24,$K$8:$AV$8,0)),Y43+1)))) -> 19 | Y45: =IF(S$9="weekly",OFFSET($J$13,,MATCH(X$24,$K$8:$AV$8,0))+X45-1,IF(S$9="bi-weekly",OFFSET($J$14,,MATCH(X$24,$K$8:$AV$8,0))+X45-1,IF(S$9="Monthly",OFFSET($J$15,,MATCH(X$24,$K$8:$AV$8,0))+X45-1,0))) -> 19.21428571 | Z45: =IF(T$9="none",0,IF(AND($F45="week 1",$G45="Sun"),OFFSET($J$10,,MATCH(Z$24,$K$8:$AV$8,0)),IF(AND(OR($F45="week 2",$F45="week 3",$F45="week 4"),T$9="weekly",$G45="Sun"),OFFSET($J$10,,MATCH(Z$24,$K$8:$AV$8,0)),IF(AND($F45="week 3",T$9="bi-weekly",$G45="Sun"),OFFSET($J$10,,MATCH(Z$24,$K$8:$AV$8,0)),AA43+1)))) -> 17 | AA45: =IF(T$9="weekly",OFFSET($J$13,,MATCH(Z$24,$K$8:$AV$8,0))+Z45-1,IF(T$9="bi-weekly",OFFSET($J$14,,MATCH(Z$24,$K$8:$AV$8,0))+Z45-1,IF(T$9="Monthly",OFFSET($J$15,,MATCH(Z$24,$K$8:$AV$8,0))+Z45-1,0))) -> 17.07142857 | AB45: =IF(U$9="none",0,IF(AND($F45="week 1",$G45="Sun"),OFFSET($J$10,,MATCH(AB$24,$K$8:$AV$8,0)),IF(AND(OR($F45="week 2",$F45="week 3",$F45="week 4"),U$9="weekly",$G45="Sun"),OFFSET($J$10,,MATCH(AB$24,$K$8:$AV$8,0)),IF(AND($F45="week 3",U$9="bi-weekly",$G45="Sun"),OFFSET($J$10,,MATCH(AB$24,$K$8:$AV$8,0)),AC43+1)))) -> 17.5 | AC45: =IF(U$9="weekly",OFFSET($J$13,,MATCH(AB$24,$K$8:$AV$8,0))+AB45-1,IF(U$9="bi-weekly",OFFSET($J$14,,MATCH(AB$24,$K$8:$AV$8,0))+AB45-1,IF(U$9="Monthly",OFFSET($J$15,,MATCH(AB$24,$K$8:$AV$8,0))+AB45-1,0))) -> 17.60714286 | AD45: =IF(V$9="none",0,IF(AND($F45="week 1",$G45="Sun"),OFFSET($J$10,,MATCH(AD$24,$K$8:$AV$8,0)),IF(AND(OR($F45="week 2",$F45="week 3",$F45="week 4"),V$9="weekly",$G45="Sun"),OFFSET($J$10,,MATCH(AD$24,$K$8:$AV$8,0)),IF(AND($F45="week 3",V$9="bi-weekly",$G45="Sun"),OFFSET($J$10,,MATCH(AD$24,$K$8:$AV$8,0)),AE43+1)))) -> 16 | AE45: =IF(V$9="weekly",OFFSET($J$13,,MATCH(AD$24,$K$8:$AV$8,0))+AD45-1,IF(V$9="bi-weekly",OFFSET($J$14,,MATCH(AD$24,$K$8:$AV$8,0))+AD45-1,IF(V$9="Monthly",OFFSET($J$15,,MATCH(AD$24,$K$8:$AV$8,0))+AD45-1,0))) -> 16 | AF45: =IF(W$9="none",0,IF(AND($F45="week 1",$G45="Sun"),OFFSET($J$10,,MATCH(AF$24,$K$8:$AV$8,0)),IF(AND(OR($F45="week 2",$F45="week 3",$F45="week 4"),W$9="weekly",$G45="Sun"),OFFSET($J$10,,MATCH(AF$24,$K$8:$AV$8,0)),IF(AND($F45="week 3",W$9="bi-weekly",$G45="Sun"),OFFSET($J$10,,MATCH(AF$24,$K$8:$AV$8,0)),AG43+1)))) -> 15 | AG45: =IF(W$9="weekly",OFFSET($J$13,,MATCH(AF$24,$K$8:$AV$8,0))+AF45-1,IF(W$9="bi-weekly",OFFSET($J$14,,MATCH(AF$24,$K$8:$AV$8,0))+AF45-1,IF(W$9="Monthly",OFFSET($J$15,,MATCH(AF$24,$K$8:$AV$8,0))+AF45-1,0))) -> 14.92857143 | AH45: =IF(X$9="none",0,IF(AND($F45="week 1",$G45="Sun"),OFFSET($J$10,,MATCH(AH$24,$K$8:$AV$8,0)),IF(AND(OR($F45="week 2",$F45="week 3",$F45="week 4"),X$9="weekly",$G45="Sun"),OFFSET($J$10,,MATCH(AH$24,$K$8:$AV$8,0)),IF(AND($F45="week 3",X$9="bi-weekly",$G45="Sun"),OFFSET($J$10,,MATCH(AH$24,$K$8:$AV$8,0)),AI43+1)))) -> 62.5 | AI45: =IF(X$9="weekly",OFFSET($J$13,,MATCH(AH$24,$K$8:$AV$8,0))+AH45-1,IF(X$9="bi-weekly",OFFSET($J$14,,MATCH(AH$24,$K$8:$AV$8,0))+AH45-1,IF(X$9="Monthly",OFFSET($J$15,,MATCH(AH$24,$K$8:$AV$8,0))+AH45-1,0))) -> 65.82142857 | AJ45: =IF(Y$9="none",0,IF(AND($F45="week 1",$G45="Sun"),OFFSET($J$10,,MATCH(AJ$24,$K$8:$AV$8,0)),IF(AND(OR($F45="week 2",$F45="week 3",$F45="week 4"),Y$9="weekly",$G45="Sun"),OFFSET($J$10,,MATCH(AJ$24,$K$8:$AV$8,0)),IF(AND($F45="week 3",Y$9="bi-weekly",$G45="Sun"),OFFSET($J$10,,MATCH(AJ$24,$K$8:$AV$8,0)),AK43+1)))) -> 57.5 | AK45: =IF(Y$9="weekly",OFFSET($J$13,,MATCH(AJ$24,$K$8:$AV$8,0))+AJ45-1,IF(Y$9="bi-weekly",OFFSET($J$14,,MATCH(AJ$24,$K$8:$AV$8,0))+AJ45-1,IF(Y$9="Monthly",OFFSET($J$15,,MATCH(AJ$24,$K$8:$AV$8,0))+AJ45-1,0))) -> 60.46428571 | AL45: =IF(Z$9="none",0,IF(AND($F45="week 1",$G45="Sun"),OFFSET($J$10,,MATCH(AL$24,$K$8:$AV$8,0)),IF(AND(OR($F45="week 2",$F45="week 3",$F45="week 4"),Z$9="weekly",$G45="Sun"),OFFSET($J$10,,MATCH(AL$24,$K$8:$AV$8,0)),IF(AND($F45="week 3",Z$9="bi-weekly",$G45="Sun"),OFFSET($J$10,,MATCH(AL$24,$K$8:$AV$8,0)),AM43+1)))) -> 47 | AM45: =IF(Z$9="weekly",OFFSET($J$13,,MATCH(AL$24,$K$8:$AV$8,0))+AL45-1,IF(Z$9="bi-weekly",OFFSET($J$14,,MATCH(AL$24,$K$8:$AV$8,0))+AL45-1,IF(Z$9="Monthly",OFFSET($J$15,,MATCH(AL$24,$K$8:$AV$8,0))+AL45-1,0))) -> 49.21428571 | AN45: =IF(AA$9="none",0,IF(AND($F45="week 1",$G45="Sun"),OFFSET($J$10,,MATCH(AN$24,$K$8:$AV$8,0)),IF(AND(OR($F45="week 2",$F45="week 3",$F45="week 4"),AA$9="weekly",$G45="Sun"),OFFSET($J$10,,MATCH(AN$24,$K$8:$AV$8,0)),IF(AND($F45="week 3",AA$9="bi-weekly",$G45="Sun"),OFFSET($J$10,,MATCH(AN$24,$K$8:$AV$8,0)),AO43+1)))) -> 34.5 | AO45: =IF(AA$9="weekly",OFFSET($J$13,,MATCH(AN$24,$K$8:$AV$8,0))+AN45-1,IF(AA$9="bi-weekly",OFFSET($J$14,,MATCH(AN$24,$K$8:$AV$8,0))+AN45-1,IF(AA$9="Monthly",OFFSET($J$15,,MATCH(AN$24,$K$8:$AV$8,0))+AN45-1,0))) -> 35.82142857 | AP45: =IF(AB$9="none",0,IF(AND($F45="week 1",$G45="Sun"),OFFSET($J$10,,MATCH(AP$24,$K$8:$AV$8,0)),IF(AND(OR($F45="week 2",$F45="week 3",$F45="week 4"),AB$9="weekly",$G45="Sun"),OFFSET($J$10,,MATCH(AP$24,$K$8:$AV$8,0)),IF(AND($F45="week 3",AB$9="bi-weekly",$G45="Sun"),OFFSET($J$10,,MATCH(AP$24,$K$8:$AV$8,0)),AQ43+1)))) -> 26 | AQ45: =IF(AB$9="weekly",OFFSET($J$13,,MATCH(AP$24,$K$8:$AV$8,0))+AP45-1,IF(AB$9="bi-weekly",OFFSET($J$14,,MATCH(AP$24,$K$8:$AV$8,0))+AP45-1,IF(AB$9="Monthly",OFFSET($J$15,,MATCH(AP$24,$K$8:$AV$8,0))+AP45-1,0))) -> 26.71428571 | AR45: =IF(AC$9="none",0,IF(AND($F45="week 1",$G45="Sun"),OFFSET($J$10,,MATCH(AR$24,$K$8:$AV$8,0)),IF(AND(OR($F45="week 2",$F45="week 3",$F45="week 4"),AC$9="weekly",$G45="Sun"),OFFSET($J$10,,MATCH(AR$24,$K$8:$AV$8,0)),IF(AND($F45="week 3",AC$9="bi-weekly",$G45="Sun"),OFFSET($J$10,,MATCH(AR$24,$K$8:$AV$8,0)),AS43+1)))) -> 46.5 | AS45: =IF(AC$9="weekly",OFFSET($J$13,,MATCH(AR$24,$K$8:$AV$8,0))+AR45-1,IF(AC$9="bi-weekly",OFFSET($J$14,,MATCH(AR$24,$K$8:$AV$8,0))+AR45-1,IF(AC$9="Monthly",OFFSET($J$15,,MATCH(AR$24,$K$8:$AV$8,0))+AR45-1,0))) -> 48.67857143 | AT45: =IF(AD$9="none",0,IF(AND($F45="week 1",$G45="Sun"),OFFSET($J$10,,MATCH(AT$24,$K$8:$AV$8,0)),IF(AND(OR($F45="week 2",$F45="week 3",$F45="week 4"),AD$9="weekly",$G45="Sun"),OFFSET($J$10,,MATCH(AT$24,$K$8:$AV$8,0)),IF(AND($F45="week 3",AD$9="bi-weekly",$G45="Sun"),OFFSET($J$10,,MATCH(AT$24,$K$8:$AV$8,0)),AU43+1)))) -> 42.5 | AU45: =IF(AD$9="weekly",OFFSET($J$13,,MATCH(AT$24,$K$8:$AV$8,0))+AT45-1,IF(AD$9="bi-weekly",OFFSET($J$14,,MATCH(AT$24,$K$8:$AV$8,0))+AT45-1,IF(AD$9="Monthly",OFFSET($J$15,,MATCH(AT$24,$K$8:$AV$8,0))+AT45-1,0))) -> 44.39285714 | AV45: =IF(AE$9="none",0,IF(AND($F45="week 1",$G45="Sun"),OFFSET($J$10,,MATCH(AV$24,$K$8:$AV$8,0)),IF(AND(OR($F45="week 2",$F45="week 3",$F45="week 4"),AE$9="weekly",$G45="Sun"),OFFSET($J$10,,MATCH(AV$24,$K$8:$AV$8,0)),IF(AND($F45="week 3",AE$9="bi-weekly",$G45="Sun"),OFFSET($J$10,,MATCH(AV$24,$K$8:$AV$8,0)),AW43+1)))) -> 61 | AW45: =IF(AE$9="weekly",OFFSET($J$13,,MATCH(AV$24,$K$8:$AV$8,0))+AV45-1,IF(AE$9="bi-weekly",OFFSET($J$14,,MATCH(AV$24,$K$8:$AV$8,0))+AV45-1,IF(AE$9="Monthly",OFFSET($J$15,,MATCH(AV$24,$K$8:$AV$8,0))+AV45-1,0))) -> 64.21428571 | AX45: =IF(AF$9="none",0,IF(AND($F45="week 1",$G45="Sun"),OFFSET($J$10,,MATCH(AX$24,$K$8:$AV$8,0)),IF(AND(OR($F45="week 2",$F45="week 3",$F45="week 4"),AF$9="weekly",$G45="Sun"),OFFSET($J$10,,MATCH(AX$24,$K$8:$AV$8,0)),IF(AND($F45="week 3",AF$9="bi-weekly",$G45="Sun"),OFFSET($J$10,,MATCH(AX$24,$K$8:$AV$8,0)),AY43+1)))) -> 2 | AY45: =IF(AF$9="weekly",OFFSET($J$13,,MATCH(AX$24,$K$8:$AV$8,0))+AX45-1,IF(AF$9="bi-weekly",OFFSET($J$14,,MATCH(AX$24,$K$8:$AV$8,0))+AX45-1,IF(AF$9="Monthly",OFFSET($J$15,,MATCH(AX$24,$K$8:$AV$8,0))+AX45-1,0))) -> 9.428571429 | AZ45: =IF(AG$9="none",0,IF(AND($F45="week 1",$G45="Sun"),OFFSET($J$10,,MATCH(AZ$24,$K$8:$AV$8,0)),IF(AND(OR($F45="week 2",$F45="week 3",$F45="week 4"),AG$9="weekly",$G45="Sun"),OFFSET($J$10,,MATCH(AZ$24,$K$8:$AV$8,0)),IF(AND($F45="week 3",AG$9="bi-weekly",$G45="Sun"),OFFSET($J$10,,MATCH(AZ$24,$K$8:$AV$8,0)),BA43+1)))) -> 2 | BA45: =IF(AG$9="weekly",OFFSET($J$13,,MATCH(AZ$24,$K$8:$AV$8,0))+AZ45-1,IF(AG$9="bi-weekly",OFFSET($J$14,,MATCH(AZ$24,$K$8:$AV$8,0))+AZ45-1,IF(AG$9="Monthly",OFFSET($J$15,,MATCH(AZ$24,$K$8:$AV$8,0))+AZ45-1,0))) -> 13.5 | BB45: =IF(AH$9="none",0,IF(AND($F45="week 1",$G45="Sun"),OFFSET($J$10,,MATCH(BB$24,$K$8:$AV$8,0)),IF(AND(OR($F45="week 2",$F45="week 3",$F45="week 4"),AH$9="weekly",$G45="Sun"),OFFSET($J$10,,MATCH(BB$24,$K$8:$AV$8,0)),IF(AND($F45="week 3",AH$9="bi-weekly",$G45="Sun"),OFFSET($J$10,,MATCH(BB$24,$K$8:$AV$8,0)),BC43+1)))) -> 2 | BC45: =IF(AH$9="weekly",OFFSET($J$13,,MATCH(BB$24,$K$8:$AV$8,0))+BB45-1,IF(AH$9="bi-weekly",OFFSET($J$14,,MATCH(BB$24,$K$8:$AV$8,0))+BB45-1,IF(AH$9="Monthly",OFFSET($J$15,,MATCH(BB$24,$K$8:$AV$8,0))+BB45-1,0))) -> 17 | BD45: =IF(AI$9="none",0,IF(AND($F45="week 1",$G45="Sun"),OFFSET($J$10,,MATCH(BD$24,$K$8:$AV$8,0)),IF(AND(OR($F45="week 2",$F45="week 3",$F45="week 4"),AI$9="weekly",$G45="Sun"),OFFSET($J$10,,MATCH(BD$24,$K$8:$AV$8,0)),IF(AND($F45="week 3",AI$9="bi-weekly",$G45="Sun"),OFFSET($J$10,,MATCH(BD$24,$K$8:$AV$8,0)),BE43+1)))) -> 2 | BE45: =IF(AI$9="weekly",OFFSET($J$13,,MATCH(BD$24,$K$8:$AV$8,0))+BD45-1,IF(AI$9="bi-weekly",OFFSET($J$14,,MATCH(BD$24,$K$8:$AV$8,0))+BD45-1,IF(AI$9="Monthly",OFFSET($J$15,,MATCH(BD$24,$K$8:$AV$8,0))+BD45-1,0))) -> 4.285714286 | BF45: =IF(AJ$9="none",0,IF(AND($F45="week 1",$G45="Sun"),OFFSET($J$10,,MATCH(BF$24,$K$8:$AV$8,0)),IF(AND(OR($F45="week 2",$F45="week 3",$F45="week 4"),AJ$9="weekly",$G45="Sun"),OFFSET($J$10,,MATCH(BF$24,$K$8:$AV$8,0)),IF(AND($F45="week 3",AJ$9="bi-weekly",$G45="Sun"),OFFSET($J$10,,MATCH(BF$24,$K$8:$AV$8,0)),BG43+1)))) -> 2 | BG45: =IF(AJ$9="weekly",OFFSET($J$13,,MATCH(BF$24,$K$8:$AV$8,0))+BF45-1,IF(AJ$9="bi-weekly",OFFSET($J$14,,MATCH(BF$24,$K$8:$AV$8,0))+BF45-1,IF(AJ$9="Monthly",OFFSET($J$15,,MATCH(BF$24,$K$8:$AV$8,0))+BF45-1,0))) -> 7.857142857 | BH45: =IF(AK$9="none",0,IF(AND($F45="week 1",$G45="Sun"),OFFSET($J$10,,MATCH(BH$24,$K$8:$AV$8,0)),IF(AND(OR($F45="week 2",$F45="week 3",$F45="week 4"),AK$9="weekly",$G45="Sun"),OFFSET($J$10,,MATCH(BH$24,$K$8:$AV$8,0)),IF(AND($F45="week 3",AK$9="bi-weekly",$G45="Sun"),OFFSET($J$10,,MATCH(BH$24,$K$8:$AV$8,0)),BI43+1)))) -> 2 | BI45: =IF(AK$9="weekly",OFFSET($J$13,,MATCH(BH$24,$K$8:$AV$8,0))+BH45-1,IF(AK$9="bi-weekly",OFFSET($J$14,,MATCH(BH$24,$K$8:$AV$8,0))+BH45-1,IF(AK$9="Monthly",OFFSET($J$15,,MATCH(BH$24,$K$8:$AV$8,0))+BH45-1,0))) -> 11.71428571 | BJ45: =IF(AL$9="none",0,IF(AND($F45="week 1",$G45="Sun"),OFFSET($J$10,,MATCH(BJ$24,$K$8:$AV$8,0)),IF(AND(OR($F45="week 2",$F45="week 3",$F45="week 4"),AL$9="weekly",$G45="Sun"),OFFSET($J$10,,MATCH(BJ$24,$K$8:$AV$8,0)),IF(AND($F45="week 3",AL$9="bi-weekly",$G45="Sun"),OFFSET($J$10,,MATCH(BJ$24,$K$8:$AV$8,0)),BK43+1)))) -> 2 | BK45: =IF(AL$9="weekly",OFFSET($J$13,,MATCH(BJ$24,$K$8:$AV$8,0))+BJ45-1,IF(AL$9="bi-weekly",OFFSET($J$14,,MATCH(BJ$24,$K$8:$AV$8,0))+BJ45-1,IF(AL$9="Monthly",OFFSET($J$15,,MATCH(BJ$24,$K$8:$AV$8,0))+BJ45-1,0))) -> 2.857142857 | BL45: =IF(AM$9="none",0,IF(AND($F45="week 1",$G45="Sun"),OFFSET($J$10,,MATCH(BL$24,$K$8:$AV$8,0)),IF(AND(OR($F45="week 2",$F45="week 3",$F45="week 4"),AM$9="weekly",$G45="Sun"),OFFSET($J$10,,MATCH(BL$24,$K$8:$AV$8,0)),IF(AND($F45="week 3",AM$9="bi-weekly",$G45="Sun"),OFFSET($J$10,,MATCH(BL$24,$K$8:$AV$8,0)),BM43+1)))) -> 2 | BM45: =IF(AM$9="weekly",OFFSET($J$13,,MATCH(BL$24,$K$8:$AV$8,0))+BL45-1,IF(AM$9="bi-weekly",OFFSET($J$14,,MATCH(BL$24,$K$8:$AV$8,0))+BL45-1,IF(AM$9="Monthly",OFFSET($J$15,,MATCH(BL$24,$K$8:$AV$8,0))+BL45-1,0))) -> 18 | BN45: =IF(AN$9="none",0,IF(AND($F45="week 1",$G45="Sun"),OFFSET($J$10,,MATCH(BN$24,$K$8:$AV$8,0)),IF(AND(OR($F45="week 2",$F45="week 3",$F45="week 4"),AN$9="weekly",$G45="Sun"),OFFSET($J$10,,MATCH(BN$24,$K$8:$AV$8,0)),IF(AND($F45="week 3",AN$9="bi-weekly",$G45="Sun"),OFFSET($J$10,,MATCH(BN$24,$K$8:$AV$8,0)),BO43+1)))) -> 2 | BO45: =IF(AN$9="weekly",OFFSET($J$13,,MATCH(BN$24,$K$8:$AV$8,0))+BN45-1,IF(AN$9="bi-weekly",OFFSET($J$14,,MATCH(BN$24,$K$8:$AV$8,0))+BN45-1,IF(AN$9="Monthly",OFFSET($J$15,,MATCH(BN$24,$K$8:$AV$8,0))+BN45-1,0))) -> 16.57142857 | BP45: =IF(AO$9="none",0,IF(AND($F45="week 1",$G45="Sun"),OFFSET($J$10,,MATCH(BP$24,$K$8:$AV$8,0)),IF(AND(OR($F45="week 2",$F45="week 3",$F45="week 4"),AO$9="weekly",$G45="Sun"),OFFSET($J$10,,MATCH(BP$24,$K$8:$AV$8,0)),IF(AND($F45="week 3",AO$9="bi-weekly",$G45="Sun"),OFFSET($J$10,,MATCH(BP$24,$K$8:$AV$8,0)),BQ43+1)))) -> 0 | BQ45: =IF(AO$9="weekly",OFFSET($J$13,,MATCH(BP$24,$K$8:$AV$8,0))+BP45-1,IF(AO$9="bi-weekly",OFFSET($J$14,,MATCH(BP$24,$K$8:$AV$8,0))+BP45-1,IF(AO$9="Monthly",OFFSET($J$15,,MATCH(BP$24,$K$8:$AV$8,0))+BP45-1,0))) -> 0 | BR45: =IF(AP$9="none",0,IF(AND($F45="week 1",$G45="Sun"),OFFSET($J$10,,MATCH(BR$24,$K$8:$AV$8,0)),IF(AND(OR($F45="week 2",$F45="week 3",$F45="week 4"),AP$9="weekly",$G45="Sun"),OFFSET($J$10,,MATCH(BR$24,$K$8:$AV$8,0)),IF(AND($F45="week 3",AP$9="bi-weekly",$G45="Sun"),OFFSET($J$10,,MATCH(BR$24,$K$8:$AV$8,0)),BS43+1)))) -> 0 | BS45: =IF(AP$9="weekly",OFFSET($J$13,,MATCH(BR$24,$K$8:$AV$8,0))+BR45-1,IF(AP$9="bi-weekly",OFFSET($J$14,,MATCH(BR$24,$K$8:$AV$8,0))+BR45-1,IF(AP$9="Monthly",OFFSET($J$15,,MATCH(BR$24,$K$8:$AV$8,0))+BR45-1,0))) -> 0 | BT45: =IF(AQ$9="none",0,IF(AND($F45="week 1",$G45="Sun"),OFFSET($J$10,,MATCH(BT$24,$K$8:$AV$8,0)),IF(AND(OR($F45="week 2",$F45="week 3",$F45="week 4"),AQ$9="weekly",$G45="Sun"),OFFSET($J$10,,MATCH(BT$24,$K$8:$AV$8,0)),IF(AND($F45="week 3",AQ$9="bi-weekly",$G45="Sun"),OFFSET($J$10,,MATCH(BT$24,$K$8:$AV$8,0)),BU43+1)))) -> 0 | BU45: =IF(AQ$9="weekly",OFFSET($J$13,,MATCH(BT$24,$K$8:$AV$8,0))+BT45-1,IF(AQ$9="bi-weekly",OFFSET($J$14,,MATCH(BT$24,$K$8:$AV$8,0))+BT45-1,IF(AQ$9="Monthly",OFFSET($J$15,,MATCH(BT$24,$K$8:$AV$8,0))+BT45-1,0))) -> 0 | BV45: =IF(AR$9="none",0,IF(AND($F45="week 1",$G45="Sun"),OFFSET($J$10,,MATCH(BV$24,$K$8:$AV$8,0)),IF(AND(OR($F45="week 2",$F45="week 3",$F45="week 4"),AR$9="weekly",$G45="Sun"),OFFSET($J$10,,MATCH(BV$24,$K$8:$AV$8,0)),IF(AND($F45="week 3",AR$9="bi-weekly",$G45="Sun"),OFFSET($J$10,,MATCH(BV$24,$K$8:$AV$8,0)),BW43+1)))) -> 0 | BW45: =IF(AR$9="weekly",OFFSET($J$13,,MATCH(BV$24,$K$8:$AV$8,0))+BV45-1,IF(AR$9="bi-weekly",OFFSET($J$14,,MATCH(BV$24,$K$8:$AV$8,0))+BV45-1,IF(AR$9="Monthly",OFFSET($J$15,,MATCH(BV$24,$K$8:$AV$8,0))+BV45-1,0))) -> 0 | BX45: =IF(AS$9="none",0,IF(AND($F45="week 1",$G45="Sun"),OFFSET($J$10,,MATCH(BX$24,$K$8:$AV$8,0)),IF(AND(OR($F45="week 2",$F45="week 3",$F45="week 4"),AS$9="weekly",$G45="Sun"),OFFSET($J$10,,MATCH(BX$24,$K$8:$AV$8,0)),IF(AND($F45="week 3",AS$9="bi-weekly",$G45="Sun"),OFFSET($J$10,,MATCH(BX$24,$K$8:$AV$8,0)),BY43+1)))) -> 0 | BY45: =IF(AS$9="weekly",OFFSET($J$13,,MATCH(BX$24,$K$8:$AV$8,0))+BX45-1,IF(AS$9="bi-weekly",OFFSET($J$14,,MATCH(BX$24,$K$8:$AV$8,0))+BX45-1,IF(AS$9="Monthly",OFFSET($J$15,,MATCH(BX$24,$K$8:$AV$8,0))+BX45-1,0))) -> 0 | BZ45: =IF(AT$9="none",0,IF(AND($F45="week 1",$G45="Sun"),OFFSET($J$10,,MATCH(BZ$24,$K$8:$AV$8,0)),IF(AND(OR($F45="week 2",$F45="week 3",$F45="week 4"),AT$9="weekly",$G45="Sun"),OFFSET($J$10,,MATCH(BZ$24,$K$8:$AV$8,0)),IF(AND($F45="week 3",AT$9="bi-weekly",$G45="Sun"),OFFSET($J$10,,MATCH(BZ$24,$K$8:$AV$8,0)),CA43+1)))) -> 0 | CA45: =IF(AT$9="weekly",OFFSET($J$13,,MATCH(BZ$24,$K$8:$AV$8,0))+BZ45-1,IF(AT$9="bi-weekly",OFFSET($J$14,,MATCH(BZ$24,$K$8:$AV$8,0))+BZ45-1,IF(AT$9="Monthly",OFFSET($J$15,,MATCH(BZ$24,$K$8:$AV$8,0))+BZ45-1,0))) -> 0 | CB45: =IF(AU$9="none",0,IF(AND($F45="week 1",$G45="Sun"),OFFSET($J$10,,MATCH(CB$24,$K$8:$AV$8,0)),IF(AND(OR($F45="week 2",$F45="week 3",$F45="week 4"),AU$9="weekly",$G45="Sun"),OFFSET($J$10,,MATCH(CB$24,$K$8:$AV$8,0)),IF(AND($F45="week 3",AU$9="bi-weekly",$G45="Sun"),OFFSET($J$10,,MATCH(CB$24,$K$8:$AV$8,0)),CC43+1)))) -> 0 | CC45: =IF(AU$9="weekly",OFFSET($J$13,,MATCH(CB$24,$K$8:$AV$8,0))+CB45-1,IF(AU$9="bi-weekly",OFFSET($J$14,,MATCH(CB$24,$K$8:$AV$8,0))+CB45-1,IF(AU$9="Monthly",OFFSET($J$15,,MATCH(CB$24,$K$8:$AV$8,0))+CB45-1,0))) -> 0 | CD45: =(ROUND(I45,0)-ROUND(H45,0))+(ROUND(K45,0)-ROUND(J45,0))+(ROUND(M45,0)-ROUND(L45,0))+(ROUND(O45,0)-ROUND(N45,0))+(ROUND(Q45,0)-ROUND(P45,0))+(ROUND(S45,0)-ROUND(R45,0))+(ROUND(U45,0)-ROUND(T45,0)+(ROUND(W45,0)-ROUND(V45,0))+(ROUND(Y45,0)-ROUND(X45,0))+(ROUND(AA45,0)-ROUND(Z45,0))+(ROUND(AC45,0)-ROUND(AB45,0))+(ROUND(AE45,0)-ROUND(AD45,0))+(ROUND(AG45,0)-ROUND(AF45,0))+(ROUND(AI45,0)-ROUND(AH45,0))+(ROUND(AK45,0)-ROUND(AJ45,0))+(ROUND(AM45,0)-ROUND(AL45,0))+(ROUND(AO45,0)-ROUND(AN45,0))+(ROUND(AQ45,0)-ROUND(AP45,0))+(ROUND(AS45,0)-ROUND(AR45,0))+(ROUND(AU45,0)-ROUND(AT45,0))+(ROUND(AW45,0)-ROUND(AV45,0))+(ROUND(AY45,0)-ROUND(AX45,0))+(ROUND(BA45,0)-ROUND(AZ45,0))+(ROUND(BC45,0)-ROUND(BB45,0))+(ROUND(BE45,0)-ROUND(BD45,0))+(ROUND(BG45,0)-ROUND(BF45,0))+(ROUND(BI45,0)-ROUND(BH45,0))+(ROUND(BK45,0)-ROUND(BJ45,0))+(ROUND(BM45,0)-ROUND(BL45,0))+(ROUND(BO45,0)-ROUND(BN45,0))+(ROUND(BQ45,0)-ROUND(BP45,0))+(ROUND(BS45,0)-ROUND(BR45,0))+(ROUND(BU45,0)-ROUND(BT45,0))+(ROUND(BW45,0)-ROUND(BV45,0))+(ROUND(BY45,0)-ROUND(BX45,0))+(ROUND(CA45,0)-ROUND(BZ45,0))+(ROUND(CC45,0)-ROUND(CB45,0))+(COUNTIF($H45:$CC45,">"&0)/2)) -> 142
F46: WEEK 3 | G46: MON | H46: =IF(K$9="none",0,IF(AND($F46="week 1",$G46="Sun"),OFFSET($J$10,,MATCH(H$24,$K$8:$AV$8,0)),IF(AND(OR($F46="week 2",$F46="week 3",$F46="week 4"),K$9="weekly",$G46="Sun"),OFFSET($J$10,,MATCH(H$24,$K$8:$AV$8,0)),IF(AND($F46="week 3",K$9="bi-weekly",$G46="Sun"),OFFSET($J$10,,MATCH(H$24,$K$8:$AV$8,0)),I45+1)))) -> 35.75 | I46: 37 | J46: =IF(L$9="none",0,IF(AND($F46="week 1",$G46="Sun"),OFFSET($J$10,,MATCH(J$24,$K$8:$AV$8,0)),IF(AND(OR($F46="week 2",$F46="week 3",$F46="week 4"),L$9="weekly",$G46="Sun"),OFFSET($J$10,,MATCH(J$24,$K$8:$AV$8,0)),IF(AND($F46="week 3",L$9="bi-weekly",$G46="Sun"),OFFSET($J$10,,MATCH(J$24,$K$8:$AV$8,0)),K45+1)))) -> 85.57142857 | K46: 90.14285714 | L46: =IF(M$9="none",0,IF(AND($F46="week 1",$G46="Sun"),OFFSET($J$10,,MATCH(L$24,$K$8:$AV$8,0)),IF(AND(OR($F46="week 2",$F46="week 3",$F46="week 4"),M$9="weekly",$G46="Sun"),OFFSET($J$10,,MATCH(L$24,$K$8:$AV$8,0)),IF(AND($F46="week 3",M$9="bi-weekly",$G46="Sun"),OFFSET($J$10,,MATCH(L$24,$K$8:$AV$8,0)),M45+1)))) -> 57.71428571 | M46: 60.42857143 | N46: =IF(N$9="none",0,IF(AND($F46="week 1",$G46="Sun"),OFFSET($J$10,,MATCH(N$24,$K$8:$AV$8,0)),IF(AND(OR($F46="week 2",$F46="week 3",$F46="week 4"),N$9="weekly",$G46="Sun"),OFFSET($J$10,,MATCH(N$24,$K$8:$AV$8,0)),IF(AND($F46="week 3",N$9="bi-weekly",$G46="Sun"),OFFSET($J$10,,MATCH(N$24,$K$8:$AV$8,0)),O45+1)))) -> 66.28571429 | O46: 69.57142857 | P46: =IF(O$9="none",0,IF(AND($F46="week 1",$G46="Sun"),OFFSET($J$10,,MATCH(P$24,$K$8:$AV$8,0)),IF(AND(OR($F46="week 2",$F46="week 3",$F46="week 4"),O$9="weekly",$G46="Sun"),OFFSET($J$10,,MATCH(P$24,$K$8:$AV$8,0)),IF(AND($F46="week 3",O$9="bi-weekly",$G46="Sun"),OFFSET($J$10,,MATCH(P$24,$K$8:$AV$8,0)),Q45+1)))) -> 13.25 | Q46: 13 | R46: =IF(P$9="none",0,IF(AND($F46="week 1",$G46="Sun"),OFFSET($J$10,,MATCH(R$24,$K$8:$AV$8,0)),IF(AND(OR($F46="week 2",$F46="week 3",$F46="week 4"),P$9="weekly",$G46="Sun"),OFFSET($J$10,,MATCH(R$24,$K$8:$AV$8,0)),IF(AND($F46="week 3",P$9="bi-weekly",$G46="Sun"),OFFSET($J$10,,MATCH(R$24,$K$8:$AV$8,0)),S45+1)))) -> 48.60714286 | S46: 50.71428571 | T46: =IF(Q$9="none",0,IF(AND($F46="week 1",$G46="Sun"),OFFSET($J$10,,MATCH(T$24,$K$8:$AV$8,0)),IF(AND(OR($F46="week 2",$F46="week 3",$F46="week 4"),Q$9="weekly",$G46="Sun"),OFFSET($J$10,,MATCH(T$24,$K$8:$AV$8,0)),IF(AND($F46="week 3",Q$9="bi-weekly",$G46="Sun"),OFFSET($J$10,,MATCH(T$24,$K$8:$AV$8,0)),U45+1)))) -> 31.46428571 | U46: 32.42857143 | V46: =IF(R$9="none",0,IF(AND($F46="week 1",$G46="Sun"),OFFSET($J$10,,MATCH(V$24,$K$8:$AV$8,0)),IF(AND(OR($F46="week 2",$F46="week 3",$F46="week 4"),R$9="weekly",$G46="Sun"),OFFSET($J$10,,MATCH(V$24,$K$8:$AV$8,0)),IF(AND($F46="week 3",R$9="bi-weekly",$G46="Sun"),OFFSET($J$10,,MATCH(V$24,$K$8:$AV$8,0)),W45+1)))) -> 22.89285714 | W46: 23.28571429 | X46: =IF(S$9="none",0,IF(AND($F46="week 1",$G46="Sun"),OFFSET($J$10,,MATCH(X$24,$K$8:$AV$8,0)),IF(AND(OR($F46="week 2",$F46="week 3",$F46="week 4"),S$9="weekly",$G46="Sun"),OFFSET($J$10,,MATCH(X$24,$K$8:$AV$8,0)),IF(AND($F46="week 3",S$9="bi-weekly",$G46="Sun"),OFFSET($J$10,,MATCH(X$24,$K$8:$AV$8,0)),Y45+1)))) -> 20.21428571 | Y46: 20.42857143 | Z46: =IF(T$9="none",0,IF(AND($F46="week 1",$G46="Sun"),OFFSET($J$10,,MATCH(Z$24,$K$8:$AV$8,0)),IF(AND(OR($F46="week 2",$F46="week 3",$F46="week 4"),T$9="weekly",$G46="Sun"),OFFSET($J$10,,MATCH(Z$24,$K$8:$AV$8,0)),IF(AND($F46="week 3",T$9="bi-weekly",$G46="Sun"),OFFSET($J$10,,MATCH(Z$24,$K$8:$AV$8,0)),AA45+1)))) -> 18.07142857 | AA46: 18.14285714 | AB46: =IF(U$9="none",0,IF(AND($F46="week 1",$G46="Sun"),OFFSET($J$10,,MATCH(AB$24,$K$8:$AV$8,0)),IF(AND(OR($F46="week 2",$F46="week 3",$F46="week 4"),U$9="weekly",$G46="Sun"),OFFSET($J$10,,MATCH(AB$24,$K$8:$AV$8,0)),IF(AND($F46="week 3",U$9="bi-weekly",$G46="Sun"),OFFSET($J$10,,MATCH(AB$24,$K$8:$AV$8,0)),AC45+1)))) -> 18.60714286 | AC46: 18.71428571 | AD46: =IF(V$9="none",0,IF(AND($F46="week 1",$G46="Sun"),OFFSET($J$10,,MATCH(AD$24,$K$8:$AV$8,0)),IF(AND(OR($F46="week 2",$F46="week 3",$F46="week 4"),V$9="weekly",$G46="Sun"),OFFSET($J$10,,MATCH(AD$24,$K$8:$AV$8,0)),IF(AND($F46="week 3",V$9="bi-weekly",$G46="Sun"),OFFSET($J$10,,MATCH(AD$24,$K$8:$AV$8,0)),AE45+1)))) -> 17 | AE46: 17 | AF46: =IF(W$9="none",0,IF(AND($F46="week 1",$G46="Sun"),OFFSET($J$10,,MATCH(AF$24,$K$8:$AV$8,0)),IF(AND(OR($F46="week 2",$F46="week 3",$F46="week 4"),W$9="weekly",$G46="Sun"),OFFSET($J$10,,MATCH(AF$24,$K$8:$AV$8,0)),IF(AND($F46="week 3",W$9="bi-weekly",$G46="Sun"),OFFSET($J$10,,MATCH(AF$24,$K$8:$AV$8,0)),AG45+1)))) -> 15.92857143 | AG46: 15.85714286 | AH46: =IF(X$9="none",0,IF(AND($F46="week 1",$G46="Sun"),OFFSET($J$10,,MATCH(AH$24,$K$8:$AV$8,0)),IF(AND(OR($F46="week 2",$F46="week 3",$F46="week 4"),X$9="weekly",$G46="Sun"),OFFSET($J$10,,MATCH(AH$24,$K$8:$AV$8,0)),IF(AND($F46="week 3",X$9="bi-weekly",$G46="Sun"),OFFSET($J$10,,MATCH(AH$24,$K$8:$AV$8,0)),AI45+1)))) -> 66.82142857 | AI46: 70.14285714 | AJ46: =IF(Y$9="none",0,IF(AND($F46="week 1",$G46="Sun"),OFFSET($J$10,,MATCH(AJ$24,$K$8:$AV$8,0)),IF(AND(OR($F46="week 2",$F46="week 3",$F46="week 4"),Y$9="weekly",$G46="Sun"),OFFSET($J$10,,MATCH(AJ$24,$K$8:$AV$8,0)),IF(AND($F46="week 3",Y$9="bi-weekly",$G46="Sun"),OFFSET($J$10,,MATCH(AJ$24,$K$8:$AV$8,0)),AK45+1)))) -> 61.46428571 | AK46: 64.42857143 | AL46: =IF(Z$9="none",0,IF(AND($F46="week 1",$G46="Sun"),OFFSET($J$10,,MATCH(AL$24,$K$8:$AV$8,0)),IF(AND(OR($F46="week 2",$F46="week 3",$F46="week 4"),Z$9="weekly",$G46="Sun"),OFFSET($J$10,,MATCH(AL$24,$K$8:$AV$8,0)),IF(AND($F46="week 3",Z$9="bi-weekly",$G46="Sun"),OFFSET($J$10,,MATCH(AL$24,$K$8:$AV$8,0)),AM45+1)))) -> 50.21428571 | AM46: 52.42857143 | AN46: =IF(AA$9="none",0,IF(AND($F46="week 1",$G46="Sun"),OFFSET($J$10,,MATCH(AN$24,$K$8:$AV$8,0)),IF(AND(OR($F46="week 2",$F46="week 3",$F46="week 4"),AA$9="weekly",$G46="Sun"),OFFSET($J$10,,MATCH(AN$24,$K$8:$AV$8,0)),IF(AND($F46="week 3",AA$9="bi-weekly",$G46="Sun"),OFFSET($J$10,,MATCH(AN$24,$K$8:$AV$8,0)),AO45+1)))) -> 36.82142857 | AO46: 38.14285714 | AP46: =IF(AB$9="none",0,IF(AND($F46="week 1",$G46="Sun"),OFFSET($J$10,,MATCH(AP$24,$K$8:$AV$8,0)),IF(AND(OR($F46="week 2",$F46="week 3",$F46="week 4"),AB$9="weekly",$G46="Sun"),OFFSET($J$10,,MATCH(AP$24,$K$8:$AV$8,0)),IF(AND($F46="week 3",AB$9="bi-weekly",$G46="Sun"),OFFSET($J$10,,MATCH(AP$24,$K$8:$AV$8,0)),AQ45+1)))) -> 27.71428571 | AQ46: =IF(AB$9="weekly",OFFSET($J$13,,MATCH(AP$24,$K$8:$AV$8,0))+AP46-1,IF(AB$9="bi-weekly",OFFSET($J$14,,MATCH(AP$24,$K$8:$AV$8,0))+AP46-1,IF(AB$9="Monthly",OFFSET($J$15,,MATCH(AP$24,$K$8:$AV$8,0))+AP46-1,0))) -> 28.42857143 | AR46: =IF(AC$9="none",0,IF(AND($F46="week 1",$G46="Sun"),OFFSET($J$10,,MATCH(AR$24,$K$8:$AV$8,0)),IF(AND(OR($F46="week 2",$F46="week 3",$F46="week 4"),AC$9="weekly",$G46="Sun"),OFFSET($J$10,,MATCH(AR$24,$K$8:$AV$8,0)),IF(AND($F46="week 3",AC$9="bi-weekly",$G46="Sun"),OFFSET($J$10,,MATCH(AR$24,$K$8:$AV$8,0)),AS45+1)))) -> 49.67857143 | AS46: 51.85714286 | AT46: =IF(AD$9="none",0,IF(AND($F46="week 1",$G46="Sun"),OFFSET($J$10,,MATCH(AT$24,$K$8:$AV$8,0)),IF(AND(OR($F46="week 2",$F46="week 3",$F46="week 4"),AD$9="weekly",$G46="Sun"),OFFSET($J$10,,MATCH(AT$24,$K$8:$AV$8,0)),IF(AND($F46="week 3",AD$9="bi-weekly",$G46="Sun"),OFFSET($J$10,,MATCH(AT$24,$K$8:$AV$8,0)),AU45+1)))) -> 45.39285714 | AU46: 47.28571429 | AV46: =IF(AE$9="none",0,IF(AND($F46="week 1",$G46="Sun"),OFFSET($J$10,,MATCH(AV$24,$K$8:$AV$8,0)),IF(AND(OR($F46="week 2",$F46="week 3",$F46="week 4"),AE$9="weekly",$G46="Sun"),OFFSET($J$10,,MATCH(AV$24,$K$8:$AV$8,0)),IF(AND($F46="week 3",AE$9="bi-weekly",$G46="Sun"),OFFSET($J$10,,MATCH(AV$24,$K$8:$AV$8,0)),AW45+1)))) -> 65.21428571 | AW46: 68.42857143 | AX46: =IF(AF$9="none",0,IF(AND($F46="week 1",$G46="Sun"),OFFSET($J$10,,MATCH(AX$24,$K$8:$AV$8,0)),IF(AND(OR($F46="week 2",$F46="week 3",$F46="week 4"),AF$9="weekly",$G46="Sun"),OFFSET($J$10,,MATCH(AX$24,$K$8:$AV$8,0)),IF(AND($F46="week 3",AF$9="bi-weekly",$G46="Sun"),OFFSET($J$10,,MATCH(AX$24,$K$8:$AV$8,0)),AY45+1)))) -> 10.42857143 | AY46: 17.85714286 | AZ46: =IF(AG$9="none",0,IF(AND($F46="week 1",$G46="Sun"),OFFSET($J$10,,MATCH(AZ$24,$K$8:$AV$8,0)),IF(AND(OR($F46="week 2",$F46="week 3",$F46="week 4"),AG$9="weekly",$G46="Sun"),OFFSET($J$10,,MATCH(AZ$24,$K$8:$AV$8,0)),IF(AND($F46="week 3",AG$9="bi-weekly",$G46="Sun"),OFFSET($J$10,,MATCH(AZ$24,$K$8:$AV$8,0)),BA45+1)))) -> 14.5 | BA46: 26 | BB46: =IF(AH$9="none",0,IF(AND($F46="week 1",$G46="Sun"),OFFSET($J$10,,MATCH(BB$24,$K$8:$AV$8,0)),IF(AND(OR($F46="week 2",$F46="week 3",$F46="week 4"),AH$9="weekly",$G46="Sun"),OFFSET($J$10,,MATCH(BB$24,$K$8:$AV$8,0)),IF(AND($F46="week 3",AH$9="bi-weekly",$G46="Sun"),OFFSET($J$10,,MATCH(BB$24,$K$8:$AV$8,0)),BC45+1)))) -> 18 | BC46: 33 | BD46: =IF(AI$9="none",0,IF(AND($F46="week 1",$G46="Sun"),OFFSET($J$10,,MATCH(BD$24,$K$8:$AV$8,0)),IF(AND(OR($F46="week 2",$F46="week 3",$F46="week 4"),AI$9="weekly",$G46="Sun"),OFFSET($J$10,,MATCH(BD$24,$K$8:$AV$8,0)),IF(AND($F46="week 3",AI$9="bi-weekly",$G46="Sun"),OFFSET($J$10,,MATCH(BD$24,$K$8:$AV$8,0)),BE45+1)))) -> 5.285714286 | BE46: 7.571428571 | BF46: =IF(AJ$9="none",0,IF(AND($F46="week 1",$G46="Sun"),OFFSET($J$10,,MATCH(BF$24,$K$8:$AV$8,0)),IF(AND(OR($F46="week 2",$F46="week 3",$F46="week 4"),AJ$9="weekly",$G46="Sun"),OFFSET($J$10,,MATCH(BF$24,$K$8:$AV$8,0)),IF(AND($F46="week 3",AJ$9="bi-weekly",$G46="Sun"),OFFSET($J$10,,MATCH(BF$24,$K$8:$AV$8,0)),BG45+1)))) -> 8.857142857 | BG46: 14.71428571 | BH46: =IF(AK$9="none",0,IF(AND($F46="week 1",$G46="Sun"),OFFSET($J$10,,MATCH(BH$24,$K$8:$AV$8,0)),IF(AND(OR($F46="week 2",$F46="week 3",$F46="week 4"),AK$9="weekly",$G46="Sun"),OFFSET($J$10,,MATCH(BH$24,$K$8:$AV$8,0)),IF(AND($F46="week 3",AK$9="bi-weekly",$G46="Sun"),OFFSET($J$10,,MATCH(BH$24,$K$8:$AV$8,0)),BI45+1)))) -> 12.71428571 | BI46: 22.42857143 | BJ46: =IF(AL$9="none",0,IF(AND($F46="week 1",$G46="Sun"),OFFSET($J$10,,MATCH(BJ$24,$K$8:$AV$8,0)),IF(AND(OR($F46="week 2",$F46="week 3",$F46="week 4"),AL$9="weekly",$G46="Sun"),OFFSET($J$10,,MATCH(BJ$24,$K$8:$AV$8,0)),IF(AND($F46="week 3",AL$9="bi-weekly",$G46="Sun"),OFFSET($J$10,,MATCH(BJ$24,$K$8:$AV$8,0)),BK45+1)))) -> 3.857142857 | BK46: =IF(AL$9="weekly",OFFSET($J$13,,MATCH(BJ$24,$K$8:$AV$8,0))+BJ46-1,IF(AL$9="bi-weekly",OFFSET($J$14,,MATCH(BJ$24,$K$8:$AV$8,0))+BJ46-1,IF(AL$9="Monthly",OFFSET($J$15,,MATCH(BJ$24,$K$8:$AV$8,0))+BJ46-1,0))) -> 4.714285714 | BL46: =IF(AM$9="none",0,IF(AND($F46="week 1",$G46="Sun"),OFFSET($J$10,,MATCH(BL$24,$K$8:$AV$8,0)),IF(AND(OR($F46="week 2",$F46="week 3",$F46="week 4"),AM$9="weekly",$G46="Sun"),OFFSET($J$10,,MATCH(BL$24,$K$8:$AV$8,0)),IF(AND($F46="week 3",AM$9="bi-weekly",$G46="Sun"),OFFSET($J$10,,MATCH(BL$24,$K$8:$AV$8,0)),BM45+1)))) -> 19 | BM46: =IF(AM$9="weekly",OFFSET($J$13,,MATCH(BL$24,$K$8:$AV$8,0))+BL46-1,IF(AM$9="bi-weekly",OFFSET($J$14,,MATCH(BL$24,$K$8:$AV$8,0))+BL46-1,IF(AM$9="Monthly",OFFSET($J$15,,MATCH(BL$24,$K$8:$AV$8,0))+BL46-1,0))) -> 35 | BN46: =IF(AN$9="none",0,IF(AND($F46="week 1",$G46="Sun"),OFFSET($J$10,,MATCH(BN$24,$K$8:$AV$8,0)),IF(AND(OR($F46="week 2",$F46="week 3",$F46="week 4"),AN$9="weekly",$G46="Sun"),OFFSET($J$10,,MATCH(BN$24,$K$8:$AV$8,0)),IF(AND($F46="week 3",AN$9="bi-weekly",$G46="Sun"),OFFSET($J$10,,MATCH(BN$24,$K$8:$AV$8,0)),BO45+1)))) -> 17.57142857 | BO46: =IF(AN$9="weekly",OFFSET($J$13,,MATCH(BN$24,$K$8:$AV$8,0))+BN46-1,IF(AN$9="bi-weekly",OFFSET($J$14,,MATCH(BN$24,$K$8:$AV$8,0))+BN46-1,IF(AN$9="Monthly",OFFSET($J$15,,MATCH(BN$24,$K$8:$AV$8,0))+BN46-1,0))) -> 32.14285714 | BP46: =IF(AO$9="none",0,IF(AND($F46="week 1",$G46="Sun"),OFFSET($J$10,,MATCH(BP$24,$K$8:$AV$8,0)),IF(AND(OR($F46="week 2",$F46="week 3",$F46="week 4"),AO$9="weekly",$G46="Sun"),OFFSET($J$10,,MATCH(BP$24,$K$8:$AV$8,0)),IF(AND($F46="week 3",AO$9="bi-weekly",$G46="Sun"),OFFSET($J$10,,MATCH(BP$24,$K$8:$AV$8,0)),BQ45+1)))) -> 0 | BQ46: =IF(AO$9="weekly",OFFSET($J$13,,MATCH(BP$24,$K$8:$AV$8,0))+BP46-1,IF(AO$9="bi-weekly",OFFSET($J$14,,MATCH(BP$24,$K$8:$AV$8,0))+BP46-1,IF(AO$9="Monthly",OFFSET($J$15,,MATCH(BP$24,$K$8:$AV$8,0))+BP46-1,0))) -> 0 | BR46: =IF(AP$9="none",0,IF(AND($F46="week 1",$G46="Sun"),OFFSET($J$10,,MATCH(BR$24,$K$8:$AV$8,0)),IF(AND(OR($F46="week 2",$F46="week 3",$F46="week 4"),AP$9="weekly",$G46="Sun"),OFFSET($J$10,,MATCH(BR$24,$K$8:$AV$8,0)),IF(AND($F46="week 3",AP$9="bi-weekly",$G46="Sun"),OFFSET($J$10,,MATCH(BR$24,$K$8:$AV$8,0)),BS45+1)))) -> 0 | BS46: 0 | BT46: =IF(AQ$9="none",0,IF(AND($F46="week 1",$G46="Sun"),OFFSET($J$10,,MATCH(BT$24,$K$8:$AV$8,0)),IF(AND(OR($F46="week 2",$F46="week 3",$F46="week 4"),AQ$9="weekly",$G46="Sun"),OFFSET($J$10,,MATCH(BT$24,$K$8:$AV$8,0)),IF(AND($F46="week 3",AQ$9="bi-weekly",$G46="Sun"),OFFSET($J$10,,MATCH(BT$24,$K$8:$AV$8,0)),BU45+1)))) -> 0 | BU46: =IF(AQ$9="weekly",OFFSET($J$13,,MATCH(BT$24,$K$8:$AV$8,0))+BT46-1,IF(AQ$9="bi-weekly",OFFSET($J$14,,MATCH(BT$24,$K$8:$AV$8,0))+BT46-1,IF(AQ$9="Monthly",OFFSET($J$15,,MATCH(BT$24,$K$8:$AV$8,0))+BT46-1,0))) -> 0 | BV46: =IF(AR$9="none",0,IF(AND($F46="week 1",$G46="Sun"),OFFSET($J$10,,MATCH(BV$24,$K$8:$AV$8,0)),IF(AND(OR($F46="week 2",$F46="week 3",$F46="week 4"),AR$9="weekly",$G46="Sun"),OFFSET($J$10,,MATCH(BV$24,$K$8:$AV$8,0)),IF(AND($F46="week 3",AR$9="bi-weekly",$G46="Sun"),OFFSET($J$10,,MATCH(BV$24,$K$8:$AV$8,0)),BW45+1)))) -> 0 | BW46: =IF(AR$9="weekly",OFFSET($J$13,,MATCH(BV$24,$K$8:$AV$8,0))+BV46-1,IF(AR$9="bi-weekly",OFFSET($J$14,,MATCH(BV$24,$K$8:$AV$8,0))+BV46-1,IF(AR$9="Monthly",OFFSET($J$15,,MATCH(BV$24,$K$8:$AV$8,0))+BV46-1,0))) -> 0 | BX46: =IF(AS$9="none",0,IF(AND($F46="week 1",$G46="Sun"),OFFSET($J$10,,MATCH(BX$24,$K$8:$AV$8,0)),IF(AND(OR($F46="week 2",$F46="week 3",$F46="week 4"),AS$9="weekly",$G46="Sun"),OFFSET($J$10,,MATCH(BX$24,$K$8:$AV$8,0)),IF(AND($F46="week 3",AS$9="bi-weekly",$G46="Sun"),OFFSET($J$10,,MATCH(BX$24,$K$8:$AV$8,0)),BY45+1)))) -> 0 | BY46: =IF(AS$9="weekly",OFFSET($J$13,,MATCH(BX$24,$K$8:$AV$8,0))+BX46-1,IF(AS$9="bi-weekly",OFFSET($J$14,,MATCH(BX$24,$K$8:$AV$8,0))+BX46-1,IF(AS$9="Monthly",OFFSET($J$15,,MATCH(BX$24,$K$8:$AV$8,0))+BX46-1,0))) -> 0 | BZ46: =IF(AT$9="none",0,IF(AND($F46="week 1",$G46="Sun"),OFFSET($J$10,,MATCH(BZ$24,$K$8:$AV$8,0)),IF(AND(OR($F46="week 2",$F46="week 3",$F46="week 4"),AT$9="weekly",$G46="Sun"),OFFSET($J$10,,MATCH(BZ$24,$K$8:$AV$8,0)),IF(AND($F46="week 3",AT$9="bi-weekly",$G46="Sun"),OFFSET($J$10,,MATCH(BZ$24,$K$8:$AV$8,0)),CA45+1)))) -> 0 | CA46: =IF(AT$9="weekly",OFFSET($J$13,,MATCH(BZ$24,$K$8:$AV$8,0))+BZ46-1,IF(AT$9="bi-weekly",OFFSET($J$14,,MATCH(BZ$24,$K$8:$AV$8,0))+BZ46-1,IF(AT$9="Monthly",OFFSET($J$15,,MATCH(BZ$24,$K$8:$AV$8,0))+BZ46-1,0))) -> 0 | CB46: =IF(AU$9="none",0,IF(AND($F46="week 1",$G46="Sun"),OFFSET($J$10,,MATCH(CB$24,$K$8:$AV$8,0)),IF(AND(OR($F46="week 2",$F46="week 3",$F46="week 4"),AU$9="weekly",$G46="Sun"),OFFSET($J$10,,MATCH(CB$24,$K$8:$AV$8,0)),IF(AND($F46="week 3",AU$9="bi-weekly",$G46="Sun"),OFFSET($J$10,,MATCH(CB$24,$K$8:$AV$8,0)),CC45+1)))) -> 0 | CC46: =IF(AU$9="weekly",OFFSET($J$13,,MATCH(CB$24,$K$8:$AV$8,0))+CB46-1,IF(AU$9="bi-weekly",OFFSET($J$14,,MATCH(CB$24,$K$8:$AV$8,0))+CB46-1,IF(AU$9="Monthly",OFFSET($J$15,,MATCH(CB$24,$K$8:$AV$8,0))+CB46-1,0))) -> 0 | CD46: =(ROUND(I46,0)-ROUND(H46,0))+(ROUND(K46,0)-ROUND(J46,0))+(ROUND(M46,0)-ROUND(L46,0))+(ROUND(O46,0)-ROUND(N46,0))+(ROUND(Q46,0)-ROUND(P46,0))+(ROUND(S46,0)-ROUND(R46,0))+(ROUND(U46,0)-ROUND(T46,0)+(ROUND(W46,0)-ROUND(V46,0))+(ROUND(Y46,0)-ROUND(X46,0))+(ROUND(AA46,0)-ROUND(Z46,0))+(ROUND(AC46,0)-ROUND(AB46,0))+(ROUND(AE46,0)-ROUND(AD46,0))+(ROUND(AG46,0)-ROUND(AF46,0))+(ROUND(AI46,0)-ROUND(AH46,0))+(ROUND(AK46,0)-ROUND(AJ46,0))+(ROUND(AM46,0)-ROUND(AL46,0))+(ROUND(AO46,0)-ROUND(AN46,0))+(ROUND(AQ46,0)-ROUND(AP46,0))+(ROUND(AS46,0)-ROUND(AR46,0))+(ROUND(AU46,0)-ROUND(AT46,0))+(ROUND(AW46,0)-ROUND(AV46,0))+(ROUND(AY46,0)-ROUND(AX46,0))+(ROUND(BA46,0)-ROUND(AZ46,0))+(ROUND(BC46,0)-ROUND(BB46,0))+(ROUND(BE46,0)-ROUND(BD46,0))+(ROUND(BG46,0)-ROUND(BF46,0))+(ROUND(BI46,0)-ROUND(BH46,0))+(ROUND(BK46,0)-ROUND(BJ46,0))+(ROUND(BM46,0)-ROUND(BL46,0))+(ROUND(BO46,0)-ROUND(BN46,0))+(ROUND(BQ46,0)-ROUND(BP46,0))+(ROUND(BS46,0)-ROUND(BR46,0))+(ROUND(BU46,0)-ROUND(BT46,0))+(ROUND(BW46,0)-ROUND(BV46,0))+(ROUND(BY46,0)-ROUND(BX46,0))+(ROUND(CA46,0)-ROUND(BZ46,0))+(ROUND(CC46,0)-ROUND(CB46,0))+(COUNTIF($H46:$CC46,">"&0)/2)) -> 143
F47: WEEK 3 | G47: TUE | H47: 38 | I47: 39.25 | J47: 91.14285714 | K47: 95.71428571 | L47: 61.42857143 | M47: 64.14285714 | N47: 70.57142857 | O47: 73.85714286 | P47: 14 | Q47: 13.75 | R47: 51.71428571 | S47: 53.82142857 | T47: 33.42857143 | U47: 34.39285714 | V47: 24.28571429 | W47: 24.67857143 | X47: 21.42857143 | Y47: 21.64285714 | Z47: 19.14285714 | AA47: 19.21428571 | AB47: 19.71428571 | AC47: 19.82142857 | AD47: 18 | AE47: 18 | AF47: 16.85714286 | AG47: 16.78571429 | AH47: 71.14285714 | AI47: 74.46428571 | AJ47: 65.42857143 | AK47: 68.39285714 | AL47: 53.42857143 | AM47: 55.64285714 | AN47: 39.14285714 | AO47: 40.46428571 | AP47: =IF(AB$9="none",0,IF(AND($F47="week 1",$G47="Sun"),OFFSET($J$10,,MATCH(AP$24,$K$8:$AV$8,0)),IF(AND(OR($F47="week 2",$F47="week 3",$F47="week 4"),AB$9="weekly",$G47="Sun"),OFFSET($J$10,,MATCH(AP$24,$K$8:$AV$8,0)),IF(AND($F47="week 3",AB$9="bi-weekly",$G47="Sun"),OFFSET($J$10,,MATCH(AP$24,$K$8:$AV$8,0)),AQ46+1)))) -> 29.42857143 | AQ47: =IF(AB$9="weekly",OFFSET($J$13,,MATCH(AP$24,$K$8:$AV$8,0))+AP47-1,IF(AB$9="bi-weekly",OFFSET($J$14,,MATCH(AP$24,$K$8:$AV$8,0))+AP47-1,IF(AB$9="Monthly",OFFSET($J$15,,MATCH(AP$24,$K$8:$AV$8,0))+AP47-1,0))) -> 30.14285714 | AR47: 52.85714286 | AS47: 55.03571429 | AT47: 48.28571429 | AU47: 50.17857143 | AV47: 69.42857143 | AW47: 72.64285714 | AX47: 18.85714286 | AY47: 26.28571429 | AZ47: 27 | BA47: 38.5 | BB47: 34 | BC47: 49 | BD47: 8.571428571 | BE47: 10.85714286 | BF47: 15.71428571 | BG47: 21.57142857 | BH47: 23.42857143 | BI47: 33.14285714 | BJ47: =IF(AL$9="none",0,IF(AND($F47="week 1",$G47="Sun"),OFFSET($J$10,,MATCH(BJ$24,$K$8:$AV$8,0)),IF(AND(OR($F47="week 2",$F47="week 3",$F47="week 4"),AL$9="weekly",$G47="Sun"),OFFSET($J$10,,MATCH(BJ$24,$K$8:$AV$8,0)),IF(AND($F47="week 3",AL$9="bi-weekly",$G47="Sun"),OFFSET($J$10,,MATCH(BJ$24,$K$8:$AV$8,0)),BK46+1)))) -> 5.714285714 | BK47: =IF(AL$9="weekly",OFFSET($J$13,,MATCH(BJ$24,$K$8:$AV$8,0))+BJ47-1,IF(AL$9="bi-weekly",OFFSET($J$14,,MATCH(BJ$24,$K$8:$AV$8,0))+BJ47-1,IF(AL$9="Monthly",OFFSET($J$15,,MATCH(BJ$24,$K$8:$AV$8,0))+BJ47-1,0))) -> 6.571428571 | BL47: =IF(AM$9="none",0,IF(AND($F47="week 1",$G47="Sun"),OFFSET($J$10,,MATCH(BL$24,$K$8:$AV$8,0)),IF(AND(OR($F47="week 2",$F47="week 3",$F47="week 4"),AM$9="weekly",$G47="Sun"),OFFSET($J$10,,MATCH(BL$24,$K$8:$AV$8,0)),IF(AND($F47="week 3",AM$9="bi-weekly",$G47="Sun"),OFFSET($J$10,,MATCH(BL$24,$K$8:$AV$8,0)),BM46+1)))) -> 36 | BM47: =IF(AM$9="weekly",OFFSET($J$13,,MATCH(BL$24,$K$8:$AV$8,0))+BL47-1,IF(AM$9="bi-weekly",OFFSET($J$14,,MATCH(BL$24,$K$8:$AV$8,0))+BL47-1,IF(AM$9="Monthly",OFFSET($J$15,,MATCH(BL$24,$K$8:$AV$8,0))+BL47-1,0))) -> 52 | BN47: =IF(AN$9="none",0,IF(AND($F47="week 1",$G47="Sun"),OFFSET($J$10,,MATCH(BN$24,$K$8:$AV$8,0)),IF(AND(OR($F47="week 2",$F47="week 3",$F47="week 4"),AN$9="weekly",$G47="Sun"),OFFSET($J$10,,MATCH(BN$24,$K$8:$AV$8,0)),IF(AND($F47="week 3",AN$9="bi-weekly",$G47="Sun"),OFFSET($J$10,,MATCH(BN$24,$K$8:$AV$8,0)),BO46+1)))) -> 33.14285714 | BO47: =IF(AN$9="weekly",OFFSET($J$13,,MATCH(BN$24,$K$8:$AV$8,0))+BN47-1,IF(AN$9="bi-weekly",OFFSET($J$14,,MATCH(BN$24,$K$8:$AV$8,0))+BN47-1,IF(AN$9="Monthly",OFFSET($J$15,,MATCH(BN$24,$K$8:$AV$8,0))+BN47-1,0))) -> 47.71428571 | BP47: =IF(AO$9="none",0,IF(AND($F47="week 1",$G47="Sun"),OFFSET($J$10,,MATCH(BP$24,$K$8:$AV$8,0)),IF(AND(OR($F47="week 2",$F47="week 3",$F47="week 4"),AO$9="weekly",$G47="Sun"),OFFSET($J$10,,MATCH(BP$24,$K$8:$AV$8,0)),IF(AND($F47="week 3",AO$9="bi-weekly",$G47="Sun"),OFFSET($J$10,,MATCH(BP$24,$K$8:$AV$8,0)),BQ46+1)))) -> 0 | BQ47: =IF(AO$9="weekly",OFFSET($J$13,,MATCH(BP$24,$K$8:$AV$8,0))+BP47-1,IF(AO$9="bi-weekly",OFFSET($J$14,,MATCH(BP$24,$K$8:$AV$8,0))+BP47-1,IF(AO$9="Monthly",OFFSET($J$15,,MATCH(BP$24,$K$8:$AV$8,0))+BP47-1,0))) -> 0 | BR47: 0 | BS47: 0 | BT47: =IF(AQ$9="none",0,IF(AND($F47="week 1",$G47="Sun"),OFFSET($J$10,,MATCH(BT$24,$K$8:$AV$8,0)),IF(AND(OR($F47="week 2",$F47="week 3",$F47="week 4"),AQ$9="weekly",$G47="Sun"),OFFSET($J$10,,MATCH(BT$24,$K$8:$AV$8,0)),IF(AND($F47="week 3",AQ$9="bi-weekly",$G47="Sun"),OFFSET($J$10,,MATCH(BT$24,$K$8:$AV$8,0)),BU46+1)))) -> 0 | BU47: =IF(AQ$9="weekly",OFFSET($J$13,,MATCH(BT$24,$K$8:$AV$8,0))+BT47-1,IF(AQ$9="bi-weekly",OFFSET($J$14,,MATCH(BT$24,$K$8:$AV$8,0))+BT47-1,IF(AQ$9="Monthly",OFFSET($J$15,,MATCH(BT$24,$K$8:$AV$8,0))+BT47-1,0))) -> 0 | BV47: =IF(AR$9="none",0,IF(AND($F47="week 1",$G47="Sun"),OFFSET($J$10,,MATCH(BV$24,$K$8:$AV$8,0)),IF(AND(OR($F47="week 2",$F47="week 3",$F47="week 4"),AR$9="weekly",$G47="Sun"),OFFSET($J$10,,MATCH(BV$24,$K$8:$AV$8,0)),IF(AND($F47="week 3",AR$9="bi-weekly",$G47="Sun"),OFFSET($J$10,,MATCH(BV$24,$K$8:$AV$8,0)),BW46+1)))) -> 0 | BW47: =IF(AR$9="weekly",OFFSET($J$13,,MATCH(BV$24,$K$8:$AV$8,0))+BV47-1,IF(AR$9="bi-weekly",OFFSET($J$14,,MATCH(BV$24,$K$8:$AV$8,0))+BV47-1,IF(AR$9="Monthly",OFFSET($J$15,,MATCH(BV$24,$K$8:$AV$8,0))+BV47-1,0))) -> 0 | BX47: =IF(AS$9="none",0,IF(AND($F47="week 1",$G47="Sun"),OFFSET($J$10,,MATCH(BX$24,$K$8:$AV$8,0)),IF(AND(OR($F47="week 2",$F47="week 3",$F47="week 4"),AS$9="weekly",$G47="Sun"),OFFSET($J$10,,MATCH(BX$24,$K$8:$AV$8,0)),IF(AND($F47="week 3",AS$9="bi-weekly",$G47="Sun"),OFFSET($J$10,,MATCH(BX$24,$K$8:$AV$8,0)),BY46+1)))) -> 0 | BY47: =IF(AS$9="weekly",OFFSET($J$13,,MATCH(BX$24,$K$8:$AV$8,0))+BX47-1,IF(AS$9="bi-weekly",OFFSET($J$14,,MATCH(BX$24,$K$8:$AV$8,0))+BX47-1,IF(AS$9="Monthly",OFFSET($J$15,,MATCH(BX$24,$K$8:$AV$8,0))+BX47-1,0))) -> 0 | BZ47: =IF(AT$9="none",0,IF(AND($F47="week 1",$G47="Sun"),OFFSET($J$10,,MATCH(BZ$24,$K$8:$AV$8,0)),IF(AND(OR($F47="week 2",$F47="week 3",$F47="week 4"),AT$9="weekly",$G47="Sun"),OFFSET($J$10,,MATCH(BZ$24,$K$8:$AV$8,0)),IF(AND($F47="week 3",AT$9="bi-weekly",$G47="Sun"),OFFSET($J$10,,MATCH(BZ$24,$K$8:$AV$8,0)),CA46+1)))) -> 0 | CA47: =IF(AT$9="weekly",OFFSET($J$13,,MATCH(BZ$24,$K$8:$AV$8,0))+BZ47-1,IF(AT$9="bi-weekly",OFFSET($J$14,,MATCH(BZ$24,$K$8:$AV$8,0))+BZ47-1,IF(AT$9="Monthly",OFFSET($J$15,,MATCH(BZ$24,$K$8:$AV$8,0))+BZ47-1,0))) -> 0 | CB47: =IF(AU$9="none",0,IF(AND($F47="week 1",$G47="Sun"),OFFSET($J$10,,MATCH(CB$24,$K$8:$AV$8,0)),IF(AND(OR($F47="week 2",$F47="week 3",$F47="week 4"),AU$9="weekly",$G47="Sun"),OFFSET($J$10,,MATCH(CB$24,$K$8:$AV$8,0)),IF(AND($F47="week 3",AU$9="bi-weekly",$G47="Sun"),OFFSET($J$10,,MATCH(CB$24,$K$8:$AV$8,0)),CC46+1)))) -> 0 | CC47: =IF(AU$9="weekly",OFFSET($J$13,,MATCH(CB$24,$K$8:$AV$8,0))+CB47-1,IF(AU$9="bi-weekly",OFFSET($J$14,,MATCH(CB$24,$K$8:$AV$8,0))+CB47-1,IF(AU$9="Monthly",OFFSET($J$15,,MATCH(CB$24,$K$8:$AV$8,0))+CB47-1,0))) -> 0 | CD47: =(ROUND(I47,0)-ROUND(H47,0))+(ROUND(K47,0)-ROUND(J47,0))+(ROUND(M47,0)-ROUND(L47,0))+(ROUND(O47,0)-ROUND(N47,0))+(ROUND(Q47,0)-ROUND(P47,0))+(ROUND(S47,0)-ROUND(R47,0))+(ROUND(U47,0)-ROUND(T47,0)+(ROUND(W47,0)-ROUND(V47,0))+(ROUND(Y47,0)-ROUND(X47,0))+(ROUND(AA47,0)-ROUND(Z47,0))+(ROUND(AC47,0)-ROUND(AB47,0))+(ROUND(AE47,0)-ROUND(AD47,0))+(ROUND(AG47,0)-ROUND(AF47,0))+(ROUND(AI47,0)-ROUND(AH47,0))+(ROUND(AK47,0)-ROUND(AJ47,0))+(ROUND(AM47,0)-ROUND(AL47,0))+(ROUND(AO47,0)-ROUND(AN47,0))+(ROUND(AQ47,0)-ROUND(AP47,0))+(ROUND(AS47,0)-ROUND(AR47,0))+(ROUND(AU47,0)-ROUND(AT47,0))+(ROUND(AW47,0)-ROUND(AV47,0))+(ROUND(AY47,0)-ROUND(AX47,0))+(ROUND(BA47,0)-ROUND(AZ47,0))+(ROUND(BC47,0)-ROUND(BB47,0))+(ROUND(BE47,0)-ROUND(BD47,0))+(ROUND(BG47,0)-ROUND(BF47,0))+(ROUND(BI47,0)-ROUND(BH47,0))+(ROUND(BK47,0)-ROUND(BJ47,0))+(ROUND(BM47,0)-ROUND(BL47,0))+(ROUND(BO47,0)-ROUND(BN47,0))+(ROUND(BQ47,0)-ROUND(BP47,0))+(ROUND(BS47,0)-ROUND(BR47,0))+(ROUND(BU47,0)-ROUND(BT47,0))+(ROUND(BW47,0)-ROUND(BV47,0))+(ROUND(BY47,0)-ROUND(BX47,0))+(ROUND(CA47,0)-ROUND(BZ47,0))+(ROUND(CC47,0)-ROUND(CB47,0))+(COUNTIF($H47:$CC47,">"&0)/2)) -> 150
F48: WEEK 3 | G48: WED | H48: 40.25 | I48: 41.5 | J48: 96.71428571 | K48: 101.2857143 | L48: 65.14285714 | M48: 67.85714286 | N48: 74.85714286 | O48: 78.14285714 | P48: 14.75 | Q48: 14.5 | R48: 54.82142857 | S48: 56.92857143 | T48: 35.39285714 | U48: 36.35714286 | V48: 25.67857143 | W48: 26.07142857 | X48: 22.64285714 | Y48: 22.85714286 | Z48: 20.21428571 | AA48: 20.28571429 | AB48: 20.82142857 | AC48: 20.92857143 | AD48: 19 | AE48: 19 | AF48: 17.78571429 | AG48: 17.71428571 | AH48: 75.46428571 | AI48: 78.78571429 | AJ48: 69.39285714 | AK48: 72.35714286 | AL48: 56.64285714 | AM48: 58.85714286 | AN48: 41.46428571 | AO48: 42.78571429 | AP48: 31.14285714 | AQ48: 31.85714286 | AR48: 56.03571429 | AS48: 58.21428571 | AT48: 51.17857143 | AU48: 53.07142857 | AV48: 73.64285714 | AW48: 76.85714286 | AX48: 27.28571429 | AY48: 34.71428571 | AZ48: 39.5 | BA48: 51 | BB48: 50 | BC48: 65 | BD48: 11.85714286 | BE48: 14.14285714 | BF48: 22.57142857 | BG48: 28.42857143 | BH48: 34.14285714 | BI48: 43.85714286 | BJ48: 7.571428571 | BK48: 8.428571429 | BL48: 53 | BM48: 69 | BN48: 48.71428571 | BO48: 63.28571429 | BP48: 0 | BQ48: 0 | BR48: 0 | BS48: 0 | BT48: 0 | BU48: 0 | BV48: 0 | BW48: 0 | BX48: 0 | BY48: 0 | BZ48: 0 | CA48: 0 | CB48: 0 | CC48: 0 | CD48: =(ROUND(I48,0)-ROUND(H48,0))+(ROUND(K48,0)-ROUND(J48,0))+(ROUND(M48,0)-ROUND(L48,0))+(ROUND(O48,0)-ROUND(N48,0))+(ROUND(Q48,0)-ROUND(P48,0))+(ROUND(S48,0)-ROUND(R48,0))+(ROUND(U48,0)-ROUND(T48,0)+(ROUND(W48,0)-ROUND(V48,0))+(ROUND(Y48,0)-ROUND(X48,0))+(ROUND(AA48,0)-ROUND(Z48,0))+(ROUND(AC48,0)-ROUND(AB48,0))+(ROUND(AE48,0)-ROUND(AD48,0))+(ROUND(AG48,0)-ROUND(AF48,0))+(ROUND(AI48,0)-ROUND(AH48,0))+(ROUND(AK48,0)-ROUND(AJ48,0))+(ROUND(AM48,0)-ROUND(AL48,0))+(ROUND(AO48,0)-ROUND(AN48,0))+(ROUND(AQ48,0)-ROUND(AP48,0))+(ROUND(AS48,0)-ROUND(AR48,0))+(ROUND(AU48,0)-ROUND(AT48,0))+(ROUND(AW48,0)-ROUND(AV48,0))+(ROUND(AY48,0)-ROUND(AX48,0))+(ROUND(BA48,0)-ROUND(AZ48,0))+(ROUND(BC48,0)-ROUND(BB48,0))+(ROUND(BE48,0)-ROUND(BD48,0))+(ROUND(BG48,0)-ROUND(BF48,0))+(ROUND(BI48,0)-ROUND(BH48,0))+(ROUND(BK48,0)-ROUND(BJ48,0))+(ROUND(BM48,0)-ROUND(BL48,0))+(ROUND(BO48,0)-ROUND(BN48,0))+(ROUND(BQ48,0)-ROUND(BP48,0))+(ROUND(BS48,0)-ROUND(BR48,0))+(ROUND(BU48,0)-ROUND(BT48,0))+(ROUND(BW48,0)-ROUND(BV48,0))+(ROUND(BY48,0)-ROUND(BX48,0))+(ROUND(CA48,0)-ROUND(BZ48,0))+(ROUND(CC48,0)-ROUND(CB48,0))+(COUNTIF($H48:$CC48,">"&0)/2)) -> 145
F49: WEEK 3 | G49: THU | H49: 42.5 | I49: 43.75 | J49: 102.2857143 | K49: 106.8571429 | L49: 68.85714286 | M49: 71.57142857 | N49: 79.14285714 | O49: 82.42857143 | P49: 15.5 | Q49: 15.25 | R49: 57.92857143 | S49: 60.03571429 | T49: 37.35714286 | U49: 38.32142857 | V49: 27.07142857 | W49: 27.46428571 | X49: 23.85714286 | Y49: 24.07142857 | Z49: 21.28571429 | AA49: 21.35714286 | AB49: 21.92857143 | AC49: 22.03571429 | AD49: 20 | AE49: 20 | AF49: 18.71428571 | AG49: 18.64285714 | AH49: 79.78571429 | AI49: 83.10714286 | AJ49: 73.35714286 | AK49: 76.32142857 | AL49: 59.85714286 | AM49: 62.07142857 | AN49: 43.78571429 | AO49: 45.10714286 | AP49: 32.85714286 | AQ49: 33.57142857 | AR49: 59.21428571 | AS49: 61.39285714 | AT49: 54.07142857 | AU49: 55.96428571 | AV49: 77.85714286 | AW49: 81.07142857 | AX49: 35.71428571 | AY49: 43.14285714 | AZ49: 52 | BA49: 63.5 | BB49: 66 | BC49: 81 | BD49: 15.14285714 | BE49: 17.42857143 | BF49: 29.42857143 | BG49: 35.28571429 | BH49: 44.85714286 | BI49: 54.57142857 | BJ49: 9.428571429 | BK49: 10.28571429 | BL49: 70 | BM49: 86 | BN49: 64.28571429 | BO49: 78.85714286 | BP49: 0 | BQ49: 0 | BR49: 0 | BS49: 0 | BT49: 0 | BU49: 0 | BV49: 0 | BW49: 0 | BX49: 0 | BY49: 0 | BZ49: 0 | CA49: 0 | CB49: 0 | CC49: 0 | CD49: 145
F50: WEEK 3 | G50: FRI | H50: 44.75 | I50: 46 | J50: 107.8571429 | K50: 112.4285714 | L50: 72.57142857 | M50: 75.28571429 | N50: 83.42857143 | O50: 86.71428571 | P50: 16.25 | Q50: 16 | R50: 61.03571429 | S50: 63.14285714 | T50: 39.32142857 | U50: 40.28571429 | V50: 28.46428571 | W50: 28.85714286 | X50: 25.07142857 | Y50: 25.28571429 | Z50: 22.35714286 | AA50: 22.42857143 | AB50: 23.03571429 | AC50: 23.14285714 | AD50: 21 | AE50: 21 | AF50: 19.64285714 | AG50: 19.57142857 | AH50: 84.10714286 | AI50: 87.42857143 | AJ50: 77.32142857 | AK50: 80.28571429 | AL50: 63.07142857 | AM50: 65.28571429 | AN50: 46.10714286 | AO50: 47.42857143 | AP50: 34.57142857 | AQ50: 35.28571429 | AR50: 62.39285714 | AS50: 64.57142857 | AT50: 56.96428571 | AU50: 58.85714286 | AV50: 82.07142857 | AW50: 85.28571429 | AX50: 44.14285714 | AY50: 51.57142857 | AZ50: 64.5 | BA50: 76 | BB50: 82 | BC50: 97 | BD50: 18.42857143 | BE50: 20.71428571 | BF50: 36.28571429 | BG50: 42.14285714 | BH50: 55.57142857 | BI50: 65.28571429 | BJ50: 11.28571429 | BK50: 12.14285714 | BL50: 87 | BM50: 103 | BN50: 79.85714286 | BO50: 94.42857143 | BP50: 0 | BQ50: 0 | BR50: 0 | BS50: 0 | BT50: 0 | BU50: 0 | BV50: 0 | BW50: 0 | BX50: 0 | BY50: 0 | BZ50: 0 | CA50: 0 | CB50: 0 | CC50: 0 | CD50: 145
F51: WEEK 3 | G51: שבת | H51: 47 | I51: 48.25 | J51: 113.4285714 | K51: 118 | L51: 76.28571429 | M51: 79 | N51: 87.71428571 | O51: 91 | P51: 17 | Q51: 16.75 | R51: 64.14285714 | S51: 66.25 | T51: 41.28571429 | U51: 42.25 | V51: 29.85714286 | W51: 30.25 | X51: 26.28571429 | Y51: 26.5 | Z51: 23.42857143 | AA51: 23.5 | AB51: 24.14285714 | AC51: 24.25 | AD51: 22 | AE51: 22 | AF51: 20.57142857 | AG51: 20.5 | AH51: 88.42857143 | AI51: 91.75 | AJ51: 81.28571429 | AK51: 84.25 | AL51: 66.28571429 | AM51: 68.5 | AN51: 48.42857143 | AO51: 49.75 | AP51: 36.28571429 | AQ51: 37 | AR51: 65.57142857 | AS51: 67.75 | AT51: 59.85714286 | AU51: 61.75 | AV51: 86.28571429 | AW51: 89.5 | AX51: 52.57142857 | AY51: 60 | AZ51: 77 | BA51: 88.5 | BB51: 98 | BC51: 113 | BD51: 21.71428571 | BE51: 24 | BF51: 43.14285714 | BG51: 49 | BH51: 66.28571429 | BI51: 76 | BJ51: 13.14285714 | BK51: 14 | BL51: 104 | BM51: 120 | BN51: 95.42857143 | BO51: 110 | BP51: 0 | BQ51: 0 | BR51: 0 | BS51: 0 | BT51: 0 | BU51: 0 | BV51: 0 | BW51: 0 | BX51: 0 | BY51: 0 | BZ51: 0 | CA51: 0 | CB51: 0 | CC51: 0 | CD51: 152
G52: WEEK FOUR | AH52: WEEK FOUR
F53: WEEK 4 | G53: SUN | H53: =IF(K$9="none",0,IF(AND($F53="week 1",$G53="Sun"),OFFSET($J$10,,MATCH(H$24,$K$8:$AV$8,0)),IF(AND(OR($F53="week 2",$F53="week 3",$F53="week 4"),K$9="weekly",$G53="Sun"),OFFSET($J$10,,MATCH(H$24,$K$8:$AV$8,0)),IF(AND($F53="week 3",K$9="bi-weekly",$G53="Sun"),OFFSET($J$10,,MATCH(H$24,$K$8:$AV$8,0)),I51+1)))) -> 49.25 | I53: =IF(K$9="weekly",OFFSET($J$13,,MATCH(H$24,$K$8:$AV$8,0))+H53-1,IF(K$9="bi-weekly",OFFSET($J$14,,MATCH(H$24,$K$8:$AV$8,0))+H53-1,IF(K$9="Monthly",OFFSET($J$15,,MATCH(H$24,$K$8:$AV$8,0))+H53-1,0))) -> 50.5 | J53: =IF(L$9="none",0,IF(AND($F53="week 1",$G53="Sun"),OFFSET($J$10,,MATCH(J$24,$K$8:$AV$8,0)),IF(AND(OR($F53="week 2",$F53="week 3",$F53="week 4"),L$9="weekly",$G53="Sun"),OFFSET($J$10,,MATCH(J$24,$K$8:$AV$8,0)),IF(AND($F53="week 3",L$9="bi-weekly",$G53="Sun"),OFFSET($J$10,,MATCH(J$24,$K$8:$AV$8,0)),K51+1)))) -> 119 | K53: =IF(L$9="weekly",OFFSET($J$13,,MATCH(J$24,$K$8:$AV$8,0))+J53-1,IF(L$9="bi-weekly",OFFSET($J$14,,MATCH(J$24,$K$8:$AV$8,0))+J53-1,IF(L$9="Monthly",OFFSET($J$15,,MATCH(J$24,$K$8:$AV$8,0))+J53-1,0))) -> 123.5714286 | L53: =IF(M$9="none",0,IF(AND($F53="week 1",$G53="Sun"),OFFSET($J$10,,MATCH(L$24,$K$8:$AV$8,0)),IF(AND(OR($F53="week 2",$F53="week 3",$F53="week 4"),M$9="weekly",$G53="Sun"),OFFSET($J$10,,MATCH(L$24,$K$8:$AV$8,0)),IF(AND($F53="week 3",M$9="bi-weekly",$G53="Sun"),OFFSET($J$10,,MATCH(L$24,$K$8:$AV$8,0)),M51+1)))) -> 80 | M53: =IF(M$9="weekly",OFFSET($J$13,,MATCH(L$24,$K$8:$AV$8,0))+L53-1,IF(M$9="bi-weekly",OFFSET($J$14,,MATCH(L$24,$K$8:$AV$8,0))+L53-1,IF(M$9="Monthly",OFFSET($J$15,,MATCH(L$24,$K$8:$AV$8,0))+L53-1,0))) -> 82.71428571 | N53: =IF(N$9="none",0,IF(AND($F53="week 1",$G53="Sun"),OFFSET($J$10,,MATCH(N$24,$K$8:$AV$8,0)),IF(AND(OR($F53="week 2",$F53="week 3",$F53="week 4"),N$9="weekly",$G53="Sun"),OFFSET($J$10,,MATCH(N$24,$K$8:$AV$8,0)),IF(AND($F53="week 3",N$9="bi-weekly",$G53="Sun"),OFFSET($J$10,,MATCH(N$24,$K$8:$AV$8,0)),O51+1)))) -> 92 | O53: =IF(N$9="weekly",OFFSET($J$13,,MATCH(N$24,$K$8:$AV$8,0))+N53-1,IF(N$9="bi-weekly",OFFSET($J$14,,MATCH(N$24,$K$8:$AV$8,0))+N53-1,IF(N$9="Monthly",OFFSET($J$15,,MATCH(N$24,$K$8:$AV$8,0))+N53-1,0))) -> 95.28571429 | P53: =IF(O$9="none",0,IF(AND($F53="week 1",$G53="Sun"),OFFSET($J$10,,MATCH(P$24,$K$8:$AV$8,0)),IF(AND(OR($F53="week 2",$F53="week 3",$F53="week 4"),O$9="weekly",$G53="Sun"),OFFSET($J$10,,MATCH(P$24,$K$8:$AV$8,0)),IF(AND($F53="week 3",O$9="bi-weekly",$G53="Sun"),OFFSET($J$10,,MATCH(P$24,$K$8:$AV$8,0)),Q51+1)))) -> 17.75 | Q53: =IF(O$9="weekly",OFFSET($J$13,,MATCH(P$24,$K$8:$AV$8,0))+P53-1,IF(O$9="bi-weekly",OFFSET($J$14,,MATCH(P$24,$K$8:$AV$8,0))+P53-1,IF(O$9="Monthly",OFFSET($J$15,,MATCH(P$24,$K$8:$AV$8,0))+P53-1,0))) -> 17.5 | R53: =IF(P$9="none",0,IF(AND($F53="week 1",$G53="Sun"),OFFSET($J$10,,MATCH(R$24,$K$8:$AV$8,0)),IF(AND(OR($F53="week 2",$F53="week 3",$F53="week 4"),P$9="weekly",$G53="Sun"),OFFSET($J$10,,MATCH(R$24,$K$8:$AV$8,0)),IF(AND($F53="week 3",P$9="bi-weekly",$G53="Sun"),OFFSET($J$10,,MATCH(R$24,$K$8:$AV$8,0)),S51+1)))) -> 67.25 | S53: =IF(P$9="weekly",OFFSET($J$13,,MATCH(R$24,$K$8:$AV$8,0))+R53-1,IF(P$9="bi-weekly",OFFSET($J$14,,MATCH(R$24,$K$8:$AV$8,0))+R53-1,IF(P$9="Monthly",OFFSET($J$15,,MATCH(R$24,$K$8:$AV$8,0))+R53-1,0))) -> 69.35714286 | T53: =IF(Q$9="none",0,IF(AND($F53="week 1",$G53="Sun"),OFFSET($J$10,,MATCH(T$24,$K$8:$AV$8,0)),IF(AND(OR($F53="week 2",$F53="week 3",$F53="week 4"),Q$9="weekly",$G53="Sun"),OFFSET($J$10,,MATCH(T$24,$K$8:$AV$8,0)),IF(AND($F53="week 3",Q$9="bi-weekly",$G53="Sun"),OFFSET($J$10,,MATCH(T$24,$K$8:$AV$8,0)),U51+1)))) -> 43.25 | U53: =IF(Q$9="weekly",OFFSET($J$13,,MATCH(T$24,$K$8:$AV$8,0))+T53-1,IF(Q$9="bi-weekly",OFFSET($J$14,,MATCH(T$24,$K$8:$AV$8,0))+T53-1,IF(Q$9="Monthly",OFFSET($J$15,,MATCH(T$24,$K$8:$AV$8,0))+T53-1,0))) -> 44.21428571 | V53: =IF(R$9="none",0,IF(AND($F53="week 1",$G53="Sun"),OFFSET($J$10,,MATCH(V$24,$K$8:$AV$8,0)),IF(AND(OR($F53="week 2",$F53="week 3",$F53="week 4"),R$9="weekly",$G53="Sun"),OFFSET($J$10,,MATCH(V$24,$K$8:$AV$8,0)),IF(AND($F53="week 3",R$9="bi-weekly",$G53="Sun"),OFFSET($J$10,,MATCH(V$24,$K$8:$AV$8,0)),W51+1)))) -> 31.25 | W53: =IF(R$9="weekly",OFFSET($J$13,,MATCH(V$24,$K$8:$AV$8,0))+V53-1,IF(R$9="bi-weekly",OFFSET($J$14,,MATCH(V$24,$K$8:$AV$8,0))+V53-1,IF(R$9="Monthly",OFFSET($J$15,,MATCH(V$24,$K$8:$AV$8,0))+V53-1,0))) -> 31.64285714 | X53: =IF(S$9="none",0,IF(AND($F53="week 1",$G53="Sun"),OFFSET($J$10,,MATCH(X$24,$K$8:$AV$8,0)),IF(AND(OR($F53="week 2",$F53="week 3",$F53="week 4"),S$9="weekly",$G53="Sun"),OFFSET($J$10,,MATCH(X$24,$K$8:$AV$8,0)),IF(AND($F53="week 3",S$9="bi-weekly",$G53="Sun"),OFFSET($J$10,,MATCH(X$24,$K$8:$AV$8,0)),Y51+1)))) -> 27.5 | Y53: =IF(S$9="weekly",OFFSET($J$13,,MATCH(X$24,$K$8:$AV$8,0))+X53-1,IF(S$9="bi-weekly",OFFSET($J$14,,MATCH(X$24,$K$8:$AV$8,0))+X53-1,IF(S$9="Monthly",OFFSET($J$15,,MATCH(X$24,$K$8:$AV$8,0))+X53-1,0))) -> 27.71428571 | Z53: =IF(T$9="none",0,IF(AND($F53="week 1",$G53="Sun"),OFFSET($J$10,,MATCH(Z$24,$K$8:$AV$8,0)),IF(AND(OR($F53="week 2",$F53="week 3",$F53="week 4"),T$9="weekly",$G53="Sun"),OFFSET($J$10,,MATCH(Z$24,$K$8:$AV$8,0)),IF(AND($F53="week 3",T$9="bi-weekly",$G53="Sun"),OFFSET($J$10,,MATCH(Z$24,$K$8:$AV$8,0)),AA51+1)))) -> 24.5 | AA53: =IF(T$9="weekly",OFFSET($J$13,,MATCH(Z$24,$K$8:$AV$8,0))+Z53-1,IF(T$9="bi-weekly",OFFSET($J$14,,MATCH(Z$24,$K$8:$AV$8,0))+Z53-1,IF(T$9="Monthly",OFFSET($J$15,,MATCH(Z$24,$K$8:$AV$8,0))+Z53-1,0))) -> 24.57142857 | AB53: =IF(U$9="none",0,IF(AND($F53="week 1",$G53="Sun"),OFFSET($J$10,,MATCH(AB$24,$K$8:$AV$8,0)),IF(AND(OR($F53="week 2",$F53="week 3",$F53="week 4"),U$9="weekly",$G53="Sun"),OFFSET($J$10,,MATCH(AB$24,$K$8:$AV$8,0)),IF(AND($F53="week 3",U$9="bi-weekly",$G53="Sun"),OFFSET($J$10,,MATCH(AB$24,$K$8:$AV$8,0)),AC51+1)))) -> 25.25 | AC53: =IF(U$9="weekly",OFFSET($J$13,,MATCH(AB$24,$K$8:$AV$8,0))+AB53-1,IF(U$9="bi-weekly",OFFSET($J$14,,MATCH(AB$24,$K$8:$AV$8,0))+AB53-1,IF(U$9="Monthly",OFFSET($J$15,,MATCH(AB$24,$K$8:$AV$8,0))+AB53-1,0))) -> 25.35714286 | AD53: =IF(V$9="none",0,IF(AND($F53="week 1",$G53="Sun"),OFFSET($J$10,,MATCH(AD$24,$K$8:$AV$8,0)),IF(AND(OR($F53="week 2",$F53="week 3",$F53="week 4"),V$9="weekly",$G53="Sun"),OFFSET($J$10,,MATCH(AD$24,$K$8:$AV$8,0)),IF(AND($F53="week 3",V$9="bi-weekly",$G53="Sun"),OFFSET($J$10,,MATCH(AD$24,$K$8:$AV$8,0)),AE51+1)))) -> 23 | AE53: =IF(V$9="weekly",OFFSET($J$13,,MATCH(AD$24,$K$8:$AV$8,0))+AD53-1,IF(V$9="bi-weekly",OFFSET($J$14,,MATCH(AD$24,$K$8:$AV$8,0))+AD53-1,IF(V$9="Monthly",OFFSET($J$15,,MATCH(AD$24,$K$8:$AV$8,0))+AD53-1,0))) -> 23 | AF53: =IF(W$9="none",0,IF(AND($F53="week 1",$G53="Sun"),OFFSET($J$10,,MATCH(AF$24,$K$8:$AV$8,0)),IF(AND(OR($F53="week 2",$F53="week 3",$F53="week 4"),W$9="weekly",$G53="Sun"),OFFSET($J$10,,MATCH(AF$24,$K$8:$AV$8,0)),IF(AND($F53="week 3",W$9="bi-weekly",$G53="Sun"),OFFSET($J$10,,MATCH(AF$24,$K$8:$AV$8,0)),AG51+1)))) -> 21.5 | AG53: =IF(W$9="weekly",OFFSET($J$13,,MATCH(AF$24,$K$8:$AV$8,0))+AF53-1,IF(W$9="bi-weekly",OFFSET($J$14,,MATCH(AF$24,$K$8:$AV$8,0))+AF53-1,IF(W$9="Monthly",OFFSET($J$15,,MATCH(AF$24,$K$8:$AV$8,0))+AF53-1,0))) -> 21.42857143 | AH53: =IF(X$9="none",0,IF(AND($F53="week 1",$G53="Sun"),OFFSET($J$10,,MATCH(AH$24,$K$8:$AV$8,0)),IF(AND(OR($F53="week 2",$F53="week 3",$F53="week 4"),X$9="weekly",$G53="Sun"),OFFSET($J$10,,MATCH(AH$24,$K$8:$AV$8,0)),IF(AND($F53="week 3",X$9="bi-weekly",$G53="Sun"),OFFSET($J$10,,MATCH(AH$24,$K$8:$AV$8,0)),AI51+1)))) -> 92.75 | AI53: =IF(X$9="weekly",OFFSET($J$13,,MATCH(AH$24,$K$8:$AV$8,0))+AH53-1,IF(X$9="bi-weekly",OFFSET($J$14,,MATCH(AH$24,$K$8:$AV$8,0))+AH53-1,IF(X$9="Monthly",OFFSET($J$15,,MATCH(AH$24,$K$8:$AV$8,0))+AH53-1,0))) -> 96.07142857 | AJ53: =IF(Y$9="none",0,IF(AND($F53="week 1",$G53="Sun"),OFFSET($J$10,,MATCH(AJ$24,$K$8:$AV$8,0)),IF(AND(OR($F53="week 2",$F53="week 3",$F53="week 4"),Y$9="weekly",$G53="Sun"),OFFSET($J$10,,MATCH(AJ$24,$K$8:$AV$8,0)),IF(AND($F53="week 3",Y$9="bi-weekly",$G53="Sun"),OFFSET($J$10,,MATCH(AJ$24,$K$8:$AV$8,0)),AK51+1)))) -> 85.25 | AK53: =IF(Y$9="weekly",OFFSET($J$13,,MATCH(AJ$24,$K$8:$AV$8,0))+AJ53-1,IF(Y$9="bi-weekly",OFFSET($J$14,,MATCH(AJ$24,$K$8:$AV$8,0))+AJ53-1,IF(Y$9="Monthly",OFFSET($J$15,,MATCH(AJ$24,$K$8:$AV$8,0))+AJ53-1,0))) -> 88.21428571 | AL53: =IF(Z$9="none",0,IF(AND($F53="week 1",$G53="Sun"),OFFSET($J$10,,MATCH(AL$24,$K$8:$AV$8,0)),IF(AND(OR($F53="week 2",$F53="week 3",$F53="week 4"),Z$9="weekly",$G53="Sun"),OFFSET($J$10,,MATCH(AL$24,$K$8:$AV$8,0)),IF(AND($F53="week 3",Z$9="bi-weekly",$G53="Sun"),OFFSET($J$10,,MATCH(AL$24,$K$8:$AV$8,0)),AM51+1)))) -> 69.5 | AM53: =IF(Z$9="weekly",OFFSET($J$13,,MATCH(AL$24,$K$8:$AV$8,0))+AL53-1,IF(Z$9="bi-weekly",OFFSET($J$14,,MATCH(AL$24,$K$8:$AV$8,0))+AL53-1,IF(Z$9="Monthly",OFFSET($J$15,,MATCH(AL$24,$K$8:$AV$8,0))+AL53-1,0))) -> 71.71428571 | AN53: =IF(AA$9="none",0,IF(AND($F53="week 1",$G53="Sun"),OFFSET($J$10,,MATCH(AN$24,$K$8:$AV$8,0)),IF(AND(OR($F53="week 2",$F53="week 3",$F53="week 4"),AA$9="weekly",$G53="Sun"),OFFSET($J$10,,MATCH(AN$24,$K$8:$AV$8,0)),IF(AND($F53="week 3",AA$9="bi-weekly",$G53="Sun"),OFFSET($J$10,,MATCH(AN$24,$K$8:$AV$8,0)),AO51+1)))) -> 50.75 | AO53: =IF(AA$9="weekly",OFFSET($J$13,,MATCH(AN$24,$K$8:$AV$8,0))+AN53-1,IF(AA$9="bi-weekly",OFFSET($J$14,,MATCH(AN$24,$K$8:$AV$8,0))+AN53-1,IF(AA$9="Monthly",OFFSET($J$15,,MATCH(AN$24,$K$8:$AV$8,0))+AN53-1,0))) -> 52.07142857 | AP53: =IF(AB$9="none",0,IF(AND($F53="week 1",$G53="Sun"),OFFSET($J$10,,MATCH(AP$24,$K$8:$AV$8,0)),IF(AND(OR($F53="week 2",$F53="week 3",$F53="week 4"),AB$9="weekly",$G53="Sun"),OFFSET($J$10,,MATCH(AP$24,$K$8:$AV$8,0)),IF(AND($F53="week 3",AB$9="bi-weekly",$G53="Sun"),OFFSET($J$10,,MATCH(AP$24,$K$8:$AV$8,0)),AQ51+1)))) -> 38 | AQ53: =IF(AB$9="weekly",OFFSET($J$13,,MATCH(AP$24,$K$8:$AV$8,0))+AP53-1,IF(AB$9="bi-weekly",OFFSET($J$14,,MATCH(AP$24,$K$8:$AV$8,0))+AP53-1,IF(AB$9="Monthly",OFFSET($J$15,,MATCH(AP$24,$K$8:$AV$8,0))+AP53-1,0))) -> 38.71428571 | AR53: =IF(AC$9="none",0,IF(AND($F53="week 1",$G53="Sun"),OFFSET($J$10,,MATCH(AR$24,$K$8:$AV$8,0)),IF(AND(OR($F53="week 2",$F53="week 3",$F53="week 4"),AC$9="weekly",$G53="Sun"),OFFSET($J$10,,MATCH(AR$24,$K$8:$AV$8,0)),IF(AND($F53="week 3",AC$9="bi-weekly",$G53="Sun"),OFFSET($J$10,,MATCH(AR$24,$K$8:$AV$8,0)),AS51+1)))) -> 68.75 | AS53: =IF(AC$9="weekly",OFFSET($J$13,,MATCH(AR$24,$K$8:$AV$8,0))+AR53-1,IF(AC$9="bi-weekly",OFFSET($J$14,,MATCH(AR$24,$K$8:$AV$8,0))+AR53-1,IF(AC$9="Monthly",OFFSET($J$15,,MATCH(AR$24,$K$8:$AV$8,0))+AR53-1,0))) -> 70.92857143 | AT53: =IF(AD$9="none",0,IF(AND($F53="week 1",$G53="Sun"),OFFSET($J$10,,MATCH(AT$24,$K$8:$AV$8,0)),IF(AND(OR($F53="week 2",$F53="week 3",$F53="week 4"),AD$9="weekly",$G53="Sun"),OFFSET($J$10,,MATCH(AT$24,$K$8:$AV$8,0)),IF(AND($F53="week 3",AD$9="bi-weekly",$G53="Sun"),OFFSET($J$10,,MATCH(AT$24,$K$8:$AV$8,0)),AU51+1)))) -> 62.75 | AU53: =IF(AD$9="weekly",OFFSET($J$13,,MATCH(AT$24,$K$8:$AV$8,0))+AT53-1,IF(AD$9="bi-weekly",OFFSET($J$14,,MATCH(AT$24,$K$8:$AV$8,0))+AT53-1,IF(AD$9="Monthly",OFFSET($J$15,,MATCH(AT$24,$K$8:$AV$8,0))+AT53-1,0))) -> 64.64285714 | AV53: =IF(AE$9="none",0,IF(AND($F53="week 1",$G53="Sun"),OFFSET($J$10,,MATCH(AV$24,$K$8:$AV$8,0)),IF(AND(OR($F53="week 2",$F53="week 3",$F53="week 4"),AE$9="weekly",$G53="Sun"),OFFSET($J$10,,MATCH(AV$24,$K$8:$AV$8,0)),IF(AND($F53="week 3",AE$9="bi-weekly",$G53="Sun"),OFFSET($J$10,,MATCH(AV$24,$K$8:$AV$8,0)),AW51+1)))) -> 90.5 | AW53: =IF(AE$9="weekly",OFFSET($J$13,,MATCH(AV$24,$K$8:$AV$8,0))+AV53-1,IF(AE$9="bi-weekly",OFFSET($J$14,,MATCH(AV$24,$K$8:$AV$8,0))+AV53-1,IF(AE$9="Monthly",OFFSET($J$15,,MATCH(AV$24,$K$8:$AV$8,0))+AV53-1,0))) -> 93.71428571 | AX53: =IF(AF$9="none",0,IF(AND($F53="week 1",$G53="Sun"),OFFSET($J$10,,MATCH(AX$24,$K$8:$AV$8,0)),IF(AND(OR($F53="week 2",$F53="week 3",$F53="week 4"),AF$9="weekly",$G53="Sun"),OFFSET($J$10,,MATCH(AX$24,$K$8:$AV$8,0)),IF(AND($F53="week 3",AF$9="bi-weekly",$G53="Sun"),OFFSET($J$10,,MATCH(AX$24,$K$8:$AV$8,0)),AY51+1)))) -> 61 | AY53: =IF(AF$9="weekly",OFFSET($J$13,,MATCH(AX$24,$K$8:$AV$8,0))+AX53-1,IF(AF$9="bi-weekly",OFFSET($J$14,,MATCH(AX$24,$K$8:$AV$8,0))+AX53-1,IF(AF$9="Monthly",OFFSET($J$15,,MATCH(AX$24,$K$8:$AV$8,0))+AX53-1,0))) -> 68.42857143 | AZ53: =IF(AG$9="none",0,IF(AND($F53="week 1",$G53="Sun"),OFFSET($J$10,,MATCH(AZ$24,$K$8:$AV$8,0)),IF(AND(OR($F53="week 2",$F53="week 3",$F53="week 4"),AG$9="weekly",$G53="Sun"),OFFSET($J$10,,MATCH(AZ$24,$K$8:$AV$8,0)),IF(AND($F53="week 3",AG$9="bi-weekly",$G53="Sun"),OFFSET($J$10,,MATCH(AZ$24,$K$8:$AV$8,0)),BA51+1)))) -> 89.5 | BA53: =IF(AG$9="weekly",OFFSET($J$13,,MATCH(AZ$24,$K$8:$AV$8,0))+AZ53-1,IF(AG$9="bi-weekly",OFFSET($J$14,,MATCH(AZ$24,$K$8:$AV$8,0))+AZ53-1,IF(AG$9="Monthly",OFFSET($J$15,,MATCH(AZ$24,$K$8:$AV$8,0))+AZ53-1,0))) -> 101 | BB53: =IF(AH$9="none",0,IF(AND($F53="week 1",$G53="Sun"),OFFSET($J$10,,MATCH(BB$24,$K$8:$AV$8,0)),IF(AND(OR($F53="week 2",$F53="week 3",$F53="week 4"),AH$9="weekly",$G53="Sun"),OFFSET($J$10,,MATCH(BB$24,$K$8:$AV$8,0)),IF(AND($F53="week 3",AH$9="bi-weekly",$G53="Sun"),OFFSET($J$10,,MATCH(BB$24,$K$8:$AV$8,0)),BC51+1)))) -> 2 | BC53: =IF(AH$9="weekly",OFFSET($J$13,,MATCH(BB$24,$K$8:$AV$8,0))+BB53-1,IF(AH$9="bi-weekly",OFFSET($J$14,,MATCH(BB$24,$K$8:$AV$8,0))+BB53-1,IF(AH$9="Monthly",OFFSET($J$15,,MATCH(BB$24,$K$8:$AV$8,0))+BB53-1,0))) -> 17 | BD53: =IF(AI$9="none",0,IF(AND($F53="week 1",$G53="Sun"),OFFSET($J$10,,MATCH(BD$24,$K$8:$AV$8,0)),IF(AND(OR($F53="week 2",$F53="week 3",$F53="week 4"),AI$9="weekly",$G53="Sun"),OFFSET($J$10,,MATCH(BD$24,$K$8:$AV$8,0)),IF(AND($F53="week 3",AI$9="bi-weekly",$G53="Sun"),OFFSET($J$10,,MATCH(BD$24,$K$8:$AV$8,0)),BE51+1)))) -> 2 | BE53: =IF(AI$9="weekly",OFFSET($J$13,,MATCH(BD$24,$K$8:$AV$8,0))+BD53-1,IF(AI$9="bi-weekly",OFFSET($J$14,,MATCH(BD$24,$K$8:$AV$8,0))+BD53-1,IF(AI$9="Monthly",OFFSET($J$15,,MATCH(BD$24,$K$8:$AV$8,0))+BD53-1,0))) -> 4.285714286 | BF53: =IF(AJ$9="none",0,IF(AND($F53="week 1",$G53="Sun"),OFFSET($J$10,,MATCH(BF$24,$K$8:$AV$8,0)),IF(AND(OR($F53="week 2",$F53="week 3",$F53="week 4"),AJ$9="weekly",$G53="Sun"),OFFSET($J$10,,MATCH(BF$24,$K$8:$AV$8,0)),IF(AND($F53="week 3",AJ$9="bi-weekly",$G53="Sun"),OFFSET($J$10,,MATCH(BF$24,$K$8:$AV$8,0)),BG51+1)))) -> 2 | BG53: =IF(AJ$9="weekly",OFFSET($J$13,,MATCH(BF$24,$K$8:$AV$8,0))+BF53-1,IF(AJ$9="bi-weekly",OFFSET($J$14,,MATCH(BF$24,$K$8:$AV$8,0))+BF53-1,IF(AJ$9="Monthly",OFFSET($J$15,,MATCH(BF$24,$K$8:$AV$8,0))+BF53-1,0))) -> 7.857142857 | BH53: =IF(AK$9="none",0,IF(AND($F53="week 1",$G53="Sun"),OFFSET($J$10,,MATCH(BH$24,$K$8:$AV$8,0)),IF(AND(OR($F53="week 2",$F53="week 3",$F53="week 4"),AK$9="weekly",$G53="Sun"),OFFSET($J$10,,MATCH(BH$24,$K$8:$AV$8,0)),IF(AND($F53="week 3",AK$9="bi-weekly",$G53="Sun"),OFFSET($J$10,,MATCH(BH$24,$K$8:$AV$8,0)),BI51+1)))) -> 2 | BI53: =IF(AK$9="weekly",OFFSET($J$13,,MATCH(BH$24,$K$8:$AV$8,0))+BH53-1,IF(AK$9="bi-weekly",OFFSET($J$14,,MATCH(BH$24,$K$8:$AV$8,0))+BH53-1,IF(AK$9="Monthly",OFFSET($J$15,,MATCH(BH$24,$K$8:$AV$8,0))+BH53-1,0))) -> 11.71428571 | BJ53: =IF(AL$9="none",0,IF(AND($F53="week 1",$G53="Sun"),OFFSET($J$10,,MATCH(BJ$24,$K$8:$AV$8,0)),IF(AND(OR($F53="week 2",$F53="week 3",$F53="week 4"),AL$9="weekly",$G53="Sun"),OFFSET($J$10,,MATCH(BJ$24,$K$8:$AV$8,0)),IF(AND($F53="week 3",AL$9="bi-weekly",$G53="Sun"),OFFSET($J$10,,MATCH(BJ$24,$K$8:$AV$8,0)),BK51+1)))) -> 2 | BK53: =IF(AL$9="weekly",OFFSET($J$13,,MATCH(BJ$24,$K$8:$AV$8,0))+BJ53-1,IF(AL$9="bi-weekly",OFFSET($J$14,,MATCH(BJ$24,$K$8:$AV$8,0))+BJ53-1,IF(AL$9="Monthly",OFFSET($J$15,,MATCH(BJ$24,$K$8:$AV$8,0))+BJ53-1,0))) -> 2.857142857 | BL53: =IF(AM$9="none",0,IF(AND($F53="week 1",$G53="Sun"),OFFSET($J$10,,MATCH(BL$24,$K$8:$AV$8,0)),IF(AND(OR($F53="week 2",$F53="week 3",$F53="week 4"),AM$9="weekly",$G53="Sun"),OFFSET($J$10,,MATCH(BL$24,$K$8:$AV$8,0)),IF(AND($F53="week 3",AM$9="bi-weekly",$G53="Sun"),OFFSET($J$10,,MATCH(BL$24,$K$8:$AV$8,0)),BM51+1)))) -> 2 | BM53: =IF(AM$9="weekly",OFFSET($J$13,,MATCH(BL$24,$K$8:$AV$8,0))+BL53-1,IF(AM$9="bi-weekly",OFFSET($J$14,,MATCH(BL$24,$K$8:$AV$8,0))+BL53-1,IF(AM$9="Monthly",OFFSET($J$15,,MATCH(BL$24,$K$8:$AV$8,0))+BL53-1,0))) -> 18 | BN53: =IF(AN$9="none",0,IF(AND($F53="week 1",$G53="Sun"),OFFSET($J$10,,MATCH(BN$24,$K$8:$AV$8,0)),IF(AND(OR($F53="week 2",$F53="week 3",$F53="week 4"),AN$9="weekly",$G53="Sun"),OFFSET($J$10,,MATCH(BN$24,$K$8:$AV$8,0)),IF(AND($F53="week 3",AN$9="bi-weekly",$G53="Sun"),OFFSET($J$10,,MATCH(BN$24,$K$8:$AV$8,0)),BO51+1)))) -> 2 | BO53: =IF(AN$9="weekly",OFFSET($J$13,,MATCH(BN$24,$K$8:$AV$8,0))+BN53-1,IF(AN$9="bi-weekly",OFFSET($J$14,,MATCH(BN$24,$K$8:$AV$8,0))+BN53-1,IF(AN$9="Monthly",OFFSET($J$15,,MATCH(BN$24,$K$8:$AV$8,0))+BN53-1,0))) -> 16.57142857 | BP53: =IF(AO$9="none",0,IF(AND($F53="week 1",$G53="Sun"),OFFSET($J$10,,MATCH(BP$24,$K$8:$AV$8,0)),IF(AND(OR($F53="week 2",$F53="week 3",$F53="week 4"),AO$9="weekly",$G53="Sun"),OFFSET($J$10,,MATCH(BP$24,$K$8:$AV$8,0)),IF(AND($F53="week 3",AO$9="bi-weekly",$G53="Sun"),OFFSET($J$10,,MATCH(BP$24,$K$8:$AV$8,0)),BQ51+1)))) -> 0 | BQ53: =IF(AO$9="weekly",OFFSET($J$13,,MATCH(BP$24,$K$8:$AV$8,0))+BP53-1,IF(AO$9="bi-weekly",OFFSET($J$14,,MATCH(BP$24,$K$8:$AV$8,0))+BP53-1,IF(AO$9="Monthly",OFFSET($J$15,,MATCH(BP$24,$K$8:$AV$8,0))+BP53-1,0))) -> 0 | BR53: =IF(AP$9="none",0,IF(AND($F53="week 1",$G53="Sun"),OFFSET($J$10,,MATCH(BR$24,$K$8:$AV$8,0)),IF(AND(OR($F53="week 2",$F53="week 3",$F53="week 4"),AP$9="weekly",$G53="Sun"),OFFSET($J$10,,MATCH(BR$24,$K$8:$AV$8,0)),IF(AND($F53="week 3",AP$9="bi-weekly",$G53="Sun"),OFFSET($J$10,,MATCH(BR$24,$K$8:$AV$8,0)),BS51+1)))) -> 0 | BS53: =IF(AP$9="weekly",OFFSET($J$13,,MATCH(BR$24,$K$8:$AV$8,0))+BR53-1,IF(AP$9="bi-weekly",OFFSET($J$14,,MATCH(BR$24,$K$8:$AV$8,0))+BR53-1,IF(AP$9="Monthly",OFFSET($J$15,,MATCH(BR$24,$K$8:$AV$8,0))+BR53-1,0))) -> 0 | BT53: =IF(AQ$9="none",0,IF(AND($F53="week 1",$G53="Sun"),OFFSET($J$10,,MATCH(BT$24,$K$8:$AV$8,0)),IF(AND(OR($F53="week 2",$F53="week 3",$F53="week 4"),AQ$9="weekly",$G53="Sun"),OFFSET($J$10,,MATCH(BT$24,$K$8:$AV$8,0)),IF(AND($F53="week 3",AQ$9="bi-weekly",$G53="Sun"),OFFSET($J$10,,MATCH(BT$24,$K$8:$AV$8,0)),BU51+1)))) -> 0 | BU53: =IF(AQ$9="weekly",OFFSET($J$13,,MATCH(BT$24,$K$8:$AV$8,0))+BT53-1,IF(AQ$9="bi-weekly",OFFSET($J$14,,MATCH(BT$24,$K$8:$AV$8,0))+BT53-1,IF(AQ$9="Monthly",OFFSET($J$15,,MATCH(BT$24,$K$8:$AV$8,0))+BT53-1,0))) -> 0 | BV53: =IF(AR$9="none",0,IF(AND($F53="week 1",$G53="Sun"),OFFSET($J$10,,MATCH(BV$24,$K$8:$AV$8,0)),IF(AND(OR($F53="week 2",$F53="week 3",$F53="week 4"),AR$9="weekly",$G53="Sun"),OFFSET($J$10,,MATCH(BV$24,$K$8:$AV$8,0)),IF(AND($F53="week 3",AR$9="bi-weekly",$G53="Sun"),OFFSET($J$10,,MATCH(BV$24,$K$8:$AV$8,0)),BW51+1)))) -> 0 | BW53: =IF(AR$9="weekly",OFFSET($J$13,,MATCH(BV$24,$K$8:$AV$8,0))+BV53-1,IF(AR$9="bi-weekly",OFFSET($J$14,,MATCH(BV$24,$K$8:$AV$8,0))+BV53-1,IF(AR$9="Monthly",OFFSET($J$15,,MATCH(BV$24,$K$8:$AV$8,0))+BV53-1,0))) -> 0 | BX53: =IF(AS$9="none",0,IF(AND($F53="week 1",$G53="Sun"),OFFSET($J$10,,MATCH(BX$24,$K$8:$AV$8,0)),IF(AND(OR($F53="week 2",$F53="week 3",$F53="week 4"),AS$9="weekly",$G53="Sun"),OFFSET($J$10,,MATCH(BX$24,$K$8:$AV$8,0)),IF(AND($F53="week 3",AS$9="bi-weekly",$G53="Sun"),OFFSET($J$10,,MATCH(BX$24,$K$8:$AV$8,0)),BY51+1)))) -> 0 | BY53: =IF(AS$9="weekly",OFFSET($J$13,,MATCH(BX$24,$K$8:$AV$8,0))+BX53-1,IF(AS$9="bi-weekly",OFFSET($J$14,,MATCH(BX$24,$K$8:$AV$8,0))+BX53-1,IF(AS$9="Monthly",OFFSET($J$15,,MATCH(BX$24,$K$8:$AV$8,0))+BX53-1,0))) -> 0 | BZ53: =IF(AT$9="none",0,IF(AND($F53="week 1",$G53="Sun"),OFFSET($J$10,,MATCH(BZ$24,$K$8:$AV$8,0)),IF(AND(OR($F53="week 2",$F53="week 3",$F53="week 4"),AT$9="weekly",$G53="Sun"),OFFSET($J$10,,MATCH(BZ$24,$K$8:$AV$8,0)),IF(AND($F53="week 3",AT$9="bi-weekly",$G53="Sun"),OFFSET($J$10,,MATCH(BZ$24,$K$8:$AV$8,0)),CA51+1)))) -> 0 | CA53: =IF(AT$9="weekly",OFFSET($J$13,,MATCH(BZ$24,$K$8:$AV$8,0))+BZ53-1,IF(AT$9="bi-weekly",OFFSET($J$14,,MATCH(BZ$24,$K$8:$AV$8,0))+BZ53-1,IF(AT$9="Monthly",OFFSET($J$15,,MATCH(BZ$24,$K$8:$AV$8,0))+BZ53-1,0))) -> 0 | CB53: =IF(AU$9="none",0,IF(AND($F53="week 1",$G53="Sun"),OFFSET($J$10,,MATCH(CB$24,$K$8:$AV$8,0)),IF(AND(OR($F53="week 2",$F53="week 3",$F53="week 4"),AU$9="weekly",$G53="Sun"),OFFSET($J$10,,MATCH(CB$24,$K$8:$AV$8,0)),IF(AND($F53="week 3",AU$9="bi-weekly",$G53="Sun"),OFFSET($J$10,,MATCH(CB$24,$K$8:$AV$8,0)),CC51+1)))) -> 0 | CC53: =IF(AU$9="weekly",OFFSET($J$13,,MATCH(CB$24,$K$8:$AV$8,0))+CB53-1,IF(AU$9="bi-weekly",OFFSET($J$14,,MATCH(CB$24,$K$8:$AV$8,0))+CB53-1,IF(AU$9="Monthly",OFFSET($J$15,,MATCH(CB$24,$K$8:$AV$8,0))+CB53-1,0))) -> 0 | CD53: =(ROUND(I53,0)-ROUND(H53,0))+(ROUND(K53,0)-ROUND(J53,0))+(ROUND(M53,0)-ROUND(L53,0))+(ROUND(O53,0)-ROUND(N53,0))+(ROUND(Q53,0)-ROUND(P53,0))+(ROUND(S53,0)-ROUND(R53,0))+(ROUND(U53,0)-ROUND(T53,0)+(ROUND(W53,0)-ROUND(V53,0))+(ROUND(Y53,0)-ROUND(X53,0))+(ROUND(AA53,0)-ROUND(Z53,0))+(ROUND(AC53,0)-ROUND(AB53,0))+(ROUND(AE53,0)-ROUND(AD53,0))+(ROUND(AG53,0)-ROUND(AF53,0))+(ROUND(AI53,0)-ROUND(AH53,0))+(ROUND(AK53,0)-ROUND(AJ53,0))+(ROUND(AM53,0)-ROUND(AL53,0))+(ROUND(AO53,0)-ROUND(AN53,0))+(ROUND(AQ53,0)-ROUND(AP53,0))+(ROUND(AS53,0)-ROUND(AR53,0))+(ROUND(AU53,0)-ROUND(AT53,0))+(ROUND(AW53,0)-ROUND(AV53,0))+(ROUND(AY53,0)-ROUND(AX53,0))+(ROUND(BA53,0)-ROUND(AZ53,0))+(ROUND(BC53,0)-ROUND(BB53,0))+(ROUND(BE53,0)-ROUND(BD53,0))+(ROUND(BG53,0)-ROUND(BF53,0))+(ROUND(BI53,0)-ROUND(BH53,0))+(ROUND(BK53,0)-ROUND(BJ53,0))+(ROUND(BM53,0)-ROUND(BL53,0))+(ROUND(BO53,0)-ROUND(BN53,0))+(ROUND(BQ53,0)-ROUND(BP53,0))+(ROUND(BS53,0)-ROUND(BR53,0))+(ROUND(BU53,0)-ROUND(BT53,0))+(ROUND(BW53,0)-ROUND(BV53,0))+(ROUND(BY53,0)-ROUND(BX53,0))+(ROUND(CA53,0)-ROUND(BZ53,0))+(ROUND(CC53,0)-ROUND(CB53,0))+(COUNTIF($H53:$CC53,">"&0)/2)) -> 146
F54: WEEK 4 | G54: MON | H54: =IF(K$9="none",0,IF(AND($F54="week 1",$G54="Sun"),OFFSET($J$10,,MATCH(H$24,$K$8:$AV$8,0)),IF(AND(OR($F54="week 2",$F54="week 3",$F54="week 4"),K$9="weekly",$G54="Sun"),OFFSET($J$10,,MATCH(H$24,$K$8:$AV$8,0)),IF(AND($F54="week 3",K$9="bi-weekly",$G54="Sun"),OFFSET($J$10,,MATCH(H$24,$K$8:$AV$8,0)),I53+1)))) -> 51.5 | I54: 52.75 | J54: =IF(L$9="none",0,IF(AND($F54="week 1",$G54="Sun"),OFFSET($J$10,,MATCH(J$24,$K$8:$AV$8,0)),IF(AND(OR($F54="week 2",$F54="week 3",$F54="week 4"),L$9="weekly",$G54="Sun"),OFFSET($J$10,,MATCH(J$24,$K$8:$AV$8,0)),IF(AND($F54="week 3",L$9="bi-weekly",$G54="Sun"),OFFSET($J$10,,MATCH(J$24,$K$8:$AV$8,0)),K53+1)))) -> 124.5714286 | K54: 129.1428571 | L54: =IF(M$9="none",0,IF(AND($F54="week 1",$G54="Sun"),OFFSET($J$10,,MATCH(L$24,$K$8:$AV$8,0)),IF(AND(OR($F54="week 2",$F54="week 3",$F54="week 4"),M$9="weekly",$G54="Sun"),OFFSET($J$10,,MATCH(L$24,$K$8:$AV$8,0)),IF(AND($F54="week 3",M$9="bi-weekly",$G54="Sun"),OFFSET($J$10,,MATCH(L$24,$K$8:$AV$8,0)),M53+1)))) -> 83.71428571 | M54: 86.42857143 | N54: =IF(N$9="none",0,IF(AND($F54="week 1",$G54="Sun"),OFFSET($J$10,,MATCH(N$24,$K$8:$AV$8,0)),IF(AND(OR($F54="week 2",$F54="week 3",$F54="week 4"),N$9="weekly",$G54="Sun"),OFFSET($J$10,,MATCH(N$24,$K$8:$AV$8,0)),IF(AND($F54="week 3",N$9="bi-weekly",$G54="Sun"),OFFSET($J$10,,MATCH(N$24,$K$8:$AV$8,0)),O53+1)))) -> 96.28571429 | O54: 99.57142857 | P54: =IF(O$9="none",0,IF(AND($F54="week 1",$G54="Sun"),OFFSET($J$10,,MATCH(P$24,$K$8:$AV$8,0)),IF(AND(OR($F54="week 2",$F54="week 3",$F54="week 4"),O$9="weekly",$G54="Sun"),OFFSET($J$10,,MATCH(P$24,$K$8:$AV$8,0)),IF(AND($F54="week 3",O$9="bi-weekly",$G54="Sun"),OFFSET($J$10,,MATCH(P$24,$K$8:$AV$8,0)),Q53+1)))) -> 18.5 | Q54: 18.25 | R54: =IF(P$9="none",0,IF(AND($F54="week 1",$G54="Sun"),OFFSET($J$10,,MATCH(R$24,$K$8:$AV$8,0)),IF(AND(OR($F54="week 2",$F54="week 3",$F54="week 4"),P$9="weekly",$G54="Sun"),OFFSET($J$10,,MATCH(R$24,$K$8:$AV$8,0)),IF(AND($F54="week 3",P$9="bi-weekly",$G54="Sun"),OFFSET($J$10,,MATCH(R$24,$K$8:$AV$8,0)),S53+1)))) -> 70.35714286 | S54: 72.46428571 | T54: =IF(Q$9="none",0,IF(AND($F54="week 1",$G54="Sun"),OFFSET($J$10,,MATCH(T$24,$K$8:$AV$8,0)),IF(AND(OR($F54="week 2",$F54="week 3",$F54="week 4"),Q$9="weekly",$G54="Sun"),OFFSET($J$10,,MATCH(T$24,$K$8:$AV$8,0)),IF(AND($F54="week 3",Q$9="bi-weekly",$G54="Sun"),OFFSET($J$10,,MATCH(T$24,$K$8:$AV$8,0)),U53+1)))) -> 45.21428571 | U54: 46.17857143 | V54: =IF(R$9="none",0,IF(AND($F54="week 1",$G54="Sun"),OFFSET($J$10,,MATCH(V$24,$K$8:$AV$8,0)),IF(AND(OR($F54="week 2",$F54="week 3",$F54="week 4"),R$9="weekly",$G54="Sun"),OFFSET($J$10,,MATCH(V$24,$K$8:$AV$8,0)),IF(AND($F54="week 3",R$9="bi-weekly",$G54="Sun"),OFFSET($J$10,,MATCH(V$24,$K$8:$AV$8,0)),W53+1)))) -> 32.64285714 | W54: 33.03571429 | X54: =IF(S$9="none",0,IF(AND($F54="week 1",$G54="Sun"),OFFSET($J$10,,MATCH(X$24,$K$8:$AV$8,0)),IF(AND(OR($F54="week 2",$F54="week 3",$F54="week 4"),S$9="weekly",$G54="Sun"),OFFSET($J$10,,MATCH(X$24,$K$8:$AV$8,0)),IF(AND($F54="week 3",S$9="bi-weekly",$G54="Sun"),OFFSET($J$10,,MATCH(X$24,$K$8:$AV$8,0)),Y53+1)))) -> 28.71428571 | Y54: 28.92857143 | Z54: =IF(T$9="none",0,IF(AND($F54="week 1",$G54="Sun"),OFFSET($J$10,,MATCH(Z$24,$K$8:$AV$8,0)),IF(AND(OR($F54="week 2",$F54="week 3",$F54="week 4"),T$9="weekly",$G54="Sun"),OFFSET($J$10,,MATCH(Z$24,$K$8:$AV$8,0)),IF(AND($F54="week 3",T$9="bi-weekly",$G54="Sun"),OFFSET($J$10,,MATCH(Z$24,$K$8:$AV$8,0)),AA53+1)))) -> 25.57142857 | AA54: 25.64285714 | AB54: =IF(U$9="none",0,IF(AND($F54="week 1",$G54="Sun"),OFFSET($J$10,,MATCH(AB$24,$K$8:$AV$8,0)),IF(AND(OR($F54="week 2",$F54="week 3",$F54="week 4"),U$9="weekly",$G54="Sun"),OFFSET($J$10,,MATCH(AB$24,$K$8:$AV$8,0)),IF(AND($F54="week 3",U$9="bi-weekly",$G54="Sun"),OFFSET($J$10,,MATCH(AB$24,$K$8:$AV$8,0)),AC53+1)))) -> 26.35714286 | AC54: 26.46428571 | AD54: =IF(V$9="none",0,IF(AND($F54="week 1",$G54="Sun"),OFFSET($J$10,,MATCH(AD$24,$K$8:$AV$8,0)),IF(AND(OR($F54="week 2",$F54="week 3",$F54="week 4"),V$9="weekly",$G54="Sun"),OFFSET($J$10,,MATCH(AD$24,$K$8:$AV$8,0)),IF(AND($F54="week 3",V$9="bi-weekly",$G54="Sun"),OFFSET($J$10,,MATCH(AD$24,$K$8:$AV$8,0)),AE53+1)))) -> 24 | AE54: 24 | AF54: =IF(W$9="none",0,IF(AND($F54="week 1",$G54="Sun"),OFFSET($J$10,,MATCH(AF$24,$K$8:$AV$8,0)),IF(AND(OR($F54="week 2",$F54="week 3",$F54="week 4"),W$9="weekly",$G54="Sun"),OFFSET($J$10,,MATCH(AF$24,$K$8:$AV$8,0)),IF(AND($F54="week 3",W$9="bi-weekly",$G54="Sun"),OFFSET($J$10,,MATCH(AF$24,$K$8:$AV$8,0)),AG53+1)))) -> 22.42857143 | AG54: 22.35714286 | AH54: =IF(X$9="none",0,IF(AND($F54="week 1",$G54="Sun"),OFFSET($J$10,,MATCH(AH$24,$K$8:$AV$8,0)),IF(AND(OR($F54="week 2",$F54="week 3",$F54="week 4"),X$9="weekly",$G54="Sun"),OFFSET($J$10,,MATCH(AH$24,$K$8:$AV$8,0)),IF(AND($F54="week 3",X$9="bi-weekly",$G54="Sun"),OFFSET($J$10,,MATCH(AH$24,$K$8:$AV$8,0)),AI53+1)))) -> 97.07142857 | AI54: 100.3928571 | AJ54: =IF(Y$9="none",0,IF(AND($F54="week 1",$G54="Sun"),OFFSET($J$10,,MATCH(AJ$24,$K$8:$AV$8,0)),IF(AND(OR($F54="week 2",$F54="week 3",$F54="week 4"),Y$9="weekly",$G54="Sun"),OFFSET($J$10,,MATCH(AJ$24,$K$8:$AV$8,0)),IF(AND($F54="week 3",Y$9="bi-weekly",$G54="Sun"),OFFSET($J$10,,MATCH(AJ$24,$K$8:$AV$8,0)),AK53+1)))) -> 89.21428571 | AK54: 92.17857143 | AL54: =IF(Z$9="none",0,IF(AND($F54="week 1",$G54="Sun"),OFFSET($J$10,,MATCH(AL$24,$K$8:$AV$8,0)),IF(AND(OR($F54="week 2",$F54="week 3",$F54="week 4"),Z$9="weekly",$G54="Sun"),OFFSET($J$10,,MATCH(AL$24,$K$8:$AV$8,0)),IF(AND($F54="week 3",Z$9="bi-weekly",$G54="Sun"),OFFSET($J$10,,MATCH(AL$24,$K$8:$AV$8,0)),AM53+1)))) -> 72.71428571 | AM54: 74.92857143 | AN54: =IF(AA$9="none",0,IF(AND($F54="week 1",$G54="Sun"),OFFSET($J$10,,MATCH(AN$24,$K$8:$AV$8,0)),IF(AND(OR($F54="week 2",$F54="week 3",$F54="week 4"),AA$9="weekly",$G54="Sun"),OFFSET($J$10,,MATCH(AN$24,$K$8:$AV$8,0)),IF(AND($F54="week 3",AA$9="bi-weekly",$G54="Sun"),OFFSET($J$10,,MATCH(AN$24,$K$8:$AV$8,0)),AO53+1)))) -> 53.07142857 | AO54: 54.39285714 | AP54: =IF(AB$9="none",0,IF(AND($F54="week 1",$G54="Sun"),OFFSET($J$10,,MATCH(AP$24,$K$8:$AV$8,0)),IF(AND(OR($F54="week 2",$F54="week 3",$F54="week 4"),AB$9="weekly",$G54="Sun"),OFFSET($J$10,,MATCH(AP$24,$K$8:$AV$8,0)),IF(AND($F54="week 3",AB$9="bi-weekly",$G54="Sun"),OFFSET($J$10,,MATCH(AP$24,$K$8:$AV$8,0)),AQ53+1)))) -> 39.71428571 | AQ54: =IF(AB$9="weekly",OFFSET($J$13,,MATCH(AP$24,$K$8:$AV$8,0))+AP54-1,IF(AB$9="bi-weekly",OFFSET($J$14,,MATCH(AP$24,$K$8:$AV$8,0))+AP54-1,IF(AB$9="Monthly",OFFSET($J$15,,MATCH(AP$24,$K$8:$AV$8,0))+AP54-1,0))) -> 40.42857143 | AR54: =IF(AC$9="none",0,IF(AND($F54="week 1",$G54="Sun"),OFFSET($J$10,,MATCH(AR$24,$K$8:$AV$8,0)),IF(AND(OR($F54="week 2",$F54="week 3",$F54="week 4"),AC$9="weekly",$G54="Sun"),OFFSET($J$10,,MATCH(AR$24,$K$8:$AV$8,0)),IF(AND($F54="week 3",AC$9="bi-weekly",$G54="Sun"),OFFSET($J$10,,MATCH(AR$24,$K$8:$AV$8,0)),AS53+1)))) -> 71.92857143 | AS54: 74.10714286 | AT54: =IF(AD$9="none",0,IF(AND($F54="week 1",$G54="Sun"),OFFSET($J$10,,MATCH(AT$24,$K$8:$AV$8,0)),IF(AND(OR($F54="week 2",$F54="week 3",$F54="week 4"),AD$9="weekly",$G54="Sun"),OFFSET($J$10,,MATCH(AT$24,$K$8:$AV$8,0)),IF(AND($F54="week 3",AD$9="bi-weekly",$G54="Sun"),OFFSET($J$10,,MATCH(AT$24,$K$8:$AV$8,0)),AU53+1)))) -> 65.64285714 | AU54: 67.53571429 | AV54: =IF(AE$9="none",0,IF(AND($F54="week 1",$G54="Sun"),OFFSET($J$10,,MATCH(AV$24,$K$8:$AV$8,0)),IF(AND(OR($F54="week 2",$F54="week 3",$F54="week 4"),AE$9="weekly",$G54="Sun"),OFFSET($J$10,,MATCH(AV$24,$K$8:$AV$8,0)),IF(AND($F54="week 3",AE$9="bi-weekly",$G54="Sun"),OFFSET($J$10,,MATCH(AV$24,$K$8:$AV$8,0)),AW53+1)))) -> 94.71428571 | AW54: 97.92857143 | AX54: =IF(AF$9="none",0,IF(AND($F54="week 1",$G54="Sun"),OFFSET($J$10,,MATCH(AX$24,$K$8:$AV$8,0)),IF(AND(OR($F54="week 2",$F54="week 3",$F54="week 4"),AF$9="weekly",$G54="Sun"),OFFSET($J$10,,MATCH(AX$24,$K$8:$AV$8,0)),IF(AND($F54="week 3",AF$9="bi-weekly",$G54="Sun"),OFFSET($J$10,,MATCH(AX$24,$K$8:$AV$8,0)),AY53+1)))) -> 69.42857143 | AY54: 76.85714286 | AZ54: =IF(AG$9="none",0,IF(AND($F54="week 1",$G54="Sun"),OFFSET($J$10,,MATCH(AZ$24,$K$8:$AV$8,0)),IF(AND(OR($F54="week 2",$F54="week 3",$F54="week 4"),AG$9="weekly",$G54="Sun"),OFFSET($J$10,,MATCH(AZ$24,$K$8:$AV$8,0)),IF(AND($F54="week 3",AG$9="bi-weekly",$G54="Sun"),OFFSET($J$10,,MATCH(AZ$24,$K$8:$AV$8,0)),BA53+1)))) -> 102 | BA54: 113.5 | BB54: =IF(AH$9="none",0,IF(AND($F54="week 1",$G54="Sun"),OFFSET($J$10,,MATCH(BB$24,$K$8:$AV$8,0)),IF(AND(OR($F54="week 2",$F54="week 3",$F54="week 4"),AH$9="weekly",$G54="Sun"),OFFSET($J$10,,MATCH(BB$24,$K$8:$AV$8,0)),IF(AND($F54="week 3",AH$9="bi-weekly",$G54="Sun"),OFFSET($J$10,,MATCH(BB$24,$K$8:$AV$8,0)),BC53+1)))) -> 18 | BC54: 33 | BD54: =IF(AI$9="none",0,IF(AND($F54="week 1",$G54="Sun"),OFFSET($J$10,,MATCH(BD$24,$K$8:$AV$8,0)),IF(AND(OR($F54="week 2",$F54="week 3",$F54="week 4"),AI$9="weekly",$G54="Sun"),OFFSET($J$10,,MATCH(BD$24,$K$8:$AV$8,0)),IF(AND($F54="week 3",AI$9="bi-weekly",$G54="Sun"),OFFSET($J$10,,MATCH(BD$24,$K$8:$AV$8,0)),BE53+1)))) -> 5.285714286 | BE54: 7.571428571 | BF54: =IF(AJ$9="none",0,IF(AND($F54="week 1",$G54="Sun"),OFFSET($J$10,,MATCH(BF$24,$K$8:$AV$8,0)),IF(AND(OR($F54="week 2",$F54="week 3",$F54="week 4"),AJ$9="weekly",$G54="Sun"),OFFSET($J$10,,MATCH(BF$24,$K$8:$AV$8,0)),IF(AND($F54="week 3",AJ$9="bi-weekly",$G54="Sun"),OFFSET($J$10,,MATCH(BF$24,$K$8:$AV$8,0)),BG53+1)))) -> 8.857142857 | BG54: 14.71428571 | BH54: =IF(AK$9="none",0,IF(AND($F54="week 1",$G54="Sun"),OFFSET($J$10,,MATCH(BH$24,$K$8:$AV$8,0)),IF(AND(OR($F54="week 2",$F54="week 3",$F54="week 4"),AK$9="weekly",$G54="Sun"),OFFSET($J$10,,MATCH(BH$24,$K$8:$AV$8,0)),IF(AND($F54="week 3",AK$9="bi-weekly",$G54="Sun"),OFFSET($J$10,,MATCH(BH$24,$K$8:$AV$8,0)),BI53+1)))) -> 12.71428571 | BI54: 22.42857143 | BJ54: =IF(AL$9="none",0,IF(AND($F54="week 1",$G54="Sun"),OFFSET($J$10,,MATCH(BJ$24,$K$8:$AV$8,0)),IF(AND(OR($F54="week 2",$F54="week 3",$F54="week 4"),AL$9="weekly",$G54="Sun"),OFFSET($J$10,,MATCH(BJ$24,$K$8:$AV$8,0)),IF(AND($F54="week 3",AL$9="bi-weekly",$G54="Sun"),OFFSET($J$10,,MATCH(BJ$24,$K$8:$AV$8,0)),BK53+1)))) -> 3.857142857 | BK54: =IF(AL$9="weekly",OFFSET($J$13,,MATCH(BJ$24,$K$8:$AV$8,0))+BJ54-1,IF(AL$9="bi-weekly",OFFSET($J$14,,MATCH(BJ$24,$K$8:$AV$8,0))+BJ54-1,IF(AL$9="Monthly",OFFSET($J$15,,MATCH(BJ$24,$K$8:$AV$8,0))+BJ54-1,0))) -> 4.714285714 | BL54: =IF(AM$9="none",0,IF(AND($F54="week 1",$G54="Sun"),OFFSET($J$10,,MATCH(BL$24,$K$8:$AV$8,0)),IF(AND(OR($F54="week 2",$F54="week 3",$F54="week 4"),AM$9="weekly",$G54="Sun"),OFFSET($J$10,,MATCH(BL$24,$K$8:$AV$8,0)),IF(AND($F54="week 3",AM$9="bi-weekly",$G54="Sun"),OFFSET($J$10,,MATCH(BL$24,$K$8:$AV$8,0)),BM53+1)))) -> 19 | BM54: =IF(AM$9="weekly",OFFSET($J$13,,MATCH(BL$24,$K$8:$AV$8,0))+BL54-1,IF(AM$9="bi-weekly",OFFSET($J$14,,MATCH(BL$24,$K$8:$AV$8,0))+BL54-1,IF(AM$9="Monthly",OFFSET($J$15,,MATCH(BL$24,$K$8:$AV$8,0))+BL54-1,0))) -> 35 | BN54: =IF(AN$9="none",0,IF(AND($F54="week 1",$G54="Sun"),OFFSET($J$10,,MATCH(BN$24,$K$8:$AV$8,0)),IF(AND(OR($F54="week 2",$F54="week 3",$F54="week 4"),AN$9="weekly",$G54="Sun"),OFFSET($J$10,,MATCH(BN$24,$K$8:$AV$8,0)),IF(AND($F54="week 3",AN$9="bi-weekly",$G54="Sun"),OFFSET($J$10,,MATCH(BN$24,$K$8:$AV$8,0)),BO53+1)))) -> 17.57142857 | BO54: =IF(AN$9="weekly",OFFSET($J$13,,MATCH(BN$24,$K$8:$AV$8,0))+BN54-1,IF(AN$9="bi-weekly",OFFSET($J$14,,MATCH(BN$24,$K$8:$AV$8,0))+BN54-1,IF(AN$9="Monthly",OFFSET($J$15,,MATCH(BN$24,$K$8:$AV$8,0))+BN54-1,0))) -> 32.14285714 | BP54: =IF(AO$9="none",0,IF(AND($F54="week 1",$G54="Sun"),OFFSET($J$10,,MATCH(BP$24,$K$8:$AV$8,0)),IF(AND(OR($F54="week 2",$F54="week 3",$F54="week 4"),AO$9="weekly",$G54="Sun"),OFFSET($J$10,,MATCH(BP$24,$K$8:$AV$8,0)),IF(AND($F54="week 3",AO$9="bi-weekly",$G54="Sun"),OFFSET($J$10,,MATCH(BP$24,$K$8:$AV$8,0)),BQ53+1)))) -> 0 | BQ54: =IF(AO$9="weekly",OFFSET($J$13,,MATCH(BP$24,$K$8:$AV$8,0))+BP54-1,IF(AO$9="bi-weekly",OFFSET($J$14,,MATCH(BP$24,$K$8:$AV$8,0))+BP54-1,IF(AO$9="Monthly",OFFSET($J$15,,MATCH(BP$24,$K$8:$AV$8,0))+BP54-1,0))) -> 0 | BR54: =IF(AP$9="none",0,IF(AND($F54="week 1",$G54="Sun"),OFFSET($J$10,,MATCH(BR$24,$K$8:$AV$8,0)),IF(AND(OR($F54="week 2",$F54="week 3",$F54="week 4"),AP$9="weekly",$G54="Sun"),OFFSET($J$10,,MATCH(BR$24,$K$8:$AV$8,0)),IF(AND($F54="week 3",AP$9="bi-weekly",$G54="Sun"),OFFSET($J$10,,MATCH(BR$24,$K$8:$AV$8,0)),BS53+1)))) -> 0 | BS54: 0 | BT54: =IF(AQ$9="none",0,IF(AND($F54="week 1",$G54="Sun"),OFFSET($J$10,,MATCH(BT$24,$K$8:$AV$8,0)),IF(AND(OR($F54="week 2",$F54="week 3",$F54="week 4"),AQ$9="weekly",$G54="Sun"),OFFSET($J$10,,MATCH(BT$24,$K$8:$AV$8,0)),IF(AND($F54="week 3",AQ$9="bi-weekly",$G54="Sun"),OFFSET($J$10,,MATCH(BT$24,$K$8:$AV$8,0)),BU53+1)))) -> 0 | BU54: =IF(AQ$9="weekly",OFFSET($J$13,,MATCH(BT$24,$K$8:$AV$8,0))+BT54-1,IF(AQ$9="bi-weekly",OFFSET($J$14,,MATCH(BT$24,$K$8:$AV$8,0))+BT54-1,IF(AQ$9="Monthly",OFFSET($J$15,,MATCH(BT$24,$K$8:$AV$8,0))+BT54-1,0))) -> 0 | BV54: =IF(AR$9="none",0,IF(AND($F54="week 1",$G54="Sun"),OFFSET($J$10,,MATCH(BV$24,$K$8:$AV$8,0)),IF(AND(OR($F54="week 2",$F54="week 3",$F54="week 4"),AR$9="weekly",$G54="Sun"),OFFSET($J$10,,MATCH(BV$24,$K$8:$AV$8,0)),IF(AND($F54="week 3",AR$9="bi-weekly",$G54="Sun"),OFFSET($J$10,,MATCH(BV$24,$K$8:$AV$8,0)),BW53+1)))) -> 0 | BW54: =IF(AR$9="weekly",OFFSET($J$13,,MATCH(BV$24,$K$8:$AV$8,0))+BV54-1,IF(AR$9="bi-weekly",OFFSET($J$14,,MATCH(BV$24,$K$8:$AV$8,0))+BV54-1,IF(AR$9="Monthly",OFFSET($J$15,,MATCH(BV$24,$K$8:$AV$8,0))+BV54-1,0))) -> 0 | BX54: =IF(AS$9="none",0,IF(AND($F54="week 1",$G54="Sun"),OFFSET($J$10,,MATCH(BX$24,$K$8:$AV$8,0)),IF(AND(OR($F54="week 2",$F54="week 3",$F54="week 4"),AS$9="weekly",$G54="Sun"),OFFSET($J$10,,MATCH(BX$24,$K$8:$AV$8,0)),IF(AND($F54="week 3",AS$9="bi-weekly",$G54="Sun"),OFFSET($J$10,,MATCH(BX$24,$K$8:$AV$8,0)),BY53+1)))) -> 0 | BY54: =IF(AS$9="weekly",OFFSET($J$13,,MATCH(BX$24,$K$8:$AV$8,0))+BX54-1,IF(AS$9="bi-weekly",OFFSET($J$14,,MATCH(BX$24,$K$8:$AV$8,0))+BX54-1,IF(AS$9="Monthly",OFFSET($J$15,,MATCH(BX$24,$K$8:$AV$8,0))+BX54-1,0))) -> 0 | BZ54: =IF(AT$9="none",0,IF(AND($F54="week 1",$G54="Sun"),OFFSET($J$10,,MATCH(BZ$24,$K$8:$AV$8,0)),IF(AND(OR($F54="week 2",$F54="week 3",$F54="week 4"),AT$9="weekly",$G54="Sun"),OFFSET($J$10,,MATCH(BZ$24,$K$8:$AV$8,0)),IF(AND($F54="week 3",AT$9="bi-weekly",$G54="Sun"),OFFSET($J$10,,MATCH(BZ$24,$K$8:$AV$8,0)),CA53+1)))) -> 0 | CA54: =IF(AT$9="weekly",OFFSET($J$13,,MATCH(BZ$24,$K$8:$AV$8,0))+BZ54-1,IF(AT$9="bi-weekly",OFFSET($J$14,,MATCH(BZ$24,$K$8:$AV$8,0))+BZ54-1,IF(AT$9="Monthly",OFFSET($J$15,,MATCH(BZ$24,$K$8:$AV$8,0))+BZ54-1,0))) -> 0 | CB54: =IF(AU$9="none",0,IF(AND($F54="week 1",$G54="Sun"),OFFSET($J$10,,MATCH(CB$24,$K$8:$AV$8,0)),IF(AND(OR($F54="week 2",$F54="week 3",$F54="week 4"),AU$9="weekly",$G54="Sun"),OFFSET($J$10,,MATCH(CB$24,$K$8:$AV$8,0)),IF(AND($F54="week 3",AU$9="bi-weekly",$G54="Sun"),OFFSET($J$10,,MATCH(CB$24,$K$8:$AV$8,0)),CC53+1)))) -> 0 | CC54: =IF(AU$9="weekly",OFFSET($J$13,,MATCH(CB$24,$K$8:$AV$8,0))+CB54-1,IF(AU$9="bi-weekly",OFFSET($J$14,,MATCH(CB$24,$K$8:$AV$8,0))+CB54-1,IF(AU$9="Monthly",OFFSET($J$15,,MATCH(CB$24,$K$8:$AV$8,0))+CB54-1,0))) -> 0 | CD54: =(ROUND(I54,0)-ROUND(H54,0))+(ROUND(K54,0)-ROUND(J54,0))+(ROUND(M54,0)-ROUND(L54,0))+(ROUND(O54,0)-ROUND(N54,0))+(ROUND(Q54,0)-ROUND(P54,0))+(ROUND(S54,0)-ROUND(R54,0))+(ROUND(U54,0)-ROUND(T54,0)+(ROUND(W54,0)-ROUND(V54,0))+(ROUND(Y54,0)-ROUND(X54,0))+(ROUND(AA54,0)-ROUND(Z54,0))+(ROUND(AC54,0)-ROUND(AB54,0))+(ROUND(AE54,0)-ROUND(AD54,0))+(ROUND(AG54,0)-ROUND(AF54,0))+(ROUND(AI54,0)-ROUND(AH54,0))+(ROUND(AK54,0)-ROUND(AJ54,0))+(ROUND(AM54,0)-ROUND(AL54,0))+(ROUND(AO54,0)-ROUND(AN54,0))+(ROUND(AQ54,0)-ROUND(AP54,0))+(ROUND(AS54,0)-ROUND(AR54,0))+(ROUND(AU54,0)-ROUND(AT54,0))+(ROUND(AW54,0)-ROUND(AV54,0))+(ROUND(AY54,0)-ROUND(AX54,0))+(ROUND(BA54,0)-ROUND(AZ54,0))+(ROUND(BC54,0)-ROUND(BB54,0))+(ROUND(BE54,0)-ROUND(BD54,0))+(ROUND(BG54,0)-ROUND(BF54,0))+(ROUND(BI54,0)-ROUND(BH54,0))+(ROUND(BK54,0)-ROUND(BJ54,0))+(ROUND(BM54,0)-ROUND(BL54,0))+(ROUND(BO54,0)-ROUND(BN54,0))+(ROUND(BQ54,0)-ROUND(BP54,0))+(ROUND(BS54,0)-ROUND(BR54,0))+(ROUND(BU54,0)-ROUND(BT54,0))+(ROUND(BW54,0)-ROUND(BV54,0))+(ROUND(BY54,0)-ROUND(BX54,0))+(ROUND(CA54,0)-ROUND(BZ54,0))+(ROUND(CC54,0)-ROUND(CB54,0))+(COUNTIF($H54:$CC54,">"&0)/2)) -> 143
F55: WEEK 4 | G55: TUE | H55: 53.75 | I55: 55 | J55: 130.1428571 | K55: 134.7142857 | L55: 87.42857143 | M55: 90.14285714 | N55: 100.5714286 | O55: 103.8571429 | P55: 19.25 | Q55: 19 | R55: 73.46428571 | S55: 75.57142857 | T55: 47.17857143 | U55: 48.14285714 | V55: 34.03571429 | W55: 34.42857143 | X55: 29.92857143 | Y55: 30.14285714 | Z55: 26.64285714 | AA55: 26.71428571 | AB55: 27.46428571 | AC55: 27.57142857 | AD55: 25 | AE55: 25 | AF55: 23.35714286 | AG55: 23.28571429 | AH55: 101.3928571 | AI55: 104.7142857 | AJ55: 93.17857143 | AK55: 96.14285714 | AL55: 75.92857143 | AM55: 78.14285714 | AN55: 55.39285714 | AO55: 56.71428571 | AP55: =IF(AB$9="none",0,IF(AND($F55="week 1",$G55="Sun"),OFFSET($J$10,,MATCH(AP$24,$K$8:$AV$8,0)),IF(AND(OR($F55="week 2",$F55="week 3",$F55="week 4"),AB$9="weekly",$G55="Sun"),OFFSET($J$10,,MATCH(AP$24,$K$8:$AV$8,0)),IF(AND($F55="week 3",AB$9="bi-weekly",$G55="Sun"),OFFSET($J$10,,MATCH(AP$24,$K$8:$AV$8,0)),AQ54+1)))) -> 41.42857143 | AQ55: =IF(AB$9="weekly",OFFSET($J$13,,MATCH(AP$24,$K$8:$AV$8,0))+AP55-1,IF(AB$9="bi-weekly",OFFSET($J$14,,MATCH(AP$24,$K$8:$AV$8,0))+AP55-1,IF(AB$9="Monthly",OFFSET($J$15,,MATCH(AP$24,$K$8:$AV$8,0))+AP55-1,0))) -> 42.14285714 | AR55: 75.10714286 | AS55: 77.28571429 | AT55: 68.53571429 | AU55: 70.42857143 | AV55: 98.92857143 | AW55: 102.1428571 | AX55: 77.85714286 | AY55: 85.28571429 | AZ55: 114.5 | BA55: 126 | BB55: 34 | BC55: 49 | BD55: 8.571428571 | BE55: 10.85714286 | BF55: 15.71428571 | BG55: 21.57142857 | BH55: 23.42857143 | BI55: 33.14285714 | BJ55: =IF(AL$9="none",0,IF(AND($F55="week 1",$G55="Sun"),OFFSET($J$10,,MATCH(BJ$24,$K$8:$AV$8,0)),IF(AND(OR($F55="week 2",$F55="week 3",$F55="week 4"),AL$9="weekly",$G55="Sun"),OFFSET($J$10,,MATCH(BJ$24,$K$8:$AV$8,0)),IF(AND($F55="week 3",AL$9="bi-weekly",$G55="Sun"),OFFSET($J$10,,MATCH(BJ$24,$K$8:$AV$8,0)),BK54+1)))) -> 5.714285714 | BK55: =IF(AL$9="weekly",OFFSET($J$13,,MATCH(BJ$24,$K$8:$AV$8,0))+BJ55-1,IF(AL$9="bi-weekly",OFFSET($J$14,,MATCH(BJ$24,$K$8:$AV$8,0))+BJ55-1,IF(AL$9="Monthly",OFFSET($J$15,,MATCH(BJ$24,$K$8:$AV$8,0))+BJ55-1,0))) -> 6.571428571 | BL55: =IF(AM$9="none",0,IF(AND($F55="week 1",$G55="Sun"),OFFSET($J$10,,MATCH(BL$24,$K$8:$AV$8,0)),IF(AND(OR($F55="week 2",$F55="week 3",$F55="week 4"),AM$9="weekly",$G55="Sun"),OFFSET($J$10,,MATCH(BL$24,$K$8:$AV$8,0)),IF(AND($F55="week 3",AM$9="bi-weekly",$G55="Sun"),OFFSET($J$10,,MATCH(BL$24,$K$8:$AV$8,0)),BM54+1)))) -> 36 | BM55: =IF(AM$9="weekly",OFFSET($J$13,,MATCH(BL$24,$K$8:$AV$8,0))+BL55-1,IF(AM$9="bi-weekly",OFFSET($J$14,,MATCH(BL$24,$K$8:$AV$8,0))+BL55-1,IF(AM$9="Monthly",OFFSET($J$15,,MATCH(BL$24,$K$8:$AV$8,0))+BL55-1,0))) -> 52 | BN55: =IF(AN$9="none",0,IF(AND($F55="week 1",$G55="Sun"),OFFSET($J$10,,MATCH(BN$24,$K$8:$AV$8,0)),IF(AND(OR($F55="week 2",$F55="week 3",$F55="week 4"),AN$9="weekly",$G55="Sun"),OFFSET($J$10,,MATCH(BN$24,$K$8:$AV$8,0)),IF(AND($F55="week 3",AN$9="bi-weekly",$G55="Sun"),OFFSET($J$10,,MATCH(BN$24,$K$8:$AV$8,0)),BO54+1)))) -> 33.14285714 | BO55: =IF(AN$9="weekly",OFFSET($J$13,,MATCH(BN$24,$K$8:$AV$8,0))+BN55-1,IF(AN$9="bi-weekly",OFFSET($J$14,,MATCH(BN$24,$K$8:$AV$8,0))+BN55-1,IF(AN$9="Monthly",OFFSET($J$15,,MATCH(BN$24,$K$8:$AV$8,0))+BN55-1,0))) -> 47.71428571 | BP55: =IF(AO$9="none",0,IF(AND($F55="week 1",$G55="Sun"),OFFSET($J$10,,MATCH(BP$24,$K$8:$AV$8,0)),IF(AND(OR($F55="week 2",$F55="week 3",$F55="week 4"),AO$9="weekly",$G55="Sun"),OFFSET($J$10,,MATCH(BP$24,$K$8:$AV$8,0)),IF(AND($F55="week 3",AO$9="bi-weekly",$G55="Sun"),OFFSET($J$10,,MATCH(BP$24,$K$8:$AV$8,0)),BQ54+1)))) -> 0 | BQ55: =IF(AO$9="weekly",OFFSET($J$13,,MATCH(BP$24,$K$8:$AV$8,0))+BP55-1,IF(AO$9="bi-weekly",OFFSET($J$14,,MATCH(BP$24,$K$8:$AV$8,0))+BP55-1,IF(AO$9="Monthly",OFFSET($J$15,,MATCH(BP$24,$K$8:$AV$8,0))+BP55-1,0))) -> 0 | BR55: 0 | BS55: 0 | BT55: =IF(AQ$9="none",0,IF(AND($F55="week 1",$G55="Sun"),OFFSET($J$10,,MATCH(BT$24,$K$8:$AV$8,0)),IF(AND(OR($F55="week 2",$F55="week 3",$F55="week 4"),AQ$9="weekly",$G55="Sun"),OFFSET($J$10,,MATCH(BT$24,$K$8:$AV$8,0)),IF(AND($F55="week 3",AQ$9="bi-weekly",$G55="Sun"),OFFSET($J$10,,MATCH(BT$24,$K$8:$AV$8,0)),BU54+1)))) -> 0 | BU55: =IF(AQ$9="weekly",OFFSET($J$13,,MATCH(BT$24,$K$8:$AV$8,0))+BT55-1,IF(AQ$9="bi-weekly",OFFSET($J$14,,MATCH(BT$24,$K$8:$AV$8,0))+BT55-1,IF(AQ$9="Monthly",OFFSET($J$15,,MATCH(BT$24,$K$8:$AV$8,0))+BT55-1,0))) -> 0 | BV55: =IF(AR$9="none",0,IF(AND($F55="week 1",$G55="Sun"),OFFSET($J$10,,MATCH(BV$24,$K$8:$AV$8,0)),IF(AND(OR($F55="week 2",$F55="week 3",$F55="week 4"),AR$9="weekly",$G55="Sun"),OFFSET($J$10,,MATCH(BV$24,$K$8:$AV$8,0)),IF(AND($F55="week 3",AR$9="bi-weekly",$G55="Sun"),OFFSET($J$10,,MATCH(BV$24,$K$8:$AV$8,0)),BW54+1)))) -> 0 | BW55: =IF(AR$9="weekly",OFFSET($J$13,,MATCH(BV$24,$K$8:$AV$8,0))+BV55-1,IF(AR$9="bi-weekly",OFFSET($J$14,,MATCH(BV$24,$K$8:$AV$8,0))+BV55-1,IF(AR$9="Monthly",OFFSET($J$15,,MATCH(BV$24,$K$8:$AV$8,0))+BV55-1,0))) -> 0 | BX55: =IF(AS$9="none",0,IF(AND($F55="week 1",$G55="Sun"),OFFSET($J$10,,MATCH(BX$24,$K$8:$AV$8,0)),IF(AND(OR($F55="week 2",$F55="week 3",$F55="week 4"),AS$9="weekly",$G55="Sun"),OFFSET($J$10,,MATCH(BX$24,$K$8:$AV$8,0)),IF(AND($F55="week 3",AS$9="bi-weekly",$G55="Sun"),OFFSET($J$10,,MATCH(BX$24,$K$8:$AV$8,0)),BY54+1)))) -> 0 | BY55: =IF(AS$9="weekly",OFFSET($J$13,,MATCH(BX$24,$K$8:$AV$8,0))+BX55-1,IF(AS$9="bi-weekly",OFFSET($J$14,,MATCH(BX$24,$K$8:$AV$8,0))+BX55-1,IF(AS$9="Monthly",OFFSET($J$15,,MATCH(BX$24,$K$8:$AV$8,0))+BX55-1,0))) -> 0 | BZ55: =IF(AT$9="none",0,IF(AND($F55="week 1",$G55="Sun"),OFFSET($J$10,,MATCH(BZ$24,$K$8:$AV$8,0)),IF(AND(OR($F55="week 2",$F55="week 3",$F55="week 4"),AT$9="weekly",$G55="Sun"),OFFSET($J$10,,MATCH(BZ$24,$K$8:$AV$8,0)),IF(AND($F55="week 3",AT$9="bi-weekly",$G55="Sun"),OFFSET($J$10,,MATCH(BZ$24,$K$8:$AV$8,0)),CA54+1)))) -> 0 | CA55: =IF(AT$9="weekly",OFFSET($J$13,,MATCH(BZ$24,$K$8:$AV$8,0))+BZ55-1,IF(AT$9="bi-weekly",OFFSET($J$14,,MATCH(BZ$24,$K$8:$AV$8,0))+BZ55-1,IF(AT$9="Monthly",OFFSET($J$15,,MATCH(BZ$24,$K$8:$AV$8,0))+BZ55-1,0))) -> 0 | CB55: =IF(AU$9="none",0,IF(AND($F55="week 1",$G55="Sun"),OFFSET($J$10,,MATCH(CB$24,$K$8:$AV$8,0)),IF(AND(OR($F55="week 2",$F55="week 3",$F55="week 4"),AU$9="weekly",$G55="Sun"),OFFSET($J$10,,MATCH(CB$24,$K$8:$AV$8,0)),IF(AND($F55="week 3",AU$9="bi-weekly",$G55="Sun"),OFFSET($J$10,,MATCH(CB$24,$K$8:$AV$8,0)),CC54+1)))) -> 0 | CC55: =IF(AU$9="weekly",OFFSET($J$13,,MATCH(CB$24,$K$8:$AV$8,0))+CB55-1,IF(AU$9="bi-weekly",OFFSET($J$14,,MATCH(CB$24,$K$8:$AV$8,0))+CB55-1,IF(AU$9="Monthly",OFFSET($J$15,,MATCH(CB$24,$K$8:$AV$8,0))+CB55-1,0))) -> 0 | CD55: =(ROUND(I55,0)-ROUND(H55,0))+(ROUND(K55,0)-ROUND(J55,0))+(ROUND(M55,0)-ROUND(L55,0))+(ROUND(O55,0)-ROUND(N55,0))+(ROUND(Q55,0)-ROUND(P55,0))+(ROUND(S55,0)-ROUND(R55,0))+(ROUND(U55,0)-ROUND(T55,0)+(ROUND(W55,0)-ROUND(V55,0))+(ROUND(Y55,0)-ROUND(X55,0))+(ROUND(AA55,0)-ROUND(Z55,0))+(ROUND(AC55,0)-ROUND(AB55,0))+(ROUND(AE55,0)-ROUND(AD55,0))+(ROUND(AG55,0)-ROUND(AF55,0))+(ROUND(AI55,0)-ROUND(AH55,0))+(ROUND(AK55,0)-ROUND(AJ55,0))+(ROUND(AM55,0)-ROUND(AL55,0))+(ROUND(AO55,0)-ROUND(AN55,0))+(ROUND(AQ55,0)-ROUND(AP55,0))+(ROUND(AS55,0)-ROUND(AR55,0))+(ROUND(AU55,0)-ROUND(AT55,0))+(ROUND(AW55,0)-ROUND(AV55,0))+(ROUND(AY55,0)-ROUND(AX55,0))+(ROUND(BA55,0)-ROUND(AZ55,0))+(ROUND(BC55,0)-ROUND(BB55,0))+(ROUND(BE55,0)-ROUND(BD55,0))+(ROUND(BG55,0)-ROUND(BF55,0))+(ROUND(BI55,0)-ROUND(BH55,0))+(ROUND(BK55,0)-ROUND(BJ55,0))+(ROUND(BM55,0)-ROUND(BL55,0))+(ROUND(BO55,0)-ROUND(BN55,0))+(ROUND(BQ55,0)-ROUND(BP55,0))+(ROUND(BS55,0)-ROUND(BR55,0))+(ROUND(BU55,0)-ROUND(BT55,0))+(ROUND(BW55,0)-ROUND(BV55,0))+(ROUND(BY55,0)-ROUND(BX55,0))+(ROUND(CA55,0)-ROUND(BZ55,0))+(ROUND(CC55,0)-ROUND(CB55,0))+(COUNTIF($H55:$CC55,">"&0)/2)) -> 148
F56: WEEK 4 | G56: WED | H56: 56 | I56: 57.25 | J56: 135.7142857 | K56: 140.2857143 | L56: 91.14285714 | M56: 93.85714286 | N56: 104.8571429 | O56: 108.1428571 | P56: 20 | Q56: 19.75 | R56: 76.57142857 | S56: 78.67857143 | T56: 49.14285714 | U56: 50.10714286 | V56: 35.42857143 | W56: 35.82142857 | X56: 31.14285714 | Y56: 31.35714286 | Z56: 27.71428571 | AA56: 27.78571429 | AB56: 28.57142857 | AC56: 28.67857143 | AD56: 26 | AE56: 26 | AF56: 24.28571429 | AG56: 24.21428571 | AH56: 105.7142857 | AI56: 109.0357143 | AJ56: 97.14285714 | AK56: 100.1071429 | AL56: 79.14285714 | AM56: 81.35714286 | AN56: 57.71428571 | AO56: 59.03571429 | AP56: 43.14285714 | AQ56: 43.85714286 | AR56: 78.28571429 | AS56: 80.46428571 | AT56: 71.42857143 | AU56: 73.32142857 | AV56: 103.1428571 | AW56: 106.3571429 | AX56: 86.28571429 | AY56: 93.71428571 | AZ56: 127 | BA56: 138.5 | BB56: 50 | BC56: 65 | BD56: 11.85714286 | BE56: 14.14285714 | BF56: 22.57142857 | BG56: 28.42857143 | BH56: 34.14285714 | BI56: 43.85714286 | BJ56: 7.571428571 | BK56: 8.428571429 | BL56: 53 | BM56: 69 | BN56: 48.71428571 | BO56: 63.28571429 | BP56: 0 | BQ56: 0 | BR56: 0 | BS56: 0 | BT56: 0 | BU56: 0 | BV56: 0 | BW56: 0 | BX56: 0 | BY56: 0 | BZ56: 0 | CA56: 0 | CB56: 0 | CC56: 0 | CD56: =(ROUND(I56,0)-ROUND(H56,0))+(ROUND(K56,0)-ROUND(J56,0))+(ROUND(M56,0)-ROUND(L56,0))+(ROUND(O56,0)-ROUND(N56,0))+(ROUND(Q56,0)-ROUND(P56,0))+(ROUND(S56,0)-ROUND(R56,0))+(ROUND(U56,0)-ROUND(T56,0)+(ROUND(W56,0)-ROUND(V56,0))+(ROUND(Y56,0)-ROUND(X56,0))+(ROUND(AA56,0)-ROUND(Z56,0))+(ROUND(AC56,0)-ROUND(AB56,0))+(ROUND(AE56,0)-ROUND(AD56,0))+(ROUND(AG56,0)-ROUND(AF56,0))+(ROUND(AI56,0)-ROUND(AH56,0))+(ROUND(AK56,0)-ROUND(AJ56,0))+(ROUND(AM56,0)-ROUND(AL56,0))+(ROUND(AO56,0)-ROUND(AN56,0))+(ROUND(AQ56,0)-ROUND(AP56,0))+(ROUND(AS56,0)-ROUND(AR56,0))+(ROUND(AU56,0)-ROUND(AT56,0))+(ROUND(AW56,0)-ROUND(AV56,0))+(ROUND(AY56,0)-ROUND(AX56,0))+(ROUND(BA56,0)-ROUND(AZ56,0))+(ROUND(BC56,0)-ROUND(BB56,0))+(ROUND(BE56,0)-ROUND(BD56,0))+(ROUND(BG56,0)-ROUND(BF56,0))+(ROUND(BI56,0)-ROUND(BH56,0))+(ROUND(BK56,0)-ROUND(BJ56,0))+(ROUND(BM56,0)-ROUND(BL56,0))+(ROUND(BO56,0)-ROUND(BN56,0))+(ROUND(BQ56,0)-ROUND(BP56,0))+(ROUND(BS56,0)-ROUND(BR56,0))+(ROUND(BU56,0)-ROUND(BT56,0))+(ROUND(BW56,0)-ROUND(BV56,0))+(ROUND(BY56,0)-ROUND(BX56,0))+(ROUND(CA56,0)-ROUND(BZ56,0))+(ROUND(CC56,0)-ROUND(CB56,0))+(COUNTIF($H56:$CC56,">"&0)/2)) -> 144
F57: WEEK 4 | G57: THU | H57: 58.25 | I57: 59.5 | J57: 141.2857143 | K57: 145.8571429 | L57: 94.85714286 | M57: 97.57142857 | N57: 109.1428571 | O57: 112.4285714 | P57: 20.75 | Q57: 20.5 | R57: 79.67857143 | S57: 81.78571429 | T57: 51.10714286 | U57: 52.07142857 | V57: 36.82142857 | W57: 37.21428571 | X57: 32.35714286 | Y57: 32.57142857 | Z57: 28.78571429 | AA57: 28.85714286 | AB57: 29.67857143 | AC57: 29.78571429 | AD57: 27 | AE57: 27 | AF57: 25.21428571 | AG57: 25.14285714 | AH57: 110.0357143 | AI57: 113.3571429 | AJ57: 101.1071429 | AK57: 104.0714286 | AL57: 82.35714286 | AM57: 84.57142857 | AN57: 60.03571429 | AO57: 61.35714286 | AP57: 44.85714286 | AQ57: 45.57142857 | AR57: 81.46428571 | AS57: 83.64285714 | AT57: 74.32142857 | AU57: 76.21428571 | AV57: 107.3571429 | AW57: 110.5714286 | AX57: 94.71428571 | AY57: 102.1428571 | AZ57: 139.5 | BA57: 151 | BB57: 66 | BC57: 81 | BD57: 15.14285714 | BE57: 17.42857143 | BF57: 29.42857143 | BG57: 35.28571429 | BH57: 44.85714286 | BI57: 54.57142857 | BJ57: 9.428571429 | BK57: 10.28571429 | BL57: 70 | BM57: 86 | BN57: 64.28571429 | BO57: 78.85714286 | BP57: 0 | BQ57: 0 | BR57: 0 | BS57: 0 | BT57: 0 | BU57: 0 | BV57: 0 | BW57: 0 | BX57: 0 | BY57: 0 | BZ57: 0 | CA57: 0 | CB57: 0 | CC57: 0 | CD57: 150
F58: WEEK 4 | G58: FRI | H58: 60.5 | I58: 61.75 | J58: 146.8571429 | K58: 151.4285714 | L58: 98.57142857 | M58: 101.2857143 | N58: 113.4285714 | O58: 116.7142857 | P58: 21.5 | Q58: 21.25 | R58: 82.78571429 | S58: 84.89285714 | T58: 53.07142857 | U58: 54.03571429 | V58: 38.21428571 | W58: 38.60714286 | X58: 33.57142857 | Y58: 33.78571429 | Z58: 29.85714286 | AA58: 29.92857143 | AB58: 30.78571429 | AC58: 30.89285714 | AD58: 28 | AE58: 28 | AF58: 26.14285714 | AG58: 26.07142857 | AH58: 114.3571429 | AI58: 117.6785714 | AJ58: 105.0714286 | AK58: 108.0357143 | AL58: 85.57142857 | AM58: 87.78571429 | AN58: 62.35714286 | AO58: 63.67857143 | AP58: 46.57142857 | AQ58: 47.28571429 | AR58: 84.64285714 | AS58: 86.82142857 | AT58: 77.21428571 | AU58: 79.10714286 | AV58: 111.5714286 | AW58: 114.7857143 | AX58: 103.1428571 | AY58: 110.5714286 | AZ58: 152 | BA58: 163.5 | BB58: 82 | BC58: 97 | BD58: 18.42857143 | BE58: 20.71428571 | BF58: 36.28571429 | BG58: 42.14285714 | BH58: 55.57142857 | BI58: 65.28571429 | BJ58: 11.28571429 | BK58: 12.14285714 | BL58: 87 | BM58: 103 | BN58: 79.85714286 | BO58: 94.42857143 | BP58: 0 | BQ58: 0 | BR58: 0 | BS58: 0 | BT58: 0 | BU58: 0 | BV58: 0 | BW58: 0 | BX58: 0 | BY58: 0 | BZ58: 0 | CA58: 0 | CB58: 0 | CC58: 0 | CD58: 146
F59: WEEK 4 | G59: שבת | H59: 62.75 | I59: 64 | J59: 152.4285714 | K59: 157 | L59: 102.2857143 | M59: 105 | N59: 117.7142857 | O59: 121 | P59: 22.25 | Q59: 22 | R59: 85.89285714 | S59: 88 | T59: 55.03571429 | U59: 56 | V59: 39.60714286 | W59: 40 | X59: 34.78571429 | Y59: 35 | Z59: 30.92857143 | AA59: 31 | AB59: 31.89285714 | AC59: 32 | AD59: 29 | AE59: 29 | AF59: 27.07142857 | AG59: 27 | AH59: 118.6785714 | AI59: 122 | AJ59: 109.0357143 | AK59: 112 | AL59: 88.78571429 | AM59: 91 | AN59: 64.67857143 | AO59: 66 | AP59: 48.28571429 | AQ59: 49 | AR59: 87.82142857 | AS59: 90 | AT59: 80.10714286 | AU59: 82 | AV59: 115.7857143 | AW59: 119 | AX59: 111.5714286 | AY59: 119 | AZ59: 164.5 | BA59: 176 | BB59: 98 | BC59: 113 | BD59: 21.71428571 | BE59: 24 | BF59: 43.14285714 | BG59: 49 | BH59: 66.28571429 | BI59: 76 | BJ59: 13.14285714 | BK59: 14 | BL59: 104 | BM59: 120 | BN59: 95.42857143 | BO59: 110 | BP59: 0 | BQ59: 0 | BR59: 0 | BS59: 0 | BT59: 0 | BU59: 0 | BV59: 0 | BW59: 0 | BX59: 0 | BY59: 0 | BZ59: 0 | CA59: 0 | CB59: 0 | CC59: 0 | CD59: 145

Sheet Info (hidden)
A1: Today's Daf | B1: =VLOOKUP(NOW(),Schedule!A:C,3) -> Chullin 6
A2: Last Space | B2: =FIND("/", SUBSTITUTE(B1," ","/", LEN(B1)-LEN(SUBSTITUTE(B1," ","")))) -> 8
A3: Current Daf # | B3: =IF(NOW()<=B4,VALUE(RIGHT(B1,LEN(B1)-B2)),112) -> 112
A4: Next Masechta Date | B4: 2025-04-10
A6: Print Area (Monthly) | B6: =IF(COUNTIF('Chazarah Schedule'!K9:AG9,"Monthly")>0, 36, IF(COUNTIF('Chazarah Schedule'!K9:AG9,"Bi-weekly")>0,20,12)) -> 36

Sheet Schedule
A1: Day | B1: Weekday | C1: Daf | D1: # of Daf | E1: # of Simanim | F1: % of Shas | G1: Started Shabbos % | H1: Started Eruvin % | I1: Started Pesachim % | J1: Started Shekalim % | K1: Started Yoma % | L1: Started Succah % | M1: Masechet | N1: Seder
A2: 2020-01-05 | B2: =WEEKDAY(A2) -> 1 | C2: Berachos 2 | D2: =COUNT($A$2:A2) -> 1 | E2: =D2*3 -> 3 | F2: =D2/2711 -> 0.0003688675765 | M2: =LEFT(C2,FIND("☃",SUBSTITUTE(C2," ","☃",LEN(C2)-LEN(SUBSTITUTE(C2," ",""))))) -> Berachos | N2: =VLOOKUP(Schedule!M2,#REF!,2,FALSE) -> 
A3: 2020-01-06 | B3: =WEEKDAY(A3) -> 2 | C3: Berachos 3 | D3: =COUNT($A$2:A3) -> 2 | E3: 6 | F3: =D3/2711 -> 0.0007377351531 | M3: Berachos | N3: =VLOOKUP(Schedule!M3,#REF!,2,FALSE) ->  | P3: 0.01 | Q3: =2711*0.01 -> 27.11 | S3: Today's Daf | T3: # of Daf | U3: % of Shas | W3: # of Simanim | X3: 0.01 | Y3: 0.02 | Z3: 0.03 | AA3: 0.04 | AB3: 0.05 | AC3: 0.1 | AD3: 0.15 | AE3: 0.2 | AF3: 0.25 | AG3: 0.3 | AH3: 0.35 | AI3: 0.4 | AJ3: 0.45 | AK3: 0.5
A4: 2020-01-07 | B4: 3 | C4: Berachos 4 | D4: =COUNT($A$2:A4) -> 3 | E4: 9 | F4: 0.00110660273 | M4: Berachos | N4: =VLOOKUP(Schedule!M4,#REF!,2,FALSE) ->  | P4: 0.05 | Q4: =2711*0.05 -> 135.55 | S4: =VLOOKUP(NOW(),A:F,3) -> Chullin 6 | T4: =VLOOKUP(NOW(),A:F,4) -> 2314 | U4: =VLOOKUP(NOW(),A:F,6) -> 0.8535595721 | W4: =T4*3 -> 6942 | X4: =#REF! + ROUNDUP(27.11*X3*100,0)-1 ->  | Y4: =#REF! + ROUNDUP(27.11*Y3*100,0)-1 ->  | Z4: =#REF! + ROUNDUP(27.11*Z3*100,0)-1 ->  | AA4: =#REF! + ROUNDUP(27.11*AA3*100,0)-1 ->  | AB4: =#REF! + ROUNDUP(27.11*AB3*100,0)-1 ->  | AC4: =#REF! + ROUNDUP(27.11*AC3*100,0)-1 ->  | AD4: =#REF! + ROUNDUP(27.11*AD3*100,0)-1 ->  | AE4: =#REF! + ROUNDUP(27.11*AE3*100,0)-1 ->  | AF4: =#REF! + ROUNDUP(27.11*AF3*100,0)-1 ->  | AG4: =#REF! + ROUNDUP(27.11*AG3*100,0)-1 ->  | AH4: =#REF! + ROUNDUP(27.11*AH3*100,0)-1 ->  | AI4: =#REF! + ROUNDUP(27.11*AI3*100,0)-1 ->  | AJ4: =#REF! + ROUNDUP(27.11*AJ3*100,0)-1 ->  | AK4: =#REF! + ROUNDUP(27.11*AK3*100,0)-1 -> 
A5: 2020-01-08 | B5: 4 | C5: Berachos 5 | D5: =COUNT($A$2:A5) -> 4 | E5: 12 | F5: 0.001475470306 | M5: Berachos | N5: =VLOOKUP(Schedule!M5,#REF!,2,FALSE) ->  | P5: 0.1 | Q5: =2711*0.1 -> 271.1 | S5: Custom | T5: =VLOOKUP(NOW(),A:F,4)-VLOOKUP('Chazarah Schedule'!#REF!,A:F,4)+1 ->  | U5: =T5/2711 ->  | X5: ='Chazarah Schedule'!#REF! + ROUNDUP(27.11*X3*100,0)-1 ->  | Y5: ='Chazarah Schedule'!#REF! + ROUNDUP(27.11*Y3*100,0)-1 ->  | Z5: ='Chazarah Schedule'!#REF! + ROUNDUP(27.11*Z3*100,0)-1 ->  | AA5: ='Chazarah Schedule'!#REF! + ROUNDUP(27.11*AA3*100,0)-1 ->  | AB5: ='Chazarah Schedule'!#REF! + ROUNDUP(27.11*AB3*100,0)-1 ->  | AC5: ='Chazarah Schedule'!#REF! + ROUNDUP(27.11*AC3*100,0)-1 ->  | AD5: ='Chazarah Schedule'!#REF! + ROUNDUP(27.11*AD3*100,0)-1 ->  | AE5: ='Chazarah Schedule'!#REF! + ROUNDUP(27.11*AE3*100,0)-1 ->  | AF5: ='Chazarah Schedule'!#REF! + ROUNDUP(27.11*AF3*100,0)-1 ->  | AG5: ='Chazarah Schedule'!#REF! + ROUNDUP(27.11*AG3*100,0)-1 ->  | AH5: ='Chazarah Schedule'!#REF! + ROUNDUP(27.11*AH3*100,0)-1 ->  | AI5: ='Chazarah Schedule'!#REF! + ROUNDUP(27.11*AI3*100,0)-1 ->  | AJ5: ='Chazarah Schedule'!#REF! + ROUNDUP(27.11*AJ3*100,0)-1 ->  | AK5: ='Chazarah Schedule'!#REF! + ROUNDUP(27.11*AK3*100,0)-1 -> 
A6: 2020-01-09 | B6: 5 | C6: Berachos 6 | D6: =COUNT($A$2:A6) -> 5 | E6: 15 | F6: 0.001844337883 | M6: Berachos | N6: =VLOOKUP(Schedule!M6,#REF!,2,FALSE) ->  | P6: 0.15 | Q6: =2711*0.15 -> 406.65 | S6: Started Shabbos | T6: =$T$4-#REF! ->  | X6: =#REF! + ROUNDUP(27.11*X3*100,0)-1 ->  | Y6: =#REF! + ROUNDUP(27.11*Y3*100,0)-1 ->  | Z6: =#REF! + ROUNDUP(27.11*Z3*100,0)-1 ->  | AA6: =#REF! + ROUNDUP(27.11*AA3*100,0)-1 ->  | AB6: =#REF! + ROUNDUP(27.11*AB3*100,0)-1 ->  | AC6: =#REF! + ROUNDUP(27.11*AC3*100,0)-1 ->  | AD6: =#REF! + ROUNDUP(27.11*AD3*100,0)-1 ->  | AE6: =#REF! + ROUNDUP(27.11*AE3*100,0)-1 ->  | AF6: =#REF! + ROUNDUP(27.11*AF3*100,0)-1 ->  | AG6: =#REF! + ROUNDUP(27.11*AG3*100,0)-1 ->  | AH6: =#REF! + ROUNDUP(27.11*AH3*100,0)-1 ->  | AI6: =#REF! + ROUNDUP(27.11*AI3*100,0)-1 ->  | AJ6: =#REF! + ROUNDUP(27.11*AJ3*100,0)-1 ->  | AK6: =#REF! + ROUNDUP(27.11*AK3*100,0)-1 -> 
A7: 2020-01-10 | B7: 6 | C7: Berachos 7 | D7: =COUNT($A$2:A7) -> 6 | E7: 18 | F7: 0.002213205459 | M7: Berachos | N7: =VLOOKUP(Schedule!M7,#REF!,2,FALSE) ->  | P7: 0.2 | Q7: =2711*0.2 -> 542.2 | S7: Started Eruvin | T7: =$T$4-#REF! ->  | X7: =#REF! + ROUNDUP(27.11*X3*100,0)-1 ->  | Y7: =#REF! + ROUNDUP(27.11*Y3*100,0)-1 ->  | Z7: =#REF! + ROUNDUP(27.11*Z3*100,0)-1 ->  | AA7: =#REF! + ROUNDUP(27.11*AA3*100,0)-1 ->  | AB7: =#REF! + ROUNDUP(27.11*AB3*100,0)-1 ->  | AC7: =#REF! + ROUNDUP(27.11*AC3*100,0)-1 ->  | AD7: =#REF! + ROUNDUP(27.11*AD3*100,0)-1 ->  | AE7: =#REF! + ROUNDUP(27.11*AE3*100,0)-1 ->  | AF7: =#REF! + ROUNDUP(27.11*AF3*100,0)-1 ->  | AG7: =#REF! + ROUNDUP(27.11*AG3*100,0)-1 ->  | AH7: =#REF! + ROUNDUP(27.11*AH3*100,0)-1 ->  | AI7: =#REF! + ROUNDUP(27.11*AI3*100,0)-1 ->  | AJ7: =#REF! + ROUNDUP(27.11*AJ3*100,0)-1 ->  | AK7: =#REF! + ROUNDUP(27.11*AK3*100,0)-1 -> 
A8: 2020-01-11 | B8: 7 | C8: Berachos 8 | D8: =COUNT($A$2:A8) -> 7 | E8: 21 | F8: 0.002582073036 | M8: Berachos | N8: =VLOOKUP(Schedule!M8,#REF!,2,FALSE) ->  | P8: 0.25 | Q8: =2711*0.25 -> 677.75 | S8: Started Pesachim | T8: =$T$4-#REF! -> 
A9: 2020-01-12 | B9: 1 | C9: Berachos 9 | D9: =COUNT($A$2:A9) -> 8 | E9: 24 | F9: 0.002950940612 | M9: Berachos | N9: =VLOOKUP(Schedule!M9,#REF!,2,FALSE) ->  | P9: 0.33 | Q9: =2711*0.33 -> 894.63 | S9: Started Shekalim | T9: =$T$4-#REF! -> 
A10: 2020-01-13 | B10: 2 | C10: Berachos 10 | D10: =COUNT($A$2:A10) -> 9 | E10: 27 | F10: 0.003319808189 | M10: Berachos | N10: =VLOOKUP(Schedule!M10,#REF!,2,FALSE) ->  | P10: 0.5 | Q10: =2711*0.5 -> 1355.5 | S10: Started Yoma | T10: =$T$4-#REF! -> 
A11: 2020-01-14 | B11: 3 | C11: Berachos 11 | D11: =COUNT($A$2:A11) -> 10 | E11: 30 | F11: 0.003688675765 | M11: Berachos | N11: =VLOOKUP(Schedule!M11,#REF!,2,FALSE) ->  | P11: 0.75 | Q11: =2711*0.75 -> 2033.25 | S11: Started Succah | T11: =$T$4-#REF! -> 
A12: 2020-01-15 | B12: 4 | C12: Berachos 12 | D12: =COUNT($A$2:A12) -> 11 | E12: 33 | F12: 0.004057543342 | M12: Berachos | N12: =VLOOKUP(Schedule!M12,#REF!,2,FALSE) -> 
A13: 2020-01-16 | B13: 5 | C13: Berachos 13 | D13: =COUNT($A$2:A13) -> 12 | E13: 36 | F13: 0.004426410918 | M13: Berachos | N13: =VLOOKUP(Schedule!M13,#REF!,2,FALSE) -> 
A14: 2020-01-17 | B14: 6 | C14: Berachos 14 | D14: =COUNT($A$2:A14) -> 13 | E14: 39 | F14: 0.004795278495 | M14: Berachos | N14: =VLOOKUP(Schedule!M14,#REF!,2,FALSE) ->  | Z14: Avg Time / Daf | AA14: 2
A15: 2020-01-18 | B15: 7 | C15: Berachos 15 | D15: =COUNT($A$2:A15) -> 14 | E15: 42 | F15: 0.005164146072 | M15: Berachos | N15: =VLOOKUP(Schedule!M15,#REF!,2,FALSE) -> 
A16: 2020-01-19 | B16: 1 | C16: Berachos 16 | D16: =COUNT($A$2:A16) -> 15 | E16: 45 | F16: 0.005533013648 | M16: Berachos | N16: =VLOOKUP(Schedule!M16,#REF!,2,FALSE) ->  | R16: 1 | S16: Masechet | T16: Total Daf | U16: % of Daf | W16: Seder | X16: Total Daf | Y16: % of Daf | Z16: Review Mins | AB16: Seder | AC16: Total Daf | AD16: # of Masechet | AE16: % of Shas | AF16: Covered | AG16: % Complete | AH16: 0.25 | AI16: 0.5 | AJ16: 0.75 | AK16: 1
A17: 2020-01-20 | B17: 2 | C17: Berachos 17 | D17: =COUNT($A$2:A17) -> 16 | E17: 48 | F17: 0.005901881225 | M17: Berachos | N17: =VLOOKUP(Schedule!M17,#REF!,2,FALSE) ->  | R17: 2 | S17: Bava Basra | T17: 175 | U17: 0.06455182589 | W17: מועד | X17: 731 | Y17: 0.2696421985 | Z17: =GETPIVOTDATA("Total Daf",$W$16,"Seder","מועד")/AA14 -> 365.5 | AA17: =Z17/60 -> 6.091666667 | AB17: זרעים | AC17: 63 | AD17: 1 | AE17: 0.02323865732 | AH17: =INDEX(A2:N2712,ROUND((AC17*0.25),0),1) -> 2020-01-20 | AI17: =INDEX(A2:N2712,ROUND((AC17*0.5),0),1) -> 2020-02-05 | AJ17: =INDEX(A2:N2712,ROUND((AC17*0.75),0),1) -> 2020-02-20 | AK17: =INDEX(A2:N2712,AC17,1) -> 2020-03-07
A18: 2020-01-21 | B18: 3 | C18: Berachos 18 | D18: =COUNT($A$2:A18) -> 17 | E18: 51 | F18: 0.006270748801 | M18: Berachos | N18: =VLOOKUP(Schedule!M18,#REF!,2,FALSE) ->  | R18: 3 | S18: Shabbos | T18: 156 | U18: 0.05754334194 | W18: נזיקין | X18: 682 | Y18: 0.2515676872 | Z18: =GETPIVOTDATA("Total Daf",$W$16,"Seder","נזיקין")/AA14 -> 341 | AA18: 5.683333333 | AB18: מועד | AC18: 731 | AD18: 12 | AE18: 0.2696421985 | AF18: =T4-AC17 -> 2251 | AG18: =(T4-AC17)/AC18 -> 3.079343365 | AH18: =INDEX(A2:N2712,AC17+ROUND((AC18*0.25),0),1) -> 2020-09-06 | AI18: =INDEX(A2:N2712,AC17+ROUND((AC18*0.5),0),1) -> 2021-03-08 | AJ18: =INDEX(A2:N2712,AC17+ROUND((AC18*0.75),0),1) -> 2021-09-06 | AK18: =INDEX(A2:N2712,AC17+AC18,1) -> 2022-03-08
A19: 2020-01-22 | B19: 4 | C19: Berachos 19 | D19: =COUNT($A$2:A19) -> 18 | E19: 54 | F19: 0.006639616378 | M19: Berachos | N19: =VLOOKUP(Schedule!M19,#REF!,2,FALSE) ->  | R19: 4 | S19: Chullin | T19: 141 | U19: 0.05201032829 | W19: נשים | X19: 605 | Y19: 0.2231648838 | Z19: =GETPIVOTDATA("Total Daf",$W$16,"Seder","נשים")/AA14 -> 302.5 | AA19: 5.041666667 | AB19: נשים | AC19: 605 | AD19: 7 | AE19: 0.2231648838 | AH19: =INDEX(A2:N2712,AC17+AC18+ROUND((AC19*0.25),0),1) -> 2022-08-06 | AI19: =INDEX(A2:N2712,AC17+AC18+ROUND((AC19*0.5),0),1) -> 2023-01-05 | AJ19: =INDEX(A2:N2712,AC17+AC18+ROUND((AC19*0.75),0),1) -> 2023-06-05 | AK19: =INDEX(A2:N2712,AC17+AC18+AC19,1) -> 2023-11-03
A20: 2020-01-23 | B20: 5 | C20: Berachos 20 | D20: =COUNT($A$2:A20) -> 19 | E20: 57 | F20: 0.007008483954 | M20: Berachos | N20: =VLOOKUP(Schedule!M20,#REF!,2,FALSE) ->  | R20: 5 | S20: Yevamos | T20: 121 | U20: 0.04463297676 | W20: קדשים | X20: 558 | Y20: 0.2058281077 | Z20: =GETPIVOTDATA("Total Daf",$W$16,"Seder","קדשים")/AA14 -> 279 | AA20: 4.65 | AB20: נזיקין | AC20: 682 | AD20: 8 | AE20: 0.2515676872 | AH20: =INDEX(A2:N2712,AC17+AC18+AC19+ROUND((AC20*0.25),0),1) -> 2024-04-22 | AI20: =INDEX(A2:N2712,AC17+AC18+AC19+ROUND((AC20*0.5),0),1) -> 2024-10-09 | AJ20: =INDEX(A2:N2712,AC17+AC18+AC19+ROUND((AC20*0.75),0),1) -> 2025-03-29 | AK20: =INDEX(A2:N2712,AC17+AC18+AC19+AC20,1) -> 2025-09-15
A21: 2020-01-24 | B21: 6 | C21: Berachos 21 | D21: =COUNT($A$2:A21) -> 20 | E21: 60 | F21: 0.007377351531 | M21: Berachos | N21: =VLOOKUP(Schedule!M21,#REF!,2,FALSE) ->  | R21: 6 | S21: Pesachim | T21: 120 | U21: 0.04426410918 | W21: טהרות | X21: 72 | Y21: 0.02655846551 | Z21: =GETPIVOTDATA("Total Daf",$W$16,"Seder","טהרות")/AA14 -> 36 | AA21: 0.6 | AB21: קדשים | AC21: 558 | AD21: 8 | AE21: 0.2058281077 | AH21: =INDEX(A2:N2712,AC17+AC18+AC19+AC20+ROUND((AC21*0.25),0),1) -> 2026-02-02 | AI21: =INDEX(A2:N2712,AC17+AC18+AC19+AC20+ROUND((AC21*0.5),0),1) -> 2026-06-21 | AJ21: =INDEX(A2:N2712,AC17+AC18+AC19+AC20+ROUND((AC21*0.75),0),1) -> 2026-11-08 | AK21: =INDEX(A2:N2712,AC17+AC18+AC19+AC20+AC21,1) -> 2027-03-27
A22: 2020-01-25 | B22: 7 | C22: Berachos 22 | D22: =COUNT($A$2:A22) -> 21 | E22: 63 | F22: 0.007746219107 | M22: Berachos | N22: =VLOOKUP(Schedule!M22,#REF!,2,FALSE) ->  | R22: 7 | S22: Zevachim | T22: 119 | U22: 0.04389524161 | W22: זרעים | X22: 63 | Y22: 0.02323865732 | Z22: =GETPIVOTDATA("Total Daf",$W$16,"Seder","זרעים")/AA14 -> 31.5 | AA22: 0.525 | AB22: טהרות | AC22: 72 | AD22: 1 | AE22: 0.02655846551 | AH22: =INDEX(A2:N2712,AC17+AC18+AC19+AC20+AC21+ROUND((AC22*0.25),0),1) -> 2027-04-14 | AI22: =INDEX(A2:N2712,AC17+AC18+AC19+AC20+AC21+ROUND((AC22*0.5),0),1) -> 2027-05-02 | AJ22: =INDEX(A2:N2712,AC17+AC18+AC19+AC20+AC21+ROUND((AC22*0.75),0),1) -> 2027-05-20 | AK22: =INDEX(A2:N2712,AC17+AC18+AC19+AC20+AC21+AC22,1) -> 2027-06-07
A23: 2020-01-26 | B23: 1 | C23: Berachos 23 | D23: =COUNT($A$2:A23) -> 22 | E23: 66 | F23: 0.008115086684 | M23: Berachos | N23: =VLOOKUP(Schedule!M23,#REF!,2,FALSE) ->  | R23: 8 | S23: Bava Metzia | T23: 118 | U23: 0.04352637403 | W23: Grand Total | X23: 2711 | Y23: 1 | AB23: Grand Total | AC23: 2711 | AD23: =SUM(AD17:AD22) -> 37 | AE23: 1
A24: 2020-01-27 | B24: 2 | C24: Berachos 24 | D24: =COUNT($A$2:A24) -> 23 | E24: 69 | F24: 0.00848395426 | M24: Berachos | N24: =VLOOKUP(Schedule!M24,#REF!,2,FALSE) ->  | R24: 9 | S24: Bava Kamma | T24: 118 | U24: 0.04352637403
A25: 2020-01-28 | B25: 3 | C25: Berachos 25 | D25: =COUNT($A$2:A25) -> 24 | E25: 72 | F25: 0.008852821837 | M25: Berachos | N25: =VLOOKUP(Schedule!M25,#REF!,2,FALSE) ->  | R25: 10 | S25: Sanhedrin | T25: 112 | U25: 0.04131316857 | W25: Masechet | X25: Total Daf | Y25: % of Daf
A26: 2020-01-29 | B26: 4 | C26: Berachos 26 | D26: =COUNT($A$2:A26) -> 25 | E26: 75 | F26: 0.009221689414 | M26: Berachos | N26: =VLOOKUP(Schedule!M26,#REF!,2,FALSE) ->  | R26: 11 | S26: Kesuvos | T26: 111 | U26: 0.040944301 | W26: זרעים | X26: 63 | Y26: 0.02323865732
A27: 2020-01-30 | B27: 5 | C27: Berachos 27 | D27: =COUNT($A$2:A27) -> 26 | E27: 78 | F27: 0.00959055699 | M27: Berachos | N27: =VLOOKUP(Schedule!M27,#REF!,2,FALSE) ->  | R27: 12 | S27: Menachos | T27: 109 | U27: 0.04020656584 | W27: Berachos | X27: 63 | Y27: 0.02323865732
A28: 2020-01-31 | B28: 6 | C28: Berachos 28 | D28: =COUNT($A$2:A28) -> 27 | E28: 81 | F28: 0.009959424567 | M28: Berachos | N28: =VLOOKUP(Schedule!M28,#REF!,2,FALSE) ->  | R28: 13 | S28: Eruvin | T28: 104 | U28: 0.03836222796 | W28: טהרות | X28: 72 | Y28: 0.02655846551
A29: 2020-02-01 | B29: 7 | C29: Berachos 29 | D29: =COUNT($A$2:A29) -> 28 | E29: 84 | F29: 0.01032829214 | M29: Berachos | N29: =VLOOKUP(Schedule!M29,#REF!,2,FALSE) ->  | R29: 14 | S29: Nedarim | T29: 90 | U29: 0.03319808189 | W29: Niddah | X29: 72 | Y29: 0.02655846551
A30: 2020-02-02 | B30: 1 | C30: Berachos 30 | D30: =COUNT($A$2:A30) -> 29 | E30: 87 | F30: 0.01069715972 | M30: Berachos | N30: =VLOOKUP(Schedule!M30,#REF!,2,FALSE) ->  | R30: 15 | S30: Gittin | T30: 89 | U30: 0.03282921431 | W30: מועד | X30: 731 | Y30: 0.2696421985
A31: 2020-02-03 | B31: 2 | C31: Berachos 31 | D31: =COUNT($A$2:A31) -> 30 | E31: 90 | F31: 0.0110660273 | M31: Berachos | N31: =VLOOKUP(Schedule!M31,#REF!,2,FALSE) ->  | R31: 16 | S31: Yoma | T31: 87 | U31: 0.03209147916 | W31: Beitzah | X31: 39 | Y31: 0.01438583549
A32: 2020-02-04 | B32: 3 | C32: Berachos 32 | D32: =COUNT($A$2:A32) -> 31 | E32: 93 | F32: 0.01143489487 | M32: Berachos | N32: =VLOOKUP(Schedule!M32,#REF!,2,FALSE) ->  | R32: 17 | S32: Kiddushin | T32: 81 | U32: 0.0298782737 | W32: Chagigah | X32: 26 | Y32: 0.00959055699
A33: 2020-02-05 | B33: 4 | C33: Berachos 33 | D33: =COUNT($A$2:A33) -> 32 | E33: 96 | F33: 0.01180376245 | M33: Berachos | N33: =VLOOKUP(Schedule!M33,#REF!,2,FALSE) ->  | R33: 18 | S33: Avodah Zara | T33: 75 | U33: 0.02766506824 | W33: Eruvin | X33: 104 | Y33: 0.03836222796
A34: 2020-02-06 | B34: 5 | C34: Berachos 34 | D34: =COUNT($A$2:A34) -> 33 | E34: 99 | F34: 0.01217263003 | M34: =LEFT(C34,FIND("☃",SUBSTITUTE(C34," ","☃",LEN(C34)-LEN(SUBSTITUTE(C34," ",""))))) -> Berachos | N34: =VLOOKUP(Schedule!M34,#REF!,2,FALSE) ->  | R34: 19 | S34: Niddah | T34: 72 | U34: 0.02655846551 | W34: Megillah | X34: 31 | Y34: 0.01143489487
A35: 2020-02-07 | B35: 6 | C35: Berachos 35 | D35: =COUNT($A$2:A35) -> 34 | E35: 102 | F35: 0.0125414976 | M35: Berachos | N35: =VLOOKUP(Schedule!M35,#REF!,2,FALSE) ->  | R35: 20 | S35: Nazir | T35: 65 | U35: 0.02397639248 | W35: Moed Katan | X35: 28 | Y35: 0.01032829214
A36: 2020-02-08 | B36: 7 | C36: Berachos 36 | D36: =COUNT($A$2:A36) -> 35 | E36: 105 | F36: 0.01291036518 | M36: Berachos | N36: =VLOOKUP(Schedule!M36,#REF!,2,FALSE) ->  | R36: 21 | S36: Berachos | T36: 63 | U36: 0.02323865732 | W36: Pesachim | X36: 120 | Y36: 0.04426410918
A37: 2020-02-09 | B37: 1 | C37: Berachos 37 | D37: =COUNT($A$2:A37) -> 36 | E37: 108 | F37: 0.01327923276 | M37: Berachos | N37: =VLOOKUP(Schedule!M37,#REF!,2,FALSE) ->  | R37: 22 | S37: Bechoros | T37: 60 | U37: 0.02213205459 | W37: Rosh Hashanah | X37: 34 | Y37: 0.0125414976
A38: 2020-02-10 | B38: 2 | C38: Berachos 38 | D38: =COUNT($A$2:A38) -> 37 | E38: 111 | F38: 0.01364810033 | M38: Berachos | N38: =VLOOKUP(Schedule!M38,#REF!,2,FALSE) ->  | R38: 23 | S38: Succah | T38: 55 | U38: 0.02028771671 | W38: Shabbos | X38: 156 | Y38: 0.05754334194
A39: 2020-02-11 | B39: 3 | C39: Berachos 39 | D39: =COUNT($A$2:A39) -> 38 | E39: 114 | F39: 0.01401696791 | M39: Berachos | N39: =VLOOKUP(Schedule!M39,#REF!,2,FALSE) ->  | R39: 24 | S39: Sotah | T39: 48 | U39: 0.01770564367 | W39: Shekalim | X39: 21 | Y39: 0.007746219107
A40: 2020-02-12 | B40: 4 | C40: Berachos 40 | D40: =COUNT($A$2:A40) -> 39 | E40: 117 | F40: 0.01438583549 | M40: Berachos | N40: =VLOOKUP(Schedule!M40,#REF!,2,FALSE) ->  | R40: 25 | S40: Shevuos | T40: 48 | U40: 0.01770564367 | W40: Succah | X40: 55 | Y40: 0.02028771671
A41: 2020-02-13 | B41: 5 | C41: Berachos 41 | D41: =COUNT($A$2:A41) -> 40 | E41: 120 | F41: 0.01475470306 | M41: Berachos | N41: =VLOOKUP(Schedule!M41,#REF!,2,FALSE) ->  | R41: 26 | S41: Beitzah | T41: 39 | U41: 0.01438583549 | W41: Taanis | X41: 30 | Y41: 0.0110660273
A42: 2020-02-14 | B42: 6 | C42: Berachos 42 | D42: =COUNT($A$2:A42) -> 41 | E42: 123 | F42: 0.01512357064 | M42: Berachos | N42: =VLOOKUP(Schedule!M42,#REF!,2,FALSE) ->  | R42: 27 | S42: Meilah, etc | T42: 36 | U42: 0.01327923276 | W42: Yoma | X42: 87 | Y42: 0.03209147916
A43: 2020-02-15 | B43: 7 | C43: Berachos 43 | D43: =COUNT($A$2:A43) -> 42 | E43: 126 | F43: 0.01549243821 | M43: Berachos | N43: =VLOOKUP(Schedule!M43,#REF!,2,FALSE) ->  | R43: 28 | S43: Rosh Hashanah | T43: 34 | U43: 0.0125414976 | W43: נזיקין | X43: 682 | Y43: 0.2515676872
A44: 2020-02-16 | B44: 1 | C44: Berachos 44 | D44: =COUNT($A$2:A44) -> 43 | E44: 129 | F44: 0.01586130579 | M44: Berachos | N44: =VLOOKUP(Schedule!M44,#REF!,2,FALSE) ->  | R44: 29 | S44: Temurah | T44: 33 | U44: 0.01217263003 | W44: Avodah Zara | X44: 75 | Y44: 0.02766506824
A45: 2020-02-17 | B45: 2 | C45: Berachos 45 | D45: =COUNT($A$2:A45) -> 44 | E45: 132 | F45: 0.01623017337 | M45: Berachos | N45: =VLOOKUP(Schedule!M45,#REF!,2,FALSE) ->  | R45: 30 | S45: Arachin | T45: 33 | U45: 0.01217263003 | W45: Bava Basra | X45: 175 | Y45: 0.06455182589
A46: 2020-02-18 | B46: 3 | C46: Berachos 46 | D46: =COUNT($A$2:A46) -> 45 | E46: 135 | F46: 0.01659904094 | M46: Berachos | N46: =VLOOKUP(Schedule!M46,#REF!,2,FALSE) ->  | R46: 31 | S46: Megillah | T46: 31 | U46: 0.01143489487 | W46: Bava Kamma | X46: 118 | Y46: 0.04352637403
A47: 2020-02-19 | B47: 4 | C47: Berachos 47 | D47: =COUNT($A$2:A47) -> 46 | E47: 138 | F47: 0.01696790852 | M47: Berachos | N47: =VLOOKUP(Schedule!M47,#REF!,2,FALSE) ->  | R47: 32 | S47: Taanis | T47: 30 | U47: 0.0110660273 | W47: Bava Metzia | X47: 118 | Y47: 0.04352637403
A48: 2020-02-20 | B48: 5 | C48: Berachos 48 | D48: =COUNT($A$2:A48) -> 47 | E48: 141 | F48: 0.0173367761 | M48: Berachos | N48: =VLOOKUP(Schedule!M48,#REF!,2,FALSE) ->  | R48: 33 | S48: Moed Katan | T48: 28 | U48: 0.01032829214 | W48: Horayos | X48: 13 | Y48: 0.004795278495
A49: 2020-02-21 | B49: 6 | C49: Berachos 49 | D49: =COUNT($A$2:A49) -> 48 | E49: 144 | F49: 0.01770564367 | M49: Berachos | N49: =VLOOKUP(Schedule!M49,#REF!,2,FALSE) ->  | R49: 34 | S49: Kereisos | T49: 27 | U49: 0.009959424567 | W49: Makkos | X49: 23 | Y49: 0.00848395426
A50: 2020-02-22 | B50: 7 | C50: Berachos 50 | D50: =COUNT($A$2:A50) -> 49 | E50: 147 | F50: 0.01807451125 | M50: Berachos | N50: =VLOOKUP(Schedule!M50,#REF!,2,FALSE) ->  | R50: 35 | S50: Chagigah | T50: 26 | U50: 0.00959055699 | W50: Sanhedrin | X50: 112 | Y50: 0.04131316857
A51: 2020-02-23 | B51: 1 | C51: Berachos 51 | D51: =COUNT($A$2:A51) -> 50 | E51: 150 | F51: 0.01844337883 | M51: Berachos | N51: =VLOOKUP(Schedule!M51,#REF!,2,FALSE) ->  | R51: 36 | S51: Makkos | T51: 23 | U51: 0.00848395426 | W51: Shevuos | X51: 48 | Y51: 0.01770564367
A52: 2020-02-24 | B52: 2 | C52: Berachos 52 | D52: =COUNT($A$2:A52) -> 51 | E52: 153 | F52: 0.0188122464 | M52: Berachos | N52: =VLOOKUP(Schedule!M52,#REF!,2,FALSE) ->  | R52: 37 | S52: Shekalim | T52: 21 | U52: 0.007746219107 | W52: נשים | X52: 605 | Y52: 0.2231648838
A53: 2020-02-25 | B53: 3 | C53: Berachos 53 | D53: =COUNT($A$2:A53) -> 52 | E53: 156 | F53: 0.01918111398 | M53: Berachos | N53: =VLOOKUP(Schedule!M53,#REF!,2,FALSE) ->  | S53: Horayos | T53: 13 | U53: 0.004795278495 | W53: Gittin | X53: 89 | Y53: 0.03282921431
A54: 2020-02-26 | B54: 4 | C54: Berachos 54 | D54: =COUNT($A$2:A54) -> 53 | E54: 159 | F54: 0.01954998156 | M54: Berachos | N54: =VLOOKUP(Schedule!M54,#REF!,2,FALSE) ->  | S54: Grand Total | T54: 2711 | U54: 1 | W54: Kesuvos | X54: 111 | Y54: 0.040944301
A55: 2020-02-27 | B55: 5 | C55: Berachos 55 | D55: =COUNT($A$2:A55) -> 54 | E55: 162 | F55: 0.01991884913 | M55: Berachos | N55: =VLOOKUP(Schedule!M55,#REF!,2,FALSE) ->  | W55: Kiddushin | X55: 81 | Y55: 0.0298782737
A56: 2020-02-28 | B56: 6 | C56: Berachos 56 | D56: =COUNT($A$2:A56) -> 55 | E56: 165 | F56: 0.02028771671 | M56: Berachos | N56: =VLOOKUP(Schedule!M56,#REF!,2,FALSE) ->  | W56: Nazir | X56: 65 | Y56: 0.02397639248
A57: 2020-02-29 | B57: 7 | C57: Berachos 57 | D57: =COUNT($A$2:A57) -> 56 | E57: 168 | F57: 0.02065658429 | M57: Berachos | N57: =VLOOKUP(Schedule!M57,#REF!,2,FALSE) ->  | W57: Nedarim | X57: 90 | Y57: 0.03319808189
A58: 2020-03-01 | B58: 1 | C58: Berachos 58 | D58: =COUNT($A$2:A58) -> 57 | E58: 171 | F58: 0.02102545186 | M58: Berachos | N58: =VLOOKUP(Schedule!M58,#REF!,2,FALSE) ->  | W58: Sotah | X58: 48 | Y58: 0.01770564367
A59: 2020-03-02 | B59: 2 | C59: Berachos 59 | D59: =COUNT($A$2:A59) -> 58 | E59: 174 | F59: 0.02139431944 | M59: Berachos | N59: =VLOOKUP(Schedule!M59,#REF!,2,FALSE) ->  | W59: Yevamos | X59: 121 | Y59: 0.04463297676
A60: 2020-03-03 | B60: 3 | C60: Berachos 60 | D60: =COUNT($A$2:A60) -> 59 | E60: 177 | F60: 0.02176318702 | M60: Berachos | N60: =VLOOKUP(Schedule!M60,#REF!,2,FALSE) ->  | W60: קדשים | X60: 558 | Y60: 0.2058281077
A61: 2020-03-04 | B61: 4 | C61: Berachos 61 | D61: =COUNT($A$2:A61) -> 60 | E61: 180 | F61: 0.02213205459 | M61: Berachos | N61: =VLOOKUP(Schedule!M61,#REF!,2,FALSE) ->  | W61: Bechoros | X61: 60 | Y61: 0.02213205459
A62: 2020-03-05 | B62: 5 | C62: Berachos 62 | D62: =COUNT($A$2:A62) -> 61 | E62: 183 | F62: 0.02250092217 | M62: Berachos | N62: =VLOOKUP(Schedule!M62,#REF!,2,FALSE) ->  | W62: Chullin | X62: 141 | Y62: 0.05201032829
A63: 2020-03-06 | B63: 6 | C63: Berachos 63 | D63: =COUNT($A$2:A63) -> 62 | E63: 186 | F63: 0.02286978975 | M63: Berachos | N63: =VLOOKUP(Schedule!M63,#REF!,2,FALSE) ->  | W63: Arachin | X63: 33 | Y63: 0.01217263003
A64: 2020-03-07 | B64: 7 | C64: Berachos 64 | D64: =COUNT($A$2:A64) -> 63 | E64: 189 | F64: 0.02323865732 | M64: Berachos | N64: =VLOOKUP(Schedule!M64,#REF!,2,FALSE) ->  | W64: Kereisos | X64: 27 | Y64: 0.009959424567
A65: 2020-03-08 | B65: 1 | C65: Shabbos 2 | D65: =COUNT($A$2:A65) -> 64 | E65: 192 | F65: 0.0236075249 | G65: =(D65-63)/2711 -> 0.0003688675765 | M65: Shabbos | N65: =VLOOKUP(Schedule!M65,#REF!,2,FALSE) ->  | W65: Meilah, etc | X65: 36 | Y65: 0.01327923276
A66: 2020-03-09 | B66: 2 | C66: Shabbos 3 | D66: =COUNT($A$2:A66) -> 65 | E66: =D66*3 -> 195 | F66: 0.02397639248 | G66: =(D66-63)/2711 -> 0.0007377351531 | M66: Shabbos | N66: =VLOOKUP(Schedule!M66,#REF!,2,FALSE) ->  | W66: Menachos | X66: 109 | Y66: 0.04020656584
A67: 2020-03-10 | B67: =WEEKDAY(A67) -> 3 | C67: Shabbos 4 | D67: =COUNT($A$2:A67) -> 66 | E67: 198 | F67: =D67/2711 -> 0.02434526005 | G67: 0.00110660273 | M67: =LEFT(C67,FIND("☃",SUBSTITUTE(C67," ","☃",LEN(C67)-LEN(SUBSTITUTE(C67," ",""))))) -> Shabbos | N67: =VLOOKUP(Schedule!M67,#REF!,2,FALSE) ->  | W67: Temurah | X67: 33 | Y67: 0.01217263003
A68: 2020-03-11 | B68: 4 | C68: Shabbos 5 | D68: =COUNT($A$2:A68) -> 67 | E68: 201 | F68: 0.02471412763 | G68: 0.001475470306 | M68: Shabbos | N68: =VLOOKUP(Schedule!M68,#REF!,2,FALSE) ->  | W68: Zevachim | X68: 119 | Y68: 0.04389524161
A69: 2020-03-12 | B69: 5 | C69: Shabbos 6 | D69: =COUNT($A$2:A69) -> 68 | E69: 204 | F69: 0.0250829952 | G69: 0.001844337883 | M69: Shabbos | N69: =VLOOKUP(Schedule!M69,#REF!,2,FALSE) ->  | W69: Grand Total | X69: 2711 | Y69: 1
A70: 2020-03-13 | B70: 6 | C70: Shabbos 7 | D70: =COUNT($A$2:A70) -> 69 | E70: 207 | F70: 0.02545186278 | G70: 0.002213205459 | M70: Shabbos | N70: =VLOOKUP(Schedule!M70,#REF!,2,FALSE) -> 
A71: 2020-03-14 | B71: 7 | C71: Shabbos 8 | D71: =COUNT($A$2:A71) -> 70 | E71: 210 | F71: 0.02582073036 | G71: 0.002582073036 | M71: Shabbos | N71: =VLOOKUP(Schedule!M71,#REF!,2,FALSE) -> 
A72: 2020-03-15 | B72: 1 | C72: Shabbos 9 | D72: =COUNT($A$2:A72) -> 71 | E72: 213 | F72: 0.02618959793 | G72: 0.002950940612 | M72: Shabbos | N72: =VLOOKUP(Schedule!M72,#REF!,2,FALSE) -> 
A73: 2020-03-16 | B73: 2 | C73: Shabbos 10 | D73: =COUNT($A$2:A73) -> 72 | E73: 216 | F73: 0.02655846551 | G73: 0.003319808189 | M73: Shabbos | N73: =VLOOKUP(Schedule!M73,#REF!,2,FALSE) -> 
A74: 2020-03-17 | B74: 3 | C74: Shabbos 11 | D74: =COUNT($A$2:A74) -> 73 | E74: 219 | F74: 0.02692733309 | G74: 0.003688675765 | M74: Shabbos | N74: =VLOOKUP(Schedule!M74,#REF!,2,FALSE) -> 
A75: 2020-03-18 | B75: 4 | C75: Shabbos 12 | D75: =COUNT($A$2:A75) -> 74 | E75: 222 | F75: 0.02729620066 | G75: 0.004057543342 | M75: Shabbos | N75: =VLOOKUP(Schedule!M75,#REF!,2,FALSE) -> 
A76: 2020-03-19 | B76: 5 | C76: Shabbos 13 | D76: =COUNT($A$2:A76) -> 75 | E76: 225 | F76: 0.02766506824 | G76: 0.004426410918 | M76: Shabbos | N76: =VLOOKUP(Schedule!M76,#REF!,2,FALSE) -> 
A77: 2020-03-20 | B77: 6 | C77: Shabbos 14 | D77: =COUNT($A$2:A77) -> 76 | E77: 228 | F77: 0.02803393582 | G77: 0.004795278495 | M77: Shabbos | N77: =VLOOKUP(Schedule!M77,#REF!,2,FALSE) -> 
A78: 2020-03-21 | B78: 7 | C78: Shabbos 15 | D78: =COUNT($A$2:A78) -> 77 | E78: 231 | F78: 0.02840280339 | G78: 0.005164146072 | M78: Shabbos | N78: =VLOOKUP(Schedule!M78,#REF!,2,FALSE) -> 
A79: 2020-03-22 | B79: 1 | C79: Shabbos 16 | D79: =COUNT($A$2:A79) -> 78 | E79: 234 | F79: 0.02877167097 | G79: 0.005533013648 | M79: Shabbos | N79: =VLOOKUP(Schedule!M79,#REF!,2,FALSE) -> 
A80: 2020-03-23 | B80: 2 | C80: Shabbos 17 | D80: =COUNT($A$2:A80) -> 79 | E80: 237 | F80: 0.02914053855 | G80: 0.005901881225 | M80: Shabbos | N80: =VLOOKUP(Schedule!M80,#REF!,2,FALSE) -> 
A81: 2020-03-24 | B81: 3 | C81: Shabbos 18 | D81: =COUNT($A$2:A81) -> 80 | E81: 240 | F81: 0.02950940612 | G81: 0.006270748801 | M81: Shabbos | N81: =VLOOKUP(Schedule!M81,#REF!,2,FALSE) -> 
A82: 2020-03-25 | B82: 4 | C82: Shabbos 19 | D82: =COUNT($A$2:A82) -> 81 | E82: 243 | F82: 0.0298782737 | G82: 0.006639616378 | M82: Shabbos | N82: =VLOOKUP(Schedule!M82,#REF!,2,FALSE) -> 
A83: 2020-03-26 | B83: 5 | C83: Shabbos 20 | D83: =COUNT($A$2:A83) -> 82 | E83: 246 | F83: 0.03024714128 | G83: 0.007008483954 | M83: Shabbos | N83: =VLOOKUP(Schedule!M83,#REF!,2,FALSE) -> 
A84: 2020-03-27 | B84: 6 | C84: Shabbos 21 | D84: =COUNT($A$2:A84) -> 83 | E84: 249 | F84: 0.03061600885 | G84: 0.007377351531 | M84: Shabbos | N84: =VLOOKUP(Schedule!M84,#REF!,2,FALSE) -> 
A85: 2020-03-28 | B85: 7 | C85: Shabbos 22 | D85: =COUNT($A$2:A85) -> 84 | E85: 252 | F85: 0.03098487643 | G85: 0.007746219107 | M85: Shabbos | N85: =VLOOKUP(Schedule!M85,#REF!,2,FALSE) -> 
A86: 2020-03-29 | B86: 1 | C86: Shabbos 23 | D86: =COUNT($A$2:A86) -> 85 | E86: 255 | F86: 0.03135374401 | G86: 0.008115086684 | M86: Shabbos | N86: =VLOOKUP(Schedule!M86,#REF!,2,FALSE) -> 
A87: 2020-03-30 | B87: 2 | C87: Shabbos 24 | D87: =COUNT($A$2:A87) -> 86 | E87: 258 | F87: 0.03172261158 | G87: 0.00848395426 | M87: Shabbos | N87: =VLOOKUP(Schedule!M87,#REF!,2,FALSE) -> 
A88: 2020-03-31 | B88: 3 | C88: Shabbos 25 | D88: =COUNT($A$2:A88) -> 87 | E88: 261 | F88: 0.03209147916 | G88: 0.008852821837 | M88: Shabbos | N88: =VLOOKUP(Schedule!M88,#REF!,2,FALSE) -> 
A89: 2020-04-01 | B89: 4 | C89: Shabbos 26 | D89: =COUNT($A$2:A89) -> 88 | E89: 264 | F89: 0.03246034674 | G89: 0.009221689414 | M89: Shabbos | N89: =VLOOKUP(Schedule!M89,#REF!,2,FALSE) -> 
A90: 2020-04-02 | B90: 5 | C90: Shabbos 27 | D90: =COUNT($A$2:A90) -> 89 | E90: 267 | F90: 0.03282921431 | G90: 0.00959055699 | M90: Shabbos | N90: =VLOOKUP(Schedule!M90,#REF!,2,FALSE) -> 
A91: 2020-04-03 | B91: 6 | C91: Shabbos 28 | D91: =COUNT($A$2:A91) -> 90 | E91: 270 | F91: 0.03319808189 | G91: 0.009959424567 | M91: Shabbos | N91: =VLOOKUP(Schedule!M91,#REF!,2,FALSE) -> 
A92: 2020-04-04 | B92: 7 | C92: Shabbos 29 | D92: =COUNT($A$2:A92) -> 91 | E92: 273 | F92: 0.03356694947 | G92: 0.01032829214 | M92: Shabbos | N92: =VLOOKUP(Schedule!M92,#REF!,2,FALSE) -> 
A93: 2020-04-05 | B93: 1 | C93: Shabbos 30 | D93: =COUNT($A$2:A93) -> 92 | E93: 276 | F93: 0.03393581704 | G93: 0.01069715972 | M93: Shabbos | N93: =VLOOKUP(Schedule!M93,#REF!,2,FALSE) -> 
A94: 2020-04-06 | B94: 2 | C94: Shabbos 31 | D94: =COUNT($A$2:A94) -> 93 | E94: 279 | F94: 0.03430468462 | G94: 0.0110660273 | M94: Shabbos | N94: =VLOOKUP(Schedule!M94,#REF!,2,FALSE) -> 
A95: 2020-04-07 | B95: 3 | C95: Shabbos 32 | D95: =COUNT($A$2:A95) -> 94 | E95: 282 | F95: 0.03467355219 | G95: 0.01143489487 | M95: Shabbos | N95: =VLOOKUP(Schedule!M95,#REF!,2,FALSE) -> 
A96: 2020-04-08 | B96: 4 | C96: Shabbos 33 | D96: =COUNT($A$2:A96) -> 95 | E96: 285 | F96: 0.03504241977 | G96: 0.01180376245 | M96: Shabbos | N96: =VLOOKUP(Schedule!M96,#REF!,2,FALSE) -> 
A97: 2020-04-09 | B97: 5 | C97: Shabbos 34 | D97: =COUNT($A$2:A97) -> 96 | E97: 288 | F97: 0.03541128735 | G97: 0.01217263003 | M97: Shabbos | N97: =VLOOKUP(Schedule!M97,#REF!,2,FALSE) -> 
A98: 2020-04-10 | B98: 6 | C98: Shabbos 35 | D98: =COUNT($A$2:A98) -> 97 | E98: 291 | F98: 0.03578015492 | G98: 0.0125414976 | M98: Shabbos | N98: =VLOOKUP(Schedule!M98,#REF!,2,FALSE) -> 
A99: 2020-04-11 | B99: 7 | C99: Shabbos 36 | D99: =COUNT($A$2:A99) -> 98 | E99: 294 | F99: 0.0361490225 | G99: 0.01291036518 | M99: Shabbos | N99: =VLOOKUP(Schedule!M99,#REF!,2,FALSE) -> 
A100: 2020-04-12 | B100: 1 | C100: Shabbos 37 | D100: =COUNT($A$2:A100) -> 99 | E100: 297 | F100: 0.03651789008 | G100: 0.01327923276 | M100: Shabbos | N100: =VLOOKUP(Schedule!M100,#REF!,2,FALSE) -> 
A101: 2020-04-13 | B101: 2 | C101: Shabbos 38 | D101: =COUNT($A$2:A101) -> 100 | E101: 300 | F101: 0.03688675765 | G101: 0.01364810033 | M101: Shabbos | N101: =VLOOKUP(Schedule!M101,#REF!,2,FALSE) -> 
A102: 2020-04-14 | B102: 3 | C102: Shabbos 39 | D102: =COUNT($A$2:A102) -> 101 | E102: 303 | F102: 0.03725562523 | G102: 0.01401696791 | M102: Shabbos | N102: =VLOOKUP(Schedule!M102,#REF!,2,FALSE) -> 
A103: 2020-04-15 | B103: 4 | C103: Shabbos 40 | D103: =COUNT($A$2:A103) -> 102 | E103: 306 | F103: 0.03762449281 | G103: 0.01438583549 | M103: Shabbos | N103: =VLOOKUP(Schedule!M103,#REF!,2,FALSE) -> 
A104: 2020-04-16 | B104: 5 | C104: Shabbos 41 | D104: =COUNT($A$2:A104) -> 103 | E104: 309 | F104: 0.03799336038 | G104: 0.01475470306 | M104: Shabbos | N104: =VLOOKUP(Schedule!M104,#REF!,2,FALSE) -> 
A105: 2020-04-17 | B105: 6 | C105: Shabbos 42 | D105: =COUNT($A$2:A105) -> 104 | E105: 312 | F105: 0.03836222796 | G105: 0.01512357064 | M105: Shabbos | N105: =VLOOKUP(Schedule!M105,#REF!,2,FALSE) -> 
A106: 2020-04-18 | B106: 7 | C106: Shabbos 43 | D106: =COUNT($A$2:A106) -> 105 | E106: 315 | F106: 0.03873109554 | G106: 0.01549243821 | M106: Shabbos | N106: =VLOOKUP(Schedule!M106,#REF!,2,FALSE) -> 
A107: 2020-04-19 | B107: 1 | C107: Shabbos 44 | D107: =COUNT($A$2:A107) -> 106 | E107: 318 | F107: 0.03909996311 | G107: 0.01586130579 | M107: Shabbos | N107: =VLOOKUP(Schedule!M107,#REF!,2,FALSE) -> 
A108: 2020-04-20 | B108: 2 | C108: Shabbos 45 | D108: =COUNT($A$2:A108) -> 107 | E108: 321 | F108: 0.03946883069 | G108: 0.01623017337 | M108: Shabbos | N108: =VLOOKUP(Schedule!M108,#REF!,2,FALSE) -> 
A109: 2020-04-21 | B109: 3 | C109: Shabbos 46 | D109: =COUNT($A$2:A109) -> 108 | E109: 324 | F109: 0.03983769827 | G109: 0.01659904094 | M109: Shabbos | N109: =VLOOKUP(Schedule!M109,#REF!,2,FALSE) -> 
A110: 2020-04-22 | B110: 4 | C110: Shabbos 47 | D110: =COUNT($A$2:A110) -> 109 | E110: 327 | F110: 0.04020656584 | G110: 0.01696790852 | M110: Shabbos | N110: =VLOOKUP(Schedule!M110,#REF!,2,FALSE) -> 
A111: 2020-04-23 | B111: 5 | C111: Shabbos 48 | D111: =COUNT($A$2:A111) -> 110 | E111: 330 | F111: 0.04057543342 | G111: 0.0173367761 | M111: Shabbos | N111: =VLOOKUP(Schedule!M111,#REF!,2,FALSE) -> 
A112: 2020-04-24 | B112: 6 | C112: Shabbos 49 | D112: =COUNT($A$2:A112) -> 111 | E112: 333 | F112: 0.040944301 | G112: 0.01770564367 | M112: Shabbos | N112: =VLOOKUP(Schedule!M112,#REF!,2,FALSE) -> 
A113: 2020-04-25 | B113: 7 | C113: Shabbos 50 | D113: =COUNT($A$2:A113) -> 112 | E113: 336 | F113: 0.04131316857 | G113: 0.01807451125 | M113: Shabbos | N113: =VLOOKUP(Schedule!M113,#REF!,2,FALSE) -> 
A114: 2020-04-26 | B114: 1 | C114: Shabbos 51 | D114: =COUNT($A$2:A114) -> 113 | E114: 339 | F114: 0.04168203615 | G114: 0.01844337883 | M114: Shabbos | N114: =VLOOKUP(Schedule!M114,#REF!,2,FALSE) -> 
A115: 2020-04-27 | B115: 2 | C115: Shabbos 52 | D115: =COUNT($A$2:A115) -> 114 | E115: 342 | F115: 0.04205090373 | G115: 0.0188122464 | M115: Shabbos | N115: =VLOOKUP(Schedule!M115,#REF!,2,FALSE) -> 
A116: 2020-04-28 | B116: 3 | C116: Shabbos 53 | D116: =COUNT($A$2:A116) -> 115 | E116: 345 | F116: 0.0424197713 | G116: 0.01918111398 | M116: Shabbos | N116: =VLOOKUP(Schedule!M116,#REF!,2,FALSE) -> 
A117: 2020-04-29 | B117: 4 | C117: Shabbos 54 | D117: =COUNT($A$2:A117) -> 116 | E117: 348 | F117: 0.04278863888 | G117: 0.01954998156 | M117: Shabbos | N117: =VLOOKUP(Schedule!M117,#REF!,2,FALSE) -> 
A118: 2020-04-30 | B118: 5 | C118: Shabbos 55 | D118: =COUNT($A$2:A118) -> 117 | E118: 351 | F118: 0.04315750646 | G118: 0.01991884913 | M118: Shabbos | N118: =VLOOKUP(Schedule!M118,#REF!,2,FALSE) -> 
A119: 2020-05-01 | B119: 6 | C119: Shabbos 56 | D119: =COUNT($A$2:A119) -> 118 | E119: 354 | F119: 0.04352637403 | G119: 0.02028771671 | M119: Shabbos | N119: =VLOOKUP(Schedule!M119,#REF!,2,FALSE) -> 
A120: 2020-05-02 | B120: 7 | C120: Shabbos 57 | D120: =COUNT($A$2:A120) -> 119 | E120: 357 | F120: 0.04389524161 | G120: 0.02065658429 | M120: Shabbos | N120: =VLOOKUP(Schedule!M120,#REF!,2,FALSE) -> 
A121: 2020-05-03 | B121: 1 | C121: Shabbos 58 | D121: =COUNT($A$2:A121) -> 120 | E121: 360 | F121: 0.04426410918 | G121: 0.02102545186 | M121: Shabbos | N121: =VLOOKUP(Schedule!M121,#REF!,2,FALSE) -> 
A122: 2020-05-04 | B122: 2 | C122: Shabbos 59 | D122: =COUNT($A$2:A122) -> 121 | E122: 363 | F122: 0.04463297676 | G122: 0.02139431944 | M122: Shabbos | N122: =VLOOKUP(Schedule!M122,#REF!,2,FALSE) -> 
A123: 2020-05-05 | B123: 3 | C123: Shabbos 60 | D123: =COUNT($A$2:A123) -> 122 | E123: 366 | F123: 0.04500184434 | G123: 0.02176318702 | M123: Shabbos | N123: =VLOOKUP(Schedule!M123,#REF!,2,FALSE) -> 
A124: 2020-05-06 | B124: 4 | C124: Shabbos 61 | D124: =COUNT($A$2:A124) -> 123 | E124: 369 | F124: 0.04537071191 | G124: 0.02213205459 | M124: Shabbos | N124: =VLOOKUP(Schedule!M124,#REF!,2,FALSE) -> 
A125: 2020-05-07 | B125: 5 | C125: Shabbos 62 | D125: =COUNT($A$2:A125) -> 124 | E125: 372 | F125: 0.04573957949 | G125: 0.02250092217 | M125: Shabbos | N125: =VLOOKUP(Schedule!M125,#REF!,2,FALSE) -> 
A126: 2020-05-08 | B126: 6 | C126: Shabbos 63 | D126: =COUNT($A$2:A126) -> 125 | E126: 375 | F126: 0.04610844707 | G126: 0.02286978975 | M126: Shabbos | N126: =VLOOKUP(Schedule!M126,#REF!,2,FALSE) -> 
A127: 2020-05-09 | B127: 7 | C127: Shabbos 64 | D127: =COUNT($A$2:A127) -> 126 | E127: 378 | F127: 0.04647731464 | G127: 0.02323865732 | M127: Shabbos | N127: =VLOOKUP(Schedule!M127,#REF!,2,FALSE) -> 
A128: 2020-05-10 | B128: 1 | C128: Shabbos 65 | D128: =COUNT($A$2:A128) -> 127 | E128: 381 | F128: 0.04684618222 | G128: 0.0236075249 | M128: Shabbos | N128: =VLOOKUP(Schedule!M128,#REF!,2,FALSE) -> 
A129: 2020-05-11 | B129: 2 | C129: Shabbos 66 | D129: =COUNT($A$2:A129) -> 128 | E129: 384 | F129: 0.0472150498 | G129: 0.02397639248 | M129: Shabbos | N129: =VLOOKUP(Schedule!M129,#REF!,2,FALSE) -> 
A130: 2020-05-12 | B130: 3 | C130: Shabbos 67 | D130: =COUNT($A$2:A130) -> 129 | E130: =D130*3 -> 387 | F130: 0.04758391737 | G130: =(D130-63)/2711 -> 0.02434526005 | M130: Shabbos | N130: =VLOOKUP(Schedule!M130,#REF!,2,FALSE) -> 
A131: 2020-05-13 | B131: =WEEKDAY(A131) -> 4 | C131: Shabbos 68 | D131: =COUNT($A$2:A131) -> 130 | E131: 390 | F131: =D131/2711 -> 0.04795278495 | G131: 0.02471412763 | M131: =LEFT(C131,FIND("☃",SUBSTITUTE(C131," ","☃",LEN(C131)-LEN(SUBSTITUTE(C131," ",""))))) -> Shabbos | N131: =VLOOKUP(Schedule!M131,#REF!,2,FALSE) -> 
A132: 2020-05-14 | B132: 5 | C132: Shabbos 69 | D132: =COUNT($A$2:A132) -> 131 | E132: 393 | F132: 0.04832165253 | G132: 0.0250829952 | M132: Shabbos | N132: =VLOOKUP(Schedule!M132,#REF!,2,FALSE) -> 
A133: 2020-05-15 | B133: 6 | C133: Shabbos 70 | D133: =COUNT($A$2:A133) -> 132 | E133: 396 | F133: 0.0486905201 | G133: 0.02545186278 | M133: Shabbos | N133: =VLOOKUP(Schedule!M133,#REF!,2,FALSE) -> 
A134: 2020-05-16 | B134: 7 | C134: Shabbos 71 | D134: =COUNT($A$2:A134) -> 133 | E134: 399 | F134: 0.04905938768 | G134: 0.02582073036 | M134: Shabbos | N134: =VLOOKUP(Schedule!M134,#REF!,2,FALSE) -> 
A135: 2020-05-17 | B135: 1 | C135: Shabbos 72 | D135: =COUNT($A$2:A135) -> 134 | E135: 402 | F135: 0.04942825526 | G135: 0.02618959793 | M135: Shabbos | N135: =VLOOKUP(Schedule!M135,#REF!,2,FALSE) -> 
A136: 2020-05-18 | B136: 2 | C136: Shabbos 73 | D136: =COUNT($A$2:A136) -> 135 | E136: 405 | F136: 0.04979712283 | G136: 0.02655846551 | M136: Shabbos | N136: =VLOOKUP(Schedule!M136,#REF!,2,FALSE) -> 
A137: 2020-05-19 | B137: 3 | C137: Shabbos 74 | D137: =COUNT($A$2:A137) -> 136 | E137: 408 | F137: 0.05016599041 | G137: 0.02692733309 | M137: Shabbos | N137: =VLOOKUP(Schedule!M137,#REF!,2,FALSE) -> 
A138: 2020-05-20 | B138: 4 | C138: Shabbos 75 | D138: =COUNT($A$2:A138) -> 137 | E138: 411 | F138: 0.05053485799 | G138: 0.02729620066 | M138: Shabbos | N138: =VLOOKUP(Schedule!M138,#REF!,2,FALSE) -> 
A139: 2020-05-21 | B139: 5 | C139: Shabbos 76 | D139: =COUNT($A$2:A139) -> 138 | E139: 414 | F139: 0.05090372556 | G139: 0.02766506824 | M139: Shabbos | N139: =VLOOKUP(Schedule!M139,#REF!,2,FALSE) -> 
A140: 2020-05-22 | B140: 6 | C140: Shabbos 77 | D140: =COUNT($A$2:A140) -> 139 | E140: 417 | F140: 0.05127259314 | G140: 0.02803393582 | M140: Shabbos | N140: =VLOOKUP(Schedule!M140,#REF!,2,FALSE) -> 
A141: 2020-05-23 | B141: 7 | C141: Shabbos 78 | D141: =COUNT($A$2:A141) -> 140 | E141: 420 | F141: 0.05164146072 | G141: 0.02840280339 | M141: Shabbos | N141: =VLOOKUP(Schedule!M141,#REF!,2,FALSE) -> 
A142: 2020-05-24 | B142: 1 | C142: Shabbos 79 | D142: =COUNT($A$2:A142) -> 141 | E142: 423 | F142: 0.05201032829 | G142: 0.02877167097 | M142: Shabbos | N142: =VLOOKUP(Schedule!M142,#REF!,2,FALSE) -> 
A143: 2020-05-25 | B143: 2 | C143: Shabbos 80 | D143: =COUNT($A$2:A143) -> 142 | E143: 426 | F143: 0.05237919587 | G143: 0.02914053855 | M143: Shabbos | N143: =VLOOKUP(Schedule!M143,#REF!,2,FALSE) -> 
A144: 2020-05-26 | B144: 3 | C144: Shabbos 81 | D144: =COUNT($A$2:A144) -> 143 | E144: 429 | F144: 0.05274806345 | G144: 0.02950940612 | M144: Shabbos | N144: =VLOOKUP(Schedule!M144,#REF!,2,FALSE) -> 
A145: 2020-05-27 | B145: 4 | C145: Shabbos 82 | D145: =COUNT($A$2:A145) -> 144 | E145: 432 | F145: 0.05311693102 | G145: 0.0298782737 | M145: Shabbos | N145: =VLOOKUP(Schedule!M145,#REF!,2,FALSE) -> 
A146: 2020-05-28 | B146: 5 | C146: Shabbos 83 | D146: =COUNT($A$2:A146) -> 145 | E146: 435 | F146: 0.0534857986 | G146: 0.03024714128 | M146: Shabbos | N146: =VLOOKUP(Schedule!M146,#REF!,2,FALSE) -> 
A147: 2020-05-29 | B147: 6 | C147: Shabbos 84 | D147: =COUNT($A$2:A147) -> 146 | E147: 438 | F147: 0.05385466617 | G147: 0.03061600885 | M147: Shabbos | N147: =VLOOKUP(Schedule!M147,#REF!,2,FALSE) -> 
A148: 2020-05-30 | B148: 7 | C148: Shabbos 85 | D148: =COUNT($A$2:A148) -> 147 | E148: 441 | F148: 0.05422353375 | G148: 0.03098487643 | M148: Shabbos | N148: =VLOOKUP(Schedule!M148,#REF!,2,FALSE) -> 
A149: 2020-05-31 | B149: 1 | C149: Shabbos 86 | D149: =COUNT($A$2:A149) -> 148 | E149: 444 | F149: 0.05459240133 | G149: 0.03135374401 | M149: Shabbos | N149: =VLOOKUP(Schedule!M149,#REF!,2,FALSE) -> 
A150: 2020-06-01 | B150: 2 | C150: Shabbos 87 | D150: =COUNT($A$2:A150) -> 149 | E150: 447 | F150: 0.0549612689 | G150: 0.03172261158 | M150: Shabbos | N150: =VLOOKUP(Schedule!M150,#REF!,2,FALSE) -> 
A151: 2020-06-02 | B151: 3 | C151: Shabbos 88 | D151: =COUNT($A$2:A151) -> 150 | E151: 450 | F151: 0.05533013648 | G151: 0.03209147916 | M151: Shabbos | N151: =VLOOKUP(Schedule!M151,#REF!,2,FALSE) -> 
A152: 2020-06-03 | B152: 4 | C152: Shabbos 89 | D152: =COUNT($A$2:A152) -> 151 | E152: 453 | F152: 0.05569900406 | G152: 0.03246034674 | M152: Shabbos | N152: =VLOOKUP(Schedule!M152,#REF!,2,FALSE) -> 
A153: 2020-06-04 | B153: 5 | C153: Shabbos 90 | D153: =COUNT($A$2:A153) -> 152 | E153: 456 | F153: 0.05606787163 | G153: 0.03282921431 | M153: Shabbos | N153: =VLOOKUP(Schedule!M153,#REF!,2,FALSE) -> 
A154: 2020-06-05 | B154: 6 | C154: Shabbos 91 | D154: =COUNT($A$2:A154) -> 153 | E154: 459 | F154: 0.05643673921 | G154: 0.03319808189 | M154: Shabbos | N154: =VLOOKUP(Schedule!M154,#REF!,2,FALSE) -> 
A155: 2020-06-06 | B155: 7 | C155: Shabbos 92 | D155: =COUNT($A$2:A155) -> 154 | E155: 462 | F155: 0.05680560679 | G155: 0.03356694947 | M155: Shabbos | N155: =VLOOKUP(Schedule!M155,#REF!,2,FALSE) -> 
A156: 2020-06-07 | B156: 1 | C156: Shabbos 93 | D156: =COUNT($A$2:A156) -> 155 | E156: 465 | F156: 0.05717447436 | G156: 0.03393581704 | M156: Shabbos | N156: =VLOOKUP(Schedule!M156,#REF!,2,FALSE) -> 
A157: 2020-06-08 | B157: 2 | C157: Shabbos 94 | D157: =COUNT($A$2:A157) -> 156 | E157: 468 | F157: 0.05754334194 | G157: 0.03430468462 | M157: Shabbos | N157: =VLOOKUP(Schedule!M157,#REF!,2,FALSE) -> 
A158: 2020-06-09 | B158: 3 | C158: Shabbos 95 | D158: =COUNT($A$2:A158) -> 157 | E158: 471 | F158: 0.05791220952 | G158: 0.03467355219 | M158: Shabbos | N158: =VLOOKUP(Schedule!M158,#REF!,2,FALSE) -> 
A159: 2020-06-10 | B159: 4 | C159: Shabbos 96 | D159: =COUNT($A$2:A159) -> 158 | E159: 474 | F159: 0.05828107709 | G159: 0.03504241977 | M159: Shabbos | N159: =VLOOKUP(Schedule!M159,#REF!,2,FALSE) -> 
A160: 2020-06-11 | B160: 5 | C160: Shabbos 97 | D160: =COUNT($A$2:A160) -> 159 | E160: 477 | F160: 0.05864994467 | G160: 0.03541128735 | M160: Shabbos | N160: =VLOOKUP(Schedule!M160,#REF!,2,FALSE) -> 
A161: 2020-06-12 | B161: 6 | C161: Shabbos 98 | D161: =COUNT($A$2:A161) -> 160 | E161: 480 | F161: 0.05901881225 | G161: 0.03578015492 | M161: Shabbos | N161: =VLOOKUP(Schedule!M161,#REF!,2,FALSE) -> 
A162: 2020-06-13 | B162: 7 | C162: Shabbos 99 | D162: =COUNT($A$2:A162) -> 161 | E162: 483 | F162: 0.05938767982 | G162: 0.0361490225 | M162: Shabbos | N162: =VLOOKUP(Schedule!M162,#REF!,2,FALSE) -> 
A163: 2020-06-14 | B163: 1 | C163: Shabbos 100 | D163: =COUNT($A$2:A163) -> 162 | E163: 486 | F163: 0.0597565474 | G163: 0.03651789008 | M163: Shabbos | N163: =VLOOKUP(Schedule!M163,#REF!,2,FALSE) -> 
A164: 2020-06-15 | B164: 2 | C164: Shabbos 101 | D164: =COUNT($A$2:A164) -> 163 | E164: 489 | F164: 0.06012541498 | G164: 0.03688675765 | M164: Shabbos | N164: =VLOOKUP(Schedule!M164,#REF!,2,FALSE) -> 
A165: 2020-06-16 | B165: 3 | C165: Shabbos 102 | D165: =COUNT($A$2:A165) -> 164 | E165: 492 | F165: 0.06049428255 | G165: 0.03725562523 | M165: Shabbos | N165: =VLOOKUP(Schedule!M165,#REF!,2,FALSE) -> 
A166: 2020-06-17 | B166: 4 | C166: Shabbos 103 | D166: =COUNT($A$2:A166) -> 165 | E166: 495 | F166: 0.06086315013 | G166: 0.03762449281 | M166: Shabbos | N166: =VLOOKUP(Schedule!M166,#REF!,2,FALSE) -> 
A167: 2020-06-18 | B167: 5 | C167: Shabbos 104 | D167: =COUNT($A$2:A167) -> 166 | E167: 498 | F167: 0.06123201771 | G167: 0.03799336038 | M167: Shabbos | N167: =VLOOKUP(Schedule!M167,#REF!,2,FALSE) -> 
A168: 2020-06-19 | B168: 6 | C168: Shabbos 105 | D168: =COUNT($A$2:A168) -> 167 | E168: 501 | F168: 0.06160088528 | G168: 0.03836222796 | M168: Shabbos | N168: =VLOOKUP(Schedule!M168,#REF!,2,FALSE) -> 
A169: 2020-06-20 | B169: 7 | C169: Shabbos 106 | D169: =COUNT($A$2:A169) -> 168 | E169: 504 | F169: 0.06196975286 | G169: 0.03873109554 | M169: Shabbos | N169: =VLOOKUP(Schedule!M169,#REF!,2,FALSE) -> 
A170: 2020-06-21 | B170: 1 | C170: Shabbos 107 | D170: =COUNT($A$2:A170) -> 169 | E170: 507 | F170: 0.06233862044 | G170: 0.03909996311 | M170: Shabbos | N170: =VLOOKUP(Schedule!M170,#REF!,2,FALSE) -> 
A171: 2020-06-22 | B171: 2 | C171: Shabbos 108 | D171: =COUNT($A$2:A171) -> 170 | E171: 510 | F171: 0.06270748801 | G171: 0.03946883069 | M171: Shabbos | N171: =VLOOKUP(Schedule!M171,#REF!,2,FALSE) -> 
A172: 2020-06-23 | B172: 3 | C172: Shabbos 109 | D172: =COUNT($A$2:A172) -> 171 | E172: 513 | F172: 0.06307635559 | G172: 0.03983769827 | M172: Shabbos | N172: =VLOOKUP(Schedule!M172,#REF!,2,FALSE) -> 
A173: 2020-06-24 | B173: 4 | C173: Shabbos 110 | D173: =COUNT($A$2:A173) -> 172 | E173: 516 | F173: 0.06344522316 | G173: 0.04020656584 | M173: Shabbos | N173: =VLOOKUP(Schedule!M173,#REF!,2,FALSE) -> 
A174: 2020-06-25 | B174: 5 | C174: Shabbos 111 | D174: =COUNT($A$2:A174) -> 173 | E174: 519 | F174: 0.06381409074 | G174: 0.04057543342 | M174: Shabbos | N174: =VLOOKUP(Schedule!M174,#REF!,2,FALSE) -> 
A175: 2020-06-26 | B175: 6 | C175: Shabbos 112 | D175: =COUNT($A$2:A175) -> 174 | E175: 522 | F175: 0.06418295832 | G175: 0.040944301 | M175: Shabbos | N175: =VLOOKUP(Schedule!M175,#REF!,2,FALSE) -> 
A176: 2020-06-27 | B176: 7 | C176: Shabbos 113 | D176: =COUNT($A$2:A176) -> 175 | E176: 525 | F176: 0.06455182589 | G176: 0.04131316857 | M176: Shabbos | N176: =VLOOKUP(Schedule!M176,#REF!,2,FALSE) -> 
A177: 2020-06-28 | B177: 1 | C177: Shabbos 114 | D177: =COUNT($A$2:A177) -> 176 | E177: 528 | F177: 0.06492069347 | G177: 0.04168203615 | M177: Shabbos | N177: =VLOOKUP(Schedule!M177,#REF!,2,FALSE) -> 
A178: 2020-06-29 | B178: 2 | C178: Shabbos 115 | D178: =COUNT($A$2:A178) -> 177 | E178: 531 | F178: 0.06528956105 | G178: 0.04205090373 | M178: Shabbos | N178: =VLOOKUP(Schedule!M178,#REF!,2,FALSE) -> 
A179: 2020-06-30 | B179: 3 | C179: Shabbos 116 | D179: =COUNT($A$2:A179) -> 178 | E179: 534 | F179: 0.06565842862 | G179: 0.0424197713 | M179: Shabbos | N179: =VLOOKUP(Schedule!M179,#REF!,2,FALSE) -> 
A180: 2020-07-01 | B180: 4 | C180: Shabbos 117 | D180: =COUNT($A$2:A180) -> 179 | E180: 537 | F180: 0.0660272962 | G180: 0.04278863888 | M180: Shabbos | N180: =VLOOKUP(Schedule!M180,#REF!,2,FALSE) -> 
A181: 2020-07-02 | B181: 5 | C181: Shabbos 118 | D181: =COUNT($A$2:A181) -> 180 | E181: 540 | F181: 0.06639616378 | G181: 0.04315750646 | M181: Shabbos | N181: =VLOOKUP(Schedule!M181,#REF!,2,FALSE) -> 
A182: 2020-07-03 | B182: 6 | C182: Shabbos 119 | D182: =COUNT($A$2:A182) -> 181 | E182: 543 | F182: 0.06676503135 | G182: 0.04352637403 | M182: Shabbos | N182: =VLOOKUP(Schedule!M182,#REF!,2,FALSE) -> 
A183: 2020-07-04 | B183: 7 | C183: Shabbos 120 | D183: =COUNT($A$2:A183) -> 182 | E183: 546 | F183: 0.06713389893 | G183: 0.04389524161 | M183: Shabbos | N183: =VLOOKUP(Schedule!M183,#REF!,2,FALSE) -> 
A184: 2020-07-05 | B184: 1 | C184: Shabbos 121 | D184: =COUNT($A$2:A184) -> 183 | E184: 549 | F184: 0.06750276651 | G184: 0.04426410918 | M184: Shabbos | N184: =VLOOKUP(Schedule!M184,#REF!,2,FALSE) -> 
A185: 2020-07-06 | B185: 2 | C185: Shabbos 122 | D185: =COUNT($A$2:A185) -> 184 | E185: 552 | F185: 0.06787163408 | G185: 0.04463297676 | M185: Shabbos | N185: =VLOOKUP(Schedule!M185,#REF!,2,FALSE) -> 
A186: 2020-07-07 | B186: 3 | C186: Shabbos 123 | D186: =COUNT($A$2:A186) -> 185 | E186: 555 | F186: 0.06824050166 | G186: 0.04500184434 | M186: Shabbos | N186: =VLOOKUP(Schedule!M186,#REF!,2,FALSE) -> 
A187: 2020-07-08 | B187: 4 | C187: Shabbos 124 | D187: =COUNT($A$2:A187) -> 186 | E187: 558 | F187: 0.06860936924 | G187: 0.04537071191 | M187: Shabbos | N187: =VLOOKUP(Schedule!M187,#REF!,2,FALSE) -> 
A188: 2020-07-09 | B188: 5 | C188: Shabbos 125 | D188: =COUNT($A$2:A188) -> 187 | E188: 561 | F188: 0.06897823681 | G188: 0.04573957949 | M188: Shabbos | N188: =VLOOKUP(Schedule!M188,#REF!,2,FALSE) -> 
A189: 2020-07-10 | B189: 6 | C189: Shabbos 126 | D189: =COUNT($A$2:A189) -> 188 | E189: 564 | F189: 0.06934710439 | G189: 0.04610844707 | M189: Shabbos | N189: =VLOOKUP(Schedule!M189,#REF!,2,FALSE) -> 
A190: 2020-07-11 | B190: 7 | C190: Shabbos 127 | D190: =COUNT($A$2:A190) -> 189 | E190: 567 | F190: 0.06971597197 | G190: 0.04647731464 | M190: Shabbos | N190: =VLOOKUP(Schedule!M190,#REF!,2,FALSE) -> 
A191: 2020-07-12 | B191: 1 | C191: Shabbos 128 | D191: =COUNT($A$2:A191) -> 190 | E191: 570 | F191: 0.07008483954 | G191: 0.04684618222 | M191: Shabbos | N191: =VLOOKUP(Schedule!M191,#REF!,2,FALSE) -> 
A192: 2020-07-13 | B192: 2 | C192: Shabbos 129 | D192: =COUNT($A$2:A192) -> 191 | E192: 573 | F192: 0.07045370712 | G192: 0.0472150498 | M192: Shabbos | N192: =VLOOKUP(Schedule!M192,#REF!,2,FALSE) -> 
A193: 2020-07-14 | B193: 3 | C193: Shabbos 130 | D193: =COUNT($A$2:A193) -> 192 | E193: 576 | F193: 0.0708225747 | G193: 0.04758391737 | M193: Shabbos | N193: =VLOOKUP(Schedule!M193,#REF!,2,FALSE) -> 
A194: 2020-07-15 | B194: 4 | C194: Shabbos 131 | D194: =COUNT($A$2:A194) -> 193 | E194: =D194*3 -> 579 | F194: 0.07119144227 | G194: =(D194-63)/2711 -> 0.04795278495 | M194: Shabbos | N194: =VLOOKUP(Schedule!M194,#REF!,2,FALSE) -> 
A195: 2020-07-16 | B195: =WEEKDAY(A195) -> 5 | C195: Shabbos 132 | D195: =COUNT($A$2:A195) -> 194 | E195: 582 | F195: =D195/2711 -> 0.07156030985 | G195: 0.04832165253 | M195: =LEFT(C195,FIND("☃",SUBSTITUTE(C195," ","☃",LEN(C195)-LEN(SUBSTITUTE(C195," ",""))))) -> Shabbos | N195: =VLOOKUP(Schedule!M195,#REF!,2,FALSE) -> 
A196: 2020-07-17 | B196: 6 | C196: Shabbos 133 | D196: =COUNT($A$2:A196) -> 195 | E196: 585 | F196: 0.07192917743 | G196: 0.0486905201 | M196: Shabbos | N196: =VLOOKUP(Schedule!M196,#REF!,2,FALSE) -> 
A197: 2020-07-18 | B197: 7 | C197: Shabbos 134 | D197: =COUNT($A$2:A197) -> 196 | E197: 588 | F197: 0.072298045 | G197: 0.04905938768 | M197: Shabbos | N197: =VLOOKUP(Schedule!M197,#REF!,2,FALSE) -> 
A198: 2020-07-19 | B198: 1 | C198: Shabbos 135 | D198: =COUNT($A$2:A198) -> 197 | E198: 591 | F198: 0.07266691258 | G198: 0.04942825526 | M198: Shabbos | N198: =VLOOKUP(Schedule!M198,#REF!,2,FALSE) -> 
A199: 2020-07-20 | B199: 2 | C199: Shabbos 136 | D199: =COUNT($A$2:A199) -> 198 | E199: 594 | F199: 0.07303578015 | G199: 0.04979712283 | M199: Shabbos | N199: =VLOOKUP(Schedule!M199,#REF!,2,FALSE) -> 
A200: 2020-07-21 | B200: 3 | C200: Shabbos 137 | D200: =COUNT($A$2:A200) -> 199 | E200: 597 | F200: 0.07340464773 | G200: 0.05016599041 | M200: Shabbos | N200: =VLOOKUP(Schedule!M200,#REF!,2,FALSE) -> 
... 2512 more rows

Sheet Shas Completion % Tracker (hidden)
B2: SHAS COMPLETION % TRACKER
B3: # | C3: Masechta | D3: Seder | E3: # of Dafs | F3: Running Total | G3: % of Shas | H3: Start Date
B4: 1 | C4: Berachos | D4: זרעים | E4: 63 | F4: =SUM(E$4:E4) -> 63 | G4: =F4/2711 -> 0.02323865732 | H4: 2020-01-05
B5: 2 | C5: Shabbos | D5: מועד | E5: 156 | F5: =SUM(E$4:E5) -> 219 | G5: =F5/2711 -> 0.08078199926 | H5: 2020-03-08 | J5: 1) Input # of dafs complete for each masechta completed (column E)
B6: 3 | C6: Eruvin | D6: מועד | E6: 104 | F6: =SUM(E$4:E6) -> 323 | G6: 0.1191442272 | H6: 2020-08-11 | J6: 3) Hatzlacha!!!!!
B7: 4 | C7: Pesachim | D7: מועד | E7: 120 | F7: =SUM(E$4:E7) -> 443 | G7: 0.1634083364 | H7: 2020-11-23
B8: 5 | C8: Shekalim | D8: מועד | E8: 21 | F8: =SUM(E$4:E8) -> 464 | G8: 0.1711545555 | H8: 2021-03-23
B9: 6 | C9: Yoma | D9: מועד | E9: 87 | F9: =SUM(E$4:E9) -> 551 | G9: 0.2032460347 | H9: 2021-04-13
B10: 7 | C10: Succah | D10: מועד | E10: 55 | F10: =SUM(E$4:E10) -> 606 | G10: 0.2235337514 | H10: 2021-07-09
B11: 8 | C11: Beitzah | D11: מועד | E11: 39 | F11: =SUM(E$4:E11) -> 645 | G11: 0.2379195869 | H11: 2021-09-02
B12: 9 | C12: Rosh Hashanah | D12: מועד | E12: 34 | F12: =SUM(E$4:E12) -> 679 | G12: 0.2504610845 | H12: 2021-10-11
B13: 10 | C13: Taanis | D13: מועד | E13: 30 | F13: =SUM(E$4:E13) -> 709 | G13: 0.2615271118 | H13: 2021-11-14
B14: 11 | C14: Megillah | D14: מועד | E14: 31 | F14: =SUM(E$4:E14) -> 740 | G14: 0.2729620066 | H14: 2021-12-14
B15: 12 | C15: Moed Katan | D15: מועד | E15: 28 | F15: =SUM(E$4:E15) -> 768 | G15: 0.2832902988 | H15: 2022-01-14
B16: 13 | C16: Chagigah | D16: מועד | E16: 26 | F16: =SUM(E$4:E16) -> 794 | G16: 0.2928808558 | H16: 2022-02-11
B17: 14 | C17: Yevamos | D17: נשים | E17: 121 | F17: =SUM(E$4:E17) -> 915 | G17: 0.3375138325 | H17: 2022-03-09
B18: 15 | C18: Kesuvos | D18: נשים | E18: 111 | F18: =SUM(E$4:E18) -> 1026 | G18: 0.3784581335 | H18: 2022-07-08
B19: 16 | C19: Nedarim | D19: נשים | E19: 90 | F19: =SUM(E$4:E19) -> 1116 | G19: 0.4116562154 | H19: 2022-10-27
B20: 17 | C20: Nazir | D20: נשים | E20: 65 | F20: =SUM(E$4:E20) -> 1181 | G20: 0.4356326079 | H20: 2023-01-25
B21: 18 | C21: Sotah | D21: נשים | E21: 48 | F21: =SUM(E$4:E21) -> 1229 | G21: 0.4533382516 | H21: 2023-03-31
B22: 19 | C22: Gittin | D22: נשים | E22: 89 | F22: =SUM(E$4:E22) -> 1318 | G22: 0.4861674659 | H22: 2023-05-18
B23: 20 | C23: Kiddushin | D23: נשים | E23: 81 | F23: =SUM(E$4:E23) -> 1399 | G23: 0.5160457396 | H23: 2023-08-15
B24: 21 | C24: Bava Kamma | D24: נזיקין | E24: 118 | F24: =SUM(E$4:E24) -> 1517 | G24: 0.5595721136 | H24: 2023-11-04
B25: 22 | C25: Bava Metzia | D25: נזיקין | E25: 118 | F25: =SUM(E$4:E25) -> 1635 | G25: 0.6030984876 | H25: 2024-03-01
B26: 23 | C26: Bava Basra | D26: נזיקין | E26: 175 | F26: =SUM(E$4:E26) -> 1810 | G26: 0.6676503135 | H26: 2024-06-27
B27: 24 | C27: Sanhedrin | D27: נזיקין | E27: 112 | F27: =SUM(E$4:E27) -> 1922 | G27: 0.7089634821 | H27: 2024-12-19
B28: 25 | C28: Makkos | D28: נזיקין | E28: 23 | F28: =SUM(E$4:E28) -> 1945 | G28: 0.7174474364 | H28: 2025-04-10
B29: 26 | C29: Shevuos | D29: נזיקין | E29: 48 | F29: =SUM(E$4:E29) -> 1993 | G29: 0.73515308 | H29: 2025-05-03
B30: 27 | C30: Avodah Zara | D30: נזיקין | E30: 75 | F30: =SUM(E$4:E30) -> 2068 | G30: 0.7628181483 | H30: 2025-06-20
B31: 28 | C31: Horayos | D31: נזיקין | E31: 13 | F31: =SUM(E$4:E31) -> 2081 | G31: 0.7676134268 | H31: 2025-09-03
B32: 29 | C32: Zevachim | D32: קדשים | E32: 119 | F32: =SUM(E$4:E32) -> 2200 | G32: 0.8115086684 | H32: 2025-09-16
B33: 30 | C33: Menachos | D33: קדשים | E33: 109 | F33: =SUM(E$4:E33) -> 2309 | G33: 0.8517152342 | H33: 2026-01-13
B34: 31 | C34: Chullin | D34: קדשים | E34: 141 | F34: =SUM(E$4:E34) -> 2450 | G34: 0.9037255625 | H34: 2026-05-02
B35: 32 | C35: Bechoros | D35: קדשים | E35: 60 | F35: =SUM(E$4:E35) -> 2510 | G35: 0.9258576171 | H35: 2026-09-20
B36: 33 | C36: Arachin | D36: קדשים | E36: 33 | F36: =SUM(E$4:E36) -> 2543 | G36: 0.9380302471 | H36: 2026-11-19
B37: 34 | C37: Temurah | D37: קדשים | E37: 33 | F37: =SUM(E$4:E37) -> 2576 | G37: 0.9502028772 | H37: 2026-12-22
B38: 35 | C38: Kereisos | D38: קדשים | E38: 27 | F38: =SUM(E$4:E38) -> 2603 | G38: 0.9601623017 | H38: 2027-01-24
B39: 36 | C39: Meilah, etc | D39: קדשים | E39: 36 | F39: =SUM(E$4:E39) -> 2639 | G39: 0.9734415345 | H39: 2027-02-20
B40: 37 | C40: Niddah | D40: טהרות | E40: 72 | F40: =SUM(E$4:E40) -> 2711 | G40: 1 | H40: 2027-03-28
